Workbook

Sheet Table of Contents
C1: Go to Charts by Pressing Shift and Enter on Menu Item
C3: Sheet Tab | D3: Description | E3: Author
B4: 1 | C4: Table of Contents
B5: 2 | C5: Macros
B6: 3 | C6: Master Assumptions
B7: 4 | C7: Economic Assumptions
B8: 5 | C8: Holding Company Assumptions
B9: 6 | C9: Chart2
B10: 7 | C10: Template
B11: 8 | C11: Egypt PVSYS
B12: 9 | C12: Egypt PVSYS (2)
B13: 10 | C13: Egypt PVSYS (3)
B14: 11 | C14: Consolidation
B15: 12 | C15: Annual
B16: 13 | C16: Inverter Replacement
B17: 14 | C17: Currencies
B18: 15 | C18: SUP
B19: 16 | C19: LCV
B20: 17 | C20: Farm Frites
B21: 18 | C21: Unilever
B23: File Name: | D23: =File_name() -> 
B25: Last Save Date | D25: =lastsaved() -> 
B26: Last Save By | D26: =last_save_by() -> 
B28: Colour Codes

Sheet Macros
A1: Table of Contents | B1: Macros

Sheet Master Assumptions
A1: Table of Contents | B1: Master Assumptions
D2: Final Data Month by Month | G2: 2025-01-01 | H2: Start of Model | K2: 2019-01-01 | N2: Month Periods | P2: 96
D5: Construction Start | E5: Construction Period (Months) | F5: Date of Operation | G5: Lifetime of Project | H5: Decommissioning Date | I5: Capacity kWp | K5: Percent of Solar Used by Consumer | L5: Degradation for First 2 Years | M5: Subsequent Annual Degradation | N5: Local Currency | O5: Depreciation Life | P5: Contract Duration | R5: Resell Surplus | S5: Tariff for Re-selling (EGP/kWh) | T5: Retail Tariff (EGP/kWh) | U5: Inflation Month for Tariff | W5: Construction Cost (EGP/kWp) | X5: O&M Cost as % of Capital | Y5: Replacement Cost of Inverter (EGP/kW) | AA5: Guaranteed Savings in Initial Term | AB5: PV Syst File | AC5: EPC Margin (%) | AD5: Tax Rate | AE5: Fixed Interest Rate | AF5: Variable Total Interest Rate Applied | AG5: Target DSCR for Sculpting | AH5: Debt Tenor (Years) | AI5: Grace Period (Months) | AJ5: Grant as Percent of the Loan (%) | AK5: Grant Funding After COD (Months) | AL5: DSRA Forward Periods (Months) | AM5: Max Debt to Capital | AN5: S-Curve for 1st Month | AO5: S-Curve for 2nd Month | AP5: S-Curve for 3rd Month | AQ5: S-Curve for 4rd Month | AV5: Equity IRR | AW5: Equiy IRR | AX5: Payback Period | AY5: Customer Benefits
B6: MCV | C6: TRUE | D6: 2019-05-01 | E6: 4 | F6: =EDATE(D6,E6) -> 2019-09-01 | G6: 25 | H6: =EDATE(F6,G6*12) -> 2044-09-01 | I6: 650 | K6: 1 | L6: 0.025 | M6: 0.007 | N6: EGP | O6: 5 | P6: 10 | Q6: 22.5 | R6: FALSE | S6: 1.05 | T6: 1.05 | U6: 7 | W6: 11850 | X6: 0.005 | Y6: 0 | AA6: 0 | AB6: Obour | AC6: 0.1 | AD6: 0.1575 | AE6: 0.0265 | AF6: 0.05 | AG6: 1.3 | AH6: 5 | AI6: ='Master Assumptions'!E6 -> 4 | AJ6: 0.15 | AK6: 2 | AL6: 3 | AM6: 0.7 | AV6: =INDIRECT("'"&$B6&"'!f201") -> 0 | AW6: =INDIRECT("'"&$B6&"'!F"&AW$1) ->  | AX6: =INDIRECT("'"&$B6&"'!F"&AX$1) -> 
B7: Farm Frites | C7: TRUE | D7: 2020-01-01 | E7: 5 | F7: 2020-06-01 | G7: 20 | H7: 2040-06-01 | I7: 1247 | K7: 1 | L7: 0.025 | M7: 0.007 | N7: EGP | O7: 5 | P7: 10 | Q7: 22.5 | R7: FALSE | S7: 1.05 | T7: 1.05 | U7: 7 | W7: 12850 | X7: 0.005 | Y7: 0 | AA7: 0 | AB7: 10 Ramadan | AC7: 0.1 | AD7: 0.1575 | AE7: 0.0265 | AF7: 0.05 | AG7: 1.3 | AH7: 5 | AI7: ='Master Assumptions'!E7 -> 5 | AJ7: 0.15 | AK7: 2 | AL7: 3 | AM7: 0.7 | AV7: 0
B8: Unilever | C8: TRUE | D8: 2020-01-01 | E8: 6 | F8: 2020-07-01 | G8: 25 | H8: 2045-07-01 | I8: 3600 | K8: 1 | L8: 0.025 | M8: 0.007 | N8: EGP | O8: 5 | P8: 12 | R8: FALSE | S8: 1.05 | T8: 1.05 | U8: 7 | W8: 11800 | X8: 0.01 | Y8: 0 | AA8: 0 | AB8: Borg Alarab | AC8: 0.1 | AD8: 0.1575 | AE8: 0.0265 | AF8: 0.05 | AG8: 1.3 | AH8: 5 | AI8: ='Master Assumptions'!E8 -> 6 | AJ8: 0.15 | AK8: 2 | AL8: 3 | AM8: 0.7 | AV8: 0
B9: Nestle | C9: TRUE | D9: 2021-06-01 | E9: 7 | F9: 2022-01-01 | G9: 22 | H9: 2044-01-01 | I9: 2900 | K9: 1 | L9: 0.025 | M9: 0.007 | N9: EGP | O9: 5 | P9: 8 | R9: FALSE | S9: 1.05 | T9: 1.05 | U9: 7 | W9: 12000 | X9: 0.005 | Y9: 0 | AA9: 0 | AB9: Sadat | AC9: 0.1 | AD9: 0.1575 | AE9: 0.0265 | AF9: 0.05 | AG9: 1.3 | AH9: 5 | AI9: ='Master Assumptions'!E9 -> 7 | AJ9: 0.15 | AK9: 2 | AL9: 3 | AM9: 0.7 | AV9: 0
B10: Ahram | C10: TRUE | D10: 2020-07-01 | E10: 3 | F10: 2020-10-01 | G10: 25 | H10: 2045-10-01 | I10: 653 | K10: 1 | L10: 0.025 | M10: 0.007 | N10: EGP | O10: 5 | P10: 7 | R10: FALSE | S10: 1.05 | T10: 1.05 | U10: 7 | W10: 12250 | X10: 0.01 | Y10: 0 | AA10: 0 | AB10: Sohag | AC10: 0.1 | AD10: 0.1575 | AE10: 0.0265 | AF10: 0.05 | AG10: 1.3 | AH10: 5 | AI10: ='Master Assumptions'!E10 -> 3 | AJ10: 0.15 | AK10: 2 | AL10: 3 | AM10: 0.7 | AV10: 0
B11: Universal | C11: TRUE | D11: 2021-01-01 | E11: 5 | F11: 2021-06-01 | G11: 25 | H11: 2046-06-01 | I11: 950 | K11: 1 | L11: 0.025 | M11: 0.007 | N11: EGP | O11: 5 | P11: 9 | R11: FALSE | S11: 1.05 | T11: 1.05 | U11: 7 | W11: 12000 | X11: 0.005 | Y11: 0 | AA11: 0 | AB11: 2019-10-06 | AC11: 0.1 | AD11: 0.1575 | AE11: 0.0265 | AF11: 0.05 | AG11: 1.3 | AH11: 5 | AI11: ='Master Assumptions'!E11 -> 5 | AJ11: 0.15 | AK11: 2 | AL11: 3 | AM11: 0.7 | AV11: 0

Sheet Template
A1: Table of Contents | B1: Farm Frites | E1: =MATCH(B1,'Master Assumptions'!B:B,0) -> 7 | F1: <---MATCH --Key Number
B2: PV Syst File | E2: =INDEX('Master Assumptions'!AB:AB,E1) -> 10 Ramadan | H2: 1 | I2: 2 | J2: 3 | K2: 4 | L2: 5 | M2: 6 | N2: 7 | O2: 8 | P2: 9 | Q2: 10 | R2: 11 | S2: 12 | T2: 13 | U2: 14 | V2: 15 | W2: 16 | X2: 17 | Y2: 18 | Z2: 19 | AA2: 20 | AB2: 21 | AC2: 22 | AD2: 23 | AE2: 24 | AF2: 25 | AG2: 26 | AH2: 27 | AI2: 28 | AJ2: 29 | AK2: 30 | AL2: 31 | AM2: 32 | AN2: 33 | AO2: 34 | AP2: 35 | AQ2: 36 | AR2: 37 | AS2: 38 | AT2: 39 | AU2: 40 | AV2: 41 | AW2: 42 | AX2: 43 | AY2: 44 | AZ2: 45 | BA2: 46 | BB2: 47 | BC2: 48 | BD2: 49 | BE2: 50 | BF2: 51 | BG2: 52 | BH2: 53 | BI2: 54 | BJ2: 55 | BK2: 56 | BL2: 57 | BM2: 58 | BN2: 59 | BO2: 60 | BP2: 61 | BQ2: 62 | BR2: 63 | BS2: 64 | BT2: 65 | BU2: 66 | BV2: 67 | BW2: 68 | BX2: 69 | BY2: 70 | BZ2: 71 | CA2: 72 | CB2: 73 | CC2: 74 | CD2: 75 | CE2: 76 | CF2: 77 | CG2: 78 | CH2: 79 | CI2: 80 | CJ2: 81 | CK2: 82 | CL2: 83 | CM2: 84 | CN2: 85 | CO2: 86 | CP2: 87 | CQ2: 88 | CR2: 89 | CS2: 90 | CT2: 91 | CU2: 92 | CV2: 93 | CW2: 94 | CX2: 95 | CY2: 96 | CZ2: 97 | DA2: 98 | DB2: 99 | DC2: 100 | DD2: 101 | DE2: 101 | DF2: 101 | DG2: 101 | DH2: 101 | DI2: 101
A3: Date | H3: ='Master Assumptions'!K2 -> 2019-01-01 | I3: =IF(I5,EDATE(H3,1),EDATE(H3,12)) -> 2019-02-01 | J3: 2019-03-01 | K3: 2019-04-01 | L3: 2019-05-01 | M3: 2019-06-01 | N3: 2019-07-01 | O3: 2019-08-01 | P3: 2019-09-01 | Q3: 2019-10-01 | R3: 2019-11-01 | S3: 2019-12-01 | T3: 2020-01-01 | U3: 2020-02-01 | V3: 2020-03-01 | W3: 2020-04-01 | X3: 2020-05-01 | Y3: 2020-06-01 | Z3: 2020-07-01 | AA3: 2020-08-01 | AB3: 2020-09-01 | AC3: 2020-10-01 | AD3: 2020-11-01 | AE3: 2020-12-01 | AF3: 2021-01-01 | AG3: 2021-02-01 | AH3: 2021-03-01 | AI3: 2021-04-01 | AJ3: 2021-05-01 | AK3: 2021-06-01 | AL3: 2021-07-01 | AM3: 2021-08-01 | AN3: 2021-09-01 | AO3: =IF(AO5,EDATE(AN3,1),EDATE(AN3,12)) -> 2021-10-01 | AP3: 2021-11-01 | AQ3: 2021-12-01 | AR3: 2022-01-01 | AS3: 2022-02-01 | AT3: 2022-03-01 | AU3: 2022-04-01 | AV3: 2022-05-01 | AW3: 2022-06-01 | AX3: 2022-07-01 | AY3: 2022-08-01 | AZ3: 2022-09-01 | BA3: 2022-10-01 | BB3: 2022-11-01 | BC3: 2022-12-01 | BD3: 2023-01-01 | BE3: 2023-02-01 | BF3: 2023-03-01 | BG3: 2023-04-01 | BH3: 2023-05-01 | BI3: 2023-06-01 | BJ3: 2023-07-01 | BK3: 2023-08-01 | BL3: 2023-09-01 | BM3: 2023-10-01 | BN3: 2023-11-01 | BO3: 2023-12-01 | BP3: 2024-01-01 | BQ3: 2024-02-01 | BR3: 2024-03-01 | BS3: 2024-04-01 | BT3: 2024-05-01 | BU3: =IF(BU5,EDATE(BT3,1),EDATE(BT3,12)) -> 2024-06-01 | BV3: 2024-07-01 | BW3: 2024-08-01 | BX3: 2024-09-01 | BY3: 2024-10-01 | BZ3: 2024-11-01 | CA3: =IF(CA5,EDATE(BZ3,1),EDATE(BZ3,12)) -> 2024-12-01 | CB3: 2025-01-01 | CC3: 2025-02-01 | CD3: 2025-03-01 | CE3: 2025-04-01 | CF3: 2025-05-01 | CG3: 2025-06-01 | CH3: 2025-07-01 | CI3: 2025-08-01 | CJ3: 2025-09-01 | CK3: 2025-10-01 | CL3: 2025-11-01 | CM3: 2025-12-01 | CN3: 2026-01-01 | CO3: 2026-02-01 | CP3: 2026-03-01 | CQ3: 2026-04-01 | CR3: 2026-05-01 | CS3: 2026-06-01 | CT3: 2026-07-01 | CU3: 2026-08-01 | CV3: 2026-09-01 | CW3: 2026-10-01 | CX3: 2026-11-01 | CY3: 2026-12-01 | CZ3: 2027-12-01 | DA3: =IF(DA5,EDATE(CZ3,1),EDATE(CZ3,12)) -> 2028-12-01 | DB3: 2029-12-01 | DC3: 2030-12-01 | DD3: 2031-12-01 | DE3: 2032-12-01 | DF3: 2033-12-01 | DG3: =IF(DG5,EDATE(DF3,1),EDATE(DF3,12)) -> 2034-12-01 | DH3: =IF(DH5,EDATE(DG3,1),EDATE(DG3,12)) -> 2035-12-01 | DI3: =IF(DI5,EDATE(DH3,1),EDATE(DH3,12)) -> 2036-12-01
B4: Month | H4: =MONTH(H3) -> 1 | I4: 2 | J4: 3 | K4: 4 | L4: 5 | M4: 6 | N4: 7 | O4: 8 | P4: 9 | Q4: 10 | R4: 11 | S4: 12 | T4: 1 | U4: 2 | V4: 3 | W4: 4 | X4: 5 | Y4: 6 | Z4: 7 | AA4: 8 | AB4: 9 | AC4: 10 | AD4: 11 | AE4: 12 | AF4: 1 | AG4: 2 | AH4: 3 | AI4: 4 | AJ4: 5 | AK4: 6 | AL4: 7 | AM4: 8 | AN4: =MONTH(AN3) -> 9 | AO4: 10 | AP4: 11 | AQ4: 12 | AR4: 1 | AS4: 2 | AT4: 3 | AU4: 4 | AV4: 5 | AW4: 6 | AX4: 7 | AY4: 8 | AZ4: 9 | BA4: 10 | BB4: 11 | BC4: 12 | BD4: 1 | BE4: 2 | BF4: 3 | BG4: 4 | BH4: 5 | BI4: 6 | BJ4: 7 | BK4: 8 | BL4: 9 | BM4: 10 | BN4: 11 | BO4: 12 | BP4: 1 | BQ4: 2 | BR4: 3 | BS4: 4 | BT4: =MONTH(BT3) -> 5 | BU4: 6 | BV4: 7 | BW4: 8 | BX4: 9 | BY4: 10 | BZ4: 11 | CA4: 12 | CB4: 1 | CC4: 2 | CD4: 3 | CE4: 4 | CF4: 5 | CG4: 6 | CH4: 7 | CI4: 8 | CJ4: 9 | CK4: 10 | CL4: 11 | CM4: 12 | CN4: 1 | CO4: 2 | CP4: 3 | CQ4: 4 | CR4: 5 | CS4: 6 | CT4: 7 | CU4: 8 | CV4: 9 | CW4: 10 | CX4: 11 | CY4: 12 | CZ4: =MONTH(CZ3) -> 12 | DA4: 12 | DB4: 12 | DC4: 12 | DD4: 12 | DE4: 12 | DF4: 12 | DG4: =MONTH(DG3) -> 12 | DH4: 12 | DI4: 12
B5: Monthly or Annual Period (TRUE is Month; FALSE is Year) | E5: ='Master Assumptions'!P2 -> 96 | F5: ='Master Assumptions'!G2 -> 2025-01-01 | H5: =H2<=$E$5 -> TRUE | I5: =I2<=$E$5 -> TRUE | J5: TRUE | K5: TRUE | L5: TRUE | M5: TRUE | N5: TRUE | O5: TRUE | P5: TRUE | Q5: TRUE | R5: TRUE | S5: TRUE | T5: TRUE | U5: TRUE | V5: TRUE | W5: TRUE | X5: TRUE | Y5: TRUE | Z5: TRUE | AA5: TRUE | AB5: TRUE | AC5: TRUE | AD5: TRUE | AE5: TRUE | AF5: TRUE | AG5: TRUE | AH5: TRUE | AI5: TRUE | AJ5: TRUE | AK5: TRUE | AL5: TRUE | AM5: TRUE | AN5: TRUE | AO5: TRUE | AP5: TRUE | AQ5: TRUE | AR5: TRUE | AS5: TRUE | AT5: TRUE | AU5: TRUE | AV5: TRUE | AW5: TRUE | AX5: TRUE | AY5: TRUE | AZ5: TRUE | BA5: TRUE | BB5: TRUE | BC5: TRUE | BD5: TRUE | BE5: TRUE | BF5: TRUE | BG5: TRUE | BH5: TRUE | BI5: TRUE | BJ5: TRUE | BK5: TRUE | BL5: TRUE | BM5: TRUE | BN5: TRUE | BO5: TRUE | BP5: TRUE | BQ5: TRUE | BR5: TRUE | BS5: TRUE | BT5: TRUE | BU5: =BU2<=$E$5 -> TRUE | BV5: TRUE | BW5: TRUE | BX5: TRUE | BY5: TRUE | BZ5: TRUE | CA5: TRUE | CB5: =CB2<=$E$5 -> TRUE | CC5: TRUE | CD5: TRUE | CE5: TRUE | CF5: TRUE | CG5: TRUE | CH5: TRUE | CI5: TRUE | CJ5: TRUE | CK5: TRUE | CL5: TRUE | CM5: TRUE | CN5: TRUE | CO5: TRUE | CP5: TRUE | CQ5: TRUE | CR5: TRUE | CS5: TRUE | CT5: TRUE | CU5: TRUE | CV5: TRUE | CW5: TRUE | CX5: TRUE | CY5: TRUE | CZ5: FALSE | DA5: FALSE | DB5: FALSE | DC5: FALSE | DD5: FALSE | DE5: FALSE | DF5: FALSE | DG5: =DG2<=$E$5 -> FALSE | DH5: FALSE | DI5: FALSE
B6: Months in Period | H6: 1 | I6: =DAYS360(H3,I3)/30 -> 1 | J6: 1 | K6: 1 | L6: 1 | M6: 1 | N6: 1 | O6: 1 | P6: 1 | Q6: 1 | R6: 1 | S6: 1 | T6: 1 | U6: 1 | V6: 1 | W6: 1 | X6: 1 | Y6: 1 | Z6: 1 | AA6: 1 | AB6: 1 | AC6: 1 | AD6: 1 | AE6: 1 | AF6: 1 | AG6: 1 | AH6: 1 | AI6: 1 | AJ6: 1 | AK6: 1 | AL6: 1 | AM6: 1 | AN6: 1 | AO6: =DAYS360(AN3,AO3)/30 -> 1 | AP6: 1 | AQ6: 1 | AR6: 1 | AS6: 1 | AT6: 1 | AU6: 1 | AV6: 1 | AW6: 1 | AX6: 1 | AY6: 1 | AZ6: 1 | BA6: 1 | BB6: 1 | BC6: 1 | BD6: 1 | BE6: 1 | BF6: 1 | BG6: 1 | BH6: 1 | BI6: 1 | BJ6: 1 | BK6: 1 | BL6: 1 | BM6: 1 | BN6: 1 | BO6: 1 | BP6: 1 | BQ6: 1 | BR6: 1 | BS6: 1 | BT6: 1 | BU6: =DAYS360(BT3,BU3)/30 -> 1 | BV6: 1 | BW6: 1 | BX6: 1 | BY6: 1 | BZ6: 1 | CA6: 1 | CB6: 1 | CC6: 1 | CD6: 1 | CE6: 1 | CF6: 1 | CG6: 1 | CH6: 1 | CI6: 1 | CJ6: 1 | CK6: 1 | CL6: 1 | CM6: 1 | CN6: 1 | CO6: 1 | CP6: 1 | CQ6: 1 | CR6: 1 | CS6: 1 | CT6: 1 | CU6: 1 | CV6: 1 | CW6: 1 | CX6: 1 | CY6: 1 | CZ6: 12 | DA6: =DAYS360(CZ3,DA3)/30 -> 12 | DB6: 12 | DC6: 12 | DD6: 12 | DE6: 12 | DF6: 12 | DG6: =DAYS360(DF3,DG3)/30 -> 12 | DH6: =DAYS360(DG3,DH3)/30 -> 12 | DI6: =DAYS360(DH3,DI3)/30 -> 12
B7: Operating Period | F7: =INDEX('Master Assumptions'!$F:$F,Template!E1) -> 2020-06-01 | G7: =INDEX('Master Assumptions'!H:H,Template!E1) -> 2040-06-01 | H7: =AND(H3>=$F$7,H3<$G$7) -> FALSE | I7: FALSE | J7: FALSE | K7: FALSE | L7: FALSE | M7: FALSE | N7: FALSE | O7: FALSE | P7: FALSE | Q7: FALSE | R7: FALSE | S7: FALSE | T7: FALSE | U7: FALSE | V7: FALSE | W7: FALSE | X7: FALSE | Y7: TRUE | Z7: TRUE | AA7: TRUE | AB7: TRUE | AC7: TRUE | AD7: TRUE | AE7: TRUE | AF7: TRUE | AG7: TRUE | AH7: TRUE | AI7: TRUE | AJ7: TRUE | AK7: TRUE | AL7: TRUE | AM7: TRUE | AN7: TRUE | AO7: TRUE | AP7: TRUE | AQ7: TRUE | AR7: TRUE | AS7: TRUE | AT7: TRUE | AU7: TRUE | AV7: TRUE | AW7: TRUE | AX7: TRUE | AY7: TRUE | AZ7: TRUE | BA7: TRUE | BB7: TRUE | BC7: TRUE | BD7: TRUE | BE7: TRUE | BF7: TRUE | BG7: TRUE | BH7: TRUE | BI7: TRUE | BJ7: TRUE | BK7: TRUE | BL7: TRUE | BM7: TRUE | BN7: TRUE | BO7: TRUE | BP7: TRUE | BQ7: TRUE | BR7: TRUE | BS7: TRUE | BT7: =AND(BT3>=$F$7,BT3<$G$7) -> TRUE | BU7: TRUE | BV7: TRUE | BW7: TRUE | BX7: TRUE | BY7: TRUE | BZ7: TRUE | CA7: TRUE | CB7: TRUE | CC7: TRUE | CD7: TRUE | CE7: TRUE | CF7: TRUE | CG7: TRUE | CH7: TRUE | CI7: TRUE | CJ7: TRUE | CK7: TRUE | CL7: TRUE | CM7: TRUE | CN7: TRUE | CO7: TRUE | CP7: TRUE | CQ7: TRUE | CR7: TRUE | CS7: TRUE | CT7: TRUE | CU7: TRUE | CV7: TRUE | CW7: TRUE | CX7: TRUE | CY7: TRUE | CZ7: TRUE | DA7: TRUE | DB7: TRUE | DC7: TRUE | DD7: TRUE | DE7: TRUE | DF7: TRUE | DG7: =AND(DG3>=$F$7,DG3<$G$7) -> TRUE | DH7: TRUE | DI7: TRUE
B8: Construction Period | F8: =INDEX('Master Assumptions'!$D:$D,Template!E1) -> 2020-01-01 | H8: =AND(H3>=$F$8,H3<$F$7) -> FALSE | I8: FALSE | J8: FALSE | K8: FALSE | L8: FALSE | M8: FALSE | N8: FALSE | O8: FALSE | P8: FALSE | Q8: FALSE | R8: FALSE | S8: FALSE | T8: TRUE | U8: TRUE | V8: TRUE | W8: TRUE | X8: TRUE | Y8: FALSE | Z8: FALSE | AA8: FALSE | AB8: FALSE | AC8: FALSE | AD8: FALSE | AE8: FALSE | AF8: FALSE | AG8: FALSE | AH8: FALSE | AI8: FALSE | AJ8: FALSE | AK8: FALSE | AL8: FALSE | AM8: FALSE | AN8: FALSE | AO8: FALSE | AP8: FALSE | AQ8: FALSE | AR8: FALSE | AS8: FALSE | AT8: FALSE | AU8: FALSE | AV8: FALSE | AW8: FALSE | AX8: FALSE | AY8: FALSE | AZ8: FALSE | BA8: FALSE | BB8: FALSE | BC8: FALSE | BD8: FALSE | BE8: FALSE | BF8: FALSE | BG8: FALSE | BH8: FALSE | BI8: FALSE | BJ8: FALSE | BK8: FALSE | BL8: FALSE | BM8: FALSE | BN8: FALSE | BO8: FALSE | BP8: FALSE | BQ8: FALSE | BR8: FALSE | BS8: FALSE | BT8: =AND(BT3>=$F$8,BT3<$F$7) -> FALSE | BU8: FALSE | BV8: FALSE | BW8: FALSE | BX8: FALSE | BY8: FALSE | BZ8: FALSE | CA8: FALSE | CB8: FALSE | CC8: FALSE | CD8: FALSE | CE8: FALSE | CF8: FALSE | CG8: FALSE | CH8: FALSE | CI8: FALSE | CJ8: FALSE | CK8: FALSE | CL8: FALSE | CM8: FALSE | CN8: FALSE | CO8: FALSE | CP8: FALSE | CQ8: FALSE | CR8: FALSE | CS8: FALSE | CT8: FALSE | CU8: FALSE | CV8: FALSE | CW8: FALSE | CX8: FALSE | CY8: FALSE | CZ8: FALSE | DA8: FALSE | DB8: FALSE | DC8: FALSE | DD8: FALSE | DE8: FALSE | DF8: FALSE | DG8: =AND(DG3>=$F$8,DG3<$F$7) -> FALSE | DH8: FALSE | DI8: FALSE
B9: Development Period
B10: Contract Period | F10: =INDEX('Master Assumptions'!P:P,Template!E1) -> 10 | G10: =EDATE(F7,F10*12) -> 2030-06-01 | H10: =AND(H3>=$F$7,H3<$G$10) -> FALSE | I10: FALSE | J10: FALSE | K10: FALSE | L10: FALSE | M10: FALSE | N10: FALSE | O10: FALSE | P10: FALSE | Q10: FALSE | R10: FALSE | S10: FALSE | T10: FALSE | U10: FALSE | V10: FALSE | W10: FALSE | X10: FALSE | Y10: TRUE | Z10: TRUE | AA10: TRUE | AB10: TRUE | AC10: TRUE | AD10: TRUE | AE10: TRUE | AF10: TRUE | AG10: TRUE | AH10: TRUE | AI10: TRUE | AJ10: TRUE | AK10: TRUE | AL10: TRUE | AM10: TRUE | AN10: TRUE | AO10: TRUE | AP10: TRUE | AQ10: TRUE | AR10: TRUE | AS10: TRUE | AT10: TRUE | AU10: TRUE | AV10: TRUE | AW10: TRUE | AX10: TRUE | AY10: TRUE | AZ10: TRUE | BA10: TRUE | BB10: TRUE | BC10: TRUE | BD10: TRUE | BE10: TRUE | BF10: TRUE | BG10: TRUE | BH10: TRUE | BI10: TRUE | BJ10: TRUE | BK10: TRUE | BL10: TRUE | BM10: TRUE | BN10: TRUE | BO10: TRUE | BP10: TRUE | BQ10: TRUE | BR10: TRUE | BS10: TRUE | BT10: =AND(BT3>=$F$7,BT3<$G$10) -> TRUE | BU10: TRUE | BV10: TRUE | BW10: TRUE | BX10: TRUE | BY10: TRUE | BZ10: TRUE | CA10: TRUE | CB10: TRUE | CC10: TRUE | CD10: TRUE | CE10: TRUE | CF10: TRUE | CG10: TRUE | CH10: TRUE | CI10: TRUE | CJ10: TRUE | CK10: TRUE | CL10: TRUE | CM10: TRUE | CN10: TRUE | CO10: TRUE | CP10: TRUE | CQ10: TRUE | CR10: TRUE | CS10: TRUE | CT10: TRUE | CU10: TRUE | CV10: TRUE | CW10: TRUE | CX10: TRUE | CY10: TRUE | CZ10: TRUE | DA10: TRUE | DB10: TRUE | DC10: FALSE | DD10: FALSE | DE10: FALSE | DF10: FALSE | DG10: =AND(DG3>=$F$7,DG3<$G$10) -> FALSE | DH10: FALSE | DI10: FALSE
A12: Operation and Energy
B13: Capacity | E13: kWc | G13: =INDEX('Master Assumptions'!I:I,Template!E1) -> 1247 | H13: =$G$13*H7 -> 0 | I13: =$G$13*I7 -> 0 | J13: =$G$13*J7 -> 0 | K13: =$G$13*K7 -> 0 | L13: 0 | M13: 0 | N13: 0 | O13: 0 | P13: 0 | Q13: 0 | R13: 0 | S13: 0 | T13: 0 | U13: 0 | V13: 0 | W13: 0 | X13: 0 | Y13: 1247 | Z13: 1247 | AA13: 1247 | AB13: 1247 | AC13: 1247 | AD13: 1247 | AE13: 1247 | AF13: 1247 | AG13: 1247 | AH13: 1247 | AI13: 1247 | AJ13: 1247 | AK13: 1247 | AL13: 1247 | AM13: 1247 | AN13: 1247 | AO13: 1247 | AP13: 1247 | AQ13: 1247 | AR13: 1247 | AS13: 1247 | AT13: 1247 | AU13: 1247 | AV13: 1247 | AW13: 1247 | AX13: 1247 | AY13: 1247 | AZ13: 1247 | BA13: 1247 | BB13: 1247 | BC13: 1247 | BD13: 1247 | BE13: 1247 | BF13: 1247 | BG13: 1247 | BH13: 1247 | BI13: 1247 | BJ13: 1247 | BK13: 1247 | BL13: 1247 | BM13: 1247 | BN13: 1247 | BO13: 1247 | BP13: 1247 | BQ13: 1247 | BR13: 1247 | BS13: 1247 | BT13: 1247 | BU13: 1247 | BV13: 1247 | BW13: =$G$13*BW7 -> 1247 | BX13: 1247 | BY13: 1247 | BZ13: 1247 | CA13: 1247 | CB13: 1247 | CC13: 1247 | CD13: 1247 | CE13: 1247 | CF13: 1247 | CG13: 1247 | CH13: 1247 | CI13: 1247 | CJ13: 1247 | CK13: 1247 | CL13: 1247 | CM13: 1247 | CN13: 1247 | CO13: 1247 | CP13: 1247 | CQ13: 1247 | CR13: 1247 | CS13: 1247 | CT13: 1247 | CU13: 1247 | CV13: 1247 | CW13: 1247 | CX13: 1247 | CY13: 1247 | CZ13: 1247 | DA13: 1247 | DB13: 1247 | DC13: 1247 | DD13: 1247 | DE13: =$G$13*DE7 -> 1247 | DF13: =$G$13*DF7 -> 1247 | DG13: =$G$13*DG7 -> 1247 | DH13: 1247 | DI13: 1247
B14: Monthly Production from PVSYS | E14: kWh/Month | H14: =LOOKUP(H4,INDIRECT("'"&$E$2&"'!$B:$B"),INDIRECT("'"&$E$2&"'!$k:$k"))*1000 -> 118500 | I14: =LOOKUP(I4,INDIRECT("'"&$E$2&"'!$B:$B"),INDIRECT("'"&$E$2&"'!$k:$k"))*1000 -> 128600 | J14: =LOOKUP(J4,INDIRECT("'"&$E$2&"'!$B:$B"),INDIRECT("'"&$E$2&"'!$k:$k"))*1000 -> 179300 | K14: =LOOKUP(K4,INDIRECT("'"&$E$2&"'!$B:$B"),INDIRECT("'"&$E$2&"'!$k:$k"))*1000 -> 193800 | L14: =LOOKUP(L4,INDIRECT("'"&$E$2&"'!$B:$B"),INDIRECT("'"&$E$2&"'!$k:$k"))*1000 -> 222900 | M14: 226900 | N14: 206300 | O14: 213800 | P14: 185800 | Q14: 159700 | R14: 122900 | S14: 110200 | T14: 118500 | U14: 128600 | V14: 179300 | W14: 193800 | X14: 222900 | Y14: 226900 | Z14: 206300 | AA14: 213800 | AB14: 185800 | AC14: 159700 | AD14: 122900 | AE14: 110200 | AF14: 118500 | AG14: 128600 | AH14: 179300 | AI14: 193800 | AJ14: 222900 | AK14: 226900 | AL14: 206300 | AM14: 213800 | AN14: 185800 | AO14: 159700 | AP14: 122900 | AQ14: =LOOKUP(AQ4,INDIRECT("'"&$E$2&"'!$B:$B"),INDIRECT("'"&$E$2&"'!$k:$k"))*1000 -> 110200 | AR14: 118500 | AS14: 128600 | AT14: 179300 | AU14: 193800 | AV14: 222900 | AW14: 226900 | AX14: 206300 | AY14: 213800 | AZ14: 185800 | BA14: 159700 | BB14: 122900 | BC14: 110200 | BD14: 118500 | BE14: 128600 | BF14: 179300 | BG14: 193800 | BH14: 222900 | BI14: 226900 | BJ14: 206300 | BK14: 213800 | BL14: 185800 | BM14: 159700 | BN14: 122900 | BO14: 110200 | BP14: 118500 | BQ14: 128600 | BR14: 179300 | BS14: 193800 | BT14: =LOOKUP(BT4,INDIRECT("'"&$E$2&"'!$B:$B"),INDIRECT("'"&$E$2&"'!$k:$k"))*1000 -> 222900 | BU14: 226900 | BV14: 206300 | BW14: 213800 | BX14: 185800 | BY14: 159700 | BZ14: 122900 | CA14: 110200 | CB14: 118500 | CC14: 128600 | CD14: 179300 | CE14: 193800 | CF14: 222900 | CG14: 226900 | CH14: 206300 | CI14: 213800 | CJ14: 185800 | CK14: 159700 | CL14: 122900 | CM14: 110200 | CN14: 118500 | CO14: 128600 | CP14: 179300 | CQ14: 193800 | CR14: 222900 | CS14: 226900 | CT14: 206300 | CU14: 213800 | CV14: 185800 | CW14: 159700 | CX14: 122900 | CY14: 110200 | CZ14: =LOOKUP(CZ4,INDIRECT("'"&$E$2&"'!$B:$B"),INDIRECT("'"&$E$2&"'!$k:$k"))*1000 -> 110200 | DA14: 110200 | DB14: 110200 | DC14: 110200 | DD14: 110200 | DE14: 110200 | DF14: 110200 | DG14: =LOOKUP(DG4,INDIRECT("'"&$E$2&"'!$B:$B"),INDIRECT("'"&$E$2&"'!$k:$k"))*1000 -> 110200 | DH14: 110200 | DI14: 110200
B15: Annual Production from PVSYS | E15: kWh/Year | H15: =MAX(INDIRECT("'"&$E$2&"'!$K:$K"))*1000 -> 2068500 | I15: =MAX(INDIRECT("'"&$E$2&"'!$K:$K"))*1000 -> 2068500 | J15: 2068500 | K15: 2068500 | L15: 2068500 | M15: 2068500 | N15: 2068500 | O15: 2068500 | P15: 2068500 | Q15: 2068500 | R15: 2068500 | S15: 2068500 | T15: 2068500 | U15: 2068500 | V15: 2068500 | W15: 2068500 | X15: 2068500 | Y15: 2068500 | Z15: 2068500 | AA15: 2068500 | AB15: 2068500 | AC15: 2068500 | AD15: 2068500 | AE15: 2068500 | AF15: 2068500 | AG15: 2068500 | AH15: 2068500 | AI15: 2068500 | AJ15: 2068500 | AK15: 2068500 | AL15: 2068500 | AM15: 2068500 | AN15: 2068500 | AO15: 2068500 | AP15: 2068500 | AQ15: 2068500 | AR15: 2068500 | AS15: 2068500 | AT15: 2068500 | AU15: 2068500 | AV15: 2068500 | AW15: 2068500 | AX15: 2068500 | AY15: 2068500 | AZ15: 2068500 | BA15: 2068500 | BB15: 2068500 | BC15: 2068500 | BD15: 2068500 | BE15: 2068500 | BF15: 2068500 | BG15: 2068500 | BH15: 2068500 | BI15: 2068500 | BJ15: 2068500 | BK15: 2068500 | BL15: 2068500 | BM15: 2068500 | BN15: 2068500 | BO15: 2068500 | BP15: 2068500 | BQ15: 2068500 | BR15: 2068500 | BS15: 2068500 | BT15: 2068500 | BU15: =MAX(INDIRECT("'"&$E$2&"'!$K:$K"))*1000 -> 2068500 | BV15: 2068500 | BW15: 2068500 | BX15: 2068500 | BY15: 2068500 | BZ15: 2068500 | CA15: 2068500 | CB15: 2068500 | CC15: 2068500 | CD15: 2068500 | CE15: 2068500 | CF15: 2068500 | CG15: 2068500 | CH15: 2068500 | CI15: 2068500 | CJ15: 2068500 | CK15: 2068500 | CL15: 2068500 | CM15: 2068500 | CN15: 2068500 | CO15: 2068500 | CP15: 2068500 | CQ15: 2068500 | CR15: 2068500 | CS15: 2068500 | CT15: 2068500 | CU15: 2068500 | CV15: 2068500 | CW15: 2068500 | CX15: 2068500 | CY15: 2068500 | CZ15: 2068500 | DA15: 2068500 | DB15: 2068500 | DC15: 2068500 | DD15: 2068500 | DE15: 2068500 | DF15: 2068500 | DG15: 2068500 | DH15: 2068500 | DI15: 2068500
B16: Production in Months of Years | E16: kWh | H16: =IF(H5,H14,H15)*H7 -> 0 | I16: 0 | J16: 0 | K16: 0 | L16: 0 | M16: 0 | N16: 0 | O16: 0 | P16: 0 | Q16: 0 | R16: 0 | S16: 0 | T16: 0 | U16: 0 | V16: 0 | W16: 0 | X16: 0 | Y16: 226900 | Z16: 206300 | AA16: 213800 | AB16: 185800 | AC16: 159700 | AD16: 122900 | AE16: 110200 | AF16: 118500 | AG16: 128600 | AH16: 179300 | AI16: 193800 | AJ16: 222900 | AK16: 226900 | AL16: 206300 | AM16: 213800 | AN16: 185800 | AO16: 159700 | AP16: 122900 | AQ16: 110200 | AR16: 118500 | AS16: 128600 | AT16: 179300 | AU16: 193800 | AV16: 222900 | AW16: 226900 | AX16: 206300 | AY16: 213800 | AZ16: 185800 | BA16: 159700 | BB16: 122900 | BC16: 110200 | BD16: 118500 | BE16: 128600 | BF16: 179300 | BG16: 193800 | BH16: 222900 | BI16: 226900 | BJ16: 206300 | BK16: 213800 | BL16: 185800 | BM16: 159700 | BN16: 122900 | BO16: 110200 | BP16: 118500 | BQ16: 128600 | BR16: 179300 | BS16: 193800 | BT16: =IF(BT5,BT14,BT15)*BT7 -> 222900 | BU16: 226900 | BV16: 206300 | BW16: 213800 | BX16: 185800 | BY16: 159700 | BZ16: 122900 | CA16: 110200 | CB16: 118500 | CC16: 128600 | CD16: 179300 | CE16: 193800 | CF16: 222900 | CG16: 226900 | CH16: 206300 | CI16: 213800 | CJ16: 185800 | CK16: 159700 | CL16: 122900 | CM16: 110200 | CN16: 118500 | CO16: 128600 | CP16: 179300 | CQ16: 193800 | CR16: 222900 | CS16: 226900 | CT16: 206300 | CU16: 213800 | CV16: 185800 | CW16: 159700 | CX16: 122900 | CY16: 110200 | CZ16: 2068500 | DA16: 2068500 | DB16: 2068500 | DC16: 2068500 | DD16: 2068500 | DE16: 2068500 | DF16: 2068500 | DG16: =IF(DG5,DG14,DG15)*DG7 -> 2068500 | DH16: 2068500 | DI16: 2068500
B17: Yield par period | E17: Full Hrs/Period | H17: =IF(H13,H16/H13) -> FALSE | I17: =IF(I13,I16/I13) -> FALSE | J17: =IF(J13,J16/J13) -> FALSE | K17: =IF(K13,K16/K13) -> FALSE | L17: FALSE | M17: FALSE | N17: FALSE | O17: FALSE | P17: FALSE | Q17: FALSE | R17: FALSE | S17: FALSE | T17: FALSE | U17: FALSE | V17: FALSE | W17: FALSE | X17: FALSE | Y17: 181.9566961 | Z17: 165.4370489 | AA17: 171.4514836 | AB17: 148.9975942 | AC17: 128.0673617 | AD17: 98.55653569 | AE17: 88.37209302 | AF17: 95.02806736 | AG17: 103.127506 | AH17: 143.7850842 | AI17: 155.4129912 | AJ17: 178.7489976 | AK17: 181.9566961 | AL17: 165.4370489 | AM17: 171.4514836 | AN17: 148.9975942 | AO17: 128.0673617 | AP17: 98.55653569 | AQ17: 88.37209302 | AR17: 95.02806736 | AS17: 103.127506 | AT17: 143.7850842 | AU17: 155.4129912 | AV17: 178.7489976 | AW17: 181.9566961 | AX17: 165.4370489 | AY17: 171.4514836 | AZ17: 148.9975942 | BA17: 128.0673617 | BB17: 98.55653569 | BC17: 88.37209302 | BD17: 95.02806736 | BE17: 103.127506 | BF17: 143.7850842 | BG17: 155.4129912 | BH17: 178.7489976 | BI17: 181.9566961 | BJ17: 165.4370489 | BK17: 171.4514836 | BL17: 148.9975942 | BM17: 128.0673617 | BN17: 98.55653569 | BO17: 88.37209302 | BP17: 95.02806736 | BQ17: 103.127506 | BR17: 143.7850842 | BS17: 155.4129912 | BT17: 178.7489976 | BU17: 181.9566961 | BV17: 165.4370489 | BW17: =IF(BW13,BW16/BW13) -> 171.4514836 | BX17: 148.9975942 | BY17: 128.0673617 | BZ17: 98.55653569 | CA17: 88.37209302 | CB17: 95.02806736 | CC17: 103.127506 | CD17: 143.7850842 | CE17: 155.4129912 | CF17: 178.7489976 | CG17: 181.9566961 | CH17: 165.4370489 | CI17: 171.4514836 | CJ17: 148.9975942 | CK17: 128.0673617 | CL17: 98.55653569 | CM17: 88.37209302 | CN17: 95.02806736 | CO17: 103.127506 | CP17: 143.7850842 | CQ17: 155.4129912 | CR17: 178.7489976 | CS17: 181.9566961 | CT17: 165.4370489 | CU17: 171.4514836 | CV17: 148.9975942 | CW17: 128.0673617 | CX17: 98.55653569 | CY17: 88.37209302 | CZ17: 1658.781075 | DA17: 1658.781075 | DB17: 1658.781075 | DC17: 1658.781075 | DD17: 1658.781075 | DE17: =IF(DE13,DE16/DE13) -> 1658.781075 | DF17: =IF(DF13,DF16/DF13) -> 1658.781075 | DG17: =IF(DG13,DG16/DG13) -> 1658.781075 | DH17: 1658.781075 | DI17: 1658.781075
B18: Hours in Period | H18: =IF(I3>0,(I3-H3)*24,H6/12*(8760)) -> 744 | I18: =IF(J3>0,(J3-I3)*24,I6/12*(8760)) -> 672 | J18: 744 | K18: 720 | L18: 744 | M18: 720 | N18: 744 | O18: 744 | P18: 720 | Q18: 744 | R18: 720 | S18: 744 | T18: 744 | U18: 696 | V18: 744 | W18: 720 | X18: 744 | Y18: 720 | Z18: 744 | AA18: 744 | AB18: 720 | AC18: 744 | AD18: 720 | AE18: 744 | AF18: 744 | AG18: 672 | AH18: 744 | AI18: 720 | AJ18: 744 | AK18: 720 | AL18: 744 | AM18: 744 | AN18: 720 | AO18: 744 | AP18: 720 | AQ18: 744 | AR18: 744 | AS18: 672 | AT18: 744 | AU18: 720 | AV18: 744 | AW18: 720 | AX18: 744 | AY18: 744 | AZ18: 720 | BA18: 744 | BB18: 720 | BC18: 744 | BD18: 744 | BE18: 672 | BF18: 744 | BG18: 720 | BH18: 744 | BI18: 720 | BJ18: 744 | BK18: 744 | BL18: 720 | BM18: 744 | BN18: 720 | BO18: 744 | BP18: 744 | BQ18: 696 | BR18: 744 | BS18: 720 | BT18: 744 | BU18: =IF(BV3>0,(BV3-BU3)*24,BU6/12*(8760)) -> 720 | BV18: 744 | BW18: 744 | BX18: 720 | BY18: 744 | BZ18: 720 | CA18: 744 | CB18: 744 | CC18: 672 | CD18: 744 | CE18: 720 | CF18: 744 | CG18: 720 | CH18: 744 | CI18: 744 | CJ18: 720 | CK18: 744 | CL18: 720 | CM18: 744 | CN18: 744 | CO18: 672 | CP18: 744 | CQ18: 720 | CR18: 744 | CS18: 720 | CT18: 744 | CU18: 744 | CV18: 720 | CW18: 744 | CX18: 720 | CY18: 8760 | CZ18: 8784 | DA18: 8760 | DB18: 8760 | DC18: 8760 | DD18: 8784 | DE18: 8760 | DF18: 8760 | DG18: =IF(DH3>0,(DH3-DG3)*24,DG6/12*(8760)) -> 8760 | DH18: 8784 | DI18: 8760
B19: Monthly or Annual Capacity Factor | E19: % | H19: =H17/H18 -> 0 | I19: =I17/I18 -> 0 | J19: 0 | K19: 0 | L19: 0 | M19: 0 | N19: 0 | O19: 0 | P19: 0 | Q19: 0 | R19: 0 | S19: 0 | T19: 0 | U19: 0 | V19: 0 | W19: 0 | X19: 0 | Y19: 0.2527176334 | Z19: 0.2223616249 | AA19: 0.2304455424 | AB19: 0.2069411031 | AC19: 0.1721335506 | AD19: 0.1368840773 | AE19: 0.1187796949 | AF19: 0.127725897 | AG19: 0.1534635506 | AH19: 0.1932595218 | AI19: 0.2158513766 | AJ19: 0.240254029 | AK19: 0.2527176334 | AL19: 0.2223616249 | AM19: 0.2304455424 | AN19: 0.2069411031 | AO19: 0.1721335506 | AP19: 0.1368840773 | AQ19: 0.1187796949 | AR19: 0.127725897 | AS19: 0.1534635506 | AT19: 0.1932595218 | AU19: 0.2158513766 | AV19: 0.240254029 | AW19: 0.2527176334 | AX19: 0.2223616249 | AY19: 0.2304455424 | AZ19: 0.2069411031 | BA19: 0.1721335506 | BB19: 0.1368840773 | BC19: 0.1187796949 | BD19: 0.127725897 | BE19: 0.1534635506 | BF19: 0.1932595218 | BG19: 0.2158513766 | BH19: 0.240254029 | BI19: 0.2527176334 | BJ19: 0.2223616249 | BK19: 0.2304455424 | BL19: 0.2069411031 | BM19: 0.1721335506 | BN19: 0.1368840773 | BO19: 0.1187796949 | BP19: 0.127725897 | BQ19: 0.148171704 | BR19: 0.1932595218 | BS19: 0.2158513766 | BT19: 0.240254029 | BU19: =BU17/BU18 -> 0.2527176334 | BV19: 0.2223616249 | BW19: 0.2304455424 | BX19: 0.2069411031 | BY19: 0.1721335506 | BZ19: 0.1368840773 | CA19: 0.1187796949 | CB19: 0.127725897 | CC19: 0.1534635506 | CD19: 0.1932595218 | CE19: 0.2158513766 | CF19: 0.240254029 | CG19: 0.2527176334 | CH19: 0.2223616249 | CI19: 0.2304455424 | CJ19: 0.2069411031 | CK19: 0.1721335506 | CL19: 0.1368840773 | CM19: 0.1187796949 | CN19: 0.127725897 | CO19: 0.1534635506 | CP19: 0.1932595218 | CQ19: 0.2158513766 | CR19: 0.240254029 | CS19: 0.2527176334 | CT19: 0.2223616249 | CU19: 0.2304455424 | CV19: 0.2069411031 | CW19: 0.1721335506 | CX19: 0.1368840773 | CY19: 0.01008813847 | CZ19: 0.188841197 | DA19: 0.1893585702 | DB19: 0.1893585702 | DC19: 0.1893585702 | DD19: 0.188841197 | DE19: 0.1893585702 | DF19: 0.1893585702 | DG19: =DG17/DG18 -> 0.1893585702 | DH19: 0.188841197 | DI19: 0.1893585702
B21: Lifetime in Months | H21: =IF(H5,G21+H7,G21+12) -> 0 | I21: 0 | J21: 0 | K21: 0 | L21: 0 | M21: 0 | N21: 0 | O21: 0 | P21: 0 | Q21: 0 | R21: 0 | S21: 0 | T21: 0 | U21: 0 | V21: 0 | W21: 0 | X21: 0 | Y21: 1 | Z21: 2 | AA21: 3 | AB21: 4 | AC21: 5 | AD21: 6 | AE21: 7 | AF21: 8 | AG21: 9 | AH21: 10 | AI21: 11 | AJ21: 12 | AK21: 13 | AL21: 14 | AM21: 15 | AN21: 16 | AO21: 17 | AP21: 18 | AQ21: 19 | AR21: 20 | AS21: 21 | AT21: 22 | AU21: 23 | AV21: 24 | AW21: 25 | AX21: 26 | AY21: 27 | AZ21: 28 | BA21: 29 | BB21: 30 | BC21: 31 | BD21: 32 | BE21: 33 | BF21: 34 | BG21: 35 | BH21: 36 | BI21: 37 | BJ21: 38 | BK21: 39 | BL21: 40 | BM21: 41 | BN21: 42 | BO21: 43 | BP21: 44 | BQ21: 45 | BR21: 46 | BS21: 47 | BT21: =IF(BT5,BS21+BT7,BS21+12) -> 48 | BU21: 49 | BV21: 50 | BW21: 51 | BX21: 52 | BY21: 53 | BZ21: 54 | CA21: 55 | CB21: 56 | CC21: 57 | CD21: 58 | CE21: 59 | CF21: 60 | CG21: 61 | CH21: 62 | CI21: 63 | CJ21: 64 | CK21: 65 | CL21: 66 | CM21: 67 | CN21: 68 | CO21: 69 | CP21: 70 | CQ21: 71 | CR21: 72 | CS21: 73 | CT21: 74 | CU21: 75 | CV21: 76 | CW21: 77 | CX21: 78 | CY21: 79 | CZ21: 91 | DA21: 103 | DB21: 115 | DC21: 127 | DD21: 139 | DE21: 151 | DF21: 163 | DG21: =IF(DG5,DF21+DG7,DF21+12) -> 175 | DH21: =IF(DH5,DG21+DH7,DG21+12) -> 187 | DI21: =IF(DI5,DH21+DI7,DH21+12) -> 199
B22: Lifetime in Years | H22: =IF(H5,ROUNDUP(H21/12,0),ROUNDUP(H21/12,0)) -> 0 | I22: 0 | J22: 0 | K22: 0 | L22: 0 | M22: 0 | N22: 0 | O22: 0 | P22: 0 | Q22: 0 | R22: 0 | S22: 0 | T22: 0 | U22: 0 | V22: 0 | W22: 0 | X22: 0 | Y22: 1 | Z22: 1 | AA22: 1 | AB22: 1 | AC22: 1 | AD22: 1 | AE22: 1 | AF22: 1 | AG22: 1 | AH22: 1 | AI22: 1 | AJ22: 1 | AK22: 2 | AL22: 2 | AM22: 2 | AN22: 2 | AO22: 2 | AP22: 2 | AQ22: 2 | AR22: 2 | AS22: 2 | AT22: 2 | AU22: 2 | AV22: 2 | AW22: 3 | AX22: 3 | AY22: 3 | AZ22: 3 | BA22: 3 | BB22: 3 | BC22: 3 | BD22: 3 | BE22: 3 | BF22: 3 | BG22: 3 | BH22: 3 | BI22: 4 | BJ22: 4 | BK22: 4 | BL22: 4 | BM22: 4 | BN22: 4 | BO22: 4 | BP22: 4 | BQ22: 4 | BR22: 4 | BS22: 4 | BT22: =IF(BT5,ROUNDUP(BT21/12,0),ROUNDUP(BT21/12,0)) -> 4 | BU22: 5 | BV22: 5 | BW22: 5 | BX22: 5 | BY22: 5 | BZ22: 5 | CA22: 5 | CB22: 5 | CC22: 5 | CD22: 5 | CE22: 5 | CF22: 5 | CG22: 6 | CH22: 6 | CI22: 6 | CJ22: 6 | CK22: 6 | CL22: 6 | CM22: 6 | CN22: 6 | CO22: 6 | CP22: 6 | CQ22: 6 | CR22: 6 | CS22: 7 | CT22: 7 | CU22: 7 | CV22: 7 | CW22: 7 | CX22: 7 | CY22: 7 | CZ22: 8 | DA22: 9 | DB22: 10 | DC22: 11 | DD22: 12 | DE22: 13 | DF22: 14 | DG22: =IF(DG5,ROUNDUP(DG21/12,0),ROUNDUP(DG21/12,0)) -> 15 | DH22: 16 | DI22: 17
B23: Degradation Rate | F23: =INDEX('Master Assumptions'!L:L,Template!E1) -> 0.025 | G23: =INDEX('Master Assumptions'!M:M,Template!E1) -> 0.007 | H23: =(IF(H22<=2,$F$23,$G$23)+1)^(H6/12)-1 -> 0.00205983627 | I23: =(IF(I22<=2,$F$23,$G$23)+1)^(I6/12)-1 -> 0.00205983627 | J23: 0.00205983627 | K23: 0.00205983627 | L23: 0.00205983627 | M23: 0.00205983627 | N23: 0.00205983627 | O23: 0.00205983627 | P23: 0.00205983627 | Q23: 0.00205983627 | R23: 0.00205983627 | S23: 0.00205983627 | T23: 0.00205983627 | U23: 0.00205983627 | V23: 0.00205983627 | W23: 0.00205983627 | X23: 0.00205983627 | Y23: 0.00205983627 | Z23: 0.00205983627 | AA23: 0.00205983627 | AB23: 0.00205983627 | AC23: 0.00205983627 | AD23: 0.00205983627 | AE23: 0.00205983627 | AF23: 0.00205983627 | AG23: 0.00205983627 | AH23: 0.00205983627 | AI23: 0.00205983627 | AJ23: 0.00205983627 | AK23: 0.00205983627 | AL23: 0.00205983627 | AM23: 0.00205983627 | AN23: 0.00205983627 | AO23: 0.00205983627 | AP23: 0.00205983627 | AQ23: 0.00205983627 | AR23: 0.00205983627 | AS23: 0.00205983627 | AT23: 0.00205983627 | AU23: 0.00205983627 | AV23: 0.00205983627 | AW23: 0.000581470133 | AX23: 0.000581470133 | AY23: 0.000581470133 | AZ23: 0.000581470133 | BA23: 0.000581470133 | BB23: 0.000581470133 | BC23: 0.000581470133 | BD23: 0.000581470133 | BE23: 0.000581470133 | BF23: 0.000581470133 | BG23: 0.000581470133 | BH23: 0.000581470133 | BI23: 0.000581470133 | BJ23: 0.000581470133 | BK23: 0.000581470133 | BL23: 0.000581470133 | BM23: 0.000581470133 | BN23: 0.000581470133 | BO23: 0.000581470133 | BP23: 0.000581470133 | BQ23: 0.000581470133 | BR23: 0.000581470133 | BS23: 0.000581470133 | BT23: 0.000581470133 | BU23: =(IF(BU22<=2,$F$23,$G$23)+1)^(BU6/12)-1 -> 0.000581470133 | BV23: 0.000581470133 | BW23: 0.000581470133 | BX23: 0.000581470133 | BY23: 0.000581470133 | BZ23: 0.000581470133 | CA23: 0.000581470133 | CB23: 0.000581470133 | CC23: 0.000581470133 | CD23: 0.000581470133 | CE23: 0.000581470133 | CF23: 0.000581470133 | CG23: 0.000581470133 | CH23: 0.000581470133 | CI23: 0.000581470133 | CJ23: 0.000581470133 | CK23: 0.000581470133 | CL23: 0.000581470133 | CM23: 0.000581470133 | CN23: 0.000581470133 | CO23: 0.000581470133 | CP23: 0.000581470133 | CQ23: 0.000581470133 | CR23: 0.000581470133 | CS23: 0.000581470133 | CT23: 0.000581470133 | CU23: 0.000581470133 | CV23: 0.000581470133 | CW23: 0.000581470133 | CX23: 0.000581470133 | CY23: 0.000581470133 | CZ23: 0.007 | DA23: 0.007 | DB23: 0.007 | DC23: 0.007 | DD23: 0.007 | DE23: 0.007 | DF23: 0.007 | DG23: =(IF(DG22<=2,$F$23,$G$23)+1)^(DG6/12)-1 -> 0.007 | DH23: 0.007 | DI23: 0.007
B24: Degradation Index | G24: 1 | H24: =G24*(1+H23*H7) -> 1 | I24: =H24*(1+I23*I7) -> 1 | J24: 1 | K24: 1 | L24: 1 | M24: 1 | N24: 1 | O24: 1 | P24: 1 | Q24: 1 | R24: 1 | S24: 1 | T24: 1 | U24: 1 | V24: 1 | W24: 1 | X24: 1 | Y24: 1.002059836 | Z24: 1.004123915 | AA24: 1.006192246 | AB24: 1.008264838 | AC24: 1.010341698 | AD24: 1.012422837 | AE24: 1.014508262 | AF24: 1.016597983 | AG24: 1.018692008 | AH24: 1.020790347 | AI24: 1.022893008 | AJ24: 1.025 | AK24: 1.027111332 | AL24: 1.029227013 | AM24: 1.031347052 | AN24: 1.033471459 | AO24: 1.035600241 | AP24: 1.037733407 | AQ24: 1.039870968 | AR24: 1.042012932 | AS24: 1.044159308 | AT24: 1.046310106 | AU24: 1.048465333 | AV24: 1.050625 | AW24: 1.051235907 | AX24: 1.051847169 | AY24: 1.052458787 | AZ24: 1.05307076 | BA24: 1.05368309 | BB24: 1.054295775 | BC24: 1.054908816 | BD24: 1.055522214 | BE24: 1.056135969 | BF24: 1.05675008 | BG24: 1.057364549 | BH24: 1.057979375 | BI24: 1.058594558 | BJ24: 1.0592101 | BK24: 1.059825999 | BL24: 1.060442256 | BM24: 1.061058871 | BN24: 1.061675845 | BO24: 1.062293178 | BP24: 1.06291087 | BQ24: 1.063528921 | BR24: 1.064147331 | BS24: 1.064766101 | BT24: 1.065385231 | BU24: =BT24*(1+BU23*BU7) -> 1.06600472 | BV24: 1.06662457 | BW24: 1.067244781 | BX24: 1.067865352 | BY24: 1.068486283 | BZ24: 1.069107576 | CA24: 1.06972923 | CB24: 1.070351246 | CC24: 1.070973623 | CD24: 1.071596362 | CE24: 1.072219464 | CF24: 1.072842927 | CG24: 1.073466753 | CH24: 1.074090942 | CI24: 1.074715494 | CJ24: 1.075340409 | CK24: 1.075965687 | CL24: 1.076591329 | CM24: 1.077217335 | CN24: 1.077843705 | CO24: 1.078470439 | CP24: 1.079097537 | CQ24: 1.079725 | CR24: 1.080352828 | CS24: 1.080981021 | CT24: 1.081609579 | CU24: 1.082238502 | CV24: 1.082867792 | CW24: 1.083497447 | CX24: 1.084127469 | CY24: 1.084757856 | CZ24: 1.092351161 | DA24: 1.099997619 | DB24: 1.107697603 | DC24: 1.115451486 | DD24: 1.123259646 | DE24: 1.131122464 | DF24: 1.139040321 | DG24: =DF24*(1+DG23*DG7) -> 1.147013603 | DH24: =DG24*(1+DH23*DH7) -> 1.155042699 | DI24: =DH24*(1+DI23*DI7) -> 1.163127997
B25: Degradation Stated in Energy | E25: kWh | H25: =H16-H16/H24 -> 0 | I25: 0 | J25: 0 | K25: 0 | L25: 0 | M25: 0 | N25: 0 | O25: 0 | P25: 0 | Q25: 0 | R25: 0 | S25: 0 | T25: 0 | U25: 0 | V25: 0 | W25: =W16-W16/W24 -> 0 | X25: 0 | Y25: 466.4161088 | Z25: 847.2696919 | AA25: 1315.754787 | AB25: 1523.01932 | AC25: 1634.663984 | AD25: 1508.032572 | AE25: 1575.946215 | AF25: 1934.748042 | AG25: 2359.684998 | AH25: 3651.787275 | AI25: 4337.369494 | AJ25: 5436.585366 | AK25: 5989.186448 | AL25: 5858.311895 | AM25: 6498.297353 | AN25: =AN16-AN16/AN24 -> 6017.579825 | AO25: 5489.916082 | AP25: 4468.812265 | AQ25: 4225.31338 | AR25: 4777.802968 | AS25: 5438.717071 | AT25: 7935.890025 | AU25: 8958.409262 | AV25: 10740.57109 | AW25: 11058.8187 | AX25: 10168.8452 | AY25: 10656.65355 | AZ25: 9363.61321 | BA25: 8136.402201 | BB25: 6329.296662 | BC25: 5735.994873 | BD25: 6233.296001 | BE25: 6835.375199 | BF25: 9628.851342 | BG25: 10514.1123 | BH25: 12215.36354 | BI25: 12559.20427 | BJ25: 11532.21966 | BK25: 12068.77215 | BL25: 10590.08263 | BM25: 9189.972394 | BN25: 7139.619327 | BO25: 6462.159755 | BP25: 7013.7001 | BQ25: 7681.802581 | BR25: 10808.29329 | BS25: 11788.19494 | BT25: =BT16-BT16/BT24 -> 13679.90421 | BU25: 14049.16015 | BV25: 12886.11684 | BW25: 13471.07463 | BX25: 11808.02645 | BY25: 10236.21886 | BZ25: 7944.309163 | CA25: 7183.276817 | CB25: 7788.679344 | CC25: 8522.346157 | CD25: 11979.53653 | CE25: 13053.42099 | CF25: 15134.26436 | CG25: 15528.75884 | CH25: 14230.60262 | CI25: 14863.62922 | CJ25: 13017.50392 | CK25: 11275.19251 | CL25: 8743.405325 | CM25: 7899.381149 | CN25: 8558.271444 | CO25: 9357.04683 | CP25: 13142.63807 | CQ25: 14309.85203 | CR25: 16578.51476 | CS25: 16998.07234 | CT25: 15565.74243 | CU25: 16246.50369 | CV25: 14218.5739 | CW25: 12306.94391 | CX25: 9536.946699 | CY25: 8610.507596 | CZ25: =CZ16-CZ16/CZ24 -> 174878.1746 | DA25: 188041.3849 | DB25: 201113.0932 | DC25: 214093.9357 | DD25: 226984.5439 | DE25: 239785.5451 | DF25: 252497.5621 | DG25: =DG16-DG16/DG24 -> 265121.2136 | DH25: 277657.1138 | DI25: 290105.8727
B26: Adjusted Production for Degradataion | E26: kWh | H26: =H16-H25 -> 0 | I26: =I16-I25 -> 0 | J26: =J16-J25 -> 0 | K26: 0 | L26: 0 | M26: 0 | N26: 0 | O26: 0 | P26: 0 | Q26: 0 | R26: 0 | S26: 0 | T26: 0 | U26: 0 | V26: 0 | W26: =W16-W25 -> 0 | X26: 0 | Y26: 226433.5839 | Z26: 205452.7303 | AA26: 212484.2452 | AB26: 184276.9807 | AC26: 158065.336 | AD26: 121391.9674 | AE26: 108624.0538 | AF26: 116565.252 | AG26: 126240.315 | AH26: 175648.2127 | AI26: 189462.6305 | AJ26: 217463.4146 | AK26: 220910.8136 | AL26: 200441.6881 | AM26: 207301.7026 | AN26: 179782.4202 | AO26: 154210.0839 | AP26: 118431.1877 | AQ26: 105974.6866 | AR26: 113722.197 | AS26: 123161.2829 | AT26: 171364.11 | AU26: 184841.5907 | AV26: 212159.4289 | AW26: 215841.1813 | AX26: 196131.1548 | AY26: 203143.3464 | AZ26: 176436.3868 | BA26: 151563.5978 | BB26: 116570.7033 | BC26: 104464.0051 | BD26: 112266.704 | BE26: 121764.6248 | BF26: 169671.1487 | BG26: 183285.8877 | BH26: 210684.6365 | BI26: 214340.7957 | BJ26: 194767.7803 | BK26: 201731.2279 | BL26: 175209.9174 | BM26: 150510.0276 | BN26: 115760.3807 | BO26: 103737.8402 | BP26: 111486.2999 | BQ26: 120918.1974 | BR26: 168491.7067 | BS26: 182011.8051 | BT26: 209220.0958 | BU26: =BU16-BU25 -> 212850.8398 | BV26: 193413.8832 | BW26: 200328.9254 | BX26: 173991.9736 | BY26: 149463.7811 | BZ26: 114955.6908 | CA26: 103016.7232 | CB26: 110711.3207 | CC26: 120077.6538 | CD26: 167320.4635 | CE26: 180746.579 | CF26: 207765.7356 | CG26: 211371.2412 | CH26: 192069.3974 | CI26: 198936.3708 | CJ26: 172782.4961 | CK26: 148424.8075 | CL26: 114156.5947 | CM26: 102300.6189 | CN26: 109941.7286 | CO26: 119242.9532 | CP26: 166157.3619 | CQ26: 179490.148 | CR26: 206321.4852 | CS26: 209901.9277 | CT26: 190734.2576 | CU26: 197553.4963 | CV26: 171581.4261 | CW26: 147393.0561 | CX26: 113363.0533 | CY26: 101589.4924 | CZ26: 1893621.825 | DA26: 1880458.615 | DB26: 1867386.907 | DC26: 1854406.064 | DD26: 1841515.456 | DE26: =DE16-DE25 -> 1828714.455 | DF26: =DF16-DF25 -> 1816002.438 | DG26: =DG16-DG25 -> 1803378.786 | DH26: 1790842.886 | DI26: 1778394.127
B27: Production Not Used by Customer | E27: kWh | F27: =INDEX('Master Assumptions'!K:K,Template!E1) -> 1 | G27: =1-F27 -> 0 | H27: =LOOKUP(H4,INDIRECT("'"&$E$2&"'!$B:$B"),INDIRECT("'"&$E$2&"'!$j:$j"))*1000*H7 -> 0 | I27: 0 | J27: 0 | K27: 0 | L27: 0 | M27: 0 | N27: 0 | O27: 0 | P27: 0 | Q27: 0 | R27: 0 | S27: 0 | T27: 0 | U27: 0 | V27: 0 | W27: 0 | X27: 0 | Y27: 695 | Z27: 693 | AA27: 691 | AB27: 696 | AC27: 707 | AD27: 720 | AE27: 719 | AF27: 721 | AG27: 732 | AH27: 726 | AI27: 715 | AJ27: 703 | AK27: 695 | AL27: 693 | AM27: 691 | AN27: 696 | AO27: 707 | AP27: 720 | AQ27: 719 | AR27: 721 | AS27: 732 | AT27: 726 | AU27: 715 | AV27: 703 | AW27: 695 | AX27: 693 | AY27: 691 | AZ27: 696 | BA27: 707 | BB27: 720 | BC27: 719 | BD27: 721 | BE27: 732 | BF27: 726 | BG27: 715 | BH27: 703 | BI27: 695 | BJ27: 693 | BK27: 691 | BL27: 696 | BM27: 707 | BN27: 720 | BO27: 719 | BP27: 721 | BQ27: 732 | BR27: 726 | BS27: 715 | BT27: =LOOKUP(BT4,INDIRECT("'"&$E$2&"'!$B:$B"),INDIRECT("'"&$E$2&"'!$j:$j"))*1000*BT7 -> 703 | BU27: 695 | BV27: 693 | BW27: 691 | BX27: 696 | BY27: 707 | BZ27: 720 | CA27: 719 | CB27: 721 | CC27: 732 | CD27: 726 | CE27: 715 | CF27: 703 | CG27: 695 | CH27: 693 | CI27: 691 | CJ27: 696 | CK27: 707 | CL27: 720 | CM27: 719 | CN27: 721 | CO27: 732 | CP27: 726 | CQ27: 715 | CR27: 703 | CS27: 695 | CT27: 693 | CU27: 691 | CV27: 696 | CW27: 707 | CX27: 720 | CY27: 719 | CZ27: 719 | DA27: 719 | DB27: 719 | DC27: 719 | DD27: 719 | DE27: 719 | DF27: 719 | DG27: =LOOKUP(DG4,INDIRECT("'"&$E$2&"'!$B:$B"),INDIRECT("'"&$E$2&"'!$j:$j"))*1000*DG7 -> 719 | DH27: 719 | DI27: 719
B28: Production Sold back to Utility | E28: kWh | F28: =INDEX('Master Assumptions'!R:R,Template!E1) -> FALSE | H28: =H27*$F$28 -> 0 | I28: =I27*$F$28 -> 0 | J28: 0 | K28: 0 | L28: 0 | M28: 0 | N28: 0 | O28: 0 | P28: 0 | Q28: 0 | R28: 0 | S28: 0 | T28: 0 | U28: 0 | V28: 0 | W28: 0 | X28: 0 | Y28: 0 | Z28: 0 | AA28: 0 | AB28: 0 | AC28: 0 | AD28: 0 | AE28: 0 | AF28: 0 | AG28: 0 | AH28: 0 | AI28: 0 | AJ28: 0 | AK28: 0 | AL28: 0 | AM28: 0 | AN28: 0 | AO28: 0 | AP28: 0 | AQ28: 0 | AR28: 0 | AS28: 0 | AT28: 0 | AU28: 0 | AV28: 0 | AW28: 0 | AX28: 0 | AY28: 0 | AZ28: 0 | BA28: 0 | BB28: 0 | BC28: 0 | BD28: 0 | BE28: 0 | BF28: 0 | BG28: 0 | BH28: 0 | BI28: 0 | BJ28: 0 | BK28: 0 | BL28: 0 | BM28: 0 | BN28: 0 | BO28: 0 | BP28: 0 | BQ28: 0 | BR28: 0 | BS28: 0 | BT28: 0 | BU28: =BU27*$F$28 -> 0 | BV28: 0 | BW28: 0 | BX28: 0 | BY28: 0 | BZ28: 0 | CA28: 0 | CB28: 0 | CC28: 0 | CD28: 0 | CE28: 0 | CF28: 0 | CG28: 0 | CH28: 0 | CI28: 0 | CJ28: 0 | CK28: 0 | CL28: 0 | CM28: 0 | CN28: 0 | CO28: 0 | CP28: 0 | CQ28: 0 | CR28: 0 | CS28: 0 | CT28: 0 | CU28: 0 | CV28: 0 | CW28: 0 | CX28: 0 | CY28: 0 | CZ28: 0 | DA28: 0 | DB28: 0 | DC28: 0 | DD28: 0 | DE28: 0 | DF28: 0 | DG28: =DG27*$F$28 -> 0 | DH28: 0 | DI28: 0
B29: Consumption Lost per Period per Month | E29: kWh | H29: =MAX(H25,H27) -> 0 | I29: 0 | J29: 0 | K29: 0 | L29: 0 | M29: 0 | N29: 0 | O29: 0 | P29: 0 | Q29: 0 | R29: 0 | S29: 0 | T29: 0 | U29: 0 | V29: 0 | W29: 0 | X29: 0 | Y29: 695 | Z29: 847.2696919 | AA29: 1315.754787 | AB29: 1523.01932 | AC29: 1634.663984 | AD29: 1508.032572 | AE29: 1575.946215 | AF29: 1934.748042 | AG29: 2359.684998 | AH29: 3651.787275 | AI29: 4337.369494 | AJ29: 5436.585366 | AK29: 5989.186448 | AL29: 5858.311895 | AM29: 6498.297353 | AN29: 6017.579825 | AO29: 5489.916082 | AP29: 4468.812265 | AQ29: 4225.31338 | AR29: 4777.802968 | AS29: 5438.717071 | AT29: 7935.890025 | AU29: 8958.409262 | AV29: 10740.57109 | AW29: 11058.8187 | AX29: 10168.8452 | AY29: 10656.65355 | AZ29: 9363.61321 | BA29: 8136.402201 | BB29: 6329.296662 | BC29: 5735.994873 | BD29: 6233.296001 | BE29: 6835.375199 | BF29: 9628.851342 | BG29: 10514.1123 | BH29: 12215.36354 | BI29: 12559.20427 | BJ29: 11532.21966 | BK29: 12068.77215 | BL29: 10590.08263 | BM29: 9189.972394 | BN29: 7139.619327 | BO29: 6462.159755 | BP29: 7013.7001 | BQ29: 7681.802581 | BR29: 10808.29329 | BS29: 11788.19494 | BT29: =MAX(BT25,BT27) -> 13679.90421 | BU29: 14049.16015 | BV29: 12886.11684 | BW29: 13471.07463 | BX29: 11808.02645 | BY29: 10236.21886 | BZ29: 7944.309163 | CA29: 7183.276817 | CB29: 7788.679344 | CC29: 8522.346157 | CD29: 11979.53653 | CE29: 13053.42099 | CF29: 15134.26436 | CG29: 15528.75884 | CH29: 14230.60262 | CI29: 14863.62922 | CJ29: 13017.50392 | CK29: 11275.19251 | CL29: 8743.405325 | CM29: 7899.381149 | CN29: 8558.271444 | CO29: 9357.04683 | CP29: 13142.63807 | CQ29: 14309.85203 | CR29: 16578.51476 | CS29: 16998.07234 | CT29: 15565.74243 | CU29: 16246.50369 | CV29: 14218.5739 | CW29: 12306.94391 | CX29: 9536.946699 | CY29: 8610.507596 | CZ29: 174878.1746 | DA29: 188041.3849 | DB29: 201113.0932 | DC29: 214093.9357 | DD29: 226984.5439 | DE29: 239785.5451 | DF29: 252497.5621 | DG29: =MAX(DG25,DG27) -> 265121.2136 | DH29: 277657.1138 | DI29: 290105.8727
B31: Final Production Adjusted for Degradation and Non-Consumed | E31: kWh | H31: =H26-H29 -> 0 | I31: 0 | J31: 0 | K31: 0 | L31: 0 | M31: 0 | N31: 0 | O31: 0 | P31: 0 | Q31: 0 | R31: 0 | S31: 0 | T31: 0 | U31: 0 | V31: 0 | W31: 0 | X31: 0 | Y31: 225738.5839 | Z31: 204605.4606 | AA31: 211168.4904 | AB31: 182753.9614 | AC31: 156430.672 | AD31: 119883.9349 | AE31: 107048.1076 | AF31: 114630.5039 | AG31: 123880.63 | AH31: 171996.4254 | AI31: 185125.261 | AJ31: 212026.8293 | AK31: 214921.6271 | AL31: 194583.3762 | AM31: 200803.4053 | AN31: 173764.8404 | AO31: 148720.1678 | AP31: 113962.3755 | AQ31: 101749.3732 | AR31: 108944.3941 | AS31: 117722.5659 | AT31: 163428.22 | AU31: 175883.1815 | AV31: 201418.8578 | AW31: 204782.3626 | AX31: 185962.3096 | AY31: 192486.6929 | AZ31: 167072.7736 | BA31: 143427.1956 | BB31: 110241.4067 | BC31: 98728.01025 | BD31: 106033.408 | BE31: 114929.2496 | BF31: 160042.2973 | BG31: 172771.7754 | BH31: 198469.2729 | BI31: 201781.5915 | BJ31: 183235.5607 | BK31: 189662.4557 | BL31: 164619.8347 | BM31: 141320.0552 | BN31: 108620.7613 | BO31: 97275.68049 | BP31: 104472.5998 | BQ31: 113236.3948 | BR31: 157683.4134 | BS31: 170223.6101 | BT31: =BT26-BT29 -> 195540.1916 | BU31: 198801.6797 | BV31: 180527.7663 | BW31: 186857.8507 | BX31: 162183.9471 | BY31: 139227.5623 | BZ31: 107011.3817 | CA31: 95833.44637 | CB31: 102922.6413 | CC31: 111555.3077 | CD31: 155340.9269 | CE31: 167693.158 | CF31: 192631.4713 | CG31: 195842.4823 | CH31: 177838.7948 | CI31: 184072.7416 | CJ31: 159764.9922 | CK31: 137149.615 | CL31: 105413.1893 | CM31: 94401.2377 | CN31: 101383.4571 | CO31: 109885.9063 | CP31: 153014.7239 | CQ31: 165180.2959 | CR31: 189742.9705 | CS31: 192903.8553 | CT31: 175168.5151 | CU31: 181306.9926 | CV31: 157362.8522 | CW31: 135086.1122 | CX31: 103826.1066 | CY31: 92978.98481 | CZ31: 1718743.651 | DA31: 1692417.23 | DB31: 1666273.814 | DC31: 1640312.129 | DD31: 1614530.912 | DE31: 1588928.91 | DF31: 1563504.876 | DG31: =DG26-DG29 -> 1538257.573 | DH31: 1513185.772 | DI31: 1488288.255
A33: Macro Economic Assumptions Exchange Rate and Inflation
B34: Year | H34: =YEAR(H3) -> 2019 | I34: 2019 | J34: 2019 | K34: 2019 | L34: 2019 | M34: 2019 | N34: 2019 | O34: 2019 | P34: 2019 | Q34: 2019 | R34: 2019 | S34: 2019 | T34: 2020 | U34: 2020 | V34: 2020 | W34: 2020 | X34: 2020 | Y34: 2020 | Z34: 2020 | AA34: 2020 | AB34: 2020 | AC34: 2020 | AD34: 2020 | AE34: 2020 | AF34: 2021 | AG34: 2021 | AH34: 2021 | AI34: 2021 | AJ34: 2021 | AK34: 2021 | AL34: 2021 | AM34: 2021 | AN34: 2021 | AO34: 2021 | AP34: 2021 | AQ34: 2021 | AR34: 2022 | AS34: 2022 | AT34: 2022 | AU34: 2022 | AV34: 2022 | AW34: 2022 | AX34: 2022 | AY34: 2022 | AZ34: 2022 | BA34: 2022 | BB34: 2022 | BC34: 2022 | BD34: 2023 | BE34: 2023 | BF34: 2023 | BG34: 2023 | BH34: 2023 | BI34: 2023 | BJ34: 2023 | BK34: 2023 | BL34: 2023 | BM34: 2023 | BN34: 2023 | BO34: 2023 | BP34: 2024 | BQ34: 2024 | BR34: 2024 | BS34: 2024 | BT34: =YEAR(BT3) -> 2024 | BU34: 2024 | BV34: 2024 | BW34: 2024 | BX34: 2024 | BY34: 2024 | BZ34: 2024 | CA34: 2024 | CB34: 2025 | CC34: 2025 | CD34: 2025 | CE34: 2025 | CF34: 2025 | CG34: 2025 | CH34: 2025 | CI34: 2025 | CJ34: 2025 | CK34: 2025 | CL34: 2025 | CM34: 2025 | CN34: 2026 | CO34: 2026 | CP34: 2026 | CQ34: 2026 | CR34: 2026 | CS34: 2026 | CT34: 2026 | CU34: 2026 | CV34: 2026 | CW34: 2026 | CX34: 2026 | CY34: 2026 | CZ34: 2027 | DA34: 2028 | DB34: 2029 | DC34: 2030 | DD34: 2031 | DE34: 2032 | DF34: 2033 | DG34: =YEAR(DG3) -> 2034 | DH34: 2035 | DI34: 2036
B35: Column in Economic Assumptions Page | H35: =MATCH(H34,'Economic Assumptions'!1:1) -> 6 | I35: =MATCH(I34,'Economic Assumptions'!1:1) -> 6 | J35: =MATCH(J34,'Economic Assumptions'!1:1) -> 6 | K35: =MATCH(K34,'Economic Assumptions'!1:1) -> 6 | L35: =MATCH(L34,'Economic Assumptions'!1:1) -> 6 | M35: =MATCH(M34,'Economic Assumptions'!1:1) -> 6 | N35: =MATCH(N34,'Economic Assumptions'!1:1) -> 6 | O35: =MATCH(O34,'Economic Assumptions'!1:1) -> 6 | P35: =MATCH(P34,'Economic Assumptions'!1:1) -> 6 | Q35: =MATCH(Q34,'Economic Assumptions'!1:1) -> 6 | R35: =MATCH(R34,'Economic Assumptions'!1:1) -> 6 | S35: =MATCH(S34,'Economic Assumptions'!1:1) -> 6 | T35: =MATCH(T34,'Economic Assumptions'!1:1) -> 7 | U35: =MATCH(U34,'Economic Assumptions'!1:1) -> 7 | V35: =MATCH(V34,'Economic Assumptions'!1:1) -> 7 | W35: =MATCH(W34,'Economic Assumptions'!1:1) -> 7 | X35: =MATCH(X34,'Economic Assumptions'!1:1) -> 7 | Y35: =MATCH(Y34,'Economic Assumptions'!1:1) -> 7 | Z35: =MATCH(Z34,'Economic Assumptions'!1:1) -> 7 | AA35: =MATCH(AA34,'Economic Assumptions'!1:1) -> 7 | AB35: =MATCH(AB34,'Economic Assumptions'!1:1) -> 7 | AC35: =MATCH(AC34,'Economic Assumptions'!1:1) -> 7 | AD35: =MATCH(AD34,'Economic Assumptions'!1:1) -> 7 | AE35: =MATCH(AE34,'Economic Assumptions'!1:1) -> 7 | AF35: =MATCH(AF34,'Economic Assumptions'!1:1) -> 8 | AG35: =MATCH(AG34,'Economic Assumptions'!1:1) -> 8 | AH35: =MATCH(AH34,'Economic Assumptions'!1:1) -> 8 | AI35: =MATCH(AI34,'Economic Assumptions'!1:1) -> 8 | AJ35: =MATCH(AJ34,'Economic Assumptions'!1:1) -> 8 | AK35: =MATCH(AK34,'Economic Assumptions'!1:1) -> 8 | AL35: =MATCH(AL34,'Economic Assumptions'!1:1) -> 8 | AM35: =MATCH(AM34,'Economic Assumptions'!1:1) -> 8 | AN35: =MATCH(AN34,'Economic Assumptions'!1:1) -> 8 | AO35: =MATCH(AO34,'Economic Assumptions'!1:1) -> 8 | AP35: =MATCH(AP34,'Economic Assumptions'!1:1) -> 8 | AQ35: =MATCH(AQ34,'Economic Assumptions'!1:1) -> 8 | AR35: =MATCH(AR34,'Economic Assumptions'!1:1) -> 9 | AS35: =MATCH(AS34,'Economic Assumptions'!1:1) -> 9 | AT35: =MATCH(AT34,'Economic Assumptions'!1:1) -> 9 | AU35: =MATCH(AU34,'Economic Assumptions'!1:1) -> 9 | AV35: =MATCH(AV34,'Economic Assumptions'!1:1) -> 9 | AW35: =MATCH(AW34,'Economic Assumptions'!1:1) -> 9 | AX35: =MATCH(AX34,'Economic Assumptions'!1:1) -> 9 | AY35: =MATCH(AY34,'Economic Assumptions'!1:1) -> 9 | AZ35: =MATCH(AZ34,'Economic Assumptions'!1:1) -> 9 | BA35: =MATCH(BA34,'Economic Assumptions'!1:1) -> 9 | BB35: =MATCH(BB34,'Economic Assumptions'!1:1) -> 9 | BC35: =MATCH(BC34,'Economic Assumptions'!1:1) -> 9 | BD35: =MATCH(BD34,'Economic Assumptions'!1:1) -> 10 | BE35: =MATCH(BE34,'Economic Assumptions'!1:1) -> 10 | BF35: =MATCH(BF34,'Economic Assumptions'!1:1) -> 10 | BG35: =MATCH(BG34,'Economic Assumptions'!1:1) -> 10 | BH35: =MATCH(BH34,'Economic Assumptions'!1:1) -> 10 | BI35: =MATCH(BI34,'Economic Assumptions'!1:1) -> 10 | BJ35: =MATCH(BJ34,'Economic Assumptions'!1:1) -> 10 | BK35: =MATCH(BK34,'Economic Assumptions'!1:1) -> 10 | BL35: =MATCH(BL34,'Economic Assumptions'!1:1) -> 10 | BM35: =MATCH(BM34,'Economic Assumptions'!1:1) -> 10 | BN35: =MATCH(BN34,'Economic Assumptions'!1:1) -> 10 | BO35: =MATCH(BO34,'Economic Assumptions'!1:1) -> 10 | BP35: =MATCH(BP34,'Economic Assumptions'!1:1) -> 11 | BQ35: =MATCH(BQ34,'Economic Assumptions'!1:1) -> 11 | BR35: =MATCH(BR34,'Economic Assumptions'!1:1) -> 11 | BS35: =MATCH(BS34,'Economic Assumptions'!1:1) -> 11 | BT35: =MATCH(BT34,'Economic Assumptions'!1:1) -> 11 | BU35: =MATCH(BU34,'Economic Assumptions'!1:1) -> 11 | BV35: =MATCH(BV34,'Economic Assumptions'!1:1) -> 11 | BW35: =MATCH(BW34,'Economic Assumptions'!1:1) -> 11 | BX35: =MATCH(BX34,'Economic Assumptions'!1:1) -> 11 | BY35: =MATCH(BY34,'Economic Assumptions'!1:1) -> 11 | BZ35: =MATCH(BZ34,'Economic Assumptions'!1:1) -> 11 | CA35: =MATCH(CA34,'Economic Assumptions'!1:1) -> 11 | CB35: =MATCH(CB34,'Economic Assumptions'!1:1) -> 12 | CC35: =MATCH(CC34,'Economic Assumptions'!1:1) -> 12 | CD35: =MATCH(CD34,'Economic Assumptions'!1:1) -> 12 | CE35: =MATCH(CE34,'Economic Assumptions'!1:1) -> 12 | CF35: =MATCH(CF34,'Economic Assumptions'!1:1) -> 12 | CG35: =MATCH(CG34,'Economic Assumptions'!1:1) -> 12 | CH35: =MATCH(CH34,'Economic Assumptions'!1:1) -> 12 | CI35: =MATCH(CI34,'Economic Assumptions'!1:1) -> 12 | CJ35: =MATCH(CJ34,'Economic Assumptions'!1:1) -> 12 | CK35: =MATCH(CK34,'Economic Assumptions'!1:1) -> 12 | CL35: =MATCH(CL34,'Economic Assumptions'!1:1) -> 12 | CM35: =MATCH(CM34,'Economic Assumptions'!1:1) -> 12 | CN35: =MATCH(CN34,'Economic Assumptions'!1:1) -> 13 | CO35: =MATCH(CO34,'Economic Assumptions'!1:1) -> 13 | CP35: =MATCH(CP34,'Economic Assumptions'!1:1) -> 13 | CQ35: =MATCH(CQ34,'Economic Assumptions'!1:1) -> 13 | CR35: =MATCH(CR34,'Economic Assumptions'!1:1) -> 13 | CS35: =MATCH(CS34,'Economic Assumptions'!1:1) -> 13 | CT35: =MATCH(CT34,'Economic Assumptions'!1:1) -> 13 | CU35: =MATCH(CU34,'Economic Assumptions'!1:1) -> 13 | CV35: =MATCH(CV34,'Economic Assumptions'!1:1) -> 13 | CW35: =MATCH(CW34,'Economic Assumptions'!1:1) -> 13 | CX35: =MATCH(CX34,'Economic Assumptions'!1:1) -> 13 | CY35: =MATCH(CY34,'Economic Assumptions'!1:1) -> 13 | CZ35: =MATCH(CZ34,'Economic Assumptions'!1:1) -> 14 | DA35: =MATCH(DA34,'Economic Assumptions'!1:1) -> 15 | DB35: =MATCH(DB34,'Economic Assumptions'!1:1) -> 16 | DC35: =MATCH(DC34,'Economic Assumptions'!1:1) -> 17 | DD35: =MATCH(DD34,'Economic Assumptions'!1:1) -> 18 | DE35: =MATCH(DE34,'Economic Assumptions'!1:1) -> 19 | DF35: =MATCH(DF34,'Economic Assumptions'!1:1) -> 20 | DG35: =MATCH(DG34,'Economic Assumptions'!1:1) -> 21 | DH35: =MATCH(DH34,'Economic Assumptions'!1:1) -> 22 | DI35: =MATCH(DI34,'Economic Assumptions'!1:1) -> 23
B36: ="General Inflation in "&E36 -> General Inflation in EGP | E36: =INDEX('Master Assumptions'!N:N,Template!E1) -> EGP | F36: =MATCH(E36,'Economic Assumptions'!B:B,0)+1 -> 10 | H36: =INDEX('Economic Assumptions'!$1:$1048576,Template!$F$36,Template!H35) -> 0.08 | I36: =INDEX('Economic Assumptions'!$1:$1048576,Template!$F$36,Template!I35) -> 0.08 | J36: =INDEX('Economic Assumptions'!$1:$1048576,Template!$F$36,Template!J35) -> 0.08 | K36: =INDEX('Economic Assumptions'!$1:$1048576,Template!$F$36,Template!K35) -> 0.08 | L36: =INDEX('Economic Assumptions'!$1:$1048576,Template!$F$36,Template!L35) -> 0.08 | M36: =INDEX('Economic Assumptions'!$1:$1048576,Template!$F$36,Template!M35) -> 0.08 | N36: =INDEX('Economic Assumptions'!$1:$1048576,Template!$F$36,Template!N35) -> 0.08 | O36: =INDEX('Economic Assumptions'!$1:$1048576,Template!$F$36,Template!O35) -> 0.08 | P36: =INDEX('Economic Assumptions'!$1:$1048576,Template!$F$36,Template!P35) -> 0.08 | Q36: =INDEX('Economic Assumptions'!$1:$1048576,Template!$F$36,Template!Q35) -> 0.08 | R36: =INDEX('Economic Assumptions'!$1:$1048576,Template!$F$36,Template!R35) -> 0.08 | S36: =INDEX('Economic Assumptions'!$1:$1048576,Template!$F$36,Template!S35) -> 0.08 | T36: =INDEX('Economic Assumptions'!$1:$1048576,Template!$F$36,Template!T35) -> 0.08 | U36: =INDEX('Economic Assumptions'!$1:$1048576,Template!$F$36,Template!U35) -> 0.08 | V36: =INDEX('Economic Assumptions'!$1:$1048576,Template!$F$36,Template!V35) -> 0.08 | W36: =INDEX('Economic Assumptions'!$1:$1048576,Template!$F$36,Template!W35) -> 0.08 | X36: =INDEX('Economic Assumptions'!$1:$1048576,Template!$F$36,Template!X35) -> 0.08 | Y36: =INDEX('Economic Assumptions'!$1:$1048576,Template!$F$36,Template!Y35) -> 0.08 | Z36: =INDEX('Economic Assumptions'!$1:$1048576,Template!$F$36,Template!Z35) -> 0.08 | AA36: =INDEX('Economic Assumptions'!$1:$1048576,Template!$F$36,Template!AA35) -> 0.08 | AB36: =INDEX('Economic Assumptions'!$1:$1048576,Template!$F$36,Template!AB35) -> 0.08 | AC36: =INDEX('Economic Assumptions'!$1:$1048576,Template!$F$36,Template!AC35) -> 0.08 | AD36: =INDEX('Economic Assumptions'!$1:$1048576,Template!$F$36,Template!AD35) -> 0.08 | AE36: =INDEX('Economic Assumptions'!$1:$1048576,Template!$F$36,Template!AE35) -> 0.08 | AF36: =INDEX('Economic Assumptions'!$1:$1048576,Template!$F$36,Template!AF35) -> 0.08 | AG36: =INDEX('Economic Assumptions'!$1:$1048576,Template!$F$36,Template!AG35) -> 0.08 | AH36: =INDEX('Economic Assumptions'!$1:$1048576,Template!$F$36,Template!AH35) -> 0.08 | AI36: =INDEX('Economic Assumptions'!$1:$1048576,Template!$F$36,Template!AI35) -> 0.08 | AJ36: =INDEX('Economic Assumptions'!$1:$1048576,Template!$F$36,Template!AJ35) -> 0.08 | AK36: =INDEX('Economic Assumptions'!$1:$1048576,Template!$F$36,Template!AK35) -> 0.08 | AL36: =INDEX('Economic Assumptions'!$1:$1048576,Template!$F$36,Template!AL35) -> 0.08 | AM36: =INDEX('Economic Assumptions'!$1:$1048576,Template!$F$36,Template!AM35) -> 0.08 | AN36: =INDEX('Economic Assumptions'!$1:$1048576,Template!$F$36,Template!AN35) -> 0.08 | AO36: =INDEX('Economic Assumptions'!$1:$1048576,Template!$F$36,Template!AO35) -> 0.08 | AP36: =INDEX('Economic Assumptions'!$1:$1048576,Template!$F$36,Template!AP35) -> 0.08 | AQ36: =INDEX('Economic Assumptions'!$1:$1048576,Template!$F$36,Template!AQ35) -> 0.08 | AR36: =INDEX('Economic Assumptions'!$1:$1048576,Template!$F$36,Template!AR35) -> 0.08 | AS36: =INDEX('Economic Assumptions'!$1:$1048576,Template!$F$36,Template!AS35) -> 0.08 | AT36: =INDEX('Economic Assumptions'!$1:$1048576,Template!$F$36,Template!AT35) -> 0.08 | AU36: =INDEX('Economic Assumptions'!$1:$1048576,Template!$F$36,Template!AU35) -> 0.08 | AV36: =INDEX('Economic Assumptions'!$1:$1048576,Template!$F$36,Template!AV35) -> 0.08 | AW36: =INDEX('Economic Assumptions'!$1:$1048576,Template!$F$36,Template!AW35) -> 0.08 | AX36: =INDEX('Economic Assumptions'!$1:$1048576,Template!$F$36,Template!AX35) -> 0.08 | AY36: =INDEX('Economic Assumptions'!$1:$1048576,Template!$F$36,Template!AY35) -> 0.08 | AZ36: =INDEX('Economic Assumptions'!$1:$1048576,Template!$F$36,Template!AZ35) -> 0.08 | BA36: =INDEX('Economic Assumptions'!$1:$1048576,Template!$F$36,Template!BA35) -> 0.08 | BB36: =INDEX('Economic Assumptions'!$1:$1048576,Template!$F$36,Template!BB35) -> 0.08 | BC36: =INDEX('Economic Assumptions'!$1:$1048576,Template!$F$36,Template!BC35) -> 0.08 | BD36: =INDEX('Economic Assumptions'!$1:$1048576,Template!$F$36,Template!BD35) -> 0.08 | BE36: =INDEX('Economic Assumptions'!$1:$1048576,Template!$F$36,Template!BE35) -> 0.08 | BF36: =INDEX('Economic Assumptions'!$1:$1048576,Template!$F$36,Template!BF35) -> 0.08 | BG36: =INDEX('Economic Assumptions'!$1:$1048576,Template!$F$36,Template!BG35) -> 0.08 | BH36: =INDEX('Economic Assumptions'!$1:$1048576,Template!$F$36,Template!BH35) -> 0.08 | BI36: =INDEX('Economic Assumptions'!$1:$1048576,Template!$F$36,Template!BI35) -> 0.08 | BJ36: =INDEX('Economic Assumptions'!$1:$1048576,Template!$F$36,Template!BJ35) -> 0.08 | BK36: =INDEX('Economic Assumptions'!$1:$1048576,Template!$F$36,Template!BK35) -> 0.08 | BL36: =INDEX('Economic Assumptions'!$1:$1048576,Template!$F$36,Template!BL35) -> 0.08 | BM36: =INDEX('Economic Assumptions'!$1:$1048576,Template!$F$36,Template!BM35) -> 0.08 | BN36: =INDEX('Economic Assumptions'!$1:$1048576,Template!$F$36,Template!BN35) -> 0.08 | BO36: =INDEX('Economic Assumptions'!$1:$1048576,Template!$F$36,Template!BO35) -> 0.08 | BP36: =INDEX('Economic Assumptions'!$1:$1048576,Template!$F$36,Template!BP35) -> 0.08 | BQ36: =INDEX('Economic Assumptions'!$1:$1048576,Template!$F$36,Template!BQ35) -> 0.08 | BR36: =INDEX('Economic Assumptions'!$1:$1048576,Template!$F$36,Template!BR35) -> 0.08 | BS36: =INDEX('Economic Assumptions'!$1:$1048576,Template!$F$36,Template!BS35) -> 0.08 | BT36: =INDEX('Economic Assumptions'!$1:$1048576,Template!$F$36,Template!BT35) -> 0.08 | BU36: =INDEX('Economic Assumptions'!$1:$1048576,Template!$F$36,Template!BU35) -> 0.08 | BV36: =INDEX('Economic Assumptions'!$1:$1048576,Template!$F$36,Template!BV35) -> 0.08 | BW36: =INDEX('Economic Assumptions'!$1:$1048576,Template!$F$36,Template!BW35) -> 0.08 | BX36: =INDEX('Economic Assumptions'!$1:$1048576,Template!$F$36,Template!BX35) -> 0.08 | BY36: =INDEX('Economic Assumptions'!$1:$1048576,Template!$F$36,Template!BY35) -> 0.08 | BZ36: =INDEX('Economic Assumptions'!$1:$1048576,Template!$F$36,Template!BZ35) -> 0.08 | CA36: =INDEX('Economic Assumptions'!$1:$1048576,Template!$F$36,Template!CA35) -> 0.08 | CB36: =INDEX('Economic Assumptions'!$1:$1048576,Template!$F$36,Template!CB35) -> 0.08 | CC36: =INDEX('Economic Assumptions'!$1:$1048576,Template!$F$36,Template!CC35) -> 0.08 | CD36: =INDEX('Economic Assumptions'!$1:$1048576,Template!$F$36,Template!CD35) -> 0.08 | CE36: =INDEX('Economic Assumptions'!$1:$1048576,Template!$F$36,Template!CE35) -> 0.08 | CF36: =INDEX('Economic Assumptions'!$1:$1048576,Template!$F$36,Template!CF35) -> 0.08 | CG36: =INDEX('Economic Assumptions'!$1:$1048576,Template!$F$36,Template!CG35) -> 0.08 | CH36: =INDEX('Economic Assumptions'!$1:$1048576,Template!$F$36,Template!CH35) -> 0.08 | CI36: =INDEX('Economic Assumptions'!$1:$1048576,Template!$F$36,Template!CI35) -> 0.08 | CJ36: =INDEX('Economic Assumptions'!$1:$1048576,Template!$F$36,Template!CJ35) -> 0.08 | CK36: =INDEX('Economic Assumptions'!$1:$1048576,Template!$F$36,Template!CK35) -> 0.08 | CL36: =INDEX('Economic Assumptions'!$1:$1048576,Template!$F$36,Template!CL35) -> 0.08 | CM36: =INDEX('Economic Assumptions'!$1:$1048576,Template!$F$36,Template!CM35) -> 0.08 | CN36: =INDEX('Economic Assumptions'!$1:$1048576,Template!$F$36,Template!CN35) -> 0.08 | CO36: =INDEX('Economic Assumptions'!$1:$1048576,Template!$F$36,Template!CO35) -> 0.08 | CP36: =INDEX('Economic Assumptions'!$1:$1048576,Template!$F$36,Template!CP35) -> 0.08 | CQ36: =INDEX('Economic Assumptions'!$1:$1048576,Template!$F$36,Template!CQ35) -> 0.08 | CR36: =INDEX('Economic Assumptions'!$1:$1048576,Template!$F$36,Template!CR35) -> 0.08 | CS36: =INDEX('Economic Assumptions'!$1:$1048576,Template!$F$36,Template!CS35) -> 0.08 | CT36: =INDEX('Economic Assumptions'!$1:$1048576,Template!$F$36,Template!CT35) -> 0.08 | CU36: =INDEX('Economic Assumptions'!$1:$1048576,Template!$F$36,Template!CU35) -> 0.08 | CV36: =INDEX('Economic Assumptions'!$1:$1048576,Template!$F$36,Template!CV35) -> 0.08 | CW36: =INDEX('Economic Assumptions'!$1:$1048576,Template!$F$36,Template!CW35) -> 0.08 | CX36: =INDEX('Economic Assumptions'!$1:$1048576,Template!$F$36,Template!CX35) -> 0.08 | CY36: =INDEX('Economic Assumptions'!$1:$1048576,Template!$F$36,Template!CY35) -> 0.08 | CZ36: =INDEX('Economic Assumptions'!$1:$1048576,Template!$F$36,Template!CZ35) -> 0.08 | DA36: =INDEX('Economic Assumptions'!$1:$1048576,Template!$F$36,Template!DA35) -> 0.08 | DB36: =INDEX('Economic Assumptions'!$1:$1048576,Template!$F$36,Template!DB35) -> 0.08 | DC36: =INDEX('Economic Assumptions'!$1:$1048576,Template!$F$36,Template!DC35) -> 0.08 | DD36: =INDEX('Economic Assumptions'!$1:$1048576,Template!$F$36,Template!DD35) -> 0.08 | DE36: =INDEX('Economic Assumptions'!$1:$1048576,Template!$F$36,Template!DE35) -> 0.08 | DF36: =INDEX('Economic Assumptions'!$1:$1048576,Template!$F$36,Template!DF35) -> 0.08 | DG36: =INDEX('Economic Assumptions'!$1:$1048576,Template!$F$36,Template!DG35) -> 0.08 | DH36: =INDEX('Economic Assumptions'!$1:$1048576,Template!$F$36,Template!DH35) -> 0.08 | DI36: =INDEX('Economic Assumptions'!$1:$1048576,Template!$F$36,Template!DI35) -> 0.08
B37: Monthly Inflation Rate | E37: =INDEX('Master Assumptions'!N:N,Template!E1) -> EGP | H37: =(1+LOOKUP(H34,'Economic Assumptions'!1:1,'Economic Assumptions'!10:10))^(H6/12)-1 -> 0.00643403011 | I37: =(1+LOOKUP(I34,'Economic Assumptions'!1:1,'Economic Assumptions'!10:10))^(I6/12)-1 -> 0.00643403011 | J37: =(1+LOOKUP(J34,'Economic Assumptions'!1:1,'Economic Assumptions'!10:10))^(J6/12)-1 -> 0.00643403011 | K37: =(1+LOOKUP(K34,'Economic Assumptions'!1:1,'Economic Assumptions'!10:10))^(K6/12)-1 -> 0.00643403011 | L37: =(1+LOOKUP(L34,'Economic Assumptions'!1:1,'Economic Assumptions'!10:10))^(L6/12)-1 -> 0.00643403011 | M37: =(1+LOOKUP(M34,'Economic Assumptions'!1:1,'Economic Assumptions'!10:10))^(M6/12)-1 -> 0.00643403011 | N37: =(1+LOOKUP(N34,'Economic Assumptions'!1:1,'Economic Assumptions'!10:10))^(N6/12)-1 -> 0.00643403011 | O37: =(1+LOOKUP(O34,'Economic Assumptions'!1:1,'Economic Assumptions'!10:10))^(O6/12)-1 -> 0.00643403011 | P37: =(1+LOOKUP(P34,'Economic Assumptions'!1:1,'Economic Assumptions'!10:10))^(P6/12)-1 -> 0.00643403011 | Q37: =(1+LOOKUP(Q34,'Economic Assumptions'!1:1,'Economic Assumptions'!10:10))^(Q6/12)-1 -> 0.00643403011 | R37: =(1+LOOKUP(R34,'Economic Assumptions'!1:1,'Economic Assumptions'!10:10))^(R6/12)-1 -> 0.00643403011 | S37: =(1+LOOKUP(S34,'Economic Assumptions'!1:1,'Economic Assumptions'!10:10))^(S6/12)-1 -> 0.00643403011 | T37: =(1+LOOKUP(T34,'Economic Assumptions'!1:1,'Economic Assumptions'!10:10))^(T6/12)-1 -> 0.00643403011 | U37: =(1+LOOKUP(U34,'Economic Assumptions'!1:1,'Economic Assumptions'!10:10))^(U6/12)-1 -> 0.00643403011 | V37: =(1+LOOKUP(V34,'Economic Assumptions'!1:1,'Economic Assumptions'!10:10))^(V6/12)-1 -> 0.00643403011 | W37: =(1+LOOKUP(W34,'Economic Assumptions'!1:1,'Economic Assumptions'!10:10))^(W6/12)-1 -> 0.00643403011 | X37: =(1+LOOKUP(X34,'Economic Assumptions'!1:1,'Economic Assumptions'!10:10))^(X6/12)-1 -> 0.00643403011 | Y37: =(1+LOOKUP(Y34,'Economic Assumptions'!1:1,'Economic Assumptions'!10:10))^(Y6/12)-1 -> 0.00643403011 | Z37: =(1+LOOKUP(Z34,'Economic Assumptions'!1:1,'Economic Assumptions'!10:10))^(Z6/12)-1 -> 0.00643403011 | AA37: =(1+LOOKUP(AA34,'Economic Assumptions'!1:1,'Economic Assumptions'!10:10))^(AA6/12)-1 -> 0.00643403011 | AB37: =(1+LOOKUP(AB34,'Economic Assumptions'!1:1,'Economic Assumptions'!10:10))^(AB6/12)-1 -> 0.00643403011 | AC37: =(1+LOOKUP(AC34,'Economic Assumptions'!1:1,'Economic Assumptions'!10:10))^(AC6/12)-1 -> 0.00643403011 | AD37: =(1+LOOKUP(AD34,'Economic Assumptions'!1:1,'Economic Assumptions'!10:10))^(AD6/12)-1 -> 0.00643403011 | AE37: =(1+LOOKUP(AE34,'Economic Assumptions'!1:1,'Economic Assumptions'!10:10))^(AE6/12)-1 -> 0.00643403011 | AF37: =(1+LOOKUP(AF34,'Economic Assumptions'!1:1,'Economic Assumptions'!10:10))^(AF6/12)-1 -> 0.00643403011 | AG37: =(1+LOOKUP(AG34,'Economic Assumptions'!1:1,'Economic Assumptions'!10:10))^(AG6/12)-1 -> 0.00643403011 | AH37: =(1+LOOKUP(AH34,'Economic Assumptions'!1:1,'Economic Assumptions'!10:10))^(AH6/12)-1 -> 0.00643403011 | AI37: =(1+LOOKUP(AI34,'Economic Assumptions'!1:1,'Economic Assumptions'!10:10))^(AI6/12)-1 -> 0.00643403011 | AJ37: =(1+LOOKUP(AJ34,'Economic Assumptions'!1:1,'Economic Assumptions'!10:10))^(AJ6/12)-1 -> 0.00643403011 | AK37: =(1+LOOKUP(AK34,'Economic Assumptions'!1:1,'Economic Assumptions'!10:10))^(AK6/12)-1 -> 0.00643403011 | AL37: =(1+LOOKUP(AL34,'Economic Assumptions'!1:1,'Economic Assumptions'!10:10))^(AL6/12)-1 -> 0.00643403011 | AM37: =(1+LOOKUP(AM34,'Economic Assumptions'!1:1,'Economic Assumptions'!10:10))^(AM6/12)-1 -> 0.00643403011 | AN37: =(1+LOOKUP(AN34,'Economic Assumptions'!1:1,'Economic Assumptions'!10:10))^(AN6/12)-1 -> 0.00643403011 | AO37: =(1+LOOKUP(AO34,'Economic Assumptions'!1:1,'Economic Assumptions'!10:10))^(AO6/12)-1 -> 0.00643403011 | AP37: =(1+LOOKUP(AP34,'Economic Assumptions'!1:1,'Economic Assumptions'!10:10))^(AP6/12)-1 -> 0.00643403011 | AQ37: =(1+LOOKUP(AQ34,'Economic Assumptions'!1:1,'Economic Assumptions'!10:10))^(AQ6/12)-1 -> 0.00643403011 | AR37: =(1+LOOKUP(AR34,'Economic Assumptions'!1:1,'Economic Assumptions'!10:10))^(AR6/12)-1 -> 0.00643403011 | AS37: =(1+LOOKUP(AS34,'Economic Assumptions'!1:1,'Economic Assumptions'!10:10))^(AS6/12)-1 -> 0.00643403011 | AT37: =(1+LOOKUP(AT34,'Economic Assumptions'!1:1,'Economic Assumptions'!10:10))^(AT6/12)-1 -> 0.00643403011 | AU37: =(1+LOOKUP(AU34,'Economic Assumptions'!1:1,'Economic Assumptions'!10:10))^(AU6/12)-1 -> 0.00643403011 | AV37: =(1+LOOKUP(AV34,'Economic Assumptions'!1:1,'Economic Assumptions'!10:10))^(AV6/12)-1 -> 0.00643403011 | AW37: =(1+LOOKUP(AW34,'Economic Assumptions'!1:1,'Economic Assumptions'!10:10))^(AW6/12)-1 -> 0.00643403011 | AX37: =(1+LOOKUP(AX34,'Economic Assumptions'!1:1,'Economic Assumptions'!10:10))^(AX6/12)-1 -> 0.00643403011 | AY37: =(1+LOOKUP(AY34,'Economic Assumptions'!1:1,'Economic Assumptions'!10:10))^(AY6/12)-1 -> 0.00643403011 | AZ37: =(1+LOOKUP(AZ34,'Economic Assumptions'!1:1,'Economic Assumptions'!10:10))^(AZ6/12)-1 -> 0.00643403011 | BA37: =(1+LOOKUP(BA34,'Economic Assumptions'!1:1,'Economic Assumptions'!10:10))^(BA6/12)-1 -> 0.00643403011 | BB37: =(1+LOOKUP(BB34,'Economic Assumptions'!1:1,'Economic Assumptions'!10:10))^(BB6/12)-1 -> 0.00643403011 | BC37: =(1+LOOKUP(BC34,'Economic Assumptions'!1:1,'Economic Assumptions'!10:10))^(BC6/12)-1 -> 0.00643403011 | BD37: =(1+LOOKUP(BD34,'Economic Assumptions'!1:1,'Economic Assumptions'!10:10))^(BD6/12)-1 -> 0.00643403011 | BE37: =(1+LOOKUP(BE34,'Economic Assumptions'!1:1,'Economic Assumptions'!10:10))^(BE6/12)-1 -> 0.00643403011 | BF37: =(1+LOOKUP(BF34,'Economic Assumptions'!1:1,'Economic Assumptions'!10:10))^(BF6/12)-1 -> 0.00643403011 | BG37: =(1+LOOKUP(BG34,'Economic Assumptions'!1:1,'Economic Assumptions'!10:10))^(BG6/12)-1 -> 0.00643403011 | BH37: =(1+LOOKUP(BH34,'Economic Assumptions'!1:1,'Economic Assumptions'!10:10))^(BH6/12)-1 -> 0.00643403011 | BI37: =(1+LOOKUP(BI34,'Economic Assumptions'!1:1,'Economic Assumptions'!10:10))^(BI6/12)-1 -> 0.00643403011 | BJ37: =(1+LOOKUP(BJ34,'Economic Assumptions'!1:1,'Economic Assumptions'!10:10))^(BJ6/12)-1 -> 0.00643403011 | BK37: =(1+LOOKUP(BK34,'Economic Assumptions'!1:1,'Economic Assumptions'!10:10))^(BK6/12)-1 -> 0.00643403011 | BL37: =(1+LOOKUP(BL34,'Economic Assumptions'!1:1,'Economic Assumptions'!10:10))^(BL6/12)-1 -> 0.00643403011 | BM37: =(1+LOOKUP(BM34,'Economic Assumptions'!1:1,'Economic Assumptions'!10:10))^(BM6/12)-1 -> 0.00643403011 | BN37: =(1+LOOKUP(BN34,'Economic Assumptions'!1:1,'Economic Assumptions'!10:10))^(BN6/12)-1 -> 0.00643403011 | BO37: =(1+LOOKUP(BO34,'Economic Assumptions'!1:1,'Economic Assumptions'!10:10))^(BO6/12)-1 -> 0.00643403011 | BP37: =(1+LOOKUP(BP34,'Economic Assumptions'!1:1,'Economic Assumptions'!10:10))^(BP6/12)-1 -> 0.00643403011 | BQ37: =(1+LOOKUP(BQ34,'Economic Assumptions'!1:1,'Economic Assumptions'!10:10))^(BQ6/12)-1 -> 0.00643403011 | BR37: =(1+LOOKUP(BR34,'Economic Assumptions'!1:1,'Economic Assumptions'!10:10))^(BR6/12)-1 -> 0.00643403011 | BS37: =(1+LOOKUP(BS34,'Economic Assumptions'!1:1,'Economic Assumptions'!10:10))^(BS6/12)-1 -> 0.00643403011 | BT37: =(1+LOOKUP(BT34,'Economic Assumptions'!1:1,'Economic Assumptions'!10:10))^(BT6/12)-1 -> 0.00643403011 | BU37: =(1+LOOKUP(BU34,'Economic Assumptions'!1:1,'Economic Assumptions'!10:10))^(BU6/12)-1 -> 0.00643403011 | BV37: =(1+LOOKUP(BV34,'Economic Assumptions'!1:1,'Economic Assumptions'!10:10))^(BV6/12)-1 -> 0.00643403011 | BW37: =(1+LOOKUP(BW34,'Economic Assumptions'!1:1,'Economic Assumptions'!10:10))^(BW6/12)-1 -> 0.00643403011 | BX37: =(1+LOOKUP(BX34,'Economic Assumptions'!1:1,'Economic Assumptions'!10:10))^(BX6/12)-1 -> 0.00643403011 | BY37: =(1+LOOKUP(BY34,'Economic Assumptions'!1:1,'Economic Assumptions'!10:10))^(BY6/12)-1 -> 0.00643403011 | BZ37: =(1+LOOKUP(BZ34,'Economic Assumptions'!1:1,'Economic Assumptions'!10:10))^(BZ6/12)-1 -> 0.00643403011 | CA37: =(1+LOOKUP(CA34,'Economic Assumptions'!1:1,'Economic Assumptions'!10:10))^(CA6/12)-1 -> 0.00643403011 | CB37: =(1+LOOKUP(CB34,'Economic Assumptions'!1:1,'Economic Assumptions'!10:10))^(CB6/12)-1 -> 0.00643403011 | CC37: =(1+LOOKUP(CC34,'Economic Assumptions'!1:1,'Economic Assumptions'!10:10))^(CC6/12)-1 -> 0.00643403011 | CD37: =(1+LOOKUP(CD34,'Economic Assumptions'!1:1,'Economic Assumptions'!10:10))^(CD6/12)-1 -> 0.00643403011 | CE37: =(1+LOOKUP(CE34,'Economic Assumptions'!1:1,'Economic Assumptions'!10:10))^(CE6/12)-1 -> 0.00643403011 | CF37: =(1+LOOKUP(CF34,'Economic Assumptions'!1:1,'Economic Assumptions'!10:10))^(CF6/12)-1 -> 0.00643403011 | CG37: =(1+LOOKUP(CG34,'Economic Assumptions'!1:1,'Economic Assumptions'!10:10))^(CG6/12)-1 -> 0.00643403011 | CH37: =(1+LOOKUP(CH34,'Economic Assumptions'!1:1,'Economic Assumptions'!10:10))^(CH6/12)-1 -> 0.00643403011 | CI37: =(1+LOOKUP(CI34,'Economic Assumptions'!1:1,'Economic Assumptions'!10:10))^(CI6/12)-1 -> 0.00643403011 | CJ37: =(1+LOOKUP(CJ34,'Economic Assumptions'!1:1,'Economic Assumptions'!10:10))^(CJ6/12)-1 -> 0.00643403011 | CK37: =(1+LOOKUP(CK34,'Economic Assumptions'!1:1,'Economic Assumptions'!10:10))^(CK6/12)-1 -> 0.00643403011 | CL37: =(1+LOOKUP(CL34,'Economic Assumptions'!1:1,'Economic Assumptions'!10:10))^(CL6/12)-1 -> 0.00643403011 | CM37: =(1+LOOKUP(CM34,'Economic Assumptions'!1:1,'Economic Assumptions'!10:10))^(CM6/12)-1 -> 0.00643403011 | CN37: =(1+LOOKUP(CN34,'Economic Assumptions'!1:1,'Economic Assumptions'!10:10))^(CN6/12)-1 -> 0.00643403011 | CO37: =(1+LOOKUP(CO34,'Economic Assumptions'!1:1,'Economic Assumptions'!10:10))^(CO6/12)-1 -> 0.00643403011 | CP37: =(1+LOOKUP(CP34,'Economic Assumptions'!1:1,'Economic Assumptions'!10:10))^(CP6/12)-1 -> 0.00643403011 | CQ37: =(1+LOOKUP(CQ34,'Economic Assumptions'!1:1,'Economic Assumptions'!10:10))^(CQ6/12)-1 -> 0.00643403011 | CR37: =(1+LOOKUP(CR34,'Economic Assumptions'!1:1,'Economic Assumptions'!10:10))^(CR6/12)-1 -> 0.00643403011 | CS37: =(1+LOOKUP(CS34,'Economic Assumptions'!1:1,'Economic Assumptions'!10:10))^(CS6/12)-1 -> 0.00643403011 | CT37: =(1+LOOKUP(CT34,'Economic Assumptions'!1:1,'Economic Assumptions'!10:10))^(CT6/12)-1 -> 0.00643403011 | CU37: =(1+LOOKUP(CU34,'Economic Assumptions'!1:1,'Economic Assumptions'!10:10))^(CU6/12)-1 -> 0.00643403011 | CV37: =(1+LOOKUP(CV34,'Economic Assumptions'!1:1,'Economic Assumptions'!10:10))^(CV6/12)-1 -> 0.00643403011 | CW37: =(1+LOOKUP(CW34,'Economic Assumptions'!1:1,'Economic Assumptions'!10:10))^(CW6/12)-1 -> 0.00643403011 | CX37: =(1+LOOKUP(CX34,'Economic Assumptions'!1:1,'Economic Assumptions'!10:10))^(CX6/12)-1 -> 0.00643403011 | CY37: =(1+LOOKUP(CY34,'Economic Assumptions'!1:1,'Economic Assumptions'!10:10))^(CY6/12)-1 -> 0.00643403011 | CZ37: =(1+LOOKUP(CZ34,'Economic Assumptions'!1:1,'Economic Assumptions'!10:10))^(CZ6/12)-1 -> 0.08 | DA37: =(1+LOOKUP(DA34,'Economic Assumptions'!1:1,'Economic Assumptions'!10:10))^(DA6/12)-1 -> 0.08 | DB37: =(1+LOOKUP(DB34,'Economic Assumptions'!1:1,'Economic Assumptions'!10:10))^(DB6/12)-1 -> 0.08 | DC37: =(1+LOOKUP(DC34,'Economic Assumptions'!1:1,'Economic Assumptions'!10:10))^(DC6/12)-1 -> 0.08 | DD37: =(1+LOOKUP(DD34,'Economic Assumptions'!1:1,'Economic Assumptions'!10:10))^(DD6/12)-1 -> 0.08 | DE37: =(1+LOOKUP(DE34,'Economic Assumptions'!1:1,'Economic Assumptions'!10:10))^(DE6/12)-1 -> 0.08 | DF37: =(1+LOOKUP(DF34,'Economic Assumptions'!1:1,'Economic Assumptions'!10:10))^(DF6/12)-1 -> 0.08 | DG37: =(1+LOOKUP(DG34,'Economic Assumptions'!1:1,'Economic Assumptions'!10:10))^(DG6/12)-1 -> 0.08 | DH37: =(1+LOOKUP(DH34,'Economic Assumptions'!1:1,'Economic Assumptions'!10:10))^(DH6/12)-1 -> 0.08 | DI37: =(1+LOOKUP(DI34,'Economic Assumptions'!1:1,'Economic Assumptions'!10:10))^(DI6/12)-1 -> 0.08
B38: Inflation Rate Index | G38: 1 | H38: =G38*(1+H37) -> 1.00643403 | I38: =H38*(1+I37) -> 1.012909457 | J38: 1.019426547 | K38: 1.025985568 | L38: 1.03258679 | M38: 1.039230485 | N38: 1.045916925 | O38: 1.052646386 | P38: 1.059419144 | Q38: 1.066235479 | R38: 1.07309567 | S38: 1.08 | T38: 1.086948753 | U38: 1.093942214 | V38: 1.100980671 | W38: 1.108064413 | X38: 1.115193733 | Y38: 1.122368923 | Z38: 1.129590279 | AA38: 1.136858097 | AB38: 1.144172676 | AC38: 1.151534317 | AD38: 1.158943324 | AE38: 1.1664 | AF38: 1.173904653 | AG38: 1.181457591 | AH38: 1.189059124 | AI38: 1.196709567 | AJ38: 1.204409232 | AK38: 1.212158437 | AL38: 1.219957501 | AM38: 1.227806744 | AN38: 1.23570649 | AO38: 1.243657063 | AP38: 1.25165879 | AQ38: 1.259712 | AR38: 1.267817025 | AS38: 1.275974198 | AT38: 1.284183854 | AU38: 1.292446332 | AV38: 1.30076197 | AW38: 1.309131112 | AX38: 1.317554101 | AY38: 1.326031284 | AZ38: 1.334563009 | BA38: 1.343149628 | BB38: 1.351791493 | BC38: 1.36048896 | BD38: 1.369242387 | BE38: 1.378052134 | BF38: 1.386918563 | BG38: 1.395842038 | BH38: 1.404822928 | BI38: 1.413861601 | BJ38: 1.422958429 | BK38: 1.432113787 | BL38: 1.44132805 | BM38: 1.450601598 | BN38: 1.459934812 | BO38: 1.469328077 | BP38: 1.478781778 | BQ38: 1.488296304 | BR38: 1.497872048 | BS38: 1.507509401 | BT38: 1.517208762 | BU38: =BT38*(1+BU37) -> 1.526970529 | BV38: 1.536795104 | BW38: 1.54668289 | BX38: 1.556634294 | BY38: 1.566649726 | BZ38: 1.576729597 | CA38: 1.586874323 | CB38: 1.59708432 | CC38: 1.607360009 | CD38: 1.617701811 | CE38: 1.628110154 | CF38: 1.638585463 | CG38: 1.649128172 | CH38: 1.659738712 | CI38: 1.670417521 | CJ38: 1.681165037 | CK38: 1.691981704 | CL38: 1.702867965 | CM38: 1.713824269 | CN38: 1.724851066 | CO38: 1.735948809 | CP38: 1.747117956 | CQ38: 1.758358966 | CR38: 1.7696723 | CS38: 1.781058425 | CT38: 1.792517809 | CU38: 1.804050922 | CV38: 1.81565824 | CW38: 1.82734024 | CX38: 1.839097402 | CY38: 1.85093021 | CZ38: 1.999004627 | DA38: 2.158924997 | DB38: 2.331638997 | DC38: 2.518170117 | DD38: 2.719623726 | DE38: =DD38*(1+DE37) -> 2.937193624 | DF38: =DE38*(1+DF37) -> 3.172169114 | DG38: =DF38*(1+DG37) -> 3.425942643 | DH38: 3.700018055 | DI38: 3.996019499
B39: Rate of Inflation in USD | E39: USD | H39: =(1+LOOKUP(H34,'Economic Assumptions'!1:1,'Economic Assumptions'!4:4))^(H6/12)-1 -> 0.001241487716 | I39: =(1+LOOKUP(I34,'Economic Assumptions'!1:1,'Economic Assumptions'!4:4))^(I6/12)-1 -> 0.001241487716 | J39: =(1+LOOKUP(J34,'Economic Assumptions'!1:1,'Economic Assumptions'!4:4))^(J6/12)-1 -> 0.001241487716 | K39: =(1+LOOKUP(K34,'Economic Assumptions'!1:1,'Economic Assumptions'!4:4))^(K6/12)-1 -> 0.001241487716 | L39: =(1+LOOKUP(L34,'Economic Assumptions'!1:1,'Economic Assumptions'!4:4))^(L6/12)-1 -> 0.001241487716 | M39: =(1+LOOKUP(M34,'Economic Assumptions'!1:1,'Economic Assumptions'!4:4))^(M6/12)-1 -> 0.001241487716 | N39: =(1+LOOKUP(N34,'Economic Assumptions'!1:1,'Economic Assumptions'!4:4))^(N6/12)-1 -> 0.001241487716 | O39: =(1+LOOKUP(O34,'Economic Assumptions'!1:1,'Economic Assumptions'!4:4))^(O6/12)-1 -> 0.001241487716 | P39: =(1+LOOKUP(P34,'Economic Assumptions'!1:1,'Economic Assumptions'!4:4))^(P6/12)-1 -> 0.001241487716 | Q39: =(1+LOOKUP(Q34,'Economic Assumptions'!1:1,'Economic Assumptions'!4:4))^(Q6/12)-1 -> 0.001241487716 | R39: =(1+LOOKUP(R34,'Economic Assumptions'!1:1,'Economic Assumptions'!4:4))^(R6/12)-1 -> 0.001241487716 | S39: =(1+LOOKUP(S34,'Economic Assumptions'!1:1,'Economic Assumptions'!4:4))^(S6/12)-1 -> 0.001241487716 | T39: =(1+LOOKUP(T34,'Economic Assumptions'!1:1,'Economic Assumptions'!4:4))^(T6/12)-1 -> 0.001241487716 | U39: =(1+LOOKUP(U34,'Economic Assumptions'!1:1,'Economic Assumptions'!4:4))^(U6/12)-1 -> 0.001241487716 | V39: =(1+LOOKUP(V34,'Economic Assumptions'!1:1,'Economic Assumptions'!4:4))^(V6/12)-1 -> 0.001241487716 | W39: =(1+LOOKUP(W34,'Economic Assumptions'!1:1,'Economic Assumptions'!4:4))^(W6/12)-1 -> 0.001241487716 | X39: =(1+LOOKUP(X34,'Economic Assumptions'!1:1,'Economic Assumptions'!4:4))^(X6/12)-1 -> 0.001241487716 | Y39: =(1+LOOKUP(Y34,'Economic Assumptions'!1:1,'Economic Assumptions'!4:4))^(Y6/12)-1 -> 0.001241487716 | Z39: =(1+LOOKUP(Z34,'Economic Assumptions'!1:1,'Economic Assumptions'!4:4))^(Z6/12)-1 -> 0.001241487716 | AA39: =(1+LOOKUP(AA34,'Economic Assumptions'!1:1,'Economic Assumptions'!4:4))^(AA6/12)-1 -> 0.001241487716 | AB39: =(1+LOOKUP(AB34,'Economic Assumptions'!1:1,'Economic Assumptions'!4:4))^(AB6/12)-1 -> 0.001241487716 | AC39: =(1+LOOKUP(AC34,'Economic Assumptions'!1:1,'Economic Assumptions'!4:4))^(AC6/12)-1 -> 0.001241487716 | AD39: =(1+LOOKUP(AD34,'Economic Assumptions'!1:1,'Economic Assumptions'!4:4))^(AD6/12)-1 -> 0.001241487716 | AE39: =(1+LOOKUP(AE34,'Economic Assumptions'!1:1,'Economic Assumptions'!4:4))^(AE6/12)-1 -> 0.001241487716 | AF39: =(1+LOOKUP(AF34,'Economic Assumptions'!1:1,'Economic Assumptions'!4:4))^(AF6/12)-1 -> 0.001241487716 | AG39: =(1+LOOKUP(AG34,'Economic Assumptions'!1:1,'Economic Assumptions'!4:4))^(AG6/12)-1 -> 0.001241487716 | AH39: =(1+LOOKUP(AH34,'Economic Assumptions'!1:1,'Economic Assumptions'!4:4))^(AH6/12)-1 -> 0.001241487716 | AI39: =(1+LOOKUP(AI34,'Economic Assumptions'!1:1,'Economic Assumptions'!4:4))^(AI6/12)-1 -> 0.001241487716 | AJ39: =(1+LOOKUP(AJ34,'Economic Assumptions'!1:1,'Economic Assumptions'!4:4))^(AJ6/12)-1 -> 0.001241487716 | AK39: =(1+LOOKUP(AK34,'Economic Assumptions'!1:1,'Economic Assumptions'!4:4))^(AK6/12)-1 -> 0.001241487716 | AL39: =(1+LOOKUP(AL34,'Economic Assumptions'!1:1,'Economic Assumptions'!4:4))^(AL6/12)-1 -> 0.001241487716 | AM39: =(1+LOOKUP(AM34,'Economic Assumptions'!1:1,'Economic Assumptions'!4:4))^(AM6/12)-1 -> 0.001241487716 | AN39: =(1+LOOKUP(AN34,'Economic Assumptions'!1:1,'Economic Assumptions'!4:4))^(AN6/12)-1 -> 0.001241487716 | AO39: =(1+LOOKUP(AO34,'Economic Assumptions'!1:1,'Economic Assumptions'!4:4))^(AO6/12)-1 -> 0.001241487716 | AP39: =(1+LOOKUP(AP34,'Economic Assumptions'!1:1,'Economic Assumptions'!4:4))^(AP6/12)-1 -> 0.001241487716 | AQ39: =(1+LOOKUP(AQ34,'Economic Assumptions'!1:1,'Economic Assumptions'!4:4))^(AQ6/12)-1 -> 0.001241487716 | AR39: =(1+LOOKUP(AR34,'Economic Assumptions'!1:1,'Economic Assumptions'!4:4))^(AR6/12)-1 -> 0.001241487716 | AS39: =(1+LOOKUP(AS34,'Economic Assumptions'!1:1,'Economic Assumptions'!4:4))^(AS6/12)-1 -> 0.001241487716 | AT39: =(1+LOOKUP(AT34,'Economic Assumptions'!1:1,'Economic Assumptions'!4:4))^(AT6/12)-1 -> 0.001241487716 | AU39: =(1+LOOKUP(AU34,'Economic Assumptions'!1:1,'Economic Assumptions'!4:4))^(AU6/12)-1 -> 0.001241487716 | AV39: =(1+LOOKUP(AV34,'Economic Assumptions'!1:1,'Economic Assumptions'!4:4))^(AV6/12)-1 -> 0.001241487716 | AW39: =(1+LOOKUP(AW34,'Economic Assumptions'!1:1,'Economic Assumptions'!4:4))^(AW6/12)-1 -> 0.001241487716 | AX39: =(1+LOOKUP(AX34,'Economic Assumptions'!1:1,'Economic Assumptions'!4:4))^(AX6/12)-1 -> 0.001241487716 | AY39: =(1+LOOKUP(AY34,'Economic Assumptions'!1:1,'Economic Assumptions'!4:4))^(AY6/12)-1 -> 0.001241487716 | AZ39: =(1+LOOKUP(AZ34,'Economic Assumptions'!1:1,'Economic Assumptions'!4:4))^(AZ6/12)-1 -> 0.001241487716 | BA39: =(1+LOOKUP(BA34,'Economic Assumptions'!1:1,'Economic Assumptions'!4:4))^(BA6/12)-1 -> 0.001241487716 | BB39: =(1+LOOKUP(BB34,'Economic Assumptions'!1:1,'Economic Assumptions'!4:4))^(BB6/12)-1 -> 0.001241487716 | BC39: =(1+LOOKUP(BC34,'Economic Assumptions'!1:1,'Economic Assumptions'!4:4))^(BC6/12)-1 -> 0.001241487716 | BD39: =(1+LOOKUP(BD34,'Economic Assumptions'!1:1,'Economic Assumptions'!4:4))^(BD6/12)-1 -> 0.001241487716 | BE39: =(1+LOOKUP(BE34,'Economic Assumptions'!1:1,'Economic Assumptions'!4:4))^(BE6/12)-1 -> 0.001241487716 | BF39: =(1+LOOKUP(BF34,'Economic Assumptions'!1:1,'Economic Assumptions'!4:4))^(BF6/12)-1 -> 0.001241487716 | BG39: =(1+LOOKUP(BG34,'Economic Assumptions'!1:1,'Economic Assumptions'!4:4))^(BG6/12)-1 -> 0.001241487716 | BH39: =(1+LOOKUP(BH34,'Economic Assumptions'!1:1,'Economic Assumptions'!4:4))^(BH6/12)-1 -> 0.001241487716 | BI39: =(1+LOOKUP(BI34,'Economic Assumptions'!1:1,'Economic Assumptions'!4:4))^(BI6/12)-1 -> 0.001241487716 | BJ39: =(1+LOOKUP(BJ34,'Economic Assumptions'!1:1,'Economic Assumptions'!4:4))^(BJ6/12)-1 -> 0.001241487716 | BK39: =(1+LOOKUP(BK34,'Economic Assumptions'!1:1,'Economic Assumptions'!4:4))^(BK6/12)-1 -> 0.001241487716 | BL39: =(1+LOOKUP(BL34,'Economic Assumptions'!1:1,'Economic Assumptions'!4:4))^(BL6/12)-1 -> 0.001241487716 | BM39: =(1+LOOKUP(BM34,'Economic Assumptions'!1:1,'Economic Assumptions'!4:4))^(BM6/12)-1 -> 0.001241487716 | BN39: =(1+LOOKUP(BN34,'Economic Assumptions'!1:1,'Economic Assumptions'!4:4))^(BN6/12)-1 -> 0.001241487716 | BO39: =(1+LOOKUP(BO34,'Economic Assumptions'!1:1,'Economic Assumptions'!4:4))^(BO6/12)-1 -> 0.001241487716 | BP39: =(1+LOOKUP(BP34,'Economic Assumptions'!1:1,'Economic Assumptions'!4:4))^(BP6/12)-1 -> 0.001241487716 | BQ39: =(1+LOOKUP(BQ34,'Economic Assumptions'!1:1,'Economic Assumptions'!4:4))^(BQ6/12)-1 -> 0.001241487716 | BR39: =(1+LOOKUP(BR34,'Economic Assumptions'!1:1,'Economic Assumptions'!4:4))^(BR6/12)-1 -> 0.001241487716 | BS39: =(1+LOOKUP(BS34,'Economic Assumptions'!1:1,'Economic Assumptions'!4:4))^(BS6/12)-1 -> 0.001241487716 | BT39: =(1+LOOKUP(BT34,'Economic Assumptions'!1:1,'Economic Assumptions'!4:4))^(BT6/12)-1 -> 0.001241487716 | BU39: =(1+LOOKUP(BU34,'Economic Assumptions'!1:1,'Economic Assumptions'!4:4))^(BU6/12)-1 -> 0.001241487716 | BV39: =(1+LOOKUP(BV34,'Economic Assumptions'!1:1,'Economic Assumptions'!4:4))^(BV6/12)-1 -> 0.001241487716 | BW39: =(1+LOOKUP(BW34,'Economic Assumptions'!1:1,'Economic Assumptions'!4:4))^(BW6/12)-1 -> 0.001241487716 | BX39: =(1+LOOKUP(BX34,'Economic Assumptions'!1:1,'Economic Assumptions'!4:4))^(BX6/12)-1 -> 0.001241487716 | BY39: =(1+LOOKUP(BY34,'Economic Assumptions'!1:1,'Economic Assumptions'!4:4))^(BY6/12)-1 -> 0.001241487716 | BZ39: =(1+LOOKUP(BZ34,'Economic Assumptions'!1:1,'Economic Assumptions'!4:4))^(BZ6/12)-1 -> 0.001241487716 | CA39: =(1+LOOKUP(CA34,'Economic Assumptions'!1:1,'Economic Assumptions'!4:4))^(CA6/12)-1 -> 0.001241487716 | CB39: =(1+LOOKUP(CB34,'Economic Assumptions'!1:1,'Economic Assumptions'!4:4))^(CB6/12)-1 -> 0.001241487716 | CC39: =(1+LOOKUP(CC34,'Economic Assumptions'!1:1,'Economic Assumptions'!4:4))^(CC6/12)-1 -> 0.001241487716 | CD39: =(1+LOOKUP(CD34,'Economic Assumptions'!1:1,'Economic Assumptions'!4:4))^(CD6/12)-1 -> 0.001241487716 | CE39: =(1+LOOKUP(CE34,'Economic Assumptions'!1:1,'Economic Assumptions'!4:4))^(CE6/12)-1 -> 0.001241487716 | CF39: =(1+LOOKUP(CF34,'Economic Assumptions'!1:1,'Economic Assumptions'!4:4))^(CF6/12)-1 -> 0.001241487716 | CG39: =(1+LOOKUP(CG34,'Economic Assumptions'!1:1,'Economic Assumptions'!4:4))^(CG6/12)-1 -> 0.001241487716 | CH39: =(1+LOOKUP(CH34,'Economic Assumptions'!1:1,'Economic Assumptions'!4:4))^(CH6/12)-1 -> 0.001241487716 | CI39: =(1+LOOKUP(CI34,'Economic Assumptions'!1:1,'Economic Assumptions'!4:4))^(CI6/12)-1 -> 0.001241487716 | CJ39: =(1+LOOKUP(CJ34,'Economic Assumptions'!1:1,'Economic Assumptions'!4:4))^(CJ6/12)-1 -> 0.001241487716 | CK39: =(1+LOOKUP(CK34,'Economic Assumptions'!1:1,'Economic Assumptions'!4:4))^(CK6/12)-1 -> 0.001241487716 | CL39: =(1+LOOKUP(CL34,'Economic Assumptions'!1:1,'Economic Assumptions'!4:4))^(CL6/12)-1 -> 0.001241487716 | CM39: =(1+LOOKUP(CM34,'Economic Assumptions'!1:1,'Economic Assumptions'!4:4))^(CM6/12)-1 -> 0.001241487716 | CN39: =(1+LOOKUP(CN34,'Economic Assumptions'!1:1,'Economic Assumptions'!4:4))^(CN6/12)-1 -> 0.001241487716 | CO39: =(1+LOOKUP(CO34,'Economic Assumptions'!1:1,'Economic Assumptions'!4:4))^(CO6/12)-1 -> 0.001241487716 | CP39: =(1+LOOKUP(CP34,'Economic Assumptions'!1:1,'Economic Assumptions'!4:4))^(CP6/12)-1 -> 0.001241487716 | CQ39: =(1+LOOKUP(CQ34,'Economic Assumptions'!1:1,'Economic Assumptions'!4:4))^(CQ6/12)-1 -> 0.001241487716 | CR39: =(1+LOOKUP(CR34,'Economic Assumptions'!1:1,'Economic Assumptions'!4:4))^(CR6/12)-1 -> 0.001241487716 | CS39: =(1+LOOKUP(CS34,'Economic Assumptions'!1:1,'Economic Assumptions'!4:4))^(CS6/12)-1 -> 0.001241487716 | CT39: =(1+LOOKUP(CT34,'Economic Assumptions'!1:1,'Economic Assumptions'!4:4))^(CT6/12)-1 -> 0.001241487716 | CU39: =(1+LOOKUP(CU34,'Economic Assumptions'!1:1,'Economic Assumptions'!4:4))^(CU6/12)-1 -> 0.001241487716 | CV39: =(1+LOOKUP(CV34,'Economic Assumptions'!1:1,'Economic Assumptions'!4:4))^(CV6/12)-1 -> 0.001241487716 | CW39: =(1+LOOKUP(CW34,'Economic Assumptions'!1:1,'Economic Assumptions'!4:4))^(CW6/12)-1 -> 0.001241487716 | CX39: =(1+LOOKUP(CX34,'Economic Assumptions'!1:1,'Economic Assumptions'!4:4))^(CX6/12)-1 -> 0.001241487716 | CY39: =(1+LOOKUP(CY34,'Economic Assumptions'!1:1,'Economic Assumptions'!4:4))^(CY6/12)-1 -> 0.001241487716 | CZ39: =(1+LOOKUP(CZ34,'Economic Assumptions'!1:1,'Economic Assumptions'!4:4))^(CZ6/12)-1 -> 0.015 | DA39: =(1+LOOKUP(DA34,'Economic Assumptions'!1:1,'Economic Assumptions'!4:4))^(DA6/12)-1 -> 0.015 | DB39: =(1+LOOKUP(DB34,'Economic Assumptions'!1:1,'Economic Assumptions'!4:4))^(DB6/12)-1 -> 0.015 | DC39: =(1+LOOKUP(DC34,'Economic Assumptions'!1:1,'Economic Assumptions'!4:4))^(DC6/12)-1 -> 0.015 | DD39: =(1+LOOKUP(DD34,'Economic Assumptions'!1:1,'Economic Assumptions'!4:4))^(DD6/12)-1 -> 0.015 | DE39: =(1+LOOKUP(DE34,'Economic Assumptions'!1:1,'Economic Assumptions'!4:4))^(DE6/12)-1 -> 0.015 | DF39: =(1+LOOKUP(DF34,'Economic Assumptions'!1:1,'Economic Assumptions'!4:4))^(DF6/12)-1 -> 0.015 | DG39: =(1+LOOKUP(DG34,'Economic Assumptions'!1:1,'Economic Assumptions'!4:4))^(DG6/12)-1 -> 0.015 | DH39: =(1+LOOKUP(DH34,'Economic Assumptions'!1:1,'Economic Assumptions'!4:4))^(DH6/12)-1 -> 0.015 | DI39: =(1+LOOKUP(DI34,'Economic Assumptions'!1:1,'Economic Assumptions'!4:4))^(DI6/12)-1 -> 0.015
B40: Index of Inflation in USD | G40: 1 | H40: =G40*(1+H39) -> 1.001241488 | I40: =H40*(1+I39) -> 1.002484517 | J40: 1.003729089 | K40: 1.004975206 | L40: 1.006222871 | M40: 1.007472084 | N40: 1.008722848 | O40: 1.009975165 | P40: 1.011229037 | Q40: 1.012484465 | R40: 1.013741452 | S40: 1.015 | T40: 1.01626011 | U40: 1.017521784 | V40: 1.018785025 | W40: 1.020049834 | X40: 1.021316214 | Y40: 1.022584165 | Z40: 1.023853691 | AA40: 1.025124793 | AB40: 1.026397473 | AC40: 1.027671732 | AD40: 1.028947574 | AE40: 1.030225 | AF40: 1.031504012 | AG40: 1.032784611 | AH40: 1.034066801 | AI40: 1.035350582 | AJ40: 1.036635957 | AK40: 1.037922928 | AL40: 1.039211496 | AM40: 1.040501665 | AN40: 1.041793435 | AO40: 1.043086808 | AP40: 1.044381788 | AQ40: 1.045678375 | AR40: 1.046976572 | AS40: 1.04827638 | AT40: 1.049577803 | AU40: 1.050880841 | AV40: 1.052185496 | AW40: 1.053491772 | AX40: 1.054799669 | AY40: 1.05610919 | AZ40: 1.057420336 | BA40: 1.058733111 | BB40: 1.060047515 | BC40: 1.061363551 | BD40: 1.06268122 | BE40: 1.064000526 | BF40: 1.06532147 | BG40: 1.066644053 | BH40: 1.067968279 | BI40: 1.069294148 | BJ40: 1.070621664 | BK40: 1.071950827 | BL40: 1.073281641 | BM40: 1.074614107 | BN40: 1.075948227 | BO40: 1.077284004 | BP40: 1.078621439 | BQ40: 1.079960534 | BR40: 1.081301292 | BS40: 1.082643714 | BT40: 1.083987803 | BU40: =BT40*(1+BU39) -> 1.08533356 | BV40: 1.086680989 | BW40: 1.08803009 | BX40: 1.089380866 | BY40: 1.090733319 | BZ40: 1.092087451 | CA40: 1.093443264 | CB40: 1.09480076 | CC40: 1.096159942 | CD40: 1.097520811 | CE40: 1.09888337 | CF40: 1.10024762 | CG40: 1.101613564 | CH40: 1.102981204 | CI40: 1.104350541 | CJ40: 1.105721579 | CK40: 1.107094319 | CL40: 1.108468763 | CM40: 1.109844913 | CN40: 1.111222772 | CO40: 1.112602341 | CP40: 1.113983623 | CQ40: 1.11536662 | CR40: 1.116751334 | CS40: 1.118137767 | CT40: 1.119525922 | CU40: 1.120915799 | CV40: 1.122307402 | CW40: 1.123700733 | CX40: 1.125095794 | CY40: 1.126492587 | CZ40: 1.143389975 | DA40: 1.160540825 | DB40: 1.177948937 | DC40: 1.195618171 | DD40: 1.213552444 | DE40: =DD40*(1+DE39) -> 1.231755731 | DF40: =DE40*(1+DF39) -> 1.250232067 | DG40: =DF40*(1+DG39) -> 1.268985548 | DH40: 1.288020331 | DI40: 1.307340636
B41: Exchange Rate From Inflation Difference (PPP) | G41: =INDEX('Economic Assumptions'!E:E,Template!F36-1) -> 17.6 | H41: =$G$41*H38/H40 -> 17.69127543 | I41: =$G$41*I38/I40 -> 17.78302422 | J41: 17.87524883 | K41: 17.96795173 | L41: 18.0611354 | M41: 18.15480232 | N41: 18.24895501 | O41: 18.34359599 | P41: 18.43872778 | Q41: 18.53435294 | R41: 18.63047402 | S41: 18.7270936 | T41: 18.82421425 | U41: 18.92183858 | V41: 19.0199692 | W41: 19.11860874 | X41: 19.21775983 | Y41: 19.31742513 | Z41: 19.4176073 | AA41: 19.51830903 | AB41: 19.61953301 | AC41: 19.72128195 | AD41: 19.82355857 | AE41: 19.9263656 | AF41: 20.0297058 | AG41: 20.13358194 | AH41: 20.23799679 | AI41: 20.34295314 | AJ41: 20.44845381 | AK41: 20.55450162 | AL41: 20.6610994 | AM41: 20.76825 | AN41: 20.87595631 | AO41: 20.98422119 | AP41: 21.09304754 | AQ41: 21.20243827 | AR41: 21.31239632 | AS41: 21.42292462 | AT41: 21.53402614 | AU41: 21.64570383 | AV41: 21.7579607 | AW41: 21.87079975 | AX41: 21.98422399 | AY41: 22.09823646 | AZ41: 22.21284021 | BA41: 22.32803831 | BB41: 22.44383383 | BC41: 22.56022989 | BD41: 22.67722958 | BE41: 22.79483605 | BF41: 22.91305244 | BG41: 23.03188191 | BH41: 23.15132764 | BI41: 23.27139284 | BJ41: 23.3920807 | BK41: 23.51339446 | BL41: 23.63533736 | BM41: 23.75791268 | BN41: 23.88112368 | BO41: 24.00497367 | BP41: 24.12946596 | BQ41: 24.25460388 | BR41: 24.38039077 | BS41: 24.50683001 | BT41: 24.63392498 | BU41: =$G$41*BU38/BU40 -> 24.76167908 | BV41: 24.89009572 | BW41: 25.01917834 | BX41: 25.1489304 | BY41: 25.27935536 | BZ41: 25.41045673 | CA41: 25.542238 | CB41: 25.6747027 | CC41: 25.80785437 | CD41: 25.94169659 | CE41: 26.07623292 | CF41: 26.21146698 | CG41: 26.34740237 | CH41: 26.48404273 | CI41: 26.62139173 | CJ41: 26.75945303 | CK41: 26.89823034 | CL41: 27.03772736 | CM41: 27.17794782 | CN41: 27.31889548 | CO41: 27.46057411 | CP41: 27.6029875 | CQ41: 27.74613946 | CR41: 27.89003383 | CS41: 28.03467444 | CT41: 28.18006517 | CU41: 28.32620992 | CV41: 28.47311259 | CW41: 28.62077711 | CX41: 28.76920743 | CY41: 28.91840753 | CZ41: 30.77032526 | DA41: 32.7408387 | DB41: 34.83754265 | DC41: 37.06851829 | DD41: 39.44236429 | DE41: =$G$41*DE38/DE40 -> 41.96822998 | DF41: =$G$41*DF38/DF40 -> 44.65585062 | DG41: =$G$41*DG38/DG40 -> 47.5155849 | DH41: 50.55845487 | DI41: 53.79618843
B42: Ajustement PPP | E42: =INDEX('Master Assumptions'!N:N,Template!E1) -> EGP | F42: =F36+2 -> 12 | H42: =INDEX('Economic Assumptions'!$1:$1048576,Template!$F$42,Template!H35) -> 1 | I42: =INDEX('Economic Assumptions'!$1:$1048576,Template!$F$42,Template!I35) -> 1 | J42: =INDEX('Economic Assumptions'!$1:$1048576,Template!$F$42,Template!J35) -> 1 | K42: =INDEX('Economic Assumptions'!$1:$1048576,Template!$F$42,Template!K35) -> 1 | L42: =INDEX('Economic Assumptions'!$1:$1048576,Template!$F$42,Template!L35) -> 1 | M42: =INDEX('Economic Assumptions'!$1:$1048576,Template!$F$42,Template!M35) -> 1 | N42: =INDEX('Economic Assumptions'!$1:$1048576,Template!$F$42,Template!N35) -> 1 | O42: =INDEX('Economic Assumptions'!$1:$1048576,Template!$F$42,Template!O35) -> 1 | P42: =INDEX('Economic Assumptions'!$1:$1048576,Template!$F$42,Template!P35) -> 1 | Q42: =INDEX('Economic Assumptions'!$1:$1048576,Template!$F$42,Template!Q35) -> 1 | R42: =INDEX('Economic Assumptions'!$1:$1048576,Template!$F$42,Template!R35) -> 1 | S42: =INDEX('Economic Assumptions'!$1:$1048576,Template!$F$42,Template!S35) -> 1 | T42: =INDEX('Economic Assumptions'!$1:$1048576,Template!$F$42,Template!T35) -> 1 | U42: =INDEX('Economic Assumptions'!$1:$1048576,Template!$F$42,Template!U35) -> 1 | V42: =INDEX('Economic Assumptions'!$1:$1048576,Template!$F$42,Template!V35) -> 1 | W42: =INDEX('Economic Assumptions'!$1:$1048576,Template!$F$42,Template!W35) -> 1 | X42: =INDEX('Economic Assumptions'!$1:$1048576,Template!$F$42,Template!X35) -> 1 | Y42: =INDEX('Economic Assumptions'!$1:$1048576,Template!$F$42,Template!Y35) -> 1 | Z42: =INDEX('Economic Assumptions'!$1:$1048576,Template!$F$42,Template!Z35) -> 1 | AA42: =INDEX('Economic Assumptions'!$1:$1048576,Template!$F$42,Template!AA35) -> 1 | AB42: =INDEX('Economic Assumptions'!$1:$1048576,Template!$F$42,Template!AB35) -> 1 | AC42: =INDEX('Economic Assumptions'!$1:$1048576,Template!$F$42,Template!AC35) -> 1 | AD42: =INDEX('Economic Assumptions'!$1:$1048576,Template!$F$42,Template!AD35) -> 1 | AE42: =INDEX('Economic Assumptions'!$1:$1048576,Template!$F$42,Template!AE35) -> 1 | AF42: =INDEX('Economic Assumptions'!$1:$1048576,Template!$F$42,Template!AF35) -> 1 | AG42: =INDEX('Economic Assumptions'!$1:$1048576,Template!$F$42,Template!AG35) -> 1 | AH42: =INDEX('Economic Assumptions'!$1:$1048576,Template!$F$42,Template!AH35) -> 1 | AI42: =INDEX('Economic Assumptions'!$1:$1048576,Template!$F$42,Template!AI35) -> 1 | AJ42: =INDEX('Economic Assumptions'!$1:$1048576,Template!$F$42,Template!AJ35) -> 1 | AK42: =INDEX('Economic Assumptions'!$1:$1048576,Template!$F$42,Template!AK35) -> 1 | AL42: =INDEX('Economic Assumptions'!$1:$1048576,Template!$F$42,Template!AL35) -> 1 | AM42: =INDEX('Economic Assumptions'!$1:$1048576,Template!$F$42,Template!AM35) -> 1 | AN42: =INDEX('Economic Assumptions'!$1:$1048576,Template!$F$42,Template!AN35) -> 1 | AO42: =INDEX('Economic Assumptions'!$1:$1048576,Template!$F$42,Template!AO35) -> 1 | AP42: =INDEX('Economic Assumptions'!$1:$1048576,Template!$F$42,Template!AP35) -> 1 | AQ42: =INDEX('Economic Assumptions'!$1:$1048576,Template!$F$42,Template!AQ35) -> 1 | AR42: =INDEX('Economic Assumptions'!$1:$1048576,Template!$F$42,Template!AR35) -> 1 | AS42: =INDEX('Economic Assumptions'!$1:$1048576,Template!$F$42,Template!AS35) -> 1 | AT42: =INDEX('Economic Assumptions'!$1:$1048576,Template!$F$42,Template!AT35) -> 1 | AU42: =INDEX('Economic Assumptions'!$1:$1048576,Template!$F$42,Template!AU35) -> 1 | AV42: =INDEX('Economic Assumptions'!$1:$1048576,Template!$F$42,Template!AV35) -> 1 | AW42: =INDEX('Economic Assumptions'!$1:$1048576,Template!$F$42,Template!AW35) -> 1 | AX42: =INDEX('Economic Assumptions'!$1:$1048576,Template!$F$42,Template!AX35) -> 1 | AY42: =INDEX('Economic Assumptions'!$1:$1048576,Template!$F$42,Template!AY35) -> 1 | AZ42: =INDEX('Economic Assumptions'!$1:$1048576,Template!$F$42,Template!AZ35) -> 1 | BA42: =INDEX('Economic Assumptions'!$1:$1048576,Template!$F$42,Template!BA35) -> 1 | BB42: =INDEX('Economic Assumptions'!$1:$1048576,Template!$F$42,Template!BB35) -> 1 | BC42: =INDEX('Economic Assumptions'!$1:$1048576,Template!$F$42,Template!BC35) -> 1 | BD42: =INDEX('Economic Assumptions'!$1:$1048576,Template!$F$42,Template!BD35) -> 1 | BE42: =INDEX('Economic Assumptions'!$1:$1048576,Template!$F$42,Template!BE35) -> 1 | BF42: =INDEX('Economic Assumptions'!$1:$1048576,Template!$F$42,Template!BF35) -> 1 | BG42: =INDEX('Economic Assumptions'!$1:$1048576,Template!$F$42,Template!BG35) -> 1 | BH42: =INDEX('Economic Assumptions'!$1:$1048576,Template!$F$42,Template!BH35) -> 1 | BI42: =INDEX('Economic Assumptions'!$1:$1048576,Template!$F$42,Template!BI35) -> 1 | BJ42: =INDEX('Economic Assumptions'!$1:$1048576,Template!$F$42,Template!BJ35) -> 1 | BK42: =INDEX('Economic Assumptions'!$1:$1048576,Template!$F$42,Template!BK35) -> 1 | BL42: =INDEX('Economic Assumptions'!$1:$1048576,Template!$F$42,Template!BL35) -> 1 | BM42: =INDEX('Economic Assumptions'!$1:$1048576,Template!$F$42,Template!BM35) -> 1 | BN42: =INDEX('Economic Assumptions'!$1:$1048576,Template!$F$42,Template!BN35) -> 1 | BO42: =INDEX('Economic Assumptions'!$1:$1048576,Template!$F$42,Template!BO35) -> 1 | BP42: =INDEX('Economic Assumptions'!$1:$1048576,Template!$F$42,Template!BP35) -> 1 | BQ42: =INDEX('Economic Assumptions'!$1:$1048576,Template!$F$42,Template!BQ35) -> 1 | BR42: =INDEX('Economic Assumptions'!$1:$1048576,Template!$F$42,Template!BR35) -> 1 | BS42: =INDEX('Economic Assumptions'!$1:$1048576,Template!$F$42,Template!BS35) -> 1 | BT42: =INDEX('Economic Assumptions'!$1:$1048576,Template!$F$42,Template!BT35) -> 1 | BU42: =INDEX('Economic Assumptions'!$1:$1048576,Template!$F$42,Template!BU35) -> 1 | BV42: =INDEX('Economic Assumptions'!$1:$1048576,Template!$F$42,Template!BV35) -> 1 | BW42: =INDEX('Economic Assumptions'!$1:$1048576,Template!$F$42,Template!BW35) -> 1 | BX42: =INDEX('Economic Assumptions'!$1:$1048576,Template!$F$42,Template!BX35) -> 1 | BY42: =INDEX('Economic Assumptions'!$1:$1048576,Template!$F$42,Template!BY35) -> 1 | BZ42: =INDEX('Economic Assumptions'!$1:$1048576,Template!$F$42,Template!BZ35) -> 1 | CA42: =INDEX('Economic Assumptions'!$1:$1048576,Template!$F$42,Template!CA35) -> 1 | CB42: =INDEX('Economic Assumptions'!$1:$1048576,Template!$F$42,Template!CB35) -> 1 | CC42: =INDEX('Economic Assumptions'!$1:$1048576,Template!$F$42,Template!CC35) -> 1 | CD42: =INDEX('Economic Assumptions'!$1:$1048576,Template!$F$42,Template!CD35) -> 1 | CE42: =INDEX('Economic Assumptions'!$1:$1048576,Template!$F$42,Template!CE35) -> 1 | CF42: =INDEX('Economic Assumptions'!$1:$1048576,Template!$F$42,Template!CF35) -> 1 | CG42: =INDEX('Economic Assumptions'!$1:$1048576,Template!$F$42,Template!CG35) -> 1 | CH42: =INDEX('Economic Assumptions'!$1:$1048576,Template!$F$42,Template!CH35) -> 1 | CI42: =INDEX('Economic Assumptions'!$1:$1048576,Template!$F$42,Template!CI35) -> 1 | CJ42: =INDEX('Economic Assumptions'!$1:$1048576,Template!$F$42,Template!CJ35) -> 1 | CK42: =INDEX('Economic Assumptions'!$1:$1048576,Template!$F$42,Template!CK35) -> 1 | CL42: =INDEX('Economic Assumptions'!$1:$1048576,Template!$F$42,Template!CL35) -> 1 | CM42: =INDEX('Economic Assumptions'!$1:$1048576,Template!$F$42,Template!CM35) -> 1 | CN42: =INDEX('Economic Assumptions'!$1:$1048576,Template!$F$42,Template!CN35) -> 1 | CO42: =INDEX('Economic Assumptions'!$1:$1048576,Template!$F$42,Template!CO35) -> 1 | CP42: =INDEX('Economic Assumptions'!$1:$1048576,Template!$F$42,Template!CP35) -> 1 | CQ42: =INDEX('Economic Assumptions'!$1:$1048576,Template!$F$42,Template!CQ35) -> 1 | CR42: =INDEX('Economic Assumptions'!$1:$1048576,Template!$F$42,Template!CR35) -> 1 | CS42: =INDEX('Economic Assumptions'!$1:$1048576,Template!$F$42,Template!CS35) -> 1 | CT42: =INDEX('Economic Assumptions'!$1:$1048576,Template!$F$42,Template!CT35) -> 1 | CU42: =INDEX('Economic Assumptions'!$1:$1048576,Template!$F$42,Template!CU35) -> 1 | CV42: =INDEX('Economic Assumptions'!$1:$1048576,Template!$F$42,Template!CV35) -> 1 | CW42: =INDEX('Economic Assumptions'!$1:$1048576,Template!$F$42,Template!CW35) -> 1 | CX42: =INDEX('Economic Assumptions'!$1:$1048576,Template!$F$42,Template!CX35) -> 1 | CY42: =INDEX('Economic Assumptions'!$1:$1048576,Template!$F$42,Template!CY35) -> 1 | CZ42: =INDEX('Economic Assumptions'!$1:$1048576,Template!$F$42,Template!CZ35) -> 1 | DA42: =INDEX('Economic Assumptions'!$1:$1048576,Template!$F$42,Template!DA35) -> 1 | DB42: =INDEX('Economic Assumptions'!$1:$1048576,Template!$F$42,Template!DB35) -> 1 | DC42: =INDEX('Economic Assumptions'!$1:$1048576,Template!$F$42,Template!DC35) -> 1 | DD42: =INDEX('Economic Assumptions'!$1:$1048576,Template!$F$42,Template!DD35) -> 1 | DE42: =INDEX('Economic Assumptions'!$1:$1048576,Template!$F$42,Template!DE35) -> 1 | DF42: =INDEX('Economic Assumptions'!$1:$1048576,Template!$F$42,Template!DF35) -> 1 | DG42: =INDEX('Economic Assumptions'!$1:$1048576,Template!$F$42,Template!DG35) -> 1 | DH42: =INDEX('Economic Assumptions'!$1:$1048576,Template!$F$42,Template!DH35) -> 1 | DI42: =INDEX('Economic Assumptions'!$1:$1048576,Template!$F$42,Template!DI35) -> 1
B43: Final Excange Rate | G43: =Template!G41 -> 17.6 | H43: =H41*H42 -> 17.69127543 | I43: =I41*I42 -> 17.78302422 | J43: 17.87524883 | K43: 17.96795173 | L43: 18.0611354 | M43: 18.15480232 | N43: 18.24895501 | O43: 18.34359599 | P43: 18.43872778 | Q43: 18.53435294 | R43: 18.63047402 | S43: 18.7270936 | T43: 18.82421425 | U43: 18.92183858 | V43: 19.0199692 | W43: 19.11860874 | X43: 19.21775983 | Y43: 19.31742513 | Z43: 19.4176073 | AA43: 19.51830903 | AB43: 19.61953301 | AC43: 19.72128195 | AD43: 19.82355857 | AE43: 19.9263656 | AF43: 20.0297058 | AG43: 20.13358194 | AH43: 20.23799679 | AI43: 20.34295314 | AJ43: 20.44845381 | AK43: 20.55450162 | AL43: 20.6610994 | AM43: 20.76825 | AN43: 20.87595631 | AO43: 20.98422119 | AP43: 21.09304754 | AQ43: 21.20243827 | AR43: 21.31239632 | AS43: 21.42292462 | AT43: 21.53402614 | AU43: 21.64570383 | AV43: 21.7579607 | AW43: 21.87079975 | AX43: 21.98422399 | AY43: 22.09823646 | AZ43: 22.21284021 | BA43: 22.32803831 | BB43: 22.44383383 | BC43: 22.56022989 | BD43: 22.67722958 | BE43: 22.79483605 | BF43: 22.91305244 | BG43: 23.03188191 | BH43: 23.15132764 | BI43: 23.27139284 | BJ43: 23.3920807 | BK43: 23.51339446 | BL43: 23.63533736 | BM43: 23.75791268 | BN43: 23.88112368 | BO43: 24.00497367 | BP43: 24.12946596 | BQ43: 24.25460388 | BR43: 24.38039077 | BS43: 24.50683001 | BT43: 24.63392498 | BU43: =BU41*BU42 -> 24.76167908 | BV43: 24.89009572 | BW43: 25.01917834 | BX43: 25.1489304 | BY43: 25.27935536 | BZ43: 25.41045673 | CA43: 25.542238 | CB43: 25.6747027 | CC43: 25.80785437 | CD43: 25.94169659 | CE43: 26.07623292 | CF43: 26.21146698 | CG43: 26.34740237 | CH43: 26.48404273 | CI43: 26.62139173 | CJ43: 26.75945303 | CK43: 26.89823034 | CL43: 27.03772736 | CM43: 27.17794782 | CN43: 27.31889548 | CO43: 27.46057411 | CP43: 27.6029875 | CQ43: 27.74613946 | CR43: 27.89003383 | CS43: 28.03467444 | CT43: 28.18006517 | CU43: 28.32620992 | CV43: 28.47311259 | CW43: 28.62077711 | CX43: 28.76920743 | CY43: 28.91840753 | CZ43: 30.77032526 | DA43: 32.7408387 | DB43: 34.83754265 | DC43: 37.06851829 | DD43: 39.44236429 | DE43: =DE41*DE42 -> 41.96822998 | DF43: =DF41*DF42 -> 44.65585062 | DG43: =DG41*DG42 -> 47.5155849 | DH43: 50.55845487 | DI43: 53.79618843
A45: Capital Expenditure
B46: Investissement | E46: EGP | F46: =INDEX('Master Assumptions'!I:I,Template!E1) -> 1247 | G46: =INDEX('Master Assumptions'!W:W,Template!E1) -> 12850 | H46: =$G$46*$F$46 -> 16023950 | I46: =$G$46*$F$46 -> 16023950 | J46: 16023950 | K46: 16023950 | L46: 16023950 | M46: 16023950 | N46: 16023950 | O46: 16023950 | P46: 16023950 | Q46: 16023950 | R46: 16023950 | S46: 16023950 | T46: 16023950 | U46: 16023950 | V46: 16023950 | W46: 16023950 | X46: 16023950 | Y46: 16023950 | Z46: 16023950 | AA46: 16023950 | AB46: 16023950 | AC46: 16023950 | AD46: 16023950 | AE46: 16023950 | AF46: 16023950 | AG46: 16023950 | AH46: 16023950 | AI46: 16023950 | AJ46: 16023950 | AK46: 16023950 | AL46: 16023950 | AM46: 16023950 | AN46: 16023950 | AO46: 16023950 | AP46: 16023950 | AQ46: 16023950 | AR46: 16023950 | AS46: 16023950 | AT46: 16023950 | AU46: 16023950 | AV46: 16023950 | AW46: 16023950 | AX46: 16023950 | AY46: 16023950 | AZ46: 16023950 | BA46: 16023950 | BB46: 16023950 | BC46: 16023950 | BD46: 16023950 | BE46: 16023950 | BF46: 16023950 | BG46: 16023950 | BH46: 16023950 | BI46: 16023950 | BJ46: 16023950 | BK46: 16023950 | BL46: 16023950 | BM46: 16023950 | BN46: 16023950 | BO46: 16023950 | BP46: 16023950 | BQ46: 16023950 | BR46: 16023950 | BS46: 16023950 | BT46: 16023950 | BU46: =$G$46*$F$46 -> 16023950 | BV46: 16023950 | BW46: 16023950 | BX46: 16023950 | BY46: 16023950 | BZ46: 16023950 | CA46: 16023950 | CB46: 16023950 | CC46: 16023950 | CD46: 16023950 | CE46: 16023950 | CF46: 16023950 | CG46: 16023950 | CH46: 16023950 | CI46: 16023950 | CJ46: 16023950 | CK46: 16023950 | CL46: 16023950 | CM46: 16023950 | CN46: 16023950 | CO46: 16023950 | CP46: 16023950 | CQ46: 16023950 | CR46: 16023950 | CS46: 16023950 | CT46: 16023950 | CU46: 16023950 | CV46: 16023950 | CW46: 16023950 | CX46: 16023950 | CY46: 16023950 | CZ46: 16023950 | DA46: 16023950 | DB46: 16023950 | DC46: 16023950 | DD46: 16023950 | DE46: 16023950 | DF46: 16023950 | DG46: 16023950 | DH46: 16023950 | DI46: 16023950
B47: S-curve | E47: % | G47: =COUNTIF(8:8,TRUE) -> 5 | H47: =1/$G$47*H8 -> 0 | I47: 0 | J47: 0 | K47: 0 | L47: 0 | M47: 0 | N47: 0 | O47: 0 | P47: 0 | Q47: 0 | R47: 0 | S47: 0 | T47: 0.2 | U47: 0.2 | V47: 0.2 | W47: 0.2 | X47: 0.2 | Y47: 0 | Z47: 0 | AA47: 0 | AB47: 0 | AC47: 0 | AD47: 0 | AE47: 0 | AF47: 0 | AG47: 0 | AH47: 0 | AI47: 0 | AJ47: 0 | AK47: 0 | AL47: 0 | AM47: 0 | AN47: 0 | AO47: 0 | AP47: 0 | AQ47: 0 | AR47: 0 | AS47: 0 | AT47: 0 | AU47: 0 | AV47: 0 | AW47: 0 | AX47: 0 | AY47: 0 | AZ47: 0 | BA47: 0 | BB47: 0 | BC47: 0 | BD47: 0 | BE47: 0 | BF47: 0 | BG47: 0 | BH47: 0 | BI47: 0 | BJ47: 0 | BK47: 0 | BL47: 0 | BM47: 0 | BN47: 0 | BO47: 0 | BP47: 0 | BQ47: 0 | BR47: 0 | BS47: 0 | BT47: =1/$G$47*BT8 -> 0 | BU47: 0 | BV47: 0 | BW47: 0 | BX47: 0 | BY47: 0 | BZ47: 0 | CA47: 0 | CB47: 0 | CC47: 0 | CD47: 0 | CE47: 0 | CF47: 0 | CG47: 0 | CH47: 0 | CI47: 0 | CJ47: 0 | CK47: 0 | CL47: 0 | CM47: 0 | CN47: 0 | CO47: 0 | CP47: 0 | CQ47: 0 | CR47: 0 | CS47: 0 | CT47: 0 | CU47: 0 | CV47: 0 | CW47: 0 | CX47: 0 | CY47: 0 | CZ47: 0 | DA47: 0 | DB47: 0 | DC47: 0 | DD47: 0 | DE47: 0 | DF47: 0 | DG47: =1/$G$47*DG8 -> 0 | DH47: 0 | DI47: 0
B48: Capital Expenditure per Month | E48: EUR | H48: =H46*H47 -> 0 | I48: =I46*I47 -> 0 | J48: 0 | K48: 0 | L48: 0 | M48: 0 | N48: 0 | O48: 0 | P48: 0 | Q48: 0 | R48: 0 | S48: 0 | T48: 3204790 | U48: 3204790 | V48: 3204790 | W48: 3204790 | X48: 3204790 | Y48: 0 | Z48: 0 | AA48: 0 | AB48: 0 | AC48: 0 | AD48: 0 | AE48: 0 | AF48: 0 | AG48: 0 | AH48: 0 | AI48: 0 | AJ48: 0 | AK48: 0 | AL48: 0 | AM48: 0 | AN48: 0 | AO48: 0 | AP48: 0 | AQ48: 0 | AR48: 0 | AS48: 0 | AT48: 0 | AU48: 0 | AV48: 0 | AW48: 0 | AX48: 0 | AY48: 0 | AZ48: 0 | BA48: 0 | BB48: 0 | BC48: 0 | BD48: 0 | BE48: 0 | BF48: 0 | BG48: 0 | BH48: 0 | BI48: 0 | BJ48: 0 | BK48: 0 | BL48: 0 | BM48: 0 | BN48: 0 | BO48: 0 | BP48: 0 | BQ48: 0 | BR48: 0 | BS48: 0 | BT48: 0 | BU48: =BU46*BU47 -> 0 | BV48: 0 | BW48: 0 | BX48: 0 | BY48: 0 | BZ48: 0 | CA48: 0 | CB48: 0 | CC48: 0 | CD48: 0 | CE48: 0 | CF48: 0 | CG48: 0 | CH48: 0 | CI48: 0 | CJ48: 0 | CK48: 0 | CL48: 0 | CM48: 0 | CN48: 0 | CO48: 0 | CP48: 0 | CQ48: 0 | CR48: 0 | CS48: 0 | CT48: 0 | CU48: 0 | CV48: 0 | CW48: 0 | CX48: 0 | CY48: 0 | CZ48: 0 | DA48: 0 | DB48: 0 | DC48: 0 | DD48: 0 | DE48: =DE46*DE47 -> 0 | DF48: =DF46*DF47 -> 0 | DG48: =DG46*DG47 -> 0 | DH48: 0 | DI48: 0
B49: Investment in Local Currency | E49: =INDEX('Master Assumptions'!N:N,Template!E1) -> EGP | H49: =Template!H48 -> 0 | I49: =Template!I48 -> 0 | J49: =Template!J48 -> 0 | K49: =Template!K48 -> 0 | L49: =Template!L48 -> 0 | M49: =Template!M48 -> 0 | N49: =Template!N48 -> 0 | O49: =Template!O48 -> 0 | P49: =Template!P48 -> 0 | Q49: =Template!Q48 -> 0 | R49: =Template!R48 -> 0 | S49: =Template!S48 -> 0 | T49: =Template!T48 -> 3204790 | U49: =Template!U48 -> 3204790 | V49: =Template!V48 -> 3204790 | W49: =Template!W48 -> 3204790 | X49: =Template!X48 -> 3204790 | Y49: =Template!Y48 -> 0 | Z49: =Template!Z48 -> 0 | AA49: =Template!AA48 -> 0 | AB49: =Template!AB48 -> 0 | AC49: =Template!AC48 -> 0 | AD49: =Template!AD48 -> 0 | AE49: =Template!AE48 -> 0 | AF49: =Template!AF48 -> 0 | AG49: =Template!AG48 -> 0 | AH49: =Template!AH48 -> 0 | AI49: =Template!AI48 -> 0 | AJ49: =Template!AJ48 -> 0 | AK49: =Template!AK48 -> 0 | AL49: =Template!AL48 -> 0 | AM49: =Template!AM48 -> 0 | AN49: =Template!AN48 -> 0 | AO49: =Template!AO48 -> 0 | AP49: =Template!AP48 -> 0 | AQ49: =Template!AQ48 -> 0 | AR49: =Template!AR48 -> 0 | AS49: =Template!AS48 -> 0 | AT49: =Template!AT48 -> 0 | AU49: =Template!AU48 -> 0 | AV49: =Template!AV48 -> 0 | AW49: =Template!AW48 -> 0 | AX49: =Template!AX48 -> 0 | AY49: =Template!AY48 -> 0 | AZ49: =Template!AZ48 -> 0 | BA49: =Template!BA48 -> 0 | BB49: =Template!BB48 -> 0 | BC49: =Template!BC48 -> 0 | BD49: =Template!BD48 -> 0 | BE49: =Template!BE48 -> 0 | BF49: =Template!BF48 -> 0 | BG49: =Template!BG48 -> 0 | BH49: =Template!BH48 -> 0 | BI49: =Template!BI48 -> 0 | BJ49: =Template!BJ48 -> 0 | BK49: =Template!BK48 -> 0 | BL49: =Template!BL48 -> 0 | BM49: =Template!BM48 -> 0 | BN49: =Template!BN48 -> 0 | BO49: =Template!BO48 -> 0 | BP49: =Template!BP48 -> 0 | BQ49: =Template!BQ48 -> 0 | BR49: =Template!BR48 -> 0 | BS49: =Template!BS48 -> 0 | BT49: =Template!BT48 -> 0 | BU49: =Template!BU48 -> 0 | BV49: =Template!BV48 -> 0 | BW49: =Template!BW48 -> 0 | BX49: =Template!BX48 -> 0 | BY49: =Template!BY48 -> 0 | BZ49: =Template!BZ48 -> 0 | CA49: =Template!CA48 -> 0 | CB49: =Template!CB48 -> 0 | CC49: =Template!CC48 -> 0 | CD49: =Template!CD48 -> 0 | CE49: =Template!CE48 -> 0 | CF49: =Template!CF48 -> 0 | CG49: =Template!CG48 -> 0 | CH49: =Template!CH48 -> 0 | CI49: =Template!CI48 -> 0 | CJ49: =Template!CJ48 -> 0 | CK49: =Template!CK48 -> 0 | CL49: =Template!CL48 -> 0 | CM49: =Template!CM48 -> 0 | CN49: =Template!CN48 -> 0 | CO49: =Template!CO48 -> 0 | CP49: =Template!CP48 -> 0 | CQ49: =Template!CQ48 -> 0 | CR49: =Template!CR48 -> 0 | CS49: =Template!CS48 -> 0 | CT49: =Template!CT48 -> 0 | CU49: =Template!CU48 -> 0 | CV49: =Template!CV48 -> 0 | CW49: =Template!CW48 -> 0 | CX49: =Template!CX48 -> 0 | CY49: =Template!CY48 -> 0 | CZ49: =Template!CZ48 -> 0 | DA49: =Template!DA48 -> 0 | DB49: =Template!DB48 -> 0 | DC49: =Template!DC48 -> 0 | DD49: =Template!DD48 -> 0 | DE49: =Template!DE48 -> 0 | DF49: =Template!DF48 -> 0 | DG49: =Template!DG48 -> 0 | DH49: =Template!DH48 -> 0 | DI49: =Template!DI48 -> 0
B50: EPC Margin | E50: =Template!E49 -> EGP | F50: =INDEX('Master Assumptions'!AC:AC,Template!E1) -> 0.1 | H50: =H49*$F$50 -> 0 | I50: =I49*$F$50 -> 0 | J50: 0 | K50: 0 | L50: 0 | M50: 0 | N50: 0 | O50: 0 | P50: 0 | Q50: 0 | R50: 0 | S50: 0 | T50: 320479 | U50: 320479 | V50: 320479 | W50: 320479 | X50: 320479 | Y50: 0 | Z50: 0 | AA50: 0 | AB50: 0 | AC50: 0 | AD50: 0 | AE50: 0 | AF50: 0 | AG50: 0 | AH50: 0 | AI50: 0 | AJ50: 0 | AK50: 0 | AL50: 0 | AM50: 0 | AN50: 0 | AO50: 0 | AP50: 0 | AQ50: 0 | AR50: 0 | AS50: 0 | AT50: 0 | AU50: 0 | AV50: 0 | AW50: 0 | AX50: 0 | AY50: 0 | AZ50: 0 | BA50: 0 | BB50: 0 | BC50: 0 | BD50: 0 | BE50: 0 | BF50: 0 | BG50: 0 | BH50: 0 | BI50: 0 | BJ50: 0 | BK50: 0 | BL50: 0 | BM50: 0 | BN50: 0 | BO50: 0 | BP50: 0 | BQ50: 0 | BR50: 0 | BS50: 0 | BT50: 0 | BU50: =BU49*$F$50 -> 0 | BV50: 0 | BW50: 0 | BX50: 0 | BY50: 0 | BZ50: 0 | CA50: 0 | CB50: 0 | CC50: 0 | CD50: 0 | CE50: 0 | CF50: 0 | CG50: 0 | CH50: 0 | CI50: 0 | CJ50: 0 | CK50: 0 | CL50: 0 | CM50: 0 | CN50: 0 | CO50: 0 | CP50: 0 | CQ50: 0 | CR50: 0 | CS50: 0 | CT50: 0 | CU50: 0 | CV50: 0 | CW50: 0 | CX50: 0 | CY50: 0 | CZ50: 0 | DA50: 0 | DB50: 0 | DC50: 0 | DD50: 0 | DE50: 0 | DF50: 0 | DG50: =DG49*$F$50 -> 0 | DH50: 0 | DI50: 0
A52: O&M Cost
B53: Annual or Monthly O&M in Percent | G53: =INDEX('Master Assumptions'!X:X,Template!E1) -> 0.005 | H53: =IF(H5,$G$53/12,$G$53)*H7 -> 0 | I53: 0 | J53: 0 | K53: 0 | L53: 0 | M53: 0 | N53: 0 | O53: 0 | P53: 0 | Q53: 0 | R53: 0 | S53: 0 | T53: 0 | U53: 0 | V53: 0 | W53: 0 | X53: 0 | Y53: 0.0004166666667 | Z53: 0.0004166666667 | AA53: 0.0004166666667 | AB53: 0.0004166666667 | AC53: 0.0004166666667 | AD53: 0.0004166666667 | AE53: 0.0004166666667 | AF53: 0.0004166666667 | AG53: 0.0004166666667 | AH53: 0.0004166666667 | AI53: 0.0004166666667 | AJ53: 0.0004166666667 | AK53: 0.0004166666667 | AL53: 0.0004166666667 | AM53: 0.0004166666667 | AN53: 0.0004166666667 | AO53: 0.0004166666667 | AP53: 0.0004166666667 | AQ53: 0.0004166666667 | AR53: 0.0004166666667 | AS53: 0.0004166666667 | AT53: 0.0004166666667 | AU53: 0.0004166666667 | AV53: 0.0004166666667 | AW53: 0.0004166666667 | AX53: 0.0004166666667 | AY53: 0.0004166666667 | AZ53: 0.0004166666667 | BA53: 0.0004166666667 | BB53: 0.0004166666667 | BC53: 0.0004166666667 | BD53: 0.0004166666667 | BE53: 0.0004166666667 | BF53: 0.0004166666667 | BG53: 0.0004166666667 | BH53: 0.0004166666667 | BI53: 0.0004166666667 | BJ53: 0.0004166666667 | BK53: 0.0004166666667 | BL53: 0.0004166666667 | BM53: 0.0004166666667 | BN53: 0.0004166666667 | BO53: 0.0004166666667 | BP53: 0.0004166666667 | BQ53: 0.0004166666667 | BR53: 0.0004166666667 | BS53: 0.0004166666667 | BT53: =IF(BT5,$G$53/12,$G$53)*BT7 -> 0.0004166666667 | BU53: 0.0004166666667 | BV53: 0.0004166666667 | BW53: 0.0004166666667 | BX53: 0.0004166666667 | BY53: 0.0004166666667 | BZ53: 0.0004166666667 | CA53: 0.0004166666667 | CB53: 0.0004166666667 | CC53: 0.0004166666667 | CD53: 0.0004166666667 | CE53: 0.0004166666667 | CF53: 0.0004166666667 | CG53: 0.0004166666667 | CH53: 0.0004166666667 | CI53: 0.0004166666667 | CJ53: 0.0004166666667 | CK53: 0.0004166666667 | CL53: 0.0004166666667 | CM53: 0.0004166666667 | CN53: 0.0004166666667 | CO53: 0.0004166666667 | CP53: 0.0004166666667 | CQ53: 0.0004166666667 | CR53: 0.0004166666667 | CS53: 0.0004166666667 | CT53: 0.0004166666667 | CU53: 0.0004166666667 | CV53: 0.0004166666667 | CW53: 0.0004166666667 | CX53: 0.0004166666667 | CY53: 0.0004166666667 | CZ53: 0.005 | DA53: 0.005 | DB53: 0.005 | DC53: 0.005 | DD53: 0.005 | DE53: 0.005 | DF53: 0.005 | DG53: =IF(DG5,$G$53/12,$G$53)*DG7 -> 0.005 | DH53: 0.005 | DI53: 0.005
B54: Annual Cost of O&M without Inflation | E54: EGP | H54: =H53*H46 -> 0 | I54: 0 | J54: 0 | K54: 0 | L54: 0 | M54: 0 | N54: 0 | O54: 0 | P54: 0 | Q54: 0 | R54: 0 | S54: 0 | T54: 0 | U54: 0 | V54: 0 | W54: 0 | X54: 0 | Y54: 6676.645833 | Z54: 6676.645833 | AA54: 6676.645833 | AB54: 6676.645833 | AC54: 6676.645833 | AD54: 6676.645833 | AE54: 6676.645833 | AF54: 6676.645833 | AG54: 6676.645833 | AH54: 6676.645833 | AI54: 6676.645833 | AJ54: 6676.645833 | AK54: 6676.645833 | AL54: 6676.645833 | AM54: 6676.645833 | AN54: =AN53*AN46 -> 6676.645833 | AO54: 6676.645833 | AP54: 6676.645833 | AQ54: 6676.645833 | AR54: 6676.645833 | AS54: 6676.645833 | AT54: 6676.645833 | AU54: 6676.645833 | AV54: 6676.645833 | AW54: 6676.645833 | AX54: 6676.645833 | AY54: 6676.645833 | AZ54: 6676.645833 | BA54: 6676.645833 | BB54: 6676.645833 | BC54: 6676.645833 | BD54: 6676.645833 | BE54: 6676.645833 | BF54: 6676.645833 | BG54: 6676.645833 | BH54: 6676.645833 | BI54: 6676.645833 | BJ54: 6676.645833 | BK54: 6676.645833 | BL54: 6676.645833 | BM54: 6676.645833 | BN54: 6676.645833 | BO54: 6676.645833 | BP54: 6676.645833 | BQ54: 6676.645833 | BR54: 6676.645833 | BS54: 6676.645833 | BT54: =BT53*BT46 -> 6676.645833 | BU54: 6676.645833 | BV54: 6676.645833 | BW54: 6676.645833 | BX54: 6676.645833 | BY54: 6676.645833 | BZ54: 6676.645833 | CA54: 6676.645833 | CB54: 6676.645833 | CC54: 6676.645833 | CD54: 6676.645833 | CE54: 6676.645833 | CF54: 6676.645833 | CG54: 6676.645833 | CH54: 6676.645833 | CI54: 6676.645833 | CJ54: 6676.645833 | CK54: 6676.645833 | CL54: 6676.645833 | CM54: 6676.645833 | CN54: 6676.645833 | CO54: 6676.645833 | CP54: 6676.645833 | CQ54: 6676.645833 | CR54: 6676.645833 | CS54: 6676.645833 | CT54: 6676.645833 | CU54: 6676.645833 | CV54: 6676.645833 | CW54: 6676.645833 | CX54: 6676.645833 | CY54: 6676.645833 | CZ54: =CZ53*CZ46 -> 80119.75 | DA54: 80119.75 | DB54: 80119.75 | DC54: 80119.75 | DD54: 80119.75 | DE54: 80119.75 | DF54: 80119.75 | DG54: =DG53*DG46 -> 80119.75 | DH54: 80119.75 | DI54: 80119.75
B55: O&M Inflation Index | E55: Index | G55: =Template!G38 -> 1 | H55: =Template!H38 -> 1.00643403 | I55: =Template!I38 -> 1.012909457 | J55: =Template!J38 -> 1.019426547 | K55: =Template!K38 -> 1.025985568 | L55: =Template!L38 -> 1.03258679 | M55: =Template!M38 -> 1.039230485 | N55: =Template!N38 -> 1.045916925 | O55: =Template!O38 -> 1.052646386 | P55: =Template!P38 -> 1.059419144 | Q55: =Template!Q38 -> 1.066235479 | R55: =Template!R38 -> 1.07309567 | S55: =Template!S38 -> 1.08 | T55: =Template!T38 -> 1.086948753 | U55: =Template!U38 -> 1.093942214 | V55: =Template!V38 -> 1.100980671 | W55: =Template!W38 -> 1.108064413 | X55: =Template!X38 -> 1.115193733 | Y55: =Template!Y38 -> 1.122368923 | Z55: =Template!Z38 -> 1.129590279 | AA55: =Template!AA38 -> 1.136858097 | AB55: =Template!AB38 -> 1.144172676 | AC55: =Template!AC38 -> 1.151534317 | AD55: =Template!AD38 -> 1.158943324 | AE55: =Template!AE38 -> 1.1664 | AF55: =Template!AF38 -> 1.173904653 | AG55: =Template!AG38 -> 1.181457591 | AH55: =Template!AH38 -> 1.189059124 | AI55: =Template!AI38 -> 1.196709567 | AJ55: =Template!AJ38 -> 1.204409232 | AK55: =Template!AK38 -> 1.212158437 | AL55: =Template!AL38 -> 1.219957501 | AM55: =Template!AM38 -> 1.227806744 | AN55: =Template!AN38 -> 1.23570649 | AO55: =Template!AO38 -> 1.243657063 | AP55: =Template!AP38 -> 1.25165879 | AQ55: =Template!AQ38 -> 1.259712 | AR55: =Template!AR38 -> 1.267817025 | AS55: =Template!AS38 -> 1.275974198 | AT55: =Template!AT38 -> 1.284183854 | AU55: =Template!AU38 -> 1.292446332 | AV55: =Template!AV38 -> 1.30076197 | AW55: =Template!AW38 -> 1.309131112 | AX55: =Template!AX38 -> 1.317554101 | AY55: =Template!AY38 -> 1.326031284 | AZ55: =Template!AZ38 -> 1.334563009 | BA55: =Template!BA38 -> 1.343149628 | BB55: =Template!BB38 -> 1.351791493 | BC55: =Template!BC38 -> 1.36048896 | BD55: =Template!BD38 -> 1.369242387 | BE55: =Template!BE38 -> 1.378052134 | BF55: =Template!BF38 -> 1.386918563 | BG55: =Template!BG38 -> 1.395842038 | BH55: =Template!BH38 -> 1.404822928 | BI55: =Template!BI38 -> 1.413861601 | BJ55: =Template!BJ38 -> 1.422958429 | BK55: =Template!BK38 -> 1.432113787 | BL55: =Template!BL38 -> 1.44132805 | BM55: =Template!BM38 -> 1.450601598 | BN55: =Template!BN38 -> 1.459934812 | BO55: =Template!BO38 -> 1.469328077 | BP55: =Template!BP38 -> 1.478781778 | BQ55: =Template!BQ38 -> 1.488296304 | BR55: =Template!BR38 -> 1.497872048 | BS55: =Template!BS38 -> 1.507509401 | BT55: =Template!BT38 -> 1.517208762 | BU55: =Template!BU38 -> 1.526970529 | BV55: =Template!BV38 -> 1.536795104 | BW55: =Template!BW38 -> 1.54668289 | BX55: =Template!BX38 -> 1.556634294 | BY55: =Template!BY38 -> 1.566649726 | BZ55: =Template!BZ38 -> 1.576729597 | CA55: =Template!CA38 -> 1.586874323 | CB55: =Template!CB38 -> 1.59708432 | CC55: =Template!CC38 -> 1.607360009 | CD55: =Template!CD38 -> 1.617701811 | CE55: =Template!CE38 -> 1.628110154 | CF55: =Template!CF38 -> 1.638585463 | CG55: =Template!CG38 -> 1.649128172 | CH55: =Template!CH38 -> 1.659738712 | CI55: =Template!CI38 -> 1.670417521 | CJ55: =Template!CJ38 -> 1.681165037 | CK55: =Template!CK38 -> 1.691981704 | CL55: =Template!CL38 -> 1.702867965 | CM55: =Template!CM38 -> 1.713824269 | CN55: =Template!CN38 -> 1.724851066 | CO55: =Template!CO38 -> 1.735948809 | CP55: =Template!CP38 -> 1.747117956 | CQ55: =Template!CQ38 -> 1.758358966 | CR55: =Template!CR38 -> 1.7696723 | CS55: =Template!CS38 -> 1.781058425 | CT55: =Template!CT38 -> 1.792517809 | CU55: =Template!CU38 -> 1.804050922 | CV55: =Template!CV38 -> 1.81565824 | CW55: =Template!CW38 -> 1.82734024 | CX55: =Template!CX38 -> 1.839097402 | CY55: =Template!CY38 -> 1.85093021 | CZ55: =Template!CZ38 -> 1.999004627 | DA55: =Template!DA38 -> 2.158924997 | DB55: =Template!DB38 -> 2.331638997 | DC55: =Template!DC38 -> 2.518170117 | DD55: =Template!DD38 -> 2.719623726 | DE55: =Template!DE38 -> 2.937193624 | DF55: =Template!DF38 -> 3.172169114 | DG55: =Template!DG38 -> 3.425942643 | DH55: =Template!DH38 -> 3.700018055 | DI55: =Template!DI38 -> 3.996019499
B56: O&M Cost with Inflation | E56: EGP | H56: =H54*H38 -> 0 | I56: =I54*I38 -> 0 | J56: 0 | K56: 0 | L56: 0 | M56: 0 | N56: 0 | O56: 0 | P56: 0 | Q56: 0 | R56: 0 | S56: 0 | T56: 0 | U56: 0 | V56: 0 | W56: 0 | X56: 0 | Y56: 7493.659795 | Z56: 7541.874228 | AA56: 7590.398874 | AB56: 7639.235729 | AC56: 7688.386801 | AD56: 7737.854114 | AE56: 7787.6397 | AF56: 7837.745608 | AG56: 7888.1739 | AH56: 7938.926648 | AI56: 7990.005941 | AJ56: 8041.41388 | AK56: 8093.152579 | AL56: 8145.224166 | AM56: 8197.630784 | AN56: 8250.374587 | AO56: 8303.457746 | AP56: 8356.882443 | AQ56: 8410.650876 | AR56: 8464.765257 | AS56: 8519.227812 | AT56: 8574.04078 | AU56: 8629.206416 | AV56: 8684.72699 | AW56: 8740.604785 | AX56: 8796.8421 | AY56: 8853.441246 | AZ56: 8910.404554 | BA56: 8967.734365 | BB56: 9025.433038 | BC56: 9083.502946 | BD56: 9141.946478 | BE56: 9200.766036 | BF56: 9259.964042 | BG56: 9319.54293 | BH56: 9379.505149 | BI56: 9439.853168 | BJ56: 9500.589468 | BK56: 9561.716546 | BL56: 9623.236918 | BM56: 9685.153114 | BN56: 9747.467681 | BO56: 9810.183182 | BP56: 9873.302196 | BQ56: 9936.827319 | BR56: 10000.76117 | BS56: 10065.10636 | BT56: 10129.86556 | BU56: =BU54*BU38 -> 10195.04142 | BV56: 10260.63662 | BW56: 10326.65387 | BX56: 10393.09587 | BY56: 10459.96536 | BZ56: 10527.2651 | CA56: 10594.99784 | CB56: 10663.16637 | CC56: 10731.7735 | CD56: 10800.82206 | CE56: 10870.31487 | CF56: 10940.25481 | CG56: 11010.64474 | CH56: 11081.48755 | CI56: 11152.78618 | CJ56: 11224.54354 | CK56: 11296.76259 | CL56: 11369.4463 | CM56: 11442.59766 | CN56: 11516.21968 | CO56: 11590.31539 | CP56: 11664.88782 | CQ56: 11739.94006 | CR56: 11815.47519 | CS56: 11891.49631 | CT56: 11968.00656 | CU56: 12045.00907 | CV56: 12122.50702 | CW56: 12200.5036 | CX56: 12279.00201 | CY56: 12358.00548 | CZ56: 160159.751 | DA56: 172972.5311 | DB56: 186810.3335 | DC56: 201755.1602 | DD56: 217895.573 | DE56: 235327.2189 | DF56: 254153.3964 | DG56: =DG54*DG38 -> 274485.6681 | DH56: 296444.5215 | DI56: 320160.0833
B57: O&M Cost in Local Currency | E57: =Template!E49 -> EGP | H57: =Template!H56 -> 0 | I57: =Template!I56 -> 0 | J57: =Template!J56 -> 0 | K57: =Template!K56 -> 0 | L57: =Template!L56 -> 0 | M57: =Template!M56 -> 0 | N57: =Template!N56 -> 0 | O57: =Template!O56 -> 0 | P57: =Template!P56 -> 0 | Q57: =Template!Q56 -> 0 | R57: =Template!R56 -> 0 | S57: =Template!S56 -> 0 | T57: =Template!T56 -> 0 | U57: =Template!U56 -> 0 | V57: =Template!V56 -> 0 | W57: =Template!W56 -> 0 | X57: =Template!X56 -> 0 | Y57: =Template!Y56 -> 7493.659795 | Z57: =Template!Z56 -> 7541.874228 | AA57: =Template!AA56 -> 7590.398874 | AB57: =Template!AB56 -> 7639.235729 | AC57: =Template!AC56 -> 7688.386801 | AD57: =Template!AD56 -> 7737.854114 | AE57: =Template!AE56 -> 7787.6397 | AF57: =Template!AF56 -> 7837.745608 | AG57: =Template!AG56 -> 7888.1739 | AH57: =Template!AH56 -> 7938.926648 | AI57: =Template!AI56 -> 7990.005941 | AJ57: =Template!AJ56 -> 8041.41388 | AK57: =Template!AK56 -> 8093.152579 | AL57: =Template!AL56 -> 8145.224166 | AM57: =Template!AM56 -> 8197.630784 | AN57: =Template!AN56 -> 8250.374587 | AO57: =Template!AO56 -> 8303.457746 | AP57: =Template!AP56 -> 8356.882443 | AQ57: =Template!AQ56 -> 8410.650876 | AR57: =Template!AR56 -> 8464.765257 | AS57: =Template!AS56 -> 8519.227812 | AT57: =Template!AT56 -> 8574.04078 | AU57: =Template!AU56 -> 8629.206416 | AV57: =Template!AV56 -> 8684.72699 | AW57: =Template!AW56 -> 8740.604785 | AX57: =Template!AX56 -> 8796.8421 | AY57: =Template!AY56 -> 8853.441246 | AZ57: =Template!AZ56 -> 8910.404554 | BA57: =Template!BA56 -> 8967.734365 | BB57: =Template!BB56 -> 9025.433038 | BC57: =Template!BC56 -> 9083.502946 | BD57: =Template!BD56 -> 9141.946478 | BE57: =Template!BE56 -> 9200.766036 | BF57: =Template!BF56 -> 9259.964042 | BG57: =Template!BG56 -> 9319.54293 | BH57: =Template!BH56 -> 9379.505149 | BI57: =Template!BI56 -> 9439.853168 | BJ57: =Template!BJ56 -> 9500.589468 | BK57: =Template!BK56 -> 9561.716546 | BL57: =Template!BL56 -> 9623.236918 | BM57: =Template!BM56 -> 9685.153114 | BN57: =Template!BN56 -> 9747.467681 | BO57: =Template!BO56 -> 9810.183182 | BP57: =Template!BP56 -> 9873.302196 | BQ57: =Template!BQ56 -> 9936.827319 | BR57: =Template!BR56 -> 10000.76117 | BS57: =Template!BS56 -> 10065.10636 | BT57: =Template!BT56 -> 10129.86556 | BU57: =Template!BU56 -> 10195.04142 | BV57: =Template!BV56 -> 10260.63662 | BW57: =Template!BW56 -> 10326.65387 | BX57: =Template!BX56 -> 10393.09587 | BY57: =Template!BY56 -> 10459.96536 | BZ57: =Template!BZ56 -> 10527.2651 | CA57: =Template!CA56 -> 10594.99784 | CB57: =Template!CB56 -> 10663.16637 | CC57: =Template!CC56 -> 10731.7735 | CD57: =Template!CD56 -> 10800.82206 | CE57: =Template!CE56 -> 10870.31487 | CF57: =Template!CF56 -> 10940.25481 | CG57: =Template!CG56 -> 11010.64474 | CH57: =Template!CH56 -> 11081.48755 | CI57: =Template!CI56 -> 11152.78618 | CJ57: =Template!CJ56 -> 11224.54354 | CK57: =Template!CK56 -> 11296.76259 | CL57: =Template!CL56 -> 11369.4463 | CM57: =Template!CM56 -> 11442.59766 | CN57: =Template!CN56 -> 11516.21968 | CO57: =Template!CO56 -> 11590.31539 | CP57: =Template!CP56 -> 11664.88782 | CQ57: =Template!CQ56 -> 11739.94006 | CR57: =Template!CR56 -> 11815.47519 | CS57: =Template!CS56 -> 11891.49631 | CT57: =Template!CT56 -> 11968.00656 | CU57: =Template!CU56 -> 12045.00907 | CV57: =Template!CV56 -> 12122.50702 | CW57: =Template!CW56 -> 12200.5036 | CX57: =Template!CX56 -> 12279.00201 | CY57: =Template!CY56 -> 12358.00548 | CZ57: =Template!CZ56 -> 160159.751 | DA57: =Template!DA56 -> 172972.5311 | DB57: =Template!DB56 -> 186810.3335 | DC57: =Template!DC56 -> 201755.1602 | DD57: =Template!DD56 -> 217895.573 | DE57: =Template!DE56 -> 235327.2189 | DF57: =Template!DF56 -> 254153.3964 | DG57: =Template!DG56 -> 274485.6681 | DH57: =Template!DH56 -> 296444.5215 | DI57: =Template!DI56 -> 320160.0833
B59: Cost of Inverter Replacement per kWp | E59: EGP/kWp | G59: =INDEX('Master Assumptions'!Y:Y,Template!E1)/12 -> 0 | H59: =$G$59*H6*H7 -> 0 | I59: 0 | J59: 0 | K59: 0 | L59: 0 | M59: 0 | N59: 0 | O59: 0 | P59: 0 | Q59: 0 | R59: 0 | S59: 0 | T59: 0 | U59: 0 | V59: 0 | W59: 0 | X59: 0 | Y59: 0 | Z59: 0 | AA59: 0 | AB59: 0 | AC59: 0 | AD59: 0 | AE59: 0 | AF59: 0 | AG59: 0 | AH59: 0 | AI59: 0 | AJ59: 0 | AK59: 0 | AL59: 0 | AM59: 0 | AN59: 0 | AO59: 0 | AP59: 0 | AQ59: 0 | AR59: 0 | AS59: 0 | AT59: 0 | AU59: 0 | AV59: 0 | AW59: 0 | AX59: 0 | AY59: 0 | AZ59: 0 | BA59: 0 | BB59: 0 | BC59: 0 | BD59: 0 | BE59: 0 | BF59: 0 | BG59: 0 | BH59: 0 | BI59: 0 | BJ59: 0 | BK59: 0 | BL59: 0 | BM59: 0 | BN59: 0 | BO59: 0 | BP59: 0 | BQ59: 0 | BR59: 0 | BS59: 0 | BT59: =$G$59*BT6*BT7 -> 0 | BU59: 0 | BV59: 0 | BW59: 0 | BX59: 0 | BY59: 0 | BZ59: 0 | CA59: 0 | CB59: 0 | CC59: 0 | CD59: 0 | CE59: 0 | CF59: 0 | CG59: 0 | CH59: 0 | CI59: 0 | CJ59: 0 | CK59: 0 | CL59: 0 | CM59: 0 | CN59: 0 | CO59: 0 | CP59: 0 | CQ59: 0 | CR59: 0 | CS59: 0 | CT59: 0 | CU59: 0 | CV59: 0 | CW59: 0 | CX59: 0 | CY59: 0 | CZ59: 0 | DA59: 0 | DB59: 0 | DC59: 0 | DD59: 0 | DE59: 0 | DF59: 0 | DG59: =$G$59*DG6*DG7 -> 0 | DH59: 0 | DI59: 0
B60: Total Cost of Inverter Replacement | E60: EGP | H60: =H59*H13 -> 0 | I60: 0 | J60: 0 | K60: 0 | L60: 0 | M60: 0 | N60: 0 | O60: 0 | P60: 0 | Q60: 0 | R60: 0 | S60: 0 | T60: 0 | U60: 0 | V60: 0 | W60: 0 | X60: 0 | Y60: 0 | Z60: 0 | AA60: 0 | AB60: 0 | AC60: 0 | AD60: 0 | AE60: 0 | AF60: 0 | AG60: 0 | AH60: 0 | AI60: 0 | AJ60: 0 | AK60: 0 | AL60: 0 | AM60: 0 | AN60: 0 | AO60: 0 | AP60: 0 | AQ60: 0 | AR60: 0 | AS60: 0 | AT60: 0 | AU60: 0 | AV60: 0 | AW60: 0 | AX60: 0 | AY60: 0 | AZ60: 0 | BA60: 0 | BB60: 0 | BC60: 0 | BD60: 0 | BE60: 0 | BF60: 0 | BG60: 0 | BH60: 0 | BI60: 0 | BJ60: 0 | BK60: 0 | BL60: 0 | BM60: 0 | BN60: 0 | BO60: 0 | BP60: 0 | BQ60: 0 | BR60: 0 | BS60: 0 | BT60: =BT59*BT13 -> 0 | BU60: 0 | BV60: 0 | BW60: 0 | BX60: 0 | BY60: 0 | BZ60: 0 | CA60: 0 | CB60: 0 | CC60: 0 | CD60: 0 | CE60: 0 | CF60: 0 | CG60: 0 | CH60: 0 | CI60: 0 | CJ60: 0 | CK60: 0 | CL60: 0 | CM60: 0 | CN60: 0 | CO60: 0 | CP60: 0 | CQ60: 0 | CR60: 0 | CS60: 0 | CT60: 0 | CU60: 0 | CV60: 0 | CW60: 0 | CX60: 0 | CY60: 0 | CZ60: 0 | DA60: 0 | DB60: 0 | DC60: 0 | DD60: 0 | DE60: 0 | DF60: 0 | DG60: =DG59*DG13 -> 0 | DH60: 0 | DI60: 0
B61: Total Cost of Inverter Replacement in Local Currency | E61: =Template!E57 -> EGP | F61: LC | H61: =Template!H60 -> 0 | I61: =Template!I60 -> 0 | J61: =Template!J60 -> 0 | K61: =Template!K60 -> 0 | L61: =Template!L60 -> 0 | M61: =Template!M60 -> 0 | N61: =Template!N60 -> 0 | O61: =Template!O60 -> 0 | P61: =Template!P60 -> 0 | Q61: =Template!Q60 -> 0 | R61: =Template!R60 -> 0 | S61: =Template!S60 -> 0 | T61: =Template!T60 -> 0 | U61: =Template!U60 -> 0 | V61: =Template!V60 -> 0 | W61: =Template!W60 -> 0 | X61: =Template!X60 -> 0 | Y61: =Template!Y60 -> 0 | Z61: =Template!Z60 -> 0 | AA61: =Template!AA60 -> 0 | AB61: =Template!AB60 -> 0 | AC61: =Template!AC60 -> 0 | AD61: =Template!AD60 -> 0 | AE61: =Template!AE60 -> 0 | AF61: =Template!AF60 -> 0 | AG61: =Template!AG60 -> 0 | AH61: =Template!AH60 -> 0 | AI61: =Template!AI60 -> 0 | AJ61: =Template!AJ60 -> 0 | AK61: =Template!AK60 -> 0 | AL61: =Template!AL60 -> 0 | AM61: =Template!AM60 -> 0 | AN61: =Template!AN60 -> 0 | AO61: =Template!AO60 -> 0 | AP61: =Template!AP60 -> 0 | AQ61: =Template!AQ60 -> 0 | AR61: =Template!AR60 -> 0 | AS61: =Template!AS60 -> 0 | AT61: =Template!AT60 -> 0 | AU61: =Template!AU60 -> 0 | AV61: =Template!AV60 -> 0 | AW61: =Template!AW60 -> 0 | AX61: =Template!AX60 -> 0 | AY61: =Template!AY60 -> 0 | AZ61: =Template!AZ60 -> 0 | BA61: =Template!BA60 -> 0 | BB61: =Template!BB60 -> 0 | BC61: =Template!BC60 -> 0 | BD61: =Template!BD60 -> 0 | BE61: =Template!BE60 -> 0 | BF61: =Template!BF60 -> 0 | BG61: =Template!BG60 -> 0 | BH61: =Template!BH60 -> 0 | BI61: =Template!BI60 -> 0 | BJ61: =Template!BJ60 -> 0 | BK61: =Template!BK60 -> 0 | BL61: =Template!BL60 -> 0 | BM61: =Template!BM60 -> 0 | BN61: =Template!BN60 -> 0 | BO61: =Template!BO60 -> 0 | BP61: =Template!BP60 -> 0 | BQ61: =Template!BQ60 -> 0 | BR61: =Template!BR60 -> 0 | BS61: =Template!BS60 -> 0 | BT61: =Template!BT60 -> 0 | BU61: =Template!BU60 -> 0 | BV61: =Template!BV60 -> 0 | BW61: =Template!BW60 -> 0 | BX61: =Template!BX60 -> 0 | BY61: =Template!BY60 -> 0 | BZ61: =Template!BZ60 -> 0 | CA61: =Template!CA60 -> 0 | CB61: =Template!CB60 -> 0 | CC61: =Template!CC60 -> 0 | CD61: =Template!CD60 -> 0 | CE61: =Template!CE60 -> 0 | CF61: =Template!CF60 -> 0 | CG61: =Template!CG60 -> 0 | CH61: =Template!CH60 -> 0 | CI61: =Template!CI60 -> 0 | CJ61: =Template!CJ60 -> 0 | CK61: =Template!CK60 -> 0 | CL61: =Template!CL60 -> 0 | CM61: =Template!CM60 -> 0 | CN61: =Template!CN60 -> 0 | CO61: =Template!CO60 -> 0 | CP61: =Template!CP60 -> 0 | CQ61: =Template!CQ60 -> 0 | CR61: =Template!CR60 -> 0 | CS61: =Template!CS60 -> 0 | CT61: =Template!CT60 -> 0 | CU61: =Template!CU60 -> 0 | CV61: =Template!CV60 -> 0 | CW61: =Template!CW60 -> 0 | CX61: =Template!CX60 -> 0 | CY61: =Template!CY60 -> 0 | CZ61: =Template!CZ60 -> 0 | DA61: =Template!DA60 -> 0 | DB61: =Template!DB60 -> 0 | DC61: =Template!DC60 -> 0 | DD61: =Template!DD60 -> 0 | DE61: =Template!DE60 -> 0 | DF61: =Template!DF60 -> 0 | DG61: =Template!DG60 -> 0 | DH61: =Template!DH60 -> 0 | DI61: =Template!DI60 -> 0
B63: Total O&M Cost | E63: EUR | H63: =H60+H56 -> 0 | I63: 0 | J63: 0 | K63: 0 | L63: 0 | M63: 0 | N63: 0 | O63: 0 | P63: 0 | Q63: 0 | R63: 0 | S63: 0 | T63: 0 | U63: 0 | V63: 0 | W63: 0 | X63: 0 | Y63: 7493.659795 | Z63: 7541.874228 | AA63: 7590.398874 | AB63: 7639.235729 | AC63: 7688.386801 | AD63: 7737.854114 | AE63: 7787.6397 | AF63: 7837.745608 | AG63: 7888.1739 | AH63: 7938.926648 | AI63: 7990.005941 | AJ63: 8041.41388 | AK63: 8093.152579 | AL63: 8145.224166 | AM63: 8197.630784 | AN63: 8250.374587 | AO63: 8303.457746 | AP63: 8356.882443 | AQ63: 8410.650876 | AR63: 8464.765257 | AS63: 8519.227812 | AT63: 8574.04078 | AU63: 8629.206416 | AV63: 8684.72699 | AW63: 8740.604785 | AX63: 8796.8421 | AY63: 8853.441246 | AZ63: 8910.404554 | BA63: 8967.734365 | BB63: 9025.433038 | BC63: 9083.502946 | BD63: 9141.946478 | BE63: 9200.766036 | BF63: 9259.964042 | BG63: 9319.54293 | BH63: 9379.505149 | BI63: 9439.853168 | BJ63: 9500.589468 | BK63: 9561.716546 | BL63: 9623.236918 | BM63: 9685.153114 | BN63: 9747.467681 | BO63: 9810.183182 | BP63: 9873.302196 | BQ63: 9936.827319 | BR63: 10000.76117 | BS63: 10065.10636 | BT63: =BT60+BT56 -> 10129.86556 | BU63: 10195.04142 | BV63: 10260.63662 | BW63: 10326.65387 | BX63: 10393.09587 | BY63: 10459.96536 | BZ63: 10527.2651 | CA63: 10594.99784 | CB63: 10663.16637 | CC63: 10731.7735 | CD63: 10800.82206 | CE63: 10870.31487 | CF63: 10940.25481 | CG63: 11010.64474 | CH63: 11081.48755 | CI63: 11152.78618 | CJ63: 11224.54354 | CK63: 11296.76259 | CL63: 11369.4463 | CM63: 11442.59766 | CN63: 11516.21968 | CO63: 11590.31539 | CP63: 11664.88782 | CQ63: 11739.94006 | CR63: 11815.47519 | CS63: 11891.49631 | CT63: 11968.00656 | CU63: 12045.00907 | CV63: 12122.50702 | CW63: 12200.5036 | CX63: 12279.00201 | CY63: 12358.00548 | CZ63: 160159.751 | DA63: 172972.5311 | DB63: 186810.3335 | DC63: 201755.1602 | DD63: 217895.573 | DE63: 235327.2189 | DF63: 254153.3964 | DG63: =DG60+DG56 -> 274485.6681 | DH63: 296444.5215 | DI63: 320160.0833
B64: Total O&M in Local Currency | E64: =Template!E61 -> EGP | F64: LC | H64: =H61+H57 -> 0 | I64: 0 | J64: 0 | K64: 0 | L64: 0 | M64: 0 | N64: 0 | O64: 0 | P64: 0 | Q64: 0 | R64: 0 | S64: 0 | T64: 0 | U64: 0 | V64: 0 | W64: 0 | X64: 0 | Y64: 7493.659795 | Z64: 7541.874228 | AA64: 7590.398874 | AB64: 7639.235729 | AC64: 7688.386801 | AD64: 7737.854114 | AE64: 7787.6397 | AF64: 7837.745608 | AG64: 7888.1739 | AH64: 7938.926648 | AI64: 7990.005941 | AJ64: 8041.41388 | AK64: 8093.152579 | AL64: 8145.224166 | AM64: 8197.630784 | AN64: 8250.374587 | AO64: 8303.457746 | AP64: 8356.882443 | AQ64: 8410.650876 | AR64: 8464.765257 | AS64: 8519.227812 | AT64: 8574.04078 | AU64: 8629.206416 | AV64: 8684.72699 | AW64: 8740.604785 | AX64: 8796.8421 | AY64: 8853.441246 | AZ64: 8910.404554 | BA64: 8967.734365 | BB64: 9025.433038 | BC64: 9083.502946 | BD64: 9141.946478 | BE64: 9200.766036 | BF64: 9259.964042 | BG64: 9319.54293 | BH64: 9379.505149 | BI64: 9439.853168 | BJ64: 9500.589468 | BK64: 9561.716546 | BL64: 9623.236918 | BM64: 9685.153114 | BN64: 9747.467681 | BO64: 9810.183182 | BP64: 9873.302196 | BQ64: 9936.827319 | BR64: 10000.76117 | BS64: 10065.10636 | BT64: =BT61+BT57 -> 10129.86556 | BU64: 10195.04142 | BV64: 10260.63662 | BW64: 10326.65387 | BX64: 10393.09587 | BY64: 10459.96536 | BZ64: 10527.2651 | CA64: 10594.99784 | CB64: 10663.16637 | CC64: 10731.7735 | CD64: 10800.82206 | CE64: 10870.31487 | CF64: 10940.25481 | CG64: 11010.64474 | CH64: 11081.48755 | CI64: 11152.78618 | CJ64: 11224.54354 | CK64: 11296.76259 | CL64: 11369.4463 | CM64: 11442.59766 | CN64: 11516.21968 | CO64: 11590.31539 | CP64: 11664.88782 | CQ64: 11739.94006 | CR64: 11815.47519 | CS64: 11891.49631 | CT64: 11968.00656 | CU64: 12045.00907 | CV64: 12122.50702 | CW64: 12200.5036 | CX64: 12279.00201 | CY64: 12358.00548 | CZ64: 160159.751 | DA64: 172972.5311 | DB64: 186810.3335 | DC64: 201755.1602 | DD64: 217895.573 | DE64: 235327.2189 | DF64: 254153.3964 | DG64: =DG61+DG57 -> 274485.6681 | DH64: 296444.5215 | DI64: 320160.0833
A66: Tariff and Savings to Consumer
B67: Tariff without Infaltion | E67: Devise locale/kWh | F67: =INDEX('Master Assumptions'!T:T,Template!E1) -> 1.05 | H67: =$F$67 -> 1.05 | I67: =$F$67 -> 1.05 | J67: 1.05 | K67: 1.05 | L67: 1.05 | M67: 1.05 | N67: 1.05 | O67: 1.05 | P67: 1.05 | Q67: 1.05 | R67: 1.05 | S67: 1.05 | T67: 1.05 | U67: 1.05 | V67: 1.05 | W67: 1.05 | X67: 1.05 | Y67: 1.05 | Z67: 1.05 | AA67: 1.05 | AB67: 1.05 | AC67: 1.05 | AD67: 1.05 | AE67: 1.05 | AF67: 1.05 | AG67: 1.05 | AH67: 1.05 | AI67: 1.05 | AJ67: 1.05 | AK67: 1.05 | AL67: 1.05 | AM67: 1.05 | AN67: 1.05 | AO67: 1.05 | AP67: 1.05 | AQ67: 1.05 | AR67: 1.05 | AS67: 1.05 | AT67: 1.05 | AU67: 1.05 | AV67: 1.05 | AW67: 1.05 | AX67: 1.05 | AY67: 1.05 | AZ67: 1.05 | BA67: 1.05 | BB67: 1.05 | BC67: 1.05 | BD67: 1.05 | BE67: 1.05 | BF67: 1.05 | BG67: 1.05 | BH67: 1.05 | BI67: 1.05 | BJ67: 1.05 | BK67: 1.05 | BL67: 1.05 | BM67: 1.05 | BN67: 1.05 | BO67: 1.05 | BP67: 1.05 | BQ67: 1.05 | BR67: 1.05 | BS67: 1.05 | BT67: 1.05 | BU67: =$F$67 -> 1.05 | BV67: 1.05 | BW67: 1.05 | BX67: 1.05 | BY67: 1.05 | BZ67: 1.05 | CA67: 1.05 | CB67: 1.05 | CC67: 1.05 | CD67: 1.05 | CE67: 1.05 | CF67: 1.05 | CG67: 1.05 | CH67: 1.05 | CI67: 1.05 | CJ67: 1.05 | CK67: 1.05 | CL67: 1.05 | CM67: 1.05 | CN67: 1.05 | CO67: 1.05 | CP67: 1.05 | CQ67: 1.05 | CR67: 1.05 | CS67: 1.05 | CT67: 1.05 | CU67: 1.05 | CV67: 1.05 | CW67: 1.05 | CX67: 1.05 | CY67: 1.05 | CZ67: 1.05 | DA67: 1.05 | DB67: 1.05 | DC67: 1.05 | DD67: 1.05 | DE67: 1.05 | DF67: 1.05 | DG67: 1.05 | DH67: 1.05 | DI67: 1.05
C68: Inflation Rate in Tariff - Annual | E68: =Template!E36 -> EGP | F68: =F36+1 -> 11 | H68: =INDEX('Economic Assumptions'!$1:$1048576,Template!$F$68,Template!H35) -> 0.16 | I68: =INDEX('Economic Assumptions'!$1:$1048576,Template!$F$68,Template!I35) -> 0.16 | J68: =INDEX('Economic Assumptions'!$1:$1048576,Template!$F$68,Template!J35) -> 0.16 | K68: =INDEX('Economic Assumptions'!$1:$1048576,Template!$F$68,Template!K35) -> 0.16 | L68: =INDEX('Economic Assumptions'!$1:$1048576,Template!$F$68,Template!L35) -> 0.16 | M68: =INDEX('Economic Assumptions'!$1:$1048576,Template!$F$68,Template!M35) -> 0.16 | N68: =INDEX('Economic Assumptions'!$1:$1048576,Template!$F$68,Template!N35) -> 0.16 | O68: =INDEX('Economic Assumptions'!$1:$1048576,Template!$F$68,Template!O35) -> 0.16 | P68: =INDEX('Economic Assumptions'!$1:$1048576,Template!$F$68,Template!P35) -> 0.16 | Q68: =INDEX('Economic Assumptions'!$1:$1048576,Template!$F$68,Template!Q35) -> 0.16 | R68: =INDEX('Economic Assumptions'!$1:$1048576,Template!$F$68,Template!R35) -> 0.16 | S68: =INDEX('Economic Assumptions'!$1:$1048576,Template!$F$68,Template!S35) -> 0.16 | T68: =INDEX('Economic Assumptions'!$1:$1048576,Template!$F$68,Template!T35) -> 0.16 | U68: =INDEX('Economic Assumptions'!$1:$1048576,Template!$F$68,Template!U35) -> 0.16 | V68: =INDEX('Economic Assumptions'!$1:$1048576,Template!$F$68,Template!V35) -> 0.16 | W68: =INDEX('Economic Assumptions'!$1:$1048576,Template!$F$68,Template!W35) -> 0.16 | X68: =INDEX('Economic Assumptions'!$1:$1048576,Template!$F$68,Template!X35) -> 0.16 | Y68: =INDEX('Economic Assumptions'!$1:$1048576,Template!$F$68,Template!Y35) -> 0.16 | Z68: =INDEX('Economic Assumptions'!$1:$1048576,Template!$F$68,Template!Z35) -> 0.16 | AA68: =INDEX('Economic Assumptions'!$1:$1048576,Template!$F$68,Template!AA35) -> 0.16 | AB68: =INDEX('Economic Assumptions'!$1:$1048576,Template!$F$68,Template!AB35) -> 0.16 | AC68: =INDEX('Economic Assumptions'!$1:$1048576,Template!$F$68,Template!AC35) -> 0.16 | AD68: =INDEX('Economic Assumptions'!$1:$1048576,Template!$F$68,Template!AD35) -> 0.16 | AE68: =INDEX('Economic Assumptions'!$1:$1048576,Template!$F$68,Template!AE35) -> 0.16 | AF68: =INDEX('Economic Assumptions'!$1:$1048576,Template!$F$68,Template!AF35) -> 0.16 | AG68: =INDEX('Economic Assumptions'!$1:$1048576,Template!$F$68,Template!AG35) -> 0.16 | AH68: =INDEX('Economic Assumptions'!$1:$1048576,Template!$F$68,Template!AH35) -> 0.16 | AI68: =INDEX('Economic Assumptions'!$1:$1048576,Template!$F$68,Template!AI35) -> 0.16 | AJ68: =INDEX('Economic Assumptions'!$1:$1048576,Template!$F$68,Template!AJ35) -> 0.16 | AK68: =INDEX('Economic Assumptions'!$1:$1048576,Template!$F$68,Template!AK35) -> 0.16 | AL68: =INDEX('Economic Assumptions'!$1:$1048576,Template!$F$68,Template!AL35) -> 0.16 | AM68: =INDEX('Economic Assumptions'!$1:$1048576,Template!$F$68,Template!AM35) -> 0.16 | AN68: =INDEX('Economic Assumptions'!$1:$1048576,Template!$F$68,Template!AN35) -> 0.16 | AO68: =INDEX('Economic Assumptions'!$1:$1048576,Template!$F$68,Template!AO35) -> 0.16 | AP68: =INDEX('Economic Assumptions'!$1:$1048576,Template!$F$68,Template!AP35) -> 0.16 | AQ68: =INDEX('Economic Assumptions'!$1:$1048576,Template!$F$68,Template!AQ35) -> 0.16 | AR68: =INDEX('Economic Assumptions'!$1:$1048576,Template!$F$68,Template!AR35) -> 0.09 | AS68: =INDEX('Economic Assumptions'!$1:$1048576,Template!$F$68,Template!AS35) -> 0.09 | AT68: =INDEX('Economic Assumptions'!$1:$1048576,Template!$F$68,Template!AT35) -> 0.09 | AU68: =INDEX('Economic Assumptions'!$1:$1048576,Template!$F$68,Template!AU35) -> 0.09 | AV68: =INDEX('Economic Assumptions'!$1:$1048576,Template!$F$68,Template!AV35) -> 0.09 | AW68: =INDEX('Economic Assumptions'!$1:$1048576,Template!$F$68,Template!AW35) -> 0.09 | AX68: =INDEX('Economic Assumptions'!$1:$1048576,Template!$F$68,Template!AX35) -> 0.09 | AY68: =INDEX('Economic Assumptions'!$1:$1048576,Template!$F$68,Template!AY35) -> 0.09 | AZ68: =INDEX('Economic Assumptions'!$1:$1048576,Template!$F$68,Template!AZ35) -> 0.09 | BA68: =INDEX('Economic Assumptions'!$1:$1048576,Template!$F$68,Template!BA35) -> 0.09 | BB68: =INDEX('Economic Assumptions'!$1:$1048576,Template!$F$68,Template!BB35) -> 0.09 | BC68: =INDEX('Economic Assumptions'!$1:$1048576,Template!$F$68,Template!BC35) -> 0.09 | BD68: =INDEX('Economic Assumptions'!$1:$1048576,Template!$F$68,Template!BD35) -> 0.03 | BE68: =INDEX('Economic Assumptions'!$1:$1048576,Template!$F$68,Template!BE35) -> 0.03 | BF68: =INDEX('Economic Assumptions'!$1:$1048576,Template!$F$68,Template!BF35) -> 0.03 | BG68: =INDEX('Economic Assumptions'!$1:$1048576,Template!$F$68,Template!BG35) -> 0.03 | BH68: =INDEX('Economic Assumptions'!$1:$1048576,Template!$F$68,Template!BH35) -> 0.03 | BI68: =INDEX('Economic Assumptions'!$1:$1048576,Template!$F$68,Template!BI35) -> 0.03 | BJ68: =INDEX('Economic Assumptions'!$1:$1048576,Template!$F$68,Template!BJ35) -> 0.03 | BK68: =INDEX('Economic Assumptions'!$1:$1048576,Template!$F$68,Template!BK35) -> 0.03 | BL68: =INDEX('Economic Assumptions'!$1:$1048576,Template!$F$68,Template!BL35) -> 0.03 | BM68: =INDEX('Economic Assumptions'!$1:$1048576,Template!$F$68,Template!BM35) -> 0.03 | BN68: =INDEX('Economic Assumptions'!$1:$1048576,Template!$F$68,Template!BN35) -> 0.03 | BO68: =INDEX('Economic Assumptions'!$1:$1048576,Template!$F$68,Template!BO35) -> 0.03 | BP68: =INDEX('Economic Assumptions'!$1:$1048576,Template!$F$68,Template!BP35) -> 0.03 | BQ68: =INDEX('Economic Assumptions'!$1:$1048576,Template!$F$68,Template!BQ35) -> 0.03 | BR68: =INDEX('Economic Assumptions'!$1:$1048576,Template!$F$68,Template!BR35) -> 0.03 | BS68: =INDEX('Economic Assumptions'!$1:$1048576,Template!$F$68,Template!BS35) -> 0.03 | BT68: =INDEX('Economic Assumptions'!$1:$1048576,Template!$F$68,Template!BT35) -> 0.03 | BU68: =INDEX('Economic Assumptions'!$1:$1048576,Template!$F$68,Template!BU35) -> 0.03 | BV68: =INDEX('Economic Assumptions'!$1:$1048576,Template!$F$68,Template!BV35) -> 0.03 | BW68: =INDEX('Economic Assumptions'!$1:$1048576,Template!$F$68,Template!BW35) -> 0.03 | BX68: =INDEX('Economic Assumptions'!$1:$1048576,Template!$F$68,Template!BX35) -> 0.03 | BY68: =INDEX('Economic Assumptions'!$1:$1048576,Template!$F$68,Template!BY35) -> 0.03 | BZ68: =INDEX('Economic Assumptions'!$1:$1048576,Template!$F$68,Template!BZ35) -> 0.03 | CA68: =INDEX('Economic Assumptions'!$1:$1048576,Template!$F$68,Template!CA35) -> 0.03 | CB68: =INDEX('Economic Assumptions'!$1:$1048576,Template!$F$68,Template!CB35) -> 0.03 | CC68: =INDEX('Economic Assumptions'!$1:$1048576,Template!$F$68,Template!CC35) -> 0.03 | CD68: =INDEX('Economic Assumptions'!$1:$1048576,Template!$F$68,Template!CD35) -> 0.03 | CE68: =INDEX('Economic Assumptions'!$1:$1048576,Template!$F$68,Template!CE35) -> 0.03 | CF68: =INDEX('Economic Assumptions'!$1:$1048576,Template!$F$68,Template!CF35) -> 0.03 | CG68: =INDEX('Economic Assumptions'!$1:$1048576,Template!$F$68,Template!CG35) -> 0.03 | CH68: =INDEX('Economic Assumptions'!$1:$1048576,Template!$F$68,Template!CH35) -> 0.03 | CI68: =INDEX('Economic Assumptions'!$1:$1048576,Template!$F$68,Template!CI35) -> 0.03 | CJ68: =INDEX('Economic Assumptions'!$1:$1048576,Template!$F$68,Template!CJ35) -> 0.03 | CK68: =INDEX('Economic Assumptions'!$1:$1048576,Template!$F$68,Template!CK35) -> 0.03 | CL68: =INDEX('Economic Assumptions'!$1:$1048576,Template!$F$68,Template!CL35) -> 0.03 | CM68: =INDEX('Economic Assumptions'!$1:$1048576,Template!$F$68,Template!CM35) -> 0.03 | CN68: =INDEX('Economic Assumptions'!$1:$1048576,Template!$F$68,Template!CN35) -> 0.03 | CO68: =INDEX('Economic Assumptions'!$1:$1048576,Template!$F$68,Template!CO35) -> 0.03 | CP68: =INDEX('Economic Assumptions'!$1:$1048576,Template!$F$68,Template!CP35) -> 0.03 | CQ68: =INDEX('Economic Assumptions'!$1:$1048576,Template!$F$68,Template!CQ35) -> 0.03 | CR68: =INDEX('Economic Assumptions'!$1:$1048576,Template!$F$68,Template!CR35) -> 0.03 | CS68: =INDEX('Economic Assumptions'!$1:$1048576,Template!$F$68,Template!CS35) -> 0.03 | CT68: =INDEX('Economic Assumptions'!$1:$1048576,Template!$F$68,Template!CT35) -> 0.03 | CU68: =INDEX('Economic Assumptions'!$1:$1048576,Template!$F$68,Template!CU35) -> 0.03 | CV68: =INDEX('Economic Assumptions'!$1:$1048576,Template!$F$68,Template!CV35) -> 0.03 | CW68: =INDEX('Economic Assumptions'!$1:$1048576,Template!$F$68,Template!CW35) -> 0.03 | CX68: =INDEX('Economic Assumptions'!$1:$1048576,Template!$F$68,Template!CX35) -> 0.03 | CY68: =INDEX('Economic Assumptions'!$1:$1048576,Template!$F$68,Template!CY35) -> 0.03 | CZ68: =INDEX('Economic Assumptions'!$1:$1048576,Template!$F$68,Template!CZ35) -> 0.03 | DA68: =INDEX('Economic Assumptions'!$1:$1048576,Template!$F$68,Template!DA35) -> 0.03 | DB68: =INDEX('Economic Assumptions'!$1:$1048576,Template!$F$68,Template!DB35) -> 0.03 | DC68: =INDEX('Economic Assumptions'!$1:$1048576,Template!$F$68,Template!DC35) -> 0.03 | DD68: =INDEX('Economic Assumptions'!$1:$1048576,Template!$F$68,Template!DD35) -> 0.03 | DE68: =INDEX('Economic Assumptions'!$1:$1048576,Template!$F$68,Template!DE35) -> 0.03 | DF68: =INDEX('Economic Assumptions'!$1:$1048576,Template!$F$68,Template!DF35) -> 0.03 | DG68: =INDEX('Economic Assumptions'!$1:$1048576,Template!$F$68,Template!DG35) -> 0.03 | DH68: =INDEX('Economic Assumptions'!$1:$1048576,Template!$F$68,Template!DH35) -> 0.03 | DI68: =INDEX('Economic Assumptions'!$1:$1048576,Template!$F$68,Template!DI35) -> 0.03
C69: Periodic Tariff Inflation in Months or Years | H69: =(H68+1)^(H6/12)-1 -> 0.01244513792 | I69: 0.01244513792 | J69: 0.01244513792 | K69: 0.01244513792 | L69: 0.01244513792 | M69: 0.01244513792 | N69: 0.01244513792 | O69: 0.01244513792 | P69: 0.01244513792 | Q69: 0.01244513792 | R69: 0.01244513792 | S69: 0.01244513792 | T69: 0.01244513792 | U69: 0.01244513792 | V69: 0.01244513792 | W69: 0.01244513792 | X69: 0.01244513792 | Y69: 0.01244513792 | Z69: 0.01244513792 | AA69: 0.01244513792 | AB69: 0.01244513792 | AC69: 0.01244513792 | AD69: 0.01244513792 | AE69: 0.01244513792 | AF69: 0.01244513792 | AG69: 0.01244513792 | AH69: 0.01244513792 | AI69: 0.01244513792 | AJ69: 0.01244513792 | AK69: 0.01244513792 | AL69: 0.01244513792 | AM69: 0.01244513792 | AN69: 0.01244513792 | AO69: 0.01244513792 | AP69: 0.01244513792 | AQ69: 0.01244513792 | AR69: 0.007207323316 | AS69: 0.007207323316 | AT69: 0.007207323316 | AU69: 0.007207323316 | AV69: 0.007207323316 | AW69: 0.007207323316 | AX69: 0.007207323316 | AY69: 0.007207323316 | AZ69: 0.007207323316 | BA69: 0.007207323316 | BB69: 0.007207323316 | BC69: 0.007207323316 | BD69: 0.002466269772 | BE69: 0.002466269772 | BF69: 0.002466269772 | BG69: 0.002466269772 | BH69: 0.002466269772 | BI69: 0.002466269772 | BJ69: 0.002466269772 | BK69: 0.002466269772 | BL69: 0.002466269772 | BM69: 0.002466269772 | BN69: 0.002466269772 | BO69: 0.002466269772 | BP69: 0.002466269772 | BQ69: 0.002466269772 | BR69: 0.002466269772 | BS69: 0.002466269772 | BT69: =(BT68+1)^(BT6/12)-1 -> 0.002466269772 | BU69: 0.002466269772 | BV69: 0.002466269772 | BW69: 0.002466269772 | BX69: 0.002466269772 | BY69: 0.002466269772 | BZ69: 0.002466269772 | CA69: 0.002466269772 | CB69: 0.002466269772 | CC69: 0.002466269772 | CD69: 0.002466269772 | CE69: 0.002466269772 | CF69: 0.002466269772 | CG69: 0.002466269772 | CH69: 0.002466269772 | CI69: 0.002466269772 | CJ69: 0.002466269772 | CK69: 0.002466269772 | CL69: 0.002466269772 | CM69: 0.002466269772 | CN69: 0.002466269772 | CO69: 0.002466269772 | CP69: 0.002466269772 | CQ69: 0.002466269772 | CR69: 0.002466269772 | CS69: 0.002466269772 | CT69: 0.002466269772 | CU69: 0.002466269772 | CV69: 0.002466269772 | CW69: 0.002466269772 | CX69: 0.002466269772 | CY69: 0.002466269772 | CZ69: 0.03 | DA69: 0.03 | DB69: 0.03 | DC69: 0.03 | DD69: 0.03 | DE69: 0.03 | DF69: 0.03 | DG69: =(DG68+1)^(DG6/12)-1 -> 0.03 | DH69: 0.03 | DI69: 0.03
C70: Inflation Period | F70: =Template!F72 -> 7 | H70: =OR(MONTH(H3)=$F$70,H6=12) -> FALSE | I70: =OR(MONTH(I3)=$F$70,I6=12) -> FALSE | J70: FALSE | K70: FALSE | L70: FALSE | M70: FALSE | N70: TRUE | O70: FALSE | P70: FALSE | Q70: FALSE | R70: FALSE | S70: FALSE | T70: FALSE | U70: FALSE | V70: FALSE | W70: FALSE | X70: FALSE | Y70: FALSE | Z70: TRUE | AA70: FALSE | AB70: FALSE | AC70: FALSE | AD70: FALSE | AE70: FALSE | AF70: FALSE | AG70: FALSE | AH70: FALSE | AI70: FALSE | AJ70: FALSE | AK70: FALSE | AL70: TRUE | AM70: FALSE | AN70: FALSE | AO70: FALSE | AP70: FALSE | AQ70: FALSE | AR70: FALSE | AS70: FALSE | AT70: FALSE | AU70: FALSE | AV70: FALSE | AW70: FALSE | AX70: TRUE | AY70: FALSE | AZ70: FALSE | BA70: FALSE | BB70: FALSE | BC70: FALSE | BD70: FALSE | BE70: FALSE | BF70: FALSE | BG70: FALSE | BH70: FALSE | BI70: FALSE | BJ70: TRUE | BK70: FALSE | BL70: FALSE | BM70: FALSE | BN70: FALSE | BO70: FALSE | BP70: FALSE | BQ70: FALSE | BR70: FALSE | BS70: FALSE | BT70: FALSE | BU70: =OR(MONTH(BU3)=$F$70,BU6=12) -> FALSE | BV70: TRUE | BW70: FALSE | BX70: FALSE | BY70: FALSE | BZ70: FALSE | CA70: FALSE | CB70: FALSE | CC70: FALSE | CD70: FALSE | CE70: FALSE | CF70: FALSE | CG70: FALSE | CH70: TRUE | CI70: FALSE | CJ70: FALSE | CK70: FALSE | CL70: FALSE | CM70: FALSE | CN70: FALSE | CO70: FALSE | CP70: FALSE | CQ70: FALSE | CR70: FALSE | CS70: FALSE | CT70: TRUE | CU70: FALSE | CV70: FALSE | CW70: FALSE | CX70: FALSE | CY70: FALSE | CZ70: TRUE | DA70: TRUE | DB70: TRUE | DC70: TRUE | DD70: TRUE | DE70: TRUE | DF70: TRUE | DG70: =OR(MONTH(DG3)=$F$70,DG6=12) -> TRUE | DH70: TRUE | DI70: TRUE
C71: Index of Tariff inflation | G71: 1 | H71: =G71*(1+H68*H70) -> 1 | I71: =H71*(1+I68*I70) -> 1 | J71: 1 | K71: 1 | L71: 1 | M71: 1 | N71: 1.16 | O71: 1.16 | P71: 1.16 | Q71: 1.16 | R71: 1.16 | S71: 1.16 | T71: 1.16 | U71: 1.16 | V71: 1.16 | W71: 1.16 | X71: 1.16 | Y71: 1.16 | Z71: 1.3456 | AA71: 1.3456 | AB71: 1.3456 | AC71: 1.3456 | AD71: 1.3456 | AE71: 1.3456 | AF71: 1.3456 | AG71: 1.3456 | AH71: 1.3456 | AI71: 1.3456 | AJ71: 1.3456 | AK71: 1.3456 | AL71: 1.560896 | AM71: 1.560896 | AN71: 1.560896 | AO71: 1.560896 | AP71: 1.560896 | AQ71: 1.560896 | AR71: 1.560896 | AS71: 1.560896 | AT71: 1.560896 | AU71: 1.560896 | AV71: 1.560896 | AW71: 1.560896 | AX71: 1.70137664 | AY71: 1.70137664 | AZ71: 1.70137664 | BA71: 1.70137664 | BB71: 1.70137664 | BC71: 1.70137664 | BD71: 1.70137664 | BE71: 1.70137664 | BF71: 1.70137664 | BG71: 1.70137664 | BH71: 1.70137664 | BI71: 1.70137664 | BJ71: 1.752417939 | BK71: 1.752417939 | BL71: 1.752417939 | BM71: 1.752417939 | BN71: 1.752417939 | BO71: 1.752417939 | BP71: 1.752417939 | BQ71: 1.752417939 | BR71: 1.752417939 | BS71: 1.752417939 | BT71: 1.752417939 | BU71: =BT71*(1+BU68*BU70) -> 1.752417939 | BV71: 1.804990477 | BW71: 1.804990477 | BX71: 1.804990477 | BY71: 1.804990477 | BZ71: 1.804990477 | CA71: 1.804990477 | CB71: 1.804990477 | CC71: 1.804990477 | CD71: 1.804990477 | CE71: 1.804990477 | CF71: 1.804990477 | CG71: 1.804990477 | CH71: 1.859140192 | CI71: 1.859140192 | CJ71: 1.859140192 | CK71: 1.859140192 | CL71: 1.859140192 | CM71: 1.859140192 | CN71: 1.859140192 | CO71: 1.859140192 | CP71: 1.859140192 | CQ71: 1.859140192 | CR71: 1.859140192 | CS71: 1.859140192 | CT71: 1.914914397 | CU71: 1.914914397 | CV71: 1.914914397 | CW71: 1.914914397 | CX71: 1.914914397 | CY71: 1.914914397 | CZ71: 1.972361829 | DA71: 2.031532684 | DB71: 2.092478665 | DC71: 2.155253025 | DD71: 2.219910615 | DE71: 2.286507934 | DF71: 2.355103172 | DG71: =DF71*(1+DG68*DG70) -> 2.425756267 | DH71: =DG71*(1+DH68*DH70) -> 2.498528955 | DI71: =DH71*(1+DI68*DI70) -> 2.573484824
C72: Inflation Month (TRUE/FALSE) | F72: =INDEX('Master Assumptions'!U:U,Template!E1) -> 7 | G72: 1 | H72: =IF(OR(MONTH(H3)=$F$72,NOT(H5)),H71,G72) -> 1 | I72: =IF(OR(MONTH(I3)=$F$72,NOT(I5)),I71,H72) -> 1 | J72: 1 | K72: 1 | L72: 1 | M72: 1 | N72: 1.16 | O72: 1.16 | P72: 1.16 | Q72: 1.16 | R72: 1.16 | S72: 1.16 | T72: 1.16 | U72: 1.16 | V72: 1.16 | W72: 1.16 | X72: 1.16 | Y72: 1.16 | Z72: 1.3456 | AA72: 1.3456 | AB72: 1.3456 | AC72: 1.3456 | AD72: 1.3456 | AE72: 1.3456 | AF72: 1.3456 | AG72: 1.3456 | AH72: 1.3456 | AI72: 1.3456 | AJ72: 1.3456 | AK72: 1.3456 | AL72: 1.560896 | AM72: 1.560896 | AN72: 1.560896 | AO72: 1.560896 | AP72: 1.560896 | AQ72: 1.560896 | AR72: 1.560896 | AS72: 1.560896 | AT72: 1.560896 | AU72: 1.560896 | AV72: 1.560896 | AW72: 1.560896 | AX72: 1.70137664 | AY72: 1.70137664 | AZ72: 1.70137664 | BA72: 1.70137664 | BB72: 1.70137664 | BC72: 1.70137664 | BD72: 1.70137664 | BE72: 1.70137664 | BF72: 1.70137664 | BG72: 1.70137664 | BH72: 1.70137664 | BI72: 1.70137664 | BJ72: 1.752417939 | BK72: 1.752417939 | BL72: 1.752417939 | BM72: 1.752417939 | BN72: 1.752417939 | BO72: 1.752417939 | BP72: 1.752417939 | BQ72: 1.752417939 | BR72: 1.752417939 | BS72: 1.752417939 | BT72: 1.752417939 | BU72: =IF(OR(MONTH(BU3)=$F$72,NOT(BU5)),BU71,BT72) -> 1.752417939 | BV72: 1.804990477 | BW72: 1.804990477 | BX72: 1.804990477 | BY72: 1.804990477 | BZ72: 1.804990477 | CA72: 1.804990477 | CB72: 1.804990477 | CC72: 1.804990477 | CD72: 1.804990477 | CE72: 1.804990477 | CF72: 1.804990477 | CG72: 1.804990477 | CH72: 1.859140192 | CI72: 1.859140192 | CJ72: 1.859140192 | CK72: 1.859140192 | CL72: 1.859140192 | CM72: 1.859140192 | CN72: 1.859140192 | CO72: 1.859140192 | CP72: 1.859140192 | CQ72: 1.859140192 | CR72: 1.859140192 | CS72: 1.859140192 | CT72: 1.914914397 | CU72: 1.914914397 | CV72: 1.914914397 | CW72: 1.914914397 | CX72: 1.914914397 | CY72: 1.914914397 | CZ72: 1.972361829 | DA72: 2.031532684 | DB72: 2.092478665 | DC72: 2.155253025 | DD72: 2.219910615 | DE72: 2.286507934 | DF72: 2.355103172 | DG72: =IF(OR(MONTH(DG3)=$F$72,NOT(DG5)),DG71,DF72) -> 2.425756267 | DH72: =IF(OR(MONTH(DH3)=$F$72,NOT(DH5)),DH71,DG72) -> 2.498528955 | DI72: =IF(OR(MONTH(DI3)=$F$72,NOT(DI5)),DI71,DH72) -> 2.573484824
B73: Tariff with Inflation | E73: Devise locale/kWh | H73: =H72*H67 -> 1.05 | I73: =I72*I67 -> 1.05 | J73: 1.05 | K73: 1.05 | L73: 1.05 | M73: 1.05 | N73: 1.218 | O73: 1.218 | P73: 1.218 | Q73: 1.218 | R73: 1.218 | S73: 1.218 | T73: 1.218 | U73: 1.218 | V73: 1.218 | W73: 1.218 | X73: 1.218 | Y73: 1.218 | Z73: 1.41288 | AA73: 1.41288 | AB73: 1.41288 | AC73: 1.41288 | AD73: 1.41288 | AE73: 1.41288 | AF73: 1.41288 | AG73: 1.41288 | AH73: 1.41288 | AI73: 1.41288 | AJ73: 1.41288 | AK73: 1.41288 | AL73: 1.6389408 | AM73: 1.6389408 | AN73: 1.6389408 | AO73: 1.6389408 | AP73: 1.6389408 | AQ73: 1.6389408 | AR73: 1.6389408 | AS73: 1.6389408 | AT73: 1.6389408 | AU73: 1.6389408 | AV73: 1.6389408 | AW73: 1.6389408 | AX73: 1.786445472 | AY73: 1.786445472 | AZ73: 1.786445472 | BA73: 1.786445472 | BB73: 1.786445472 | BC73: 1.786445472 | BD73: 1.786445472 | BE73: 1.786445472 | BF73: 1.786445472 | BG73: 1.786445472 | BH73: 1.786445472 | BI73: 1.786445472 | BJ73: 1.840038836 | BK73: 1.840038836 | BL73: 1.840038836 | BM73: 1.840038836 | BN73: 1.840038836 | BO73: 1.840038836 | BP73: 1.840038836 | BQ73: 1.840038836 | BR73: 1.840038836 | BS73: 1.840038836 | BT73: 1.840038836 | BU73: =BU72*BU67 -> 1.840038836 | BV73: 1.895240001 | BW73: 1.895240001 | BX73: 1.895240001 | BY73: 1.895240001 | BZ73: 1.895240001 | CA73: 1.895240001 | CB73: 1.895240001 | CC73: 1.895240001 | CD73: 1.895240001 | CE73: 1.895240001 | CF73: 1.895240001 | CG73: 1.895240001 | CH73: 1.952097201 | CI73: 1.952097201 | CJ73: 1.952097201 | CK73: 1.952097201 | CL73: 1.952097201 | CM73: 1.952097201 | CN73: 1.952097201 | CO73: 1.952097201 | CP73: 1.952097201 | CQ73: 1.952097201 | CR73: 1.952097201 | CS73: 1.952097201 | CT73: 2.010660117 | CU73: 2.010660117 | CV73: 2.010660117 | CW73: 2.010660117 | CX73: 2.010660117 | CY73: 2.010660117 | CZ73: 2.070979921 | DA73: 2.133109318 | DB73: 2.197102598 | DC73: 2.263015676 | DD73: 2.330906146 | DE73: 2.400833331 | DF73: 2.472858331 | DG73: =DG72*DG67 -> 2.54704408 | DH73: 2.623455403 | DI73: 2.702159065
B74: Tariff with inflation | E74: EGP/kWh | H74: =Template!H73 -> 1.05 | I74: =Template!I73 -> 1.05 | J74: =Template!J73 -> 1.05 | K74: =Template!K73 -> 1.05 | L74: =Template!L73 -> 1.05 | M74: =Template!M73 -> 1.05 | N74: =Template!N73 -> 1.218 | O74: =Template!O73 -> 1.218 | P74: =Template!P73 -> 1.218 | Q74: =Template!Q73 -> 1.218 | R74: =Template!R73 -> 1.218 | S74: =Template!S73 -> 1.218 | T74: =Template!T73 -> 1.218 | U74: =Template!U73 -> 1.218 | V74: =Template!V73 -> 1.218 | W74: =Template!W73 -> 1.218 | X74: =Template!X73 -> 1.218 | Y74: =Template!Y73 -> 1.218 | Z74: =Template!Z73 -> 1.41288 | AA74: =Template!AA73 -> 1.41288 | AB74: =Template!AB73 -> 1.41288 | AC74: =Template!AC73 -> 1.41288 | AD74: =Template!AD73 -> 1.41288 | AE74: =Template!AE73 -> 1.41288 | AF74: =Template!AF73 -> 1.41288 | AG74: =Template!AG73 -> 1.41288 | AH74: =Template!AH73 -> 1.41288 | AI74: =Template!AI73 -> 1.41288 | AJ74: =Template!AJ73 -> 1.41288 | AK74: =Template!AK73 -> 1.41288 | AL74: =Template!AL73 -> 1.6389408 | AM74: =Template!AM73 -> 1.6389408 | AN74: =Template!AN73 -> 1.6389408 | AO74: =Template!AO73 -> 1.6389408 | AP74: =Template!AP73 -> 1.6389408 | AQ74: =Template!AQ73 -> 1.6389408 | AR74: =Template!AR73 -> 1.6389408 | AS74: =Template!AS73 -> 1.6389408 | AT74: =Template!AT73 -> 1.6389408 | AU74: =Template!AU73 -> 1.6389408 | AV74: =Template!AV73 -> 1.6389408 | AW74: =Template!AW73 -> 1.6389408 | AX74: =Template!AX73 -> 1.786445472 | AY74: =Template!AY73 -> 1.786445472 | AZ74: =Template!AZ73 -> 1.786445472 | BA74: =Template!BA73 -> 1.786445472 | BB74: =Template!BB73 -> 1.786445472 | BC74: =Template!BC73 -> 1.786445472 | BD74: =Template!BD73 -> 1.786445472 | BE74: =Template!BE73 -> 1.786445472 | BF74: =Template!BF73 -> 1.786445472 | BG74: =Template!BG73 -> 1.786445472 | BH74: =Template!BH73 -> 1.786445472 | BI74: =Template!BI73 -> 1.786445472 | BJ74: =Template!BJ73 -> 1.840038836 | BK74: =Template!BK73 -> 1.840038836 | BL74: =Template!BL73 -> 1.840038836 | BM74: =Template!BM73 -> 1.840038836 | BN74: =Template!BN73 -> 1.840038836 | BO74: =Template!BO73 -> 1.840038836 | BP74: =Template!BP73 -> 1.840038836 | BQ74: =Template!BQ73 -> 1.840038836 | BR74: =Template!BR73 -> 1.840038836 | BS74: =Template!BS73 -> 1.840038836 | BT74: =Template!BT73 -> 1.840038836 | BU74: =Template!BU73 -> 1.840038836 | BV74: =Template!BV73 -> 1.895240001 | BW74: =Template!BW73 -> 1.895240001 | BX74: =Template!BX73 -> 1.895240001 | BY74: =Template!BY73 -> 1.895240001 | BZ74: =Template!BZ73 -> 1.895240001 | CA74: =Template!CA73 -> 1.895240001 | CB74: =Template!CB73 -> 1.895240001 | CC74: =Template!CC73 -> 1.895240001 | CD74: =Template!CD73 -> 1.895240001 | CE74: =Template!CE73 -> 1.895240001 | CF74: =Template!CF73 -> 1.895240001 | CG74: =Template!CG73 -> 1.895240001 | CH74: =Template!CH73 -> 1.952097201 | CI74: =Template!CI73 -> 1.952097201 | CJ74: =Template!CJ73 -> 1.952097201 | CK74: =Template!CK73 -> 1.952097201 | CL74: =Template!CL73 -> 1.952097201 | CM74: =Template!CM73 -> 1.952097201 | CN74: =Template!CN73 -> 1.952097201 | CO74: =Template!CO73 -> 1.952097201 | CP74: =Template!CP73 -> 1.952097201 | CQ74: =Template!CQ73 -> 1.952097201 | CR74: =Template!CR73 -> 1.952097201 | CS74: =Template!CS73 -> 1.952097201 | CT74: =Template!CT73 -> 2.010660117 | CU74: =Template!CU73 -> 2.010660117 | CV74: =Template!CV73 -> 2.010660117 | CW74: =Template!CW73 -> 2.010660117 | CX74: =Template!CX73 -> 2.010660117 | CY74: =Template!CY73 -> 2.010660117 | CZ74: =Template!CZ73 -> 2.070979921 | DA74: =Template!DA73 -> 2.133109318 | DB74: =Template!DB73 -> 2.197102598 | DC74: =Template!DC73 -> 2.263015676 | DD74: =Template!DD73 -> 2.330906146 | DE74: =Template!DE73 -> 2.400833331 | DF74: =Template!DF73 -> 2.472858331 | DG74: =Template!DG73 -> 2.54704408 | DH74: =Template!DH73 -> 2.623455403 | DI74: =Template!DI73 -> 2.702159065
B76: Total Net Energy from Solar | H76: =Template!H31 -> 0 | I76: =Template!I31 -> 0 | J76: =Template!J31 -> 0 | K76: =Template!K31 -> 0 | L76: =Template!L31 -> 0 | M76: =Template!M31 -> 0 | N76: =Template!N31 -> 0 | O76: =Template!O31 -> 0 | P76: =Template!P31 -> 0 | Q76: =Template!Q31 -> 0 | R76: =Template!R31 -> 0 | S76: =Template!S31 -> 0 | T76: =Template!T31 -> 0 | U76: =Template!U31 -> 0 | V76: =Template!V31 -> 0 | W76: =Template!W31 -> 0 | X76: =Template!X31 -> 0 | Y76: =Template!Y31 -> 225738.5839 | Z76: =Template!Z31 -> 204605.4606 | AA76: =Template!AA31 -> 211168.4904 | AB76: =Template!AB31 -> 182753.9614 | AC76: =Template!AC31 -> 156430.672 | AD76: =Template!AD31 -> 119883.9349 | AE76: =Template!AE31 -> 107048.1076 | AF76: =Template!AF31 -> 114630.5039 | AG76: =Template!AG31 -> 123880.63 | AH76: =Template!AH31 -> 171996.4254 | AI76: =Template!AI31 -> 185125.261 | AJ76: =Template!AJ31 -> 212026.8293 | AK76: =Template!AK31 -> 214921.6271 | AL76: =Template!AL31 -> 194583.3762 | AM76: =Template!AM31 -> 200803.4053 | AN76: =Template!AN31 -> 173764.8404 | AO76: =Template!AO31 -> 148720.1678 | AP76: =Template!AP31 -> 113962.3755 | AQ76: =Template!AQ31 -> 101749.3732 | AR76: =Template!AR31 -> 108944.3941 | AS76: =Template!AS31 -> 117722.5659 | AT76: =Template!AT31 -> 163428.22 | AU76: =Template!AU31 -> 175883.1815 | AV76: =Template!AV31 -> 201418.8578 | AW76: =Template!AW31 -> 204782.3626 | AX76: =Template!AX31 -> 185962.3096 | AY76: =Template!AY31 -> 192486.6929 | AZ76: =Template!AZ31 -> 167072.7736 | BA76: =Template!BA31 -> 143427.1956 | BB76: =Template!BB31 -> 110241.4067 | BC76: =Template!BC31 -> 98728.01025 | BD76: =Template!BD31 -> 106033.408 | BE76: =Template!BE31 -> 114929.2496 | BF76: =Template!BF31 -> 160042.2973 | BG76: =Template!BG31 -> 172771.7754 | BH76: =Template!BH31 -> 198469.2729 | BI76: =Template!BI31 -> 201781.5915 | BJ76: =Template!BJ31 -> 183235.5607 | BK76: =Template!BK31 -> 189662.4557 | BL76: =Template!BL31 -> 164619.8347 | BM76: =Template!BM31 -> 141320.0552 | BN76: =Template!BN31 -> 108620.7613 | BO76: =Template!BO31 -> 97275.68049 | BP76: =Template!BP31 -> 104472.5998 | BQ76: =Template!BQ31 -> 113236.3948 | BR76: =Template!BR31 -> 157683.4134 | BS76: =Template!BS31 -> 170223.6101 | BT76: =Template!BT31 -> 195540.1916 | BU76: =Template!BU31 -> 198801.6797 | BV76: =Template!BV31 -> 180527.7663 | BW76: =Template!BW31 -> 186857.8507 | BX76: =Template!BX31 -> 162183.9471 | BY76: =Template!BY31 -> 139227.5623 | BZ76: =Template!BZ31 -> 107011.3817 | CA76: =Template!CA31 -> 95833.44637 | CB76: =Template!CB31 -> 102922.6413 | CC76: =Template!CC31 -> 111555.3077 | CD76: =Template!CD31 -> 155340.9269 | CE76: =Template!CE31 -> 167693.158 | CF76: =Template!CF31 -> 192631.4713 | CG76: =Template!CG31 -> 195842.4823 | CH76: =Template!CH31 -> 177838.7948 | CI76: =Template!CI31 -> 184072.7416 | CJ76: =Template!CJ31 -> 159764.9922 | CK76: =Template!CK31 -> 137149.615 | CL76: =Template!CL31 -> 105413.1893 | CM76: =Template!CM31 -> 94401.2377 | CN76: =Template!CN31 -> 101383.4571 | CO76: =Template!CO31 -> 109885.9063 | CP76: =Template!CP31 -> 153014.7239 | CQ76: =Template!CQ31 -> 165180.2959 | CR76: =Template!CR31 -> 189742.9705 | CS76: =Template!CS31 -> 192903.8553 | CT76: =Template!CT31 -> 175168.5151 | CU76: =Template!CU31 -> 181306.9926 | CV76: =Template!CV31 -> 157362.8522 | CW76: =Template!CW31 -> 135086.1122 | CX76: =Template!CX31 -> 103826.1066 | CY76: =Template!CY31 -> 92978.98481 | CZ76: =Template!CZ31 -> 1718743.651 | DA76: =Template!DA31 -> 1692417.23 | DB76: =Template!DB31 -> 1666273.814 | DC76: =Template!DC31 -> 1640312.129 | DD76: =Template!DD31 -> 1614530.912 | DE76: =Template!DE31 -> 1588928.91 | DF76: =Template!DF31 -> 1563504.876 | DG76: =Template!DG31 -> 1538257.573 | DH76: =Template!DH31 -> 1513185.772 | DI76: =Template!DI31 -> 1488288.255
B78: Total Tariff Savings in Local Currency | E78: =Template!E68 -> EGP | H78: =H73*H76 -> 0 | I78: =I73*I76 -> 0 | J78: 0 | K78: 0 | L78: 0 | M78: 0 | N78: 0 | O78: 0 | P78: 0 | Q78: 0 | R78: 0 | S78: 0 | T78: 0 | U78: 0 | V78: 0 | W78: 0 | X78: 0 | Y78: 274949.5952 | Z78: 289082.9632 | AA78: 298355.7368 | AB78: 258209.4169 | AC78: 221017.7679 | AD78: 169381.6139 | AE78: 151246.1302 | AF78: 161959.1464 | AG78: 175028.4645 | AH78: 243010.3096 | AI78: 261559.7788 | AJ78: 299568.4665 | AK78: 303658.4685 | AL78: 318910.6343 | AM78: 329104.8937 | AN78: 284790.2865 | AO78: 243743.5509 | AP78: 186777.5868 | AQ78: 166761.1992 | AR78: 178553.4124 | AS78: 192940.3163 | AT78: 267849.1775 | AU78: 288262.1222 | AV78: 330113.584 | AW78: 335626.1692 | AX78: 332211.526 | AY78: 343866.9809 | AZ78: 298466.3999 | BA78: 256224.8641 | BB78: 196940.2618 | BC78: 176372.2069 | BD78: 189422.9016 | BE78: 205314.8376 | BF78: 285906.8374 | BG78: 308647.3558 | BH78: 354554.5339 | BI78: 360471.8104 | BJ78: 337160.5478 | BK78: 348986.2843 | BL78: 302906.8891 | BM78: 260034.3899 | BN78: 199866.4193 | BO78: 178991.0299 | BP78: 192233.6409 | BQ78: 208359.3642 | BR78: 290143.6045 | BS78: 313218.0535 | BT78: 359801.5465 | BU78: =BU73*BU76 -> 365802.8113 | BV78: 342143.4441 | BW78: 354140.4733 | BX78: 307377.5041 | BY78: 263869.6453 | BZ78: 202812.2511 | CA78: 181627.381 | CB78: 195063.1068 | CC78: 211424.0815 | CD78: 294408.3386 | CE78: 317818.781 | CF78: 365082.8699 | CG78: 371168.5064 | CH78: 347158.6135 | CI78: 359327.8836 | CJ78: 311876.7941 | CK78: 267729.3795 | CL78: 205776.7919 | CM78: 184280.3919 | CN78: 197910.3629 | CO78: 214507.9702 | CP78: 298699.6142 | CQ78: 322447.9934 | CR78: 370396.7216 | CS78: 376567.0761 | CT78: 352204.3472 | CU78: 364546.739 | CV78: 316403.2109 | CW78: 271612.2582 | CX78: 208759.0117 | CY78: 186949.1365 | CZ78: 3559483.59 | DA78: 3610110.965 | DB78: 3660974.525 | DC78: 3712052.061 | DD78: 3763320.027 | DE78: 3814753.487 | DF78: 3866326.057 | DG78: =DG73*DG76 -> 3918009.845 | DH78: 3969775.39 | DI78: 4021591.598
B79: Total Tariff Savings in EGP | E79: EUR | H79: =H76*H74 -> 0 | I79: =I76*I74 -> 0 | J79: 0 | K79: 0 | L79: 0 | M79: 0 | N79: 0 | O79: 0 | P79: 0 | Q79: 0 | R79: 0 | S79: 0 | T79: 0 | U79: 0 | V79: 0 | W79: 0 | X79: 0 | Y79: 274949.5952 | Z79: 289082.9632 | AA79: 298355.7368 | AB79: 258209.4169 | AC79: 221017.7679 | AD79: 169381.6139 | AE79: 151246.1302 | AF79: 161959.1464 | AG79: 175028.4645 | AH79: 243010.3096 | AI79: 261559.7788 | AJ79: 299568.4665 | AK79: 303658.4685 | AL79: 318910.6343 | AM79: 329104.8937 | AN79: 284790.2865 | AO79: 243743.5509 | AP79: 186777.5868 | AQ79: 166761.1992 | AR79: 178553.4124 | AS79: 192940.3163 | AT79: 267849.1775 | AU79: 288262.1222 | AV79: 330113.584 | AW79: 335626.1692 | AX79: 332211.526 | AY79: 343866.9809 | AZ79: 298466.3999 | BA79: 256224.8641 | BB79: 196940.2618 | BC79: 176372.2069 | BD79: 189422.9016 | BE79: 205314.8376 | BF79: 285906.8374 | BG79: 308647.3558 | BH79: 354554.5339 | BI79: 360471.8104 | BJ79: 337160.5478 | BK79: 348986.2843 | BL79: 302906.8891 | BM79: 260034.3899 | BN79: 199866.4193 | BO79: 178991.0299 | BP79: 192233.6409 | BQ79: 208359.3642 | BR79: 290143.6045 | BS79: 313218.0535 | BT79: 359801.5465 | BU79: =BU76*BU74 -> 365802.8113 | BV79: 342143.4441 | BW79: 354140.4733 | BX79: 307377.5041 | BY79: 263869.6453 | BZ79: 202812.2511 | CA79: 181627.381 | CB79: 195063.1068 | CC79: 211424.0815 | CD79: 294408.3386 | CE79: 317818.781 | CF79: 365082.8699 | CG79: 371168.5064 | CH79: 347158.6135 | CI79: 359327.8836 | CJ79: 311876.7941 | CK79: 267729.3795 | CL79: 205776.7919 | CM79: 184280.3919 | CN79: 197910.3629 | CO79: 214507.9702 | CP79: 298699.6142 | CQ79: 322447.9934 | CR79: 370396.7216 | CS79: 376567.0761 | CT79: 352204.3472 | CU79: 364546.739 | CV79: 316403.2109 | CW79: 271612.2582 | CX79: 208759.0117 | CY79: 186949.1365 | CZ79: 3559483.59 | DA79: 3610110.965 | DB79: 3660974.525 | DC79: 3712052.061 | DD79: 3763320.027 | DE79: 3814753.487 | DF79: 3866326.057 | DG79: =DG76*DG74 -> 3918009.845 | DH79: 3969775.39 | DI79: 4021591.598
A81: Cash flow of the Project
B82: Total Revenuse (Savings vs Tariff) | E82: EGP | H82: =Template!H79 -> 0 | I82: =Template!I79 -> 0 | J82: =Template!J79 -> 0 | K82: =Template!K79 -> 0 | L82: =Template!L79 -> 0 | M82: =Template!M79 -> 0 | N82: =Template!N79 -> 0 | O82: =Template!O79 -> 0 | P82: =Template!P79 -> 0 | Q82: =Template!Q79 -> 0 | R82: =Template!R79 -> 0 | S82: =Template!S79 -> 0 | T82: =Template!T79 -> 0 | U82: =Template!U79 -> 0 | V82: =Template!V79 -> 0 | W82: =Template!W79 -> 0 | X82: =Template!X79 -> 0 | Y82: =Template!Y79 -> 274949.5952 | Z82: =Template!Z79 -> 289082.9632 | AA82: =Template!AA79 -> 298355.7368 | AB82: =Template!AB79 -> 258209.4169 | AC82: =Template!AC79 -> 221017.7679 | AD82: =Template!AD79 -> 169381.6139 | AE82: =Template!AE79 -> 151246.1302 | AF82: =Template!AF79 -> 161959.1464 | AG82: =Template!AG79 -> 175028.4645 | AH82: =Template!AH79 -> 243010.3096 | AI82: =Template!AI79 -> 261559.7788 | AJ82: =Template!AJ79 -> 299568.4665 | AK82: =Template!AK79 -> 303658.4685 | AL82: =Template!AL79 -> 318910.6343 | AM82: =Template!AM79 -> 329104.8937 | AN82: =Template!AN79 -> 284790.2865 | AO82: =Template!AO79 -> 243743.5509 | AP82: =Template!AP79 -> 186777.5868 | AQ82: =Template!AQ79 -> 166761.1992 | AR82: =Template!AR79 -> 178553.4124 | AS82: =Template!AS79 -> 192940.3163 | AT82: =Template!AT79 -> 267849.1775 | AU82: =Template!AU79 -> 288262.1222 | AV82: =Template!AV79 -> 330113.584 | AW82: =Template!AW79 -> 335626.1692 | AX82: =Template!AX79 -> 332211.526 | AY82: =Template!AY79 -> 343866.9809 | AZ82: =Template!AZ79 -> 298466.3999 | BA82: =Template!BA79 -> 256224.8641 | BB82: =Template!BB79 -> 196940.2618 | BC82: =Template!BC79 -> 176372.2069 | BD82: =Template!BD79 -> 189422.9016 | BE82: =Template!BE79 -> 205314.8376 | BF82: =Template!BF79 -> 285906.8374 | BG82: =Template!BG79 -> 308647.3558 | BH82: =Template!BH79 -> 354554.5339 | BI82: =Template!BI79 -> 360471.8104 | BJ82: =Template!BJ79 -> 337160.5478 | BK82: =Template!BK79 -> 348986.2843 | BL82: =Template!BL79 -> 302906.8891 | BM82: =Template!BM79 -> 260034.3899 | BN82: =Template!BN79 -> 199866.4193 | BO82: =Template!BO79 -> 178991.0299 | BP82: =Template!BP79 -> 192233.6409 | BQ82: =Template!BQ79 -> 208359.3642 | BR82: =Template!BR79 -> 290143.6045 | BS82: =Template!BS79 -> 313218.0535 | BT82: =Template!BT79 -> 359801.5465 | BU82: =Template!BU79 -> 365802.8113 | BV82: =Template!BV79 -> 342143.4441 | BW82: =Template!BW79 -> 354140.4733 | BX82: =Template!BX79 -> 307377.5041 | BY82: =Template!BY79 -> 263869.6453 | BZ82: =Template!BZ79 -> 202812.2511 | CA82: =Template!CA79 -> 181627.381 | CB82: =Template!CB79 -> 195063.1068 | CC82: =Template!CC79 -> 211424.0815 | CD82: =Template!CD79 -> 294408.3386 | CE82: =Template!CE79 -> 317818.781 | CF82: =Template!CF79 -> 365082.8699 | CG82: =Template!CG79 -> 371168.5064 | CH82: =Template!CH79 -> 347158.6135 | CI82: =Template!CI79 -> 359327.8836 | CJ82: =Template!CJ79 -> 311876.7941 | CK82: =Template!CK79 -> 267729.3795 | CL82: =Template!CL79 -> 205776.7919 | CM82: =Template!CM79 -> 184280.3919 | CN82: =Template!CN79 -> 197910.3629 | CO82: =Template!CO79 -> 214507.9702 | CP82: =Template!CP79 -> 298699.6142 | CQ82: =Template!CQ79 -> 322447.9934 | CR82: =Template!CR79 -> 370396.7216 | CS82: =Template!CS79 -> 376567.0761 | CT82: =Template!CT79 -> 352204.3472 | CU82: =Template!CU79 -> 364546.739 | CV82: =Template!CV79 -> 316403.2109 | CW82: =Template!CW79 -> 271612.2582 | CX82: =Template!CX79 -> 208759.0117 | CY82: =Template!CY79 -> 186949.1365 | CZ82: =Template!CZ79 -> 3559483.59 | DA82: =Template!DA79 -> 3610110.965 | DB82: =Template!DB79 -> 3660974.525 | DC82: =Template!DC79 -> 3712052.061 | DD82: =Template!DD79 -> 3763320.027 | DE82: =Template!DE79 -> 3814753.487 | DF82: =Template!DF79 -> 3866326.057 | DG82: =Template!DG79 -> 3918009.845 | DH82: =Template!DH79 -> 3969775.39 | DI82: =Template!DI79 -> 4021591.598
B83: Re-sale of Surplus Energy | E83: EGP | F83: =INDEX('Master Assumptions'!R:R,Template!E1) -> FALSE | G83: =INDEX('Master Assumptions'!S:S,Template!E1) -> 1.05 | H83: =$F$83*G83*H28*H72 -> 0 | I83: =$F$83*H83*I28*I72 -> 0 | J83: 0 | K83: 0 | L83: 0 | M83: 0 | N83: 0 | O83: 0 | P83: 0 | Q83: 0 | R83: 0 | S83: 0 | T83: 0 | U83: 0 | V83: 0 | W83: 0 | X83: 0 | Y83: 0 | Z83: 0 | AA83: 0 | AB83: 0 | AC83: 0 | AD83: 0 | AE83: 0 | AF83: 0 | AG83: 0 | AH83: 0 | AI83: 0 | AJ83: 0 | AK83: 0 | AL83: 0 | AM83: 0 | AN83: 0 | AO83: 0 | AP83: 0 | AQ83: 0 | AR83: 0 | AS83: 0 | AT83: 0 | AU83: 0 | AV83: 0 | AW83: 0 | AX83: 0 | AY83: 0 | AZ83: 0 | BA83: 0 | BB83: 0 | BC83: 0 | BD83: 0 | BE83: 0 | BF83: 0 | BG83: 0 | BH83: 0 | BI83: 0 | BJ83: 0 | BK83: 0 | BL83: 0 | BM83: 0 | BN83: 0 | BO83: 0 | BP83: 0 | BQ83: 0 | BR83: 0 | BS83: 0 | BT83: 0 | BU83: =$F$83*BT83*BU28*BU72 -> 0 | BV83: 0 | BW83: 0 | BX83: 0 | BY83: 0 | BZ83: 0 | CA83: 0 | CB83: 0 | CC83: 0 | CD83: 0 | CE83: 0 | CF83: 0 | CG83: 0 | CH83: 0 | CI83: 0 | CJ83: 0 | CK83: 0 | CL83: 0 | CM83: 0 | CN83: 0 | CO83: 0 | CP83: 0 | CQ83: 0 | CR83: 0 | CS83: 0 | CT83: 0 | CU83: 0 | CV83: 0 | CW83: 0 | CX83: 0 | CY83: 0 | CZ83: 0 | DA83: 0 | DB83: 0 | DC83: 0 | DD83: 0 | DE83: 0 | DF83: 0 | DG83: =$F$83*DF83*DG28*DG72 -> 0 | DH83: =$F$83*DG83*DH28*DH72 -> 0 | DI83: =$F$83*DH83*DI28*DI72 -> 0
B84: O&M Cost | E84: EGP | H84: =Template!H63 -> 0 | I84: =Template!I63 -> 0 | J84: =Template!J63 -> 0 | K84: =Template!K63 -> 0 | L84: =Template!L63 -> 0 | M84: =Template!M63 -> 0 | N84: =Template!N63 -> 0 | O84: =Template!O63 -> 0 | P84: =Template!P63 -> 0 | Q84: =Template!Q63 -> 0 | R84: =Template!R63 -> 0 | S84: =Template!S63 -> 0 | T84: =Template!T63 -> 0 | U84: =Template!U63 -> 0 | V84: =Template!V63 -> 0 | W84: =Template!W63 -> 0 | X84: =Template!X63 -> 0 | Y84: =Template!Y63 -> 7493.659795 | Z84: =Template!Z63 -> 7541.874228 | AA84: =Template!AA63 -> 7590.398874 | AB84: =Template!AB63 -> 7639.235729 | AC84: =Template!AC63 -> 7688.386801 | AD84: =Template!AD63 -> 7737.854114 | AE84: =Template!AE63 -> 7787.6397 | AF84: =Template!AF63 -> 7837.745608 | AG84: =Template!AG63 -> 7888.1739 | AH84: =Template!AH63 -> 7938.926648 | AI84: =Template!AI63 -> 7990.005941 | AJ84: =Template!AJ63 -> 8041.41388 | AK84: =Template!AK63 -> 8093.152579 | AL84: =Template!AL63 -> 8145.224166 | AM84: =Template!AM63 -> 8197.630784 | AN84: =Template!AN63 -> 8250.374587 | AO84: =Template!AO63 -> 8303.457746 | AP84: =Template!AP63 -> 8356.882443 | AQ84: =Template!AQ63 -> 8410.650876 | AR84: =Template!AR63 -> 8464.765257 | AS84: =Template!AS63 -> 8519.227812 | AT84: =Template!AT63 -> 8574.04078 | AU84: =Template!AU63 -> 8629.206416 | AV84: =Template!AV63 -> 8684.72699 | AW84: =Template!AW63 -> 8740.604785 | AX84: =Template!AX63 -> 8796.8421 | AY84: =Template!AY63 -> 8853.441246 | AZ84: =Template!AZ63 -> 8910.404554 | BA84: =Template!BA63 -> 8967.734365 | BB84: =Template!BB63 -> 9025.433038 | BC84: =Template!BC63 -> 9083.502946 | BD84: =Template!BD63 -> 9141.946478 | BE84: =Template!BE63 -> 9200.766036 | BF84: =Template!BF63 -> 9259.964042 | BG84: =Template!BG63 -> 9319.54293 | BH84: =Template!BH63 -> 9379.505149 | BI84: =Template!BI63 -> 9439.853168 | BJ84: =Template!BJ63 -> 9500.589468 | BK84: =Template!BK63 -> 9561.716546 | BL84: =Template!BL63 -> 9623.236918 | BM84: =Template!BM63 -> 9685.153114 | BN84: =Template!BN63 -> 9747.467681 | BO84: =Template!BO63 -> 9810.183182 | BP84: =Template!BP63 -> 9873.302196 | BQ84: =Template!BQ63 -> 9936.827319 | BR84: =Template!BR63 -> 10000.76117 | BS84: =Template!BS63 -> 10065.10636 | BT84: =Template!BT63 -> 10129.86556 | BU84: =Template!BU63 -> 10195.04142 | BV84: =Template!BV63 -> 10260.63662 | BW84: =Template!BW63 -> 10326.65387 | BX84: =Template!BX63 -> 10393.09587 | BY84: =Template!BY63 -> 10459.96536 | BZ84: =Template!BZ63 -> 10527.2651 | CA84: =Template!CA63 -> 10594.99784 | CB84: =Template!CB63 -> 10663.16637 | CC84: =Template!CC63 -> 10731.7735 | CD84: =Template!CD63 -> 10800.82206 | CE84: =Template!CE63 -> 10870.31487 | CF84: =Template!CF63 -> 10940.25481 | CG84: =Template!CG63 -> 11010.64474 | CH84: =Template!CH63 -> 11081.48755 | CI84: =Template!CI63 -> 11152.78618 | CJ84: =Template!CJ63 -> 11224.54354 | CK84: =Template!CK63 -> 11296.76259 | CL84: =Template!CL63 -> 11369.4463 | CM84: =Template!CM63 -> 11442.59766 | CN84: =Template!CN63 -> 11516.21968 | CO84: =Template!CO63 -> 11590.31539 | CP84: =Template!CP63 -> 11664.88782 | CQ84: =Template!CQ63 -> 11739.94006 | CR84: =Template!CR63 -> 11815.47519 | CS84: =Template!CS63 -> 11891.49631 | CT84: =Template!CT63 -> 11968.00656 | CU84: =Template!CU63 -> 12045.00907 | CV84: =Template!CV63 -> 12122.50702 | CW84: =Template!CW63 -> 12200.5036 | CX84: =Template!CX63 -> 12279.00201 | CY84: =Template!CY63 -> 12358.00548 | CZ84: =Template!CZ63 -> 160159.751 | DA84: =Template!DA63 -> 172972.5311 | DB84: =Template!DB63 -> 186810.3335 | DC84: =Template!DC63 -> 201755.1602 | DD84: =Template!DD63 -> 217895.573 | DE84: =Template!DE63 -> 235327.2189 | DF84: =Template!DF63 -> 254153.3964 | DG84: =Template!DG63 -> 274485.6681 | DH84: =Template!DH63 -> 296444.5215 | DI84: =Template!DI63 -> 320160.0833
B85: Capital Expenditures | E85: EGP | H85: =Template!H48 -> 0 | I85: =Template!I48 -> 0 | J85: =Template!J48 -> 0 | K85: =Template!K48 -> 0 | L85: =Template!L48 -> 0 | M85: =Template!M48 -> 0 | N85: =Template!N48 -> 0 | O85: =Template!O48 -> 0 | P85: =Template!P48 -> 0 | Q85: =Template!Q48 -> 0 | R85: =Template!R48 -> 0 | S85: =Template!S48 -> 0 | T85: =Template!T48 -> 3204790 | U85: =Template!U48 -> 3204790 | V85: =Template!V48 -> 3204790 | W85: =Template!W48 -> 3204790 | X85: =Template!X48 -> 3204790 | Y85: =Template!Y48 -> 0 | Z85: =Template!Z48 -> 0 | AA85: =Template!AA48 -> 0 | AB85: =Template!AB48 -> 0 | AC85: =Template!AC48 -> 0 | AD85: =Template!AD48 -> 0 | AE85: =Template!AE48 -> 0 | AF85: =Template!AF48 -> 0 | AG85: =Template!AG48 -> 0 | AH85: =Template!AH48 -> 0 | AI85: =Template!AI48 -> 0 | AJ85: =Template!AJ48 -> 0 | AK85: =Template!AK48 -> 0 | AL85: =Template!AL48 -> 0 | AM85: =Template!AM48 -> 0 | AN85: =Template!AN48 -> 0 | AO85: =Template!AO48 -> 0 | AP85: =Template!AP48 -> 0 | AQ85: =Template!AQ48 -> 0 | AR85: =Template!AR48 -> 0 | AS85: =Template!AS48 -> 0 | AT85: =Template!AT48 -> 0 | AU85: =Template!AU48 -> 0 | AV85: =Template!AV48 -> 0 | AW85: =Template!AW48 -> 0 | AX85: =Template!AX48 -> 0 | AY85: =Template!AY48 -> 0 | AZ85: =Template!AZ48 -> 0 | BA85: =Template!BA48 -> 0 | BB85: =Template!BB48 -> 0 | BC85: =Template!BC48 -> 0 | BD85: =Template!BD48 -> 0 | BE85: =Template!BE48 -> 0 | BF85: =Template!BF48 -> 0 | BG85: =Template!BG48 -> 0 | BH85: =Template!BH48 -> 0 | BI85: =Template!BI48 -> 0 | BJ85: =Template!BJ48 -> 0 | BK85: =Template!BK48 -> 0 | BL85: =Template!BL48 -> 0 | BM85: =Template!BM48 -> 0 | BN85: =Template!BN48 -> 0 | BO85: =Template!BO48 -> 0 | BP85: =Template!BP48 -> 0 | BQ85: =Template!BQ48 -> 0 | BR85: =Template!BR48 -> 0 | BS85: =Template!BS48 -> 0 | BT85: =Template!BT48 -> 0 | BU85: =Template!BU48 -> 0 | BV85: =Template!BV48 -> 0 | BW85: =Template!BW48 -> 0 | BX85: =Template!BX48 -> 0 | BY85: =Template!BY48 -> 0 | BZ85: =Template!BZ48 -> 0 | CA85: =Template!CA48 -> 0 | CB85: =Template!CB48 -> 0 | CC85: =Template!CC48 -> 0 | CD85: =Template!CD48 -> 0 | CE85: =Template!CE48 -> 0 | CF85: =Template!CF48 -> 0 | CG85: =Template!CG48 -> 0 | CH85: =Template!CH48 -> 0 | CI85: =Template!CI48 -> 0 | CJ85: =Template!CJ48 -> 0 | CK85: =Template!CK48 -> 0 | CL85: =Template!CL48 -> 0 | CM85: =Template!CM48 -> 0 | CN85: =Template!CN48 -> 0 | CO85: =Template!CO48 -> 0 | CP85: =Template!CP48 -> 0 | CQ85: =Template!CQ48 -> 0 | CR85: =Template!CR48 -> 0 | CS85: =Template!CS48 -> 0 | CT85: =Template!CT48 -> 0 | CU85: =Template!CU48 -> 0 | CV85: =Template!CV48 -> 0 | CW85: =Template!CW48 -> 0 | CX85: =Template!CX48 -> 0 | CY85: =Template!CY48 -> 0 | CZ85: =Template!CZ48 -> 0 | DA85: =Template!DA48 -> 0 | DB85: =Template!DB48 -> 0 | DC85: =Template!DC48 -> 0 | DD85: =Template!DD48 -> 0 | DE85: =Template!DE48 -> 0 | DF85: =Template!DF48 -> 0 | DG85: =Template!DG48 -> 0 | DH85: =Template!DH48 -> 0 | DI85: =Template!DI48 -> 0
B86: EPC Margin | E86: EGP | H86: =Template!H50 -> 0 | I86: =Template!I50 -> 0 | J86: =Template!J50 -> 0 | K86: =Template!K50 -> 0 | L86: =Template!L50 -> 0 | M86: =Template!M50 -> 0 | N86: =Template!N50 -> 0 | O86: =Template!O50 -> 0 | P86: =Template!P50 -> 0 | Q86: =Template!Q50 -> 0 | R86: =Template!R50 -> 0 | S86: =Template!S50 -> 0 | T86: =Template!T50 -> 320479 | U86: =Template!U50 -> 320479 | V86: =Template!V50 -> 320479 | W86: =Template!W50 -> 320479 | X86: =Template!X50 -> 320479 | Y86: =Template!Y50 -> 0 | Z86: =Template!Z50 -> 0 | AA86: =Template!AA50 -> 0 | AB86: =Template!AB50 -> 0 | AC86: =Template!AC50 -> 0 | AD86: =Template!AD50 -> 0 | AE86: =Template!AE50 -> 0 | AF86: =Template!AF50 -> 0 | AG86: =Template!AG50 -> 0 | AH86: =Template!AH50 -> 0 | AI86: =Template!AI50 -> 0 | AJ86: =Template!AJ50 -> 0 | AK86: =Template!AK50 -> 0 | AL86: =Template!AL50 -> 0 | AM86: =Template!AM50 -> 0 | AN86: =Template!AN50 -> 0 | AO86: =Template!AO50 -> 0 | AP86: =Template!AP50 -> 0 | AQ86: =Template!AQ50 -> 0 | AR86: =Template!AR50 -> 0 | AS86: =Template!AS50 -> 0 | AT86: =Template!AT50 -> 0 | AU86: =Template!AU50 -> 0 | AV86: =Template!AV50 -> 0 | AW86: =Template!AW50 -> 0 | AX86: =Template!AX50 -> 0 | AY86: =Template!AY50 -> 0 | AZ86: =Template!AZ50 -> 0 | BA86: =Template!BA50 -> 0 | BB86: =Template!BB50 -> 0 | BC86: =Template!BC50 -> 0 | BD86: =Template!BD50 -> 0 | BE86: =Template!BE50 -> 0 | BF86: =Template!BF50 -> 0 | BG86: =Template!BG50 -> 0 | BH86: =Template!BH50 -> 0 | BI86: =Template!BI50 -> 0 | BJ86: =Template!BJ50 -> 0 | BK86: =Template!BK50 -> 0 | BL86: =Template!BL50 -> 0 | BM86: =Template!BM50 -> 0 | BN86: =Template!BN50 -> 0 | BO86: =Template!BO50 -> 0 | BP86: =Template!BP50 -> 0 | BQ86: =Template!BQ50 -> 0 | BR86: =Template!BR50 -> 0 | BS86: =Template!BS50 -> 0 | BT86: =Template!BT50 -> 0 | BU86: =Template!BU50 -> 0 | BV86: =Template!BV50 -> 0 | BW86: =Template!BW50 -> 0 | BX86: =Template!BX50 -> 0 | BY86: =Template!BY50 -> 0 | BZ86: =Template!BZ50 -> 0 | CA86: =Template!CA50 -> 0 | CB86: =Template!CB50 -> 0 | CC86: =Template!CC50 -> 0 | CD86: =Template!CD50 -> 0 | CE86: =Template!CE50 -> 0 | CF86: =Template!CF50 -> 0 | CG86: =Template!CG50 -> 0 | CH86: =Template!CH50 -> 0 | CI86: =Template!CI50 -> 0 | CJ86: =Template!CJ50 -> 0 | CK86: =Template!CK50 -> 0 | CL86: =Template!CL50 -> 0 | CM86: =Template!CM50 -> 0 | CN86: =Template!CN50 -> 0 | CO86: =Template!CO50 -> 0 | CP86: =Template!CP50 -> 0 | CQ86: =Template!CQ50 -> 0 | CR86: =Template!CR50 -> 0 | CS86: =Template!CS50 -> 0 | CT86: =Template!CT50 -> 0 | CU86: =Template!CU50 -> 0 | CV86: =Template!CV50 -> 0 | CW86: =Template!CW50 -> 0 | CX86: =Template!CX50 -> 0 | CY86: =Template!CY50 -> 0 | CZ86: =Template!CZ50 -> 0 | DA86: =Template!DA50 -> 0 | DB86: =Template!DB50 -> 0 | DC86: =Template!DC50 -> 0 | DD86: =Template!DD50 -> 0 | DE86: =Template!DE50 -> 0 | DF86: =Template!DF50 -> 0 | DG86: =Template!DG50 -> 0 | DH86: =Template!DH50 -> 0 | DI86: =Template!DI50 -> 0
C87: Cash Flow to Project | H87: =H82+H83-H84-H85+H86-1E-29 -> -1e-29 | I87: =I82+I83-I84-I85+I86 -> 0 | J87: 0 | K87: 0 | L87: 0 | M87: 0 | N87: 0 | O87: 0 | P87: 0 | Q87: 0 | R87: 0 | S87: 0 | T87: -2884311 | U87: -2884311 | V87: -2884311 | W87: -2884311 | X87: -2884311 | Y87: 267455.9354 | Z87: 281541.089 | AA87: 290765.3379 | AB87: 250570.1812 | AC87: 213329.3811 | AD87: 161643.7598 | AE87: 143458.4905 | AF87: 154121.4008 | AG87: 167140.2906 | AH87: 235071.3829 | AI87: 253569.7728 | AJ87: 291527.0527 | AK87: 295565.3159 | AL87: 310765.4101 | AM87: 320907.2629 | AN87: 276539.9119 | AO87: 235440.0931 | AP87: 178420.7044 | AQ87: 158350.5483 | AR87: 170088.6471 | AS87: 184421.0885 | AT87: 259275.1368 | AU87: 279632.9157 | AV87: 321428.857 | AW87: 326885.5644 | AX87: 323414.6839 | AY87: 335013.5397 | AZ87: 289555.9953 | BA87: 247257.1298 | BB87: 187914.8287 | BC87: 167288.7039 | BD87: 180280.9551 | BE87: 196114.0715 | BF87: 276646.8733 | BG87: 299327.8129 | BH87: 345175.0288 | BI87: 351031.9572 | BJ87: 327659.9584 | BK87: 339424.5677 | BL87: 293283.6522 | BM87: 250349.2368 | BN87: 190118.9516 | BO87: 169180.8467 | BP87: 182360.3388 | BQ87: 198422.5369 | BR87: 280142.8433 | BS87: 303152.9471 | BT87: 349671.681 | BU87: =BU82+BU83-BU84-BU85+BU86 -> 355607.7699 | BV87: 331882.8074 | BW87: 343813.8194 | BX87: 296984.4082 | BY87: 253409.6799 | BZ87: 192284.986 | CA87: 171032.3832 | CB87: 184399.9405 | CC87: 200692.308 | CD87: 283607.5165 | CE87: 306948.4661 | CF87: 354142.615 | CG87: 360157.8617 | CH87: 336077.126 | CI87: 348175.0974 | CJ87: 300652.2505 | CK87: 256432.6169 | CL87: 194407.3456 | CM87: 172837.7943 | CN87: 186394.1432 | CO87: 202917.6548 | CP87: 287034.7264 | CQ87: 310708.0534 | CR87: 358581.2464 | CS87: 364675.5798 | CT87: 340236.3407 | CU87: 352501.73 | CV87: 304280.7038 | CW87: 259411.7546 | CX87: 196480.0097 | CY87: 174591.131 | CZ87: 3399323.839 | DA87: 3437138.434 | DB87: 3474164.191 | DC87: 3510296.9 | DD87: 3545424.454 | DE87: 3579426.268 | DF87: 3612172.66 | DG87: =DG82+DG83-DG84-DG85+DG86 -> 3643524.177 | DH87: 3673330.868 | DI87: 3701431.515
B88: EBITDA of Project | H88: =H82-H84 -> 0 | I88: =I82-I84 -> 0 | J88: 0 | K88: 0 | L88: 0 | M88: 0 | N88: 0 | O88: 0 | P88: 0 | Q88: 0 | R88: 0 | S88: 0 | T88: 0 | U88: 0 | V88: 0 | W88: 0 | X88: 0 | Y88: 267455.9354 | Z88: 281541.089 | AA88: 290765.3379 | AB88: 250570.1812 | AC88: 213329.3811 | AD88: 161643.7598 | AE88: 143458.4905 | AF88: 154121.4008 | AG88: 167140.2906 | AH88: 235071.3829 | AI88: 253569.7728 | AJ88: 291527.0527 | AK88: 295565.3159 | AL88: 310765.4101 | AM88: 320907.2629 | AN88: 276539.9119 | AO88: 235440.0931 | AP88: 178420.7044 | AQ88: 158350.5483 | AR88: 170088.6471 | AS88: 184421.0885 | AT88: 259275.1368 | AU88: 279632.9157 | AV88: 321428.857 | AW88: 326885.5644 | AX88: 323414.6839 | AY88: 335013.5397 | AZ88: 289555.9953 | BA88: 247257.1298 | BB88: 187914.8287 | BC88: 167288.7039 | BD88: 180280.9551 | BE88: 196114.0715 | BF88: 276646.8733 | BG88: 299327.8129 | BH88: 345175.0288 | BI88: 351031.9572 | BJ88: 327659.9584 | BK88: 339424.5677 | BL88: 293283.6522 | BM88: 250349.2368 | BN88: 190118.9516 | BO88: 169180.8467 | BP88: 182360.3388 | BQ88: 198422.5369 | BR88: 280142.8433 | BS88: 303152.9471 | BT88: 349671.681 | BU88: =BU82-BU84 -> 355607.7699 | BV88: 331882.8074 | BW88: 343813.8194 | BX88: 296984.4082 | BY88: 253409.6799 | BZ88: 192284.986 | CA88: 171032.3832 | CB88: 184399.9405 | CC88: 200692.308 | CD88: 283607.5165 | CE88: 306948.4661 | CF88: 354142.615 | CG88: 360157.8617 | CH88: 336077.126 | CI88: 348175.0974 | CJ88: 300652.2505 | CK88: 256432.6169 | CL88: 194407.3456 | CM88: 172837.7943 | CN88: 186394.1432 | CO88: 202917.6548 | CP88: 287034.7264 | CQ88: 310708.0534 | CR88: 358581.2464 | CS88: 364675.5798 | CT88: 340236.3407 | CU88: 352501.73 | CV88: 304280.7038 | CW88: 259411.7546 | CX88: 196480.0097 | CY88: 174591.131 | CZ88: 3399323.839 | DA88: 3437138.434 | DB88: 3474164.191 | DC88: 3510296.9 | DD88: 3545424.454 | DE88: 3579426.268 | DF88: 3612172.66 | DG88: =DG82-DG84 -> 3643524.177 | DH88: 3673330.868 | DI88: 3701431.515
B90: Annual IRR Pre-tax Project IRR | F90: =XIRR(H87:DF87,H3:DF3) -> 0.2107427299
B92: Acccumulated Cash Flow | H92: =G92+H87 -> -1e-29 | I92: -1e-29 | J92: -1e-29 | K92: -1e-29 | L92: -1e-29 | M92: -1e-29 | N92: -1e-29 | O92: -1e-29 | P92: -1e-29 | Q92: -1e-29 | R92: -1e-29 | S92: -1e-29 | T92: -2884311 | U92: -5768622 | V92: -8652933 | W92: -11537244 | X92: -14421555 | Y92: -14154099.06 | Z92: -13872557.98 | AA92: -13581792.64 | AB92: -13331222.46 | AC92: -13117893.08 | AD92: -12956249.32 | AE92: -12812790.83 | AF92: -12658669.42 | AG92: -12491529.13 | AH92: -12256457.75 | AI92: -12002887.98 | AJ92: -11711360.93 | AK92: -11415795.61 | AL92: -11105030.2 | AM92: -10784122.94 | AN92: -10507583.02 | AO92: -10272142.93 | AP92: -10093722.23 | AQ92: -9935371.679 | AR92: -9765283.032 | AS92: -9580861.943 | AT92: -9321586.806 | AU92: -9041953.891 | AV92: -8720525.034 | AW92: -8393639.469 | AX92: -8070224.785 | AY92: -7735211.246 | AZ92: -7445655.25 | BA92: -7198398.121 | BB92: -7010483.292 | BC92: -6843194.588 | BD92: -6662913.633 | BE92: -6466799.561 | BF92: -6190152.688 | BG92: -5890824.875 | BH92: -5545649.846 | BI92: -5194617.889 | BJ92: -4866957.931 | BK92: -4527533.363 | BL92: -4234249.711 | BM92: -3983900.474 | BN92: -3793781.522 | BO92: -3624600.676 | BP92: -3442240.337 | BQ92: -3243817.8 | BR92: -2963674.957 | BS92: -2660522.01 | BT92: =BS92+BT87 -> -2310850.329 | BU92: -1955242.559 | BV92: -1623359.751 | BW92: -1279545.932 | BX92: -982561.5237 | BY92: -729151.8438 | BZ92: -536866.8577 | CA92: -365834.4746 | CB92: -181434.5341 | CC92: 19257.7739 | CD92: 302865.2904 | CE92: 609813.7565 | CF92: 963956.3716 | CG92: 1324114.233 | CH92: 1660191.359 | CI92: 2008366.457 | CJ92: 2309018.707 | CK92: 2565451.324 | CL92: 2759858.67 | CM92: 2932696.464 | CN92: 3119090.607 | CO92: 3322008.262 | CP92: 3609042.988 | CQ92: 3919751.042 | CR92: 4278332.288 | CS92: 4643007.868 | CT92: 4983244.209 | CU92: 5335745.939 | CV92: 5640026.642 | CW92: 5899438.397 | CX92: 6095918.407 | CY92: 6270509.538 | CZ92: 9669833.377 | DA92: 13106971.81 | DB92: 16581136 | DC92: 20091432.9 | DD92: 23636857.36 | DE92: 27216283.62 | DF92: 30828456.28 | DG92: =DF92+DG87 -> 34471980.46 | DH92: =DG92+DH87 -> 38145311.33 | DI92: =DH92+DI87 -> 41846742.84
B93: Payback Date | F93: =INDEX(3:3,G93) -> 2025-02-01 | G93: =MATCH(0,92:92)+1 -> 81
B94: Period of Payback | F94: =DAYS360(F7,F93,TRUE)/360 -> 4.666666667
A96: Customer Perspective
B97: Guranteed Savings | E97: % | G97: =INDEX('Master Assumptions'!AA:AA,Template!E1) -> 0 | H97: =IF(H10,$G$97,1)*H7 -> 0 | I97: =IF(I10,$G$97,1)*I7 -> 0 | J97: 0 | K97: 0 | L97: 0 | M97: 0 | N97: 0 | O97: 0 | P97: 0 | Q97: 0 | R97: 0 | S97: 0 | T97: 0 | U97: 0 | V97: 0 | W97: 0 | X97: 0 | Y97: 0 | Z97: 0 | AA97: 0 | AB97: 0 | AC97: 0 | AD97: 0 | AE97: 0 | AF97: 0 | AG97: 0 | AH97: 0 | AI97: 0 | AJ97: 0 | AK97: 0 | AL97: 0 | AM97: 0 | AN97: 0 | AO97: 0 | AP97: 0 | AQ97: 0 | AR97: 0 | AS97: 0 | AT97: 0 | AU97: 0 | AV97: 0 | AW97: 0 | AX97: 0 | AY97: 0 | AZ97: 0 | BA97: 0 | BB97: 0 | BC97: 0 | BD97: 0 | BE97: 0 | BF97: 0 | BG97: 0 | BH97: 0 | BI97: 0 | BJ97: 0 | BK97: 0 | BL97: 0 | BM97: 0 | BN97: 0 | BO97: 0 | BP97: 0 | BQ97: 0 | BR97: 0 | BS97: 0 | BT97: 0 | BU97: =IF(BU10,$G$97,1)*BU7 -> 0 | BV97: 0 | BW97: 0 | BX97: 0 | BY97: 0 | BZ97: 0 | CA97: 0 | CB97: 0 | CC97: 0 | CD97: 0 | CE97: 0 | CF97: 0 | CG97: 0 | CH97: 0 | CI97: 0 | CJ97: 0 | CK97: 0 | CL97: 0 | CM97: 0 | CN97: 0 | CO97: 0 | CP97: 0 | CQ97: 0 | CR97: 0 | CS97: 0 | CT97: 0 | CU97: 0 | CV97: 0 | CW97: 0 | CX97: 0 | CY97: 0 | CZ97: 0 | DA97: 0 | DB97: 0 | DC97: 1 | DD97: 1 | DE97: 1 | DF97: 1 | DG97: =IF(DG10,$G$97,1)*DG7 -> 1 | DH97: 1 | DI97: 1
B98: 1-Guaranteed Savinga | H98: =1-H97 -> 1 | I98: =1-I97 -> 1 | J98: 1 | K98: 1 | L98: 1 | M98: 1 | N98: 1 | O98: 1 | P98: 1 | Q98: 1 | R98: 1 | S98: 1 | T98: 1 | U98: 1 | V98: 1 | W98: 1 | X98: 1 | Y98: 1 | Z98: 1 | AA98: 1 | AB98: 1 | AC98: 1 | AD98: 1 | AE98: 1 | AF98: 1 | AG98: 1 | AH98: 1 | AI98: 1 | AJ98: 1 | AK98: 1 | AL98: 1 | AM98: 1 | AN98: 1 | AO98: 1 | AP98: 1 | AQ98: 1 | AR98: 1 | AS98: 1 | AT98: 1 | AU98: 1 | AV98: 1 | AW98: 1 | AX98: 1 | AY98: 1 | AZ98: 1 | BA98: 1 | BB98: 1 | BC98: 1 | BD98: 1 | BE98: 1 | BF98: 1 | BG98: 1 | BH98: 1 | BI98: 1 | BJ98: 1 | BK98: 1 | BL98: 1 | BM98: 1 | BN98: 1 | BO98: 1 | BP98: 1 | BQ98: 1 | BR98: 1 | BS98: 1 | BT98: 1 | BU98: =1-BU97 -> 1 | BV98: 1 | BW98: 1 | BX98: 1 | BY98: 1 | BZ98: 1 | CA98: 1 | CB98: 1 | CC98: 1 | CD98: 1 | CE98: 1 | CF98: 1 | CG98: 1 | CH98: 1 | CI98: 1 | CJ98: 1 | CK98: 1 | CL98: 1 | CM98: 1 | CN98: 1 | CO98: 1 | CP98: 1 | CQ98: 1 | CR98: 1 | CS98: 1 | CT98: 1 | CU98: 1 | CV98: 1 | CW98: 1 | CX98: 1 | CY98: 1 | CZ98: 1 | DA98: 1 | DB98: 1 | DC98: 0 | DD98: 0 | DE98: =1-DE97 -> 0 | DF98: =1-DF97 -> 0 | DG98: =1-DG97 -> 0 | DH98: 0 | DI98: 0
B99: Utility Tariff with Inflation | E99: EGP/kWh | H99: =H74*H98 -> 1.05 | I99: 1.05 | J99: 1.05 | K99: 1.05 | L99: 1.05 | M99: 1.05 | N99: 1.218 | O99: 1.218 | P99: 1.218 | Q99: 1.218 | R99: 1.218 | S99: 1.218 | T99: 1.218 | U99: 1.218 | V99: 1.218 | W99: 1.218 | X99: 1.218 | Y99: 1.218 | Z99: 1.41288 | AA99: 1.41288 | AB99: 1.41288 | AC99: 1.41288 | AD99: 1.41288 | AE99: 1.41288 | AF99: 1.41288 | AG99: 1.41288 | AH99: 1.41288 | AI99: 1.41288 | AJ99: 1.41288 | AK99: 1.41288 | AL99: 1.6389408 | AM99: 1.6389408 | AN99: 1.6389408 | AO99: 1.6389408 | AP99: 1.6389408 | AQ99: 1.6389408 | AR99: 1.6389408 | AS99: 1.6389408 | AT99: 1.6389408 | AU99: 1.6389408 | AV99: 1.6389408 | AW99: 1.6389408 | AX99: 1.786445472 | AY99: 1.786445472 | AZ99: 1.786445472 | BA99: 1.786445472 | BB99: 1.786445472 | BC99: 1.786445472 | BD99: 1.786445472 | BE99: 1.786445472 | BF99: 1.786445472 | BG99: 1.786445472 | BH99: 1.786445472 | BI99: 1.786445472 | BJ99: 1.840038836 | BK99: 1.840038836 | BL99: 1.840038836 | BM99: 1.840038836 | BN99: 1.840038836 | BO99: 1.840038836 | BP99: 1.840038836 | BQ99: 1.840038836 | BR99: 1.840038836 | BS99: 1.840038836 | BT99: =BT74*BT98 -> 1.840038836 | BU99: 1.840038836 | BV99: 1.895240001 | BW99: 1.895240001 | BX99: 1.895240001 | BY99: 1.895240001 | BZ99: 1.895240001 | CA99: 1.895240001 | CB99: 1.895240001 | CC99: 1.895240001 | CD99: 1.895240001 | CE99: 1.895240001 | CF99: 1.895240001 | CG99: 1.895240001 | CH99: 1.952097201 | CI99: 1.952097201 | CJ99: 1.952097201 | CK99: 1.952097201 | CL99: 1.952097201 | CM99: 1.952097201 | CN99: 1.952097201 | CO99: 1.952097201 | CP99: 1.952097201 | CQ99: 1.952097201 | CR99: 1.952097201 | CS99: 1.952097201 | CT99: 2.010660117 | CU99: 2.010660117 | CV99: 2.010660117 | CW99: 2.010660117 | CX99: 2.010660117 | CY99: 2.010660117 | CZ99: 2.070979921 | DA99: 2.133109318 | DB99: 2.197102598 | DC99: 0 | DD99: 0 | DE99: 0 | DF99: 0 | DG99: =DG74*DG98 -> 0 | DH99: 0 | DI99: 0
B101: Production | E101: kWh | H101: =Template!H31 -> 0 | I101: =Template!I31 -> 0 | J101: =Template!J31 -> 0 | K101: =Template!K31 -> 0 | L101: =Template!L31 -> 0 | M101: =Template!M31 -> 0 | N101: =Template!N31 -> 0 | O101: =Template!O31 -> 0 | P101: =Template!P31 -> 0 | Q101: =Template!Q31 -> 0 | R101: =Template!R31 -> 0 | S101: =Template!S31 -> 0 | T101: =Template!T31 -> 0 | U101: =Template!U31 -> 0 | V101: =Template!V31 -> 0 | W101: =Template!W31 -> 0 | X101: =Template!X31 -> 0 | Y101: =Template!Y31 -> 225738.5839 | Z101: =Template!Z31 -> 204605.4606 | AA101: =Template!AA31 -> 211168.4904 | AB101: =Template!AB31 -> 182753.9614 | AC101: =Template!AC31 -> 156430.672 | AD101: =Template!AD31 -> 119883.9349 | AE101: =Template!AE31 -> 107048.1076 | AF101: =Template!AF31 -> 114630.5039 | AG101: =Template!AG31 -> 123880.63 | AH101: =Template!AH31 -> 171996.4254 | AI101: =Template!AI31 -> 185125.261 | AJ101: =Template!AJ31 -> 212026.8293 | AK101: =Template!AK31 -> 214921.6271 | AL101: =Template!AL31 -> 194583.3762 | AM101: =Template!AM31 -> 200803.4053 | AN101: =Template!AN31 -> 173764.8404 | AO101: =Template!AO31 -> 148720.1678 | AP101: =Template!AP31 -> 113962.3755 | AQ101: =Template!AQ31 -> 101749.3732 | AR101: =Template!AR31 -> 108944.3941 | AS101: =Template!AS31 -> 117722.5659 | AT101: =Template!AT31 -> 163428.22 | AU101: =Template!AU31 -> 175883.1815 | AV101: =Template!AV31 -> 201418.8578 | AW101: =Template!AW31 -> 204782.3626 | AX101: =Template!AX31 -> 185962.3096 | AY101: =Template!AY31 -> 192486.6929 | AZ101: =Template!AZ31 -> 167072.7736 | BA101: =Template!BA31 -> 143427.1956 | BB101: =Template!BB31 -> 110241.4067 | BC101: =Template!BC31 -> 98728.01025 | BD101: =Template!BD31 -> 106033.408 | BE101: =Template!BE31 -> 114929.2496 | BF101: =Template!BF31 -> 160042.2973 | BG101: =Template!BG31 -> 172771.7754 | BH101: =Template!BH31 -> 198469.2729 | BI101: =Template!BI31 -> 201781.5915 | BJ101: =Template!BJ31 -> 183235.5607 | BK101: =Template!BK31 -> 189662.4557 | BL101: =Template!BL31 -> 164619.8347 | BM101: =Template!BM31 -> 141320.0552 | BN101: =Template!BN31 -> 108620.7613 | BO101: =Template!BO31 -> 97275.68049 | BP101: =Template!BP31 -> 104472.5998 | BQ101: =Template!BQ31 -> 113236.3948 | BR101: =Template!BR31 -> 157683.4134 | BS101: =Template!BS31 -> 170223.6101 | BT101: =Template!BT31 -> 195540.1916 | BU101: =Template!BU31 -> 198801.6797 | BV101: =Template!BV31 -> 180527.7663 | BW101: =Template!BW31 -> 186857.8507 | BX101: =Template!BX31 -> 162183.9471 | BY101: =Template!BY31 -> 139227.5623 | BZ101: =Template!BZ31 -> 107011.3817 | CA101: =Template!CA31 -> 95833.44637 | CB101: =Template!CB31 -> 102922.6413 | CC101: =Template!CC31 -> 111555.3077 | CD101: =Template!CD31 -> 155340.9269 | CE101: =Template!CE31 -> 167693.158 | CF101: =Template!CF31 -> 192631.4713 | CG101: =Template!CG31 -> 195842.4823 | CH101: =Template!CH31 -> 177838.7948 | CI101: =Template!CI31 -> 184072.7416 | CJ101: =Template!CJ31 -> 159764.9922 | CK101: =Template!CK31 -> 137149.615 | CL101: =Template!CL31 -> 105413.1893 | CM101: =Template!CM31 -> 94401.2377 | CN101: =Template!CN31 -> 101383.4571 | CO101: =Template!CO31 -> 109885.9063 | CP101: =Template!CP31 -> 153014.7239 | CQ101: =Template!CQ31 -> 165180.2959 | CR101: =Template!CR31 -> 189742.9705 | CS101: =Template!CS31 -> 192903.8553 | CT101: =Template!CT31 -> 175168.5151 | CU101: =Template!CU31 -> 181306.9926 | CV101: =Template!CV31 -> 157362.8522 | CW101: =Template!CW31 -> 135086.1122 | CX101: =Template!CX31 -> 103826.1066 | CY101: =Template!CY31 -> 92978.98481 | CZ101: =Template!CZ31 -> 1718743.651 | DA101: =Template!DA31 -> 1692417.23 | DB101: =Template!DB31 -> 1666273.814 | DC101: =Template!DC31 -> 1640312.129 | DD101: =Template!DD31 -> 1614530.912 | DE101: =Template!DE31 -> 1588928.91 | DF101: =Template!DF31 -> 1563504.876 | DG101: =Template!DG31 -> 1538257.573 | DH101: =Template!DH31 -> 1513185.772 | DI101: =Template!DI31 -> 1488288.255
B102: Revenues for SPV | E102: EGP | H102: =H99*H98*H101 -> 0 | I102: =I99*I98*I101 -> 0 | J102: 0 | K102: 0 | L102: 0 | M102: 0 | N102: 0 | O102: 0 | P102: 0 | Q102: 0 | R102: 0 | S102: 0 | T102: 0 | U102: 0 | V102: 0 | W102: 0 | X102: 0 | Y102: 274949.5952 | Z102: 289082.9632 | AA102: 298355.7368 | AB102: 258209.4169 | AC102: 221017.7679 | AD102: 169381.6139 | AE102: 151246.1302 | AF102: 161959.1464 | AG102: 175028.4645 | AH102: 243010.3096 | AI102: 261559.7788 | AJ102: 299568.4665 | AK102: 303658.4685 | AL102: 318910.6343 | AM102: 329104.8937 | AN102: 284790.2865 | AO102: 243743.5509 | AP102: 186777.5868 | AQ102: 166761.1992 | AR102: 178553.4124 | AS102: 192940.3163 | AT102: 267849.1775 | AU102: 288262.1222 | AV102: 330113.584 | AW102: 335626.1692 | AX102: 332211.526 | AY102: 343866.9809 | AZ102: 298466.3999 | BA102: 256224.8641 | BB102: 196940.2618 | BC102: 176372.2069 | BD102: 189422.9016 | BE102: 205314.8376 | BF102: 285906.8374 | BG102: 308647.3558 | BH102: 354554.5339 | BI102: 360471.8104 | BJ102: 337160.5478 | BK102: 348986.2843 | BL102: 302906.8891 | BM102: 260034.3899 | BN102: 199866.4193 | BO102: 178991.0299 | BP102: 192233.6409 | BQ102: 208359.3642 | BR102: 290143.6045 | BS102: 313218.0535 | BT102: 359801.5465 | BU102: =BU99*BU98*BU101 -> 365802.8113 | BV102: 342143.4441 | BW102: 354140.4733 | BX102: 307377.5041 | BY102: 263869.6453 | BZ102: 202812.2511 | CA102: 181627.381 | CB102: 195063.1068 | CC102: 211424.0815 | CD102: 294408.3386 | CE102: 317818.781 | CF102: 365082.8699 | CG102: 371168.5064 | CH102: 347158.6135 | CI102: 359327.8836 | CJ102: 311876.7941 | CK102: 267729.3795 | CL102: 205776.7919 | CM102: 184280.3919 | CN102: 197910.3629 | CO102: 214507.9702 | CP102: 298699.6142 | CQ102: 322447.9934 | CR102: 370396.7216 | CS102: 376567.0761 | CT102: 352204.3472 | CU102: 364546.739 | CV102: 316403.2109 | CW102: 271612.2582 | CX102: 208759.0117 | CY102: 186949.1365 | CZ102: 3559483.59 | DA102: 3610110.965 | DB102: 3660974.525 | DC102: 0 | DD102: 0 | DE102: 0 | DF102: 0 | DG102: =DG99*DG98*DG101 -> 0 | DH102: 0 | DI102: 0
B103: Savings for Customer | E103: EGP | H103: =H82-H102 -> 0 | I103: 0 | J103: 0 | K103: 0 | L103: 0 | M103: 0 | N103: 0 | O103: 0 | P103: 0 | Q103: 0 | R103: 0 | S103: 0 | T103: 0 | U103: 0 | V103: 0 | W103: 0 | X103: 0 | Y103: 0 | Z103: 0 | AA103: 0 | AB103: 0 | AC103: 0 | AD103: 0 | AE103: 0 | AF103: 0 | AG103: 0 | AH103: 0 | AI103: 0 | AJ103: 0 | AK103: 0 | AL103: 0 | AM103: 0 | AN103: 0 | AO103: 0 | AP103: 0 | AQ103: 0 | AR103: 0 | AS103: 0 | AT103: 0 | AU103: 0 | AV103: 0 | AW103: 0 | AX103: 0 | AY103: 0 | AZ103: 0 | BA103: 0 | BB103: 0 | BC103: 0 | BD103: 0 | BE103: 0 | BF103: 0 | BG103: 0 | BH103: 0 | BI103: 0 | BJ103: 0 | BK103: 0 | BL103: 0 | BM103: 0 | BN103: 0 | BO103: 0 | BP103: 0 | BQ103: 0 | BR103: 0 | BS103: 0 | BT103: =BT82-BT102 -> 0 | BU103: 0 | BV103: 0 | BW103: 0 | BX103: 0 | BY103: 0 | BZ103: 0 | CA103: 0 | CB103: 0 | CC103: 0 | CD103: 0 | CE103: 0 | CF103: 0 | CG103: 0 | CH103: 0 | CI103: 0 | CJ103: 0 | CK103: 0 | CL103: 0 | CM103: 0 | CN103: 0 | CO103: 0 | CP103: 0 | CQ103: 0 | CR103: 0 | CS103: 0 | CT103: 0 | CU103: 0 | CV103: 0 | CW103: 0 | CX103: 0 | CY103: 0 | CZ103: 0 | DA103: 0 | DB103: 0 | DC103: 3712052.061 | DD103: 3763320.027 | DE103: 3814753.487 | DF103: 3866326.057 | DG103: =DG82-DG102 -> 3918009.845 | DH103: 3969775.39 | DI103: 4021591.598
B104: O&M Cost of Customer | E104: EGP | H104: =NOT(H10)*H63 -> 0 | I104: 0 | J104: 0 | K104: 0 | L104: 0 | M104: 0 | N104: 0 | O104: 0 | P104: 0 | Q104: 0 | R104: 0 | S104: 0 | T104: 0 | U104: 0 | V104: 0 | W104: 0 | X104: 0 | Y104: 0 | Z104: 0 | AA104: 0 | AB104: 0 | AC104: 0 | AD104: 0 | AE104: 0 | AF104: 0 | AG104: 0 | AH104: 0 | AI104: 0 | AJ104: 0 | AK104: 0 | AL104: 0 | AM104: 0 | AN104: 0 | AO104: 0 | AP104: 0 | AQ104: 0 | AR104: 0 | AS104: 0 | AT104: 0 | AU104: 0 | AV104: 0 | AW104: 0 | AX104: 0 | AY104: 0 | AZ104: 0 | BA104: 0 | BB104: 0 | BC104: 0 | BD104: 0 | BE104: 0 | BF104: 0 | BG104: 0 | BH104: 0 | BI104: 0 | BJ104: 0 | BK104: 0 | BL104: 0 | BM104: 0 | BN104: 0 | BO104: 0 | BP104: 0 | BQ104: 0 | BR104: 0 | BS104: 0 | BT104: =NOT(BT10)*BT63 -> 0 | BU104: 0 | BV104: 0 | BW104: 0 | BX104: 0 | BY104: 0 | BZ104: 0 | CA104: 0 | CB104: 0 | CC104: 0 | CD104: 0 | CE104: 0 | CF104: 0 | CG104: 0 | CH104: 0 | CI104: 0 | CJ104: 0 | CK104: 0 | CL104: 0 | CM104: 0 | CN104: 0 | CO104: 0 | CP104: 0 | CQ104: 0 | CR104: 0 | CS104: 0 | CT104: 0 | CU104: 0 | CV104: 0 | CW104: 0 | CX104: 0 | CY104: 0 | CZ104: 0 | DA104: 0 | DB104: 0 | DC104: 201755.1602 | DD104: 217895.573 | DE104: 235327.2189 | DF104: 254153.3964 | DG104: =NOT(DG10)*DG63 -> 274485.6681 | DH104: 296444.5215 | DI104: 320160.0833
B105: Net Savigns After O&M for Customer | E105: EGP | H105: =H103-H104 -> 0 | I105: =I103-I104 -> 0 | J105: 0 | K105: 0 | L105: 0 | M105: 0 | N105: 0 | O105: 0 | P105: 0 | Q105: 0 | R105: 0 | S105: 0 | T105: 0 | U105: 0 | V105: 0 | W105: 0 | X105: 0 | Y105: 0 | Z105: 0 | AA105: 0 | AB105: 0 | AC105: 0 | AD105: 0 | AE105: 0 | AF105: 0 | AG105: 0 | AH105: 0 | AI105: 0 | AJ105: 0 | AK105: 0 | AL105: 0 | AM105: 0 | AN105: 0 | AO105: 0 | AP105: 0 | AQ105: 0 | AR105: 0 | AS105: 0 | AT105: 0 | AU105: 0 | AV105: 0 | AW105: 0 | AX105: 0 | AY105: 0 | AZ105: 0 | BA105: 0 | BB105: 0 | BC105: 0 | BD105: 0 | BE105: 0 | BF105: 0 | BG105: 0 | BH105: 0 | BI105: 0 | BJ105: 0 | BK105: 0 | BL105: 0 | BM105: 0 | BN105: 0 | BO105: 0 | BP105: 0 | BQ105: 0 | BR105: 0 | BS105: 0 | BT105: 0 | BU105: =BU103-BU104 -> 0 | BV105: 0 | BW105: 0 | BX105: 0 | BY105: 0 | BZ105: 0 | CA105: 0 | CB105: 0 | CC105: 0 | CD105: 0 | CE105: 0 | CF105: 0 | CG105: 0 | CH105: 0 | CI105: 0 | CJ105: 0 | CK105: 0 | CL105: 0 | CM105: 0 | CN105: 0 | CO105: 0 | CP105: 0 | CQ105: 0 | CR105: 0 | CS105: 0 | CT105: 0 | CU105: 0 | CV105: 0 | CW105: 0 | CX105: 0 | CY105: 0 | CZ105: 0 | DA105: 0 | DB105: 0 | DC105: 3510296.9 | DD105: 3545424.454 | DE105: =DE103-DE104 -> 3579426.268 | DF105: =DF103-DF104 -> 3612172.66 | DG105: =DG103-DG104 -> 3643524.177 | DH105: 3673330.868 | DI105: 3701431.515
B106: Accumulated Savings For Client | E106: EGP | H106: =G106+H105 -> 0 | I106: =H106+I105 -> 0 | J106: 0 | K106: 0 | L106: 0 | M106: 0 | N106: 0 | O106: 0 | P106: 0 | Q106: 0 | R106: 0 | S106: 0 | T106: 0 | U106: 0 | V106: 0 | W106: 0 | X106: 0 | Y106: 0 | Z106: 0 | AA106: 0 | AB106: 0 | AC106: 0 | AD106: 0 | AE106: 0 | AF106: 0 | AG106: 0 | AH106: 0 | AI106: 0 | AJ106: 0 | AK106: 0 | AL106: 0 | AM106: 0 | AN106: 0 | AO106: 0 | AP106: 0 | AQ106: 0 | AR106: 0 | AS106: 0 | AT106: 0 | AU106: 0 | AV106: 0 | AW106: 0 | AX106: 0 | AY106: 0 | AZ106: 0 | BA106: 0 | BB106: 0 | BC106: 0 | BD106: 0 | BE106: 0 | BF106: 0 | BG106: 0 | BH106: 0 | BI106: 0 | BJ106: 0 | BK106: 0 | BL106: 0 | BM106: 0 | BN106: 0 | BO106: 0 | BP106: 0 | BQ106: 0 | BR106: 0 | BS106: 0 | BT106: 0 | BU106: =BT106+BU105 -> 0 | BV106: 0 | BW106: 0 | BX106: 0 | BY106: 0 | BZ106: 0 | CA106: 0 | CB106: 0 | CC106: 0 | CD106: 0 | CE106: 0 | CF106: 0 | CG106: 0 | CH106: 0 | CI106: 0 | CJ106: 0 | CK106: 0 | CL106: 0 | CM106: 0 | CN106: 0 | CO106: 0 | CP106: 0 | CQ106: 0 | CR106: 0 | CS106: 0 | CT106: 0 | CU106: 0 | CV106: 0 | CW106: 0 | CX106: 0 | CY106: 0 | CZ106: 0 | DA106: 0 | DB106: 0 | DC106: 3510296.9 | DD106: 7055721.354 | DE106: =DD106+DE105 -> 10635147.62 | DF106: =DE106+DF105 -> 14247320.28 | DG106: =DF106+DG105 -> 17890844.46 | DH106: 21564175.33 | DI106: 25265606.84
A108: Cash Flow to Investor
B109: Revenues for SPV (Investor) | E109: EGP | H109: =Template!H102 -> 0 | I109: =Template!I102 -> 0 | J109: =Template!J102 -> 0 | K109: =Template!K102 -> 0 | L109: =Template!L102 -> 0 | M109: =Template!M102 -> 0 | N109: =Template!N102 -> 0 | O109: =Template!O102 -> 0 | P109: =Template!P102 -> 0 | Q109: =Template!Q102 -> 0 | R109: =Template!R102 -> 0 | S109: =Template!S102 -> 0 | T109: =Template!T102 -> 0 | U109: =Template!U102 -> 0 | V109: =Template!V102 -> 0 | W109: =Template!W102 -> 0 | X109: =Template!X102 -> 0 | Y109: =Template!Y102 -> 274949.5952 | Z109: =Template!Z102 -> 289082.9632 | AA109: =Template!AA102 -> 298355.7368 | AB109: =Template!AB102 -> 258209.4169 | AC109: =Template!AC102 -> 221017.7679 | AD109: =Template!AD102 -> 169381.6139 | AE109: =Template!AE102 -> 151246.1302 | AF109: =Template!AF102 -> 161959.1464 | AG109: =Template!AG102 -> 175028.4645 | AH109: =Template!AH102 -> 243010.3096 | AI109: =Template!AI102 -> 261559.7788 | AJ109: =Template!AJ102 -> 299568.4665 | AK109: =Template!AK102 -> 303658.4685 | AL109: =Template!AL102 -> 318910.6343 | AM109: =Template!AM102 -> 329104.8937 | AN109: =Template!AN102 -> 284790.2865 | AO109: =Template!AO102 -> 243743.5509 | AP109: =Template!AP102 -> 186777.5868 | AQ109: =Template!AQ102 -> 166761.1992 | AR109: =Template!AR102 -> 178553.4124 | AS109: =Template!AS102 -> 192940.3163 | AT109: =Template!AT102 -> 267849.1775 | AU109: =Template!AU102 -> 288262.1222 | AV109: =Template!AV102 -> 330113.584 | AW109: =Template!AW102 -> 335626.1692 | AX109: =Template!AX102 -> 332211.526 | AY109: =Template!AY102 -> 343866.9809 | AZ109: =Template!AZ102 -> 298466.3999 | BA109: =Template!BA102 -> 256224.8641 | BB109: =Template!BB102 -> 196940.2618 | BC109: =Template!BC102 -> 176372.2069 | BD109: =Template!BD102 -> 189422.9016 | BE109: =Template!BE102 -> 205314.8376 | BF109: =Template!BF102 -> 285906.8374 | BG109: =Template!BG102 -> 308647.3558 | BH109: =Template!BH102 -> 354554.5339 | BI109: =Template!BI102 -> 360471.8104 | BJ109: =Template!BJ102 -> 337160.5478 | BK109: =Template!BK102 -> 348986.2843 | BL109: =Template!BL102 -> 302906.8891 | BM109: =Template!BM102 -> 260034.3899 | BN109: =Template!BN102 -> 199866.4193 | BO109: =Template!BO102 -> 178991.0299 | BP109: =Template!BP102 -> 192233.6409 | BQ109: =Template!BQ102 -> 208359.3642 | BR109: =Template!BR102 -> 290143.6045 | BS109: =Template!BS102 -> 313218.0535 | BT109: =Template!BT102 -> 359801.5465 | BU109: =Template!BU102 -> 365802.8113 | BV109: =Template!BV102 -> 342143.4441 | BW109: =Template!BW102 -> 354140.4733 | BX109: =Template!BX102 -> 307377.5041 | BY109: =Template!BY102 -> 263869.6453 | BZ109: =Template!BZ102 -> 202812.2511 | CA109: =Template!CA102 -> 181627.381 | CB109: =Template!CB102 -> 195063.1068 | CC109: =Template!CC102 -> 211424.0815 | CD109: =Template!CD102 -> 294408.3386 | CE109: =Template!CE102 -> 317818.781 | CF109: =Template!CF102 -> 365082.8699 | CG109: =Template!CG102 -> 371168.5064 | CH109: =Template!CH102 -> 347158.6135 | CI109: =Template!CI102 -> 359327.8836 | CJ109: =Template!CJ102 -> 311876.7941 | CK109: =Template!CK102 -> 267729.3795 | CL109: =Template!CL102 -> 205776.7919 | CM109: =Template!CM102 -> 184280.3919 | CN109: =Template!CN102 -> 197910.3629 | CO109: =Template!CO102 -> 214507.9702 | CP109: =Template!CP102 -> 298699.6142 | CQ109: =Template!CQ102 -> 322447.9934 | CR109: =Template!CR102 -> 370396.7216 | CS109: =Template!CS102 -> 376567.0761 | CT109: =Template!CT102 -> 352204.3472 | CU109: =Template!CU102 -> 364546.739 | CV109: =Template!CV102 -> 316403.2109 | CW109: =Template!CW102 -> 271612.2582 | CX109: =Template!CX102 -> 208759.0117 | CY109: =Template!CY102 -> 186949.1365 | CZ109: =Template!CZ102 -> 3559483.59 | DA109: =Template!DA102 -> 3610110.965 | DB109: =Template!DB102 -> 3660974.525 | DC109: =Template!DC102 -> 0 | DD109: =Template!DD102 -> 0 | DE109: =Template!DE102 -> 0 | DF109: =Template!DF102 -> 0 | DG109: =Template!DG102 -> 0 | DH109: =Template!DH102 -> 0 | DI109: =Template!DI102 -> 0
B110: O&M Cost for Investor | E110: EGP | H110: =H84-H104 -> 0 | I110: 0 | J110: 0 | K110: 0 | L110: 0 | M110: 0 | N110: 0 | O110: 0 | P110: 0 | Q110: 0 | R110: 0 | S110: 0 | T110: 0 | U110: 0 | V110: 0 | W110: 0 | X110: 0 | Y110: 7493.659795 | Z110: 7541.874228 | AA110: 7590.398874 | AB110: 7639.235729 | AC110: 7688.386801 | AD110: 7737.854114 | AE110: 7787.6397 | AF110: 7837.745608 | AG110: 7888.1739 | AH110: 7938.926648 | AI110: 7990.005941 | AJ110: 8041.41388 | AK110: 8093.152579 | AL110: 8145.224166 | AM110: 8197.630784 | AN110: 8250.374587 | AO110: 8303.457746 | AP110: 8356.882443 | AQ110: 8410.650876 | AR110: 8464.765257 | AS110: 8519.227812 | AT110: 8574.04078 | AU110: 8629.206416 | AV110: 8684.72699 | AW110: 8740.604785 | AX110: 8796.8421 | AY110: 8853.441246 | AZ110: 8910.404554 | BA110: 8967.734365 | BB110: 9025.433038 | BC110: 9083.502946 | BD110: 9141.946478 | BE110: 9200.766036 | BF110: 9259.964042 | BG110: 9319.54293 | BH110: 9379.505149 | BI110: 9439.853168 | BJ110: 9500.589468 | BK110: 9561.716546 | BL110: 9623.236918 | BM110: 9685.153114 | BN110: 9747.467681 | BO110: 9810.183182 | BP110: 9873.302196 | BQ110: 9936.827319 | BR110: 10000.76117 | BS110: 10065.10636 | BT110: =BT84-BT104 -> 10129.86556 | BU110: 10195.04142 | BV110: 10260.63662 | BW110: 10326.65387 | BX110: 10393.09587 | BY110: 10459.96536 | BZ110: 10527.2651 | CA110: 10594.99784 | CB110: 10663.16637 | CC110: 10731.7735 | CD110: 10800.82206 | CE110: 10870.31487 | CF110: 10940.25481 | CG110: 11010.64474 | CH110: 11081.48755 | CI110: 11152.78618 | CJ110: 11224.54354 | CK110: 11296.76259 | CL110: 11369.4463 | CM110: 11442.59766 | CN110: 11516.21968 | CO110: 11590.31539 | CP110: 11664.88782 | CQ110: 11739.94006 | CR110: 11815.47519 | CS110: 11891.49631 | CT110: 11968.00656 | CU110: 12045.00907 | CV110: 12122.50702 | CW110: 12200.5036 | CX110: 12279.00201 | CY110: 12358.00548 | CZ110: 160159.751 | DA110: 172972.5311 | DB110: 186810.3335 | DC110: 0 | DD110: 0 | DE110: 0 | DF110: 0 | DG110: =DG84-DG104 -> 0 | DH110: 0 | DI110: 0
B111: EBIDTA | E111: =Template!E110 -> EGP | H111: =H109 - H110 -> 0 | I111: 0 | J111: 0 | K111: 0 | L111: 0 | M111: 0 | N111: 0 | O111: 0 | P111: 0 | Q111: 0 | R111: 0 | S111: 0 | T111: 0 | U111: 0 | V111: 0 | W111: 0 | X111: 0 | Y111: 267455.9354 | Z111: 281541.089 | AA111: 290765.3379 | AB111: 250570.1812 | AC111: 213329.3811 | AD111: 161643.7598 | AE111: 143458.4905 | AF111: 154121.4008 | AG111: 167140.2906 | AH111: 235071.3829 | AI111: 253569.7728 | AJ111: 291527.0527 | AK111: 295565.3159 | AL111: 310765.4101 | AM111: 320907.2629 | AN111: =AN109 - AN110 -> 276539.9119 | AO111: 235440.0931 | AP111: 178420.7044 | AQ111: 158350.5483 | AR111: 170088.6471 | AS111: 184421.0885 | AT111: 259275.1368 | AU111: 279632.9157 | AV111: 321428.857 | AW111: 326885.5644 | AX111: 323414.6839 | AY111: 335013.5397 | AZ111: 289555.9953 | BA111: 247257.1298 | BB111: 187914.8287 | BC111: 167288.7039 | BD111: 180280.9551 | BE111: 196114.0715 | BF111: 276646.8733 | BG111: 299327.8129 | BH111: 345175.0288 | BI111: 351031.9572 | BJ111: 327659.9584 | BK111: 339424.5677 | BL111: 293283.6522 | BM111: 250349.2368 | BN111: 190118.9516 | BO111: 169180.8467 | BP111: 182360.3388 | BQ111: 198422.5369 | BR111: 280142.8433 | BS111: 303152.9471 | BT111: =BT109 - BT110 -> 349671.681 | BU111: 355607.7699 | BV111: 331882.8074 | BW111: 343813.8194 | BX111: 296984.4082 | BY111: 253409.6799 | BZ111: 192284.986 | CA111: 171032.3832 | CB111: 184399.9405 | CC111: 200692.308 | CD111: 283607.5165 | CE111: 306948.4661 | CF111: 354142.615 | CG111: 360157.8617 | CH111: 336077.126 | CI111: 348175.0974 | CJ111: 300652.2505 | CK111: 256432.6169 | CL111: 194407.3456 | CM111: 172837.7943 | CN111: 186394.1432 | CO111: 202917.6548 | CP111: 287034.7264 | CQ111: 310708.0534 | CR111: 358581.2464 | CS111: 364675.5798 | CT111: 340236.3407 | CU111: 352501.73 | CV111: 304280.7038 | CW111: 259411.7546 | CX111: 196480.0097 | CY111: 174591.131 | CZ111: =CZ109 - CZ110 -> 3399323.839 | DA111: 3437138.434 | DB111: 3474164.191 | DC111: 0 | DD111: 0 | DE111: 0 | DF111: 0 | DG111: 0 | DH111: 0 | DI111: 0
B112: Investment Cost | E112: EGP | H112: =Template!H85 -> 0 | I112: =Template!I85 -> 0 | J112: =Template!J85 -> 0 | K112: =Template!K85 -> 0 | L112: =Template!L85 -> 0 | M112: =Template!M85 -> 0 | N112: =Template!N85 -> 0 | O112: =Template!O85 -> 0 | P112: =Template!P85 -> 0 | Q112: =Template!Q85 -> 0 | R112: =Template!R85 -> 0 | S112: =Template!S85 -> 0 | T112: =Template!T85 -> 3204790 | U112: =Template!U85 -> 3204790 | V112: =Template!V85 -> 3204790 | W112: =Template!W85 -> 3204790 | X112: =Template!X85 -> 3204790 | Y112: =Template!Y85 -> 0 | Z112: =Template!Z85 -> 0 | AA112: =Template!AA85 -> 0 | AB112: =Template!AB85 -> 0 | AC112: =Template!AC85 -> 0 | AD112: =Template!AD85 -> 0 | AE112: =Template!AE85 -> 0 | AF112: =Template!AF85 -> 0 | AG112: =Template!AG85 -> 0 | AH112: =Template!AH85 -> 0 | AI112: =Template!AI85 -> 0 | AJ112: =Template!AJ85 -> 0 | AK112: =Template!AK85 -> 0 | AL112: =Template!AL85 -> 0 | AM112: =Template!AM85 -> 0 | AN112: =Template!AN85 -> 0 | AO112: =Template!AO85 -> 0 | AP112: =Template!AP85 -> 0 | AQ112: =Template!AQ85 -> 0 | AR112: =Template!AR85 -> 0 | AS112: =Template!AS85 -> 0 | AT112: =Template!AT85 -> 0 | AU112: =Template!AU85 -> 0 | AV112: =Template!AV85 -> 0 | AW112: =Template!AW85 -> 0 | AX112: =Template!AX85 -> 0 | AY112: =Template!AY85 -> 0 | AZ112: =Template!AZ85 -> 0 | BA112: =Template!BA85 -> 0 | BB112: =Template!BB85 -> 0 | BC112: =Template!BC85 -> 0 | BD112: =Template!BD85 -> 0 | BE112: =Template!BE85 -> 0 | BF112: =Template!BF85 -> 0 | BG112: =Template!BG85 -> 0 | BH112: =Template!BH85 -> 0 | BI112: =Template!BI85 -> 0 | BJ112: =Template!BJ85 -> 0 | BK112: =Template!BK85 -> 0 | BL112: =Template!BL85 -> 0 | BM112: =Template!BM85 -> 0 | BN112: =Template!BN85 -> 0 | BO112: =Template!BO85 -> 0 | BP112: =Template!BP85 -> 0 | BQ112: =Template!BQ85 -> 0 | BR112: =Template!BR85 -> 0 | BS112: =Template!BS85 -> 0 | BT112: =Template!BT85 -> 0 | BU112: =Template!BU85 -> 0 | BV112: =Template!BV85 -> 0 | BW112: =Template!BW85 -> 0 | BX112: =Template!BX85 -> 0 | BY112: =Template!BY85 -> 0 | BZ112: =Template!BZ85 -> 0 | CA112: =Template!CA85 -> 0 | CB112: =Template!CB85 -> 0 | CC112: =Template!CC85 -> 0 | CD112: =Template!CD85 -> 0 | CE112: =Template!CE85 -> 0 | CF112: =Template!CF85 -> 0 | CG112: =Template!CG85 -> 0 | CH112: =Template!CH85 -> 0 | CI112: =Template!CI85 -> 0 | CJ112: =Template!CJ85 -> 0 | CK112: =Template!CK85 -> 0 | CL112: =Template!CL85 -> 0 | CM112: =Template!CM85 -> 0 | CN112: =Template!CN85 -> 0 | CO112: =Template!CO85 -> 0 | CP112: =Template!CP85 -> 0 | CQ112: =Template!CQ85 -> 0 | CR112: =Template!CR85 -> 0 | CS112: =Template!CS85 -> 0 | CT112: =Template!CT85 -> 0 | CU112: =Template!CU85 -> 0 | CV112: =Template!CV85 -> 0 | CW112: =Template!CW85 -> 0 | CX112: =Template!CX85 -> 0 | CY112: =Template!CY85 -> 0 | CZ112: =Template!CZ85 -> 0 | DA112: =Template!DA85 -> 0 | DB112: =Template!DB85 -> 0 | DC112: =Template!DC85 -> 0 | DD112: =Template!DD85 -> 0 | DE112: =Template!DE85 -> 0 | DF112: =Template!DF85 -> 0 | DG112: =Template!DG85 -> 0 | DH112: =Template!DH85 -> 0 | DI112: =Template!DI85 -> 0
B113: EPC Margin | H113: =Template!H86 -> 0 | I113: =Template!I86 -> 0 | J113: =Template!J86 -> 0 | K113: =Template!K86 -> 0 | L113: =Template!L86 -> 0 | M113: =Template!M86 -> 0 | N113: =Template!N86 -> 0 | O113: =Template!O86 -> 0 | P113: =Template!P86 -> 0 | Q113: =Template!Q86 -> 0 | R113: =Template!R86 -> 0 | S113: =Template!S86 -> 0 | T113: =Template!T86 -> 320479 | U113: =Template!U86 -> 320479 | V113: =Template!V86 -> 320479 | W113: =Template!W86 -> 320479 | X113: =Template!X86 -> 320479 | Y113: =Template!Y86 -> 0 | Z113: =Template!Z86 -> 0 | AA113: =Template!AA86 -> 0 | AB113: =Template!AB86 -> 0 | AC113: =Template!AC86 -> 0 | AD113: =Template!AD86 -> 0 | AE113: =Template!AE86 -> 0 | AF113: =Template!AF86 -> 0 | AG113: =Template!AG86 -> 0 | AH113: =Template!AH86 -> 0 | AI113: =Template!AI86 -> 0 | AJ113: =Template!AJ86 -> 0 | AK113: =Template!AK86 -> 0 | AL113: =Template!AL86 -> 0 | AM113: =Template!AM86 -> 0 | AN113: =Template!AN86 -> 0 | AO113: =Template!AO86 -> 0 | AP113: =Template!AP86 -> 0 | AQ113: =Template!AQ86 -> 0 | AR113: =Template!AR86 -> 0 | AS113: =Template!AS86 -> 0 | AT113: =Template!AT86 -> 0 | AU113: =Template!AU86 -> 0 | AV113: =Template!AV86 -> 0 | AW113: =Template!AW86 -> 0 | AX113: =Template!AX86 -> 0 | AY113: =Template!AY86 -> 0 | AZ113: =Template!AZ86 -> 0 | BA113: =Template!BA86 -> 0 | BB113: =Template!BB86 -> 0 | BC113: =Template!BC86 -> 0 | BD113: =Template!BD86 -> 0 | BE113: =Template!BE86 -> 0 | BF113: =Template!BF86 -> 0 | BG113: =Template!BG86 -> 0 | BH113: =Template!BH86 -> 0 | BI113: =Template!BI86 -> 0 | BJ113: =Template!BJ86 -> 0 | BK113: =Template!BK86 -> 0 | BL113: =Template!BL86 -> 0 | BM113: =Template!BM86 -> 0 | BN113: =Template!BN86 -> 0 | BO113: =Template!BO86 -> 0 | BP113: =Template!BP86 -> 0 | BQ113: =Template!BQ86 -> 0 | BR113: =Template!BR86 -> 0 | BS113: =Template!BS86 -> 0 | BT113: =Template!BT86 -> 0 | BU113: =Template!BU86 -> 0 | BV113: =Template!BV86 -> 0 | BW113: =Template!BW86 -> 0 | BX113: =Template!BX86 -> 0 | BY113: =Template!BY86 -> 0 | BZ113: =Template!BZ86 -> 0 | CA113: =Template!CA86 -> 0 | CB113: =Template!CB86 -> 0 | CC113: =Template!CC86 -> 0 | CD113: =Template!CD86 -> 0 | CE113: =Template!CE86 -> 0 | CF113: =Template!CF86 -> 0 | CG113: =Template!CG86 -> 0 | CH113: =Template!CH86 -> 0 | CI113: =Template!CI86 -> 0 | CJ113: =Template!CJ86 -> 0 | CK113: =Template!CK86 -> 0 | CL113: =Template!CL86 -> 0 | CM113: =Template!CM86 -> 0 | CN113: =Template!CN86 -> 0 | CO113: =Template!CO86 -> 0 | CP113: =Template!CP86 -> 0 | CQ113: =Template!CQ86 -> 0 | CR113: =Template!CR86 -> 0 | CS113: =Template!CS86 -> 0 | CT113: =Template!CT86 -> 0 | CU113: =Template!CU86 -> 0 | CV113: =Template!CV86 -> 0 | CW113: =Template!CW86 -> 0 | CX113: =Template!CX86 -> 0 | CY113: =Template!CY86 -> 0 | CZ113: =Template!CZ86 -> 0 | DA113: =Template!DA86 -> 0 | DB113: =Template!DB86 -> 0 | DC113: =Template!DC86 -> 0 | DD113: =Template!DD86 -> 0 | DE113: =Template!DE86 -> 0 | DF113: =Template!DF86 -> 0 | DG113: =Template!DG86 -> 0 | DH113: =Template!DH86 -> 0 | DI113: =Template!DI86 -> 0
H114: =IF(OR(H7,H8),H3,NA()) ->  | I114: =IF(OR(I7,I8),I3,NA()) ->  | T114: 2020-01-01 | U114: 2020-02-01 | V114: 2020-03-01 | W114: 2020-04-01 | X114: 2020-05-01 | Y114: 2020-06-01 | Z114: 2020-07-01 | AA114: 2020-08-01 | AB114: 2020-09-01 | AC114: 2020-10-01 | AD114: 2020-11-01 | AE114: 2020-12-01 | AF114: 2021-01-01 | AG114: 2021-02-01 | AH114: 2021-03-01 | AI114: 2021-04-01 | AJ114: 2021-05-01 | AK114: 2021-06-01 | AL114: 2021-07-01 | AM114: 2021-08-01 | AN114: 2021-09-01 | AO114: 2021-10-01 | AP114: 2021-11-01 | AQ114: 2021-12-01 | AR114: 2022-01-01 | AS114: 2022-02-01 | AT114: 2022-03-01 | AU114: 2022-04-01 | AV114: 2022-05-01 | AW114: 2022-06-01 | AX114: 2022-07-01 | AY114: 2022-08-01 | AZ114: 2022-09-01 | BA114: 2022-10-01 | BB114: 2022-11-01 | BC114: 2022-12-01 | BD114: 2023-01-01 | BE114: 2023-02-01 | BF114: 2023-03-01 | BG114: 2023-04-01 | BH114: 2023-05-01 | BI114: 2023-06-01 | BJ114: 2023-07-01 | BK114: 2023-08-01 | BL114: 2023-09-01 | BM114: 2023-10-01 | BN114: 2023-11-01 | BO114: 2023-12-01 | BP114: 2024-01-01 | BQ114: 2024-02-01 | BR114: 2024-03-01 | BS114: 2024-04-01 | BT114: 2024-05-01 | BU114: =IF(OR(BU7,BU8),BU3,NA()) -> 2024-06-01 | BV114: 2024-07-01 | BW114: 2024-08-01 | BX114: 2024-09-01 | BY114: 2024-10-01 | BZ114: 2024-11-01 | CA114: 2024-12-01 | CB114: 2025-01-01 | CC114: 2025-02-01 | CD114: 2025-03-01 | CE114: 2025-04-01 | CF114: 2025-05-01 | CG114: 2025-06-01 | CH114: 2025-07-01 | CI114: 2025-08-01 | CJ114: 2025-09-01 | CK114: 2025-10-01 | CL114: 2025-11-01 | CM114: 2025-12-01 | CN114: 2026-01-01 | CO114: 2026-02-01 | CP114: 2026-03-01 | CQ114: 2026-04-01 | CR114: 2026-05-01 | CS114: 2026-06-01 | CT114: 2026-07-01 | CU114: 2026-08-01 | CV114: 2026-09-01 | CW114: 2026-10-01 | CX114: 2026-11-01 | CY114: 2026-12-01 | CZ114: 2027-12-01 | DA114: 2028-12-01 | DB114: 2029-12-01 | DC114: 2030-12-01 | DD114: 2031-12-01 | DE114: 2032-12-01 | DF114: 2033-12-01 | DG114: =IF(OR(DG7,DG8),DG3,NA()) -> 2034-12-01 | DH114: 2035-12-01 | DI114: 2036-12-01
C115: Net cash flow to Investor | H115: -1e-05 | I115: =I109-I110-I112+I113 -> 0 | J115: 0 | K115: 0 | L115: 0 | M115: 0 | N115: 0 | O115: 0 | P115: 0 | Q115: 0 | R115: 0 | S115: 0 | T115: -2884311 | U115: -2884311 | V115: -2884311 | W115: -2884311 | X115: -2884311 | Y115: 267455.9354 | Z115: 281541.089 | AA115: 290765.3379 | AB115: 250570.1812 | AC115: 213329.3811 | AD115: 161643.7598 | AE115: 143458.4905 | AF115: 154121.4008 | AG115: 167140.2906 | AH115: 235071.3829 | AI115: 253569.7728 | AJ115: 291527.0527 | AK115: 295565.3159 | AL115: 310765.4101 | AM115: 320907.2629 | AN115: 276539.9119 | AO115: 235440.0931 | AP115: 178420.7044 | AQ115: 158350.5483 | AR115: 170088.6471 | AS115: 184421.0885 | AT115: 259275.1368 | AU115: 279632.9157 | AV115: 321428.857 | AW115: 326885.5644 | AX115: 323414.6839 | AY115: 335013.5397 | AZ115: 289555.9953 | BA115: 247257.1298 | BB115: 187914.8287 | BC115: 167288.7039 | BD115: 180280.9551 | BE115: 196114.0715 | BF115: 276646.8733 | BG115: 299327.8129 | BH115: 345175.0288 | BI115: 351031.9572 | BJ115: 327659.9584 | BK115: 339424.5677 | BL115: 293283.6522 | BM115: 250349.2368 | BN115: 190118.9516 | BO115: 169180.8467 | BP115: 182360.3388 | BQ115: 198422.5369 | BR115: 280142.8433 | BS115: 303152.9471 | BT115: 349671.681 | BU115: =BU109-BU110-BU112+BU113 -> 355607.7699 | BV115: 331882.8074 | BW115: 343813.8194 | BX115: 296984.4082 | BY115: 253409.6799 | BZ115: 192284.986 | CA115: 171032.3832 | CB115: 184399.9405 | CC115: 200692.308 | CD115: 283607.5165 | CE115: 306948.4661 | CF115: 354142.615 | CG115: 360157.8617 | CH115: 336077.126 | CI115: 348175.0974 | CJ115: 300652.2505 | CK115: 256432.6169 | CL115: 194407.3456 | CM115: 172837.7943 | CN115: 186394.1432 | CO115: 202917.6548 | CP115: 287034.7264 | CQ115: 310708.0534 | CR115: 358581.2464 | CS115: 364675.5798 | CT115: 340236.3407 | CU115: 352501.73 | CV115: 304280.7038 | CW115: 259411.7546 | CX115: 196480.0097 | CY115: 174591.131 | CZ115: 3399323.839 | DA115: 3437138.434 | DB115: 3474164.191 | DC115: 0 | DD115: 0 | DE115: 0 | DF115: 0 | DG115: =DG109-DG110-DG112+DG113 -> 0 | DH115: 0 | DI115: 0
C116: Net Cash Flow to Project | L116: =Template!L87 -> 0 | M116: =Template!M87 -> 0 | N116: =Template!N87 -> 0 | O116: =Template!O87 -> 0 | P116: =Template!P87 -> 0 | Q116: =Template!Q87 -> 0 | R116: =Template!R87 -> 0 | S116: =Template!S87 -> 0 | T116: =Template!T87 -> -2884311 | U116: =Template!U87 -> -2884311 | V116: =Template!V87 -> -2884311 | W116: =Template!W87 -> -2884311 | X116: =Template!X87 -> -2884311 | Y116: =Template!Y87 -> 267455.9354 | Z116: =Template!Z87 -> 281541.089 | AA116: =Template!AA87 -> 290765.3379 | AB116: =Template!AB87 -> 250570.1812 | AC116: =Template!AC87 -> 213329.3811 | AD116: =Template!AD87 -> 161643.7598 | AE116: =Template!AE87 -> 143458.4905 | AF116: =Template!AF87 -> 154121.4008 | AG116: =Template!AG87 -> 167140.2906 | AH116: =Template!AH87 -> 235071.3829 | AI116: =Template!AI87 -> 253569.7728 | AJ116: =Template!AJ87 -> 291527.0527 | AK116: =Template!AK87 -> 295565.3159 | AL116: =Template!AL87 -> 310765.4101 | AM116: =Template!AM87 -> 320907.2629 | AN116: =Template!AN87 -> 276539.9119 | AO116: =Template!AO87 -> 235440.0931 | AP116: =Template!AP87 -> 178420.7044 | AQ116: =Template!AQ87 -> 158350.5483 | AR116: =Template!AR87 -> 170088.6471 | AS116: =Template!AS87 -> 184421.0885 | AT116: =Template!AT87 -> 259275.1368 | AU116: =Template!AU87 -> 279632.9157 | AV116: =Template!AV87 -> 321428.857 | AW116: =Template!AW87 -> 326885.5644 | AX116: =Template!AX87 -> 323414.6839 | AY116: =Template!AY87 -> 335013.5397 | AZ116: =Template!AZ87 -> 289555.9953 | BA116: =Template!BA87 -> 247257.1298 | BB116: =Template!BB87 -> 187914.8287 | BC116: =Template!BC87 -> 167288.7039 | BD116: =Template!BD87 -> 180280.9551 | BE116: =Template!BE87 -> 196114.0715 | BF116: =Template!BF87 -> 276646.8733 | BG116: =Template!BG87 -> 299327.8129 | BH116: =Template!BH87 -> 345175.0288 | BI116: =Template!BI87 -> 351031.9572 | BJ116: =Template!BJ87 -> 327659.9584 | BK116: =Template!BK87 -> 339424.5677 | BL116: =Template!BL87 -> 293283.6522 | BM116: =Template!BM87 -> 250349.2368 | BN116: =Template!BN87 -> 190118.9516 | BO116: =Template!BO87 -> 169180.8467 | BP116: =Template!BP87 -> 182360.3388 | BQ116: =Template!BQ87 -> 198422.5369 | BR116: =Template!BR87 -> 280142.8433 | BS116: =Template!BS87 -> 303152.9471 | BT116: =Template!BT87 -> 349671.681 | BU116: =Template!BU87 -> 355607.7699 | BV116: =Template!BV87 -> 331882.8074 | BW116: =Template!BW87 -> 343813.8194 | BX116: =Template!BX87 -> 296984.4082 | BY116: =Template!BY87 -> 253409.6799 | BZ116: =Template!BZ87 -> 192284.986 | CA116: =Template!CA87 -> 171032.3832 | CB116: =Template!CB87 -> 184399.9405 | CC116: =Template!CC87 -> 200692.308 | CD116: =Template!CD87 -> 283607.5165 | CE116: =Template!CE87 -> 306948.4661 | CF116: =Template!CF87 -> 354142.615 | CG116: =Template!CG87 -> 360157.8617 | CH116: =Template!CH87 -> 336077.126 | CI116: =Template!CI87 -> 348175.0974 | CJ116: =Template!CJ87 -> 300652.2505 | CK116: =Template!CK87 -> 256432.6169 | CL116: =Template!CL87 -> 194407.3456 | CM116: =Template!CM87 -> 172837.7943 | CN116: =Template!CN87 -> 186394.1432 | CO116: =Template!CO87 -> 202917.6548 | CP116: =Template!CP87 -> 287034.7264 | CQ116: =Template!CQ87 -> 310708.0534 | CR116: =Template!CR87 -> 358581.2464 | CS116: =Template!CS87 -> 364675.5798 | CT116: =Template!CT87 -> 340236.3407 | CU116: =Template!CU87 -> 352501.73 | CV116: =Template!CV87 -> 304280.7038 | CW116: =Template!CW87 -> 259411.7546 | CX116: =Template!CX87 -> 196480.0097 | CY116: =Template!CY87 -> 174591.131 | CZ116: =Template!CZ87 -> 3399323.839 | DA116: =Template!DA87 -> 3437138.434 | DB116: =Template!DB87 -> 3474164.191 | DC116: =Template!DC87 -> 3510296.9 | DD116: =Template!DD87 -> 3545424.454 | DE116: =Template!DE87 -> 3579426.268 | DF116: =Template!DF87 -> 3612172.66 | DG116: =Template!DG87 -> 3643524.177 | DH116: =Template!DH87 -> 3673330.868 | DI116: =Template!DI87 -> 3701431.515
B117: Investor IRR | F117: =XIRR(H115:DF115,H3:DF3,0.01) -> 0.1794817209
B118: Sum of Cash Flow | F118: =SUM(H115:DI115) -> 16581136
A120: Depreciaiton
B121: Total Assets | E121: =Template!E36 -> EGP | H121: =G121+H49 -> 0 | I121: 0 | J121: 0 | K121: 0 | L121: 0 | M121: 0 | N121: 0 | O121: 0 | P121: 0 | Q121: 0 | R121: 0 | S121: 0 | T121: 3204790 | U121: 6409580 | V121: 9614370 | W121: 12819160 | X121: 16023950 | Y121: 16023950 | Z121: 16023950 | AA121: 16023950 | AB121: 16023950 | AC121: 16023950 | AD121: 16023950 | AE121: 16023950 | AF121: 16023950 | AG121: 16023950 | AH121: 16023950 | AI121: 16023950 | AJ121: 16023950 | AK121: 16023950 | AL121: 16023950 | AM121: 16023950 | AN121: 16023950 | AO121: 16023950 | AP121: 16023950 | AQ121: 16023950 | AR121: 16023950 | AS121: 16023950 | AT121: 16023950 | AU121: 16023950 | AV121: 16023950 | AW121: 16023950 | AX121: 16023950 | AY121: 16023950 | AZ121: 16023950 | BA121: 16023950 | BB121: 16023950 | BC121: 16023950 | BD121: 16023950 | BE121: 16023950 | BF121: 16023950 | BG121: 16023950 | BH121: 16023950 | BI121: 16023950 | BJ121: 16023950 | BK121: 16023950 | BL121: 16023950 | BM121: 16023950 | BN121: 16023950 | BO121: 16023950 | BP121: 16023950 | BQ121: 16023950 | BR121: 16023950 | BS121: 16023950 | BT121: =BS121+BT49 -> 16023950 | BU121: 16023950 | BV121: 16023950 | BW121: 16023950 | BX121: 16023950 | BY121: 16023950 | BZ121: 16023950 | CA121: 16023950 | CB121: 16023950 | CC121: 16023950 | CD121: 16023950 | CE121: 16023950 | CF121: 16023950 | CG121: 16023950 | CH121: 16023950 | CI121: 16023950 | CJ121: 16023950 | CK121: 16023950 | CL121: 16023950 | CM121: 16023950 | CN121: 16023950 | CO121: 16023950 | CP121: 16023950 | CQ121: 16023950 | CR121: 16023950 | CS121: 16023950 | CT121: 16023950 | CU121: 16023950 | CV121: 16023950 | CW121: 16023950 | CX121: 16023950 | CY121: 16023950 | CZ121: 16023950 | DA121: 16023950 | DB121: 16023950 | DC121: 16023950 | DD121: 16023950 | DE121: 16023950 | DF121: 16023950 | DG121: =DF121+DG49 -> 16023950 | DH121: =DG121+DH49 -> 16023950 | DI121: =DH121+DI49 -> 16023950
B122: Total Assets | E122: EGP | H122: =G122+H48 -> 0 | I122: 0 | J122: 0 | K122: 0 | L122: 0 | M122: 0 | N122: 0 | O122: 0 | P122: 0 | Q122: 0 | R122: 0 | S122: 0 | T122: 3204790 | U122: 6409580 | V122: 9614370 | W122: 12819160 | X122: 16023950 | Y122: 16023950 | Z122: 16023950 | AA122: 16023950 | AB122: 16023950 | AC122: 16023950 | AD122: 16023950 | AE122: 16023950 | AF122: 16023950 | AG122: 16023950 | AH122: 16023950 | AI122: 16023950 | AJ122: 16023950 | AK122: 16023950 | AL122: 16023950 | AM122: 16023950 | AN122: 16023950 | AO122: 16023950 | AP122: 16023950 | AQ122: 16023950 | AR122: 16023950 | AS122: 16023950 | AT122: 16023950 | AU122: 16023950 | AV122: 16023950 | AW122: 16023950 | AX122: 16023950 | AY122: 16023950 | AZ122: 16023950 | BA122: 16023950 | BB122: 16023950 | BC122: 16023950 | BD122: 16023950 | BE122: 16023950 | BF122: 16023950 | BG122: 16023950 | BH122: 16023950 | BI122: 16023950 | BJ122: 16023950 | BK122: 16023950 | BL122: 16023950 | BM122: 16023950 | BN122: 16023950 | BO122: 16023950 | BP122: 16023950 | BQ122: 16023950 | BR122: 16023950 | BS122: 16023950 | BT122: =BS122+BT48 -> 16023950 | BU122: 16023950 | BV122: 16023950 | BW122: 16023950 | BX122: 16023950 | BY122: 16023950 | BZ122: 16023950 | CA122: 16023950 | CB122: 16023950 | CC122: 16023950 | CD122: 16023950 | CE122: 16023950 | CF122: 16023950 | CG122: 16023950 | CH122: 16023950 | CI122: 16023950 | CJ122: 16023950 | CK122: 16023950 | CL122: 16023950 | CM122: 16023950 | CN122: 16023950 | CO122: 16023950 | CP122: 16023950 | CQ122: 16023950 | CR122: 16023950 | CS122: 16023950 | CT122: 16023950 | CU122: 16023950 | CV122: 16023950 | CW122: 16023950 | CX122: 16023950 | CY122: 16023950 | CZ122: 16023950 | DA122: 16023950 | DB122: 16023950 | DC122: 16023950 | DD122: 16023950 | DE122: 16023950 | DF122: 16023950 | DG122: =DF122+DG48 -> 16023950 | DH122: =DG122+DH48 -> 16023950 | DI122: =DH122+DI48 -> 16023950
B123: Depreciation Rate | E123: % per month | F123: =INDEX('Master Assumptions'!O:O,Template!E1) -> 5 | G123: =1/F123/12 -> 0.01666666667 | H123: =$G$123*H7*H6 -> 0 | I123: 0 | J123: 0 | K123: 0 | L123: 0 | M123: 0 | N123: 0 | O123: 0 | P123: 0 | Q123: 0 | R123: 0 | S123: 0 | T123: 0 | U123: 0 | V123: 0 | W123: 0 | X123: 0 | Y123: 0.01666666667 | Z123: 0.01666666667 | AA123: 0.01666666667 | AB123: 0.01666666667 | AC123: 0.01666666667 | AD123: 0.01666666667 | AE123: 0.01666666667 | AF123: 0.01666666667 | AG123: 0.01666666667 | AH123: 0.01666666667 | AI123: 0.01666666667 | AJ123: 0.01666666667 | AK123: 0.01666666667 | AL123: 0.01666666667 | AM123: 0.01666666667 | AN123: 0.01666666667 | AO123: 0.01666666667 | AP123: 0.01666666667 | AQ123: 0.01666666667 | AR123: 0.01666666667 | AS123: 0.01666666667 | AT123: 0.01666666667 | AU123: 0.01666666667 | AV123: 0.01666666667 | AW123: 0.01666666667 | AX123: 0.01666666667 | AY123: 0.01666666667 | AZ123: 0.01666666667 | BA123: 0.01666666667 | BB123: 0.01666666667 | BC123: 0.01666666667 | BD123: 0.01666666667 | BE123: 0.01666666667 | BF123: 0.01666666667 | BG123: 0.01666666667 | BH123: 0.01666666667 | BI123: 0.01666666667 | BJ123: 0.01666666667 | BK123: 0.01666666667 | BL123: 0.01666666667 | BM123: 0.01666666667 | BN123: 0.01666666667 | BO123: 0.01666666667 | BP123: 0.01666666667 | BQ123: 0.01666666667 | BR123: 0.01666666667 | BS123: 0.01666666667 | BT123: =$G$123*BT7*BT6 -> 0.01666666667 | BU123: 0.01666666667 | BV123: 0.01666666667 | BW123: 0.01666666667 | BX123: 0.01666666667 | BY123: 0.01666666667 | BZ123: 0.01666666667 | CA123: 0.01666666667 | CB123: 0.01666666667 | CC123: 0.01666666667 | CD123: 0.01666666667 | CE123: 0.01666666667 | CF123: 0.01666666667 | CG123: 0.01666666667 | CH123: 0.01666666667 | CI123: 0.01666666667 | CJ123: 0.01666666667 | CK123: 0.01666666667 | CL123: 0.01666666667 | CM123: 0.01666666667 | CN123: 0.01666666667 | CO123: 0.01666666667 | CP123: 0.01666666667 | CQ123: 0.01666666667 | CR123: 0.01666666667 | CS123: 0.01666666667 | CT123: 0.01666666667 | CU123: 0.01666666667 | CV123: 0.01666666667 | CW123: 0.01666666667 | CX123: 0.01666666667 | CY123: 0.01666666667 | CZ123: 0.2 | DA123: 0.2 | DB123: 0.2 | DC123: 0.2 | DD123: 0.2 | DE123: 0.2 | DF123: 0.2 | DG123: =$G$123*DG7*DG6 -> 0.2 | DH123: 0.2 | DI123: 0.2
B124: Depreciation | E124: =Template!E121 -> EGP | H124: =MIN(H121*H123,G127) -> 0 | I124: =MIN(I121*I123,H127) -> 0 | J124: 0 | K124: 0 | L124: 0 | M124: 0 | N124: 0 | O124: 0 | P124: 0 | Q124: 0 | R124: 0 | S124: 0 | T124: 0 | U124: 0 | V124: 0 | W124: 0 | X124: 0 | Y124: 267065.8333 | Z124: 267065.8333 | AA124: 267065.8333 | AB124: 267065.8333 | AC124: 267065.8333 | AD124: 267065.8333 | AE124: 267065.8333 | AF124: 267065.8333 | AG124: 267065.8333 | AH124: 267065.8333 | AI124: 267065.8333 | AJ124: 267065.8333 | AK124: 267065.8333 | AL124: 267065.8333 | AM124: 267065.8333 | AN124: 267065.8333 | AO124: 267065.8333 | AP124: 267065.8333 | AQ124: 267065.8333 | AR124: 267065.8333 | AS124: 267065.8333 | AT124: 267065.8333 | AU124: 267065.8333 | AV124: 267065.8333 | AW124: 267065.8333 | AX124: 267065.8333 | AY124: 267065.8333 | AZ124: 267065.8333 | BA124: 267065.8333 | BB124: 267065.8333 | BC124: 267065.8333 | BD124: 267065.8333 | BE124: 267065.8333 | BF124: 267065.8333 | BG124: 267065.8333 | BH124: 267065.8333 | BI124: 267065.8333 | BJ124: 267065.8333 | BK124: 267065.8333 | BL124: 267065.8333 | BM124: 267065.8333 | BN124: 267065.8333 | BO124: 267065.8333 | BP124: 267065.8333 | BQ124: 267065.8333 | BR124: 267065.8333 | BS124: 267065.8333 | BT124: 267065.8333 | BU124: =MIN(BU121*BU123,BT127) -> 267065.8333 | BV124: 267065.8333 | BW124: 267065.8333 | BX124: 267065.8333 | BY124: 267065.8333 | BZ124: 267065.8333 | CA124: 267065.8333 | CB124: 267065.8333 | CC124: 267065.8333 | CD124: 267065.8333 | CE124: 267065.8333 | CF124: 267065.8333 | CG124: 0 | CH124: 0 | CI124: 0 | CJ124: 0 | CK124: 0 | CL124: 0 | CM124: 0 | CN124: 0 | CO124: 0 | CP124: 0 | CQ124: 0 | CR124: 0 | CS124: 0 | CT124: 0 | CU124: 0 | CV124: 0 | CW124: 0 | CX124: 0 | CY124: 0 | CZ124: 0 | DA124: 0 | DB124: 0 | DC124: 0 | DD124: 0 | DE124: =MIN(DE121*DE123,DD127) -> 0 | DF124: =MIN(DF121*DF123,DE127) -> 0 | DG124: =MIN(DG121*DG123,DF127) -> 0 | DH124: 0 | DI124: 0
B125: Deprecation | E125: =Template!E122 -> EGP | H125: =MIN(H123*H122*H7,G127) -> 0 | I125: 0 | J125: 0 | K125: 0 | L125: 0 | M125: 0 | N125: 0 | O125: 0 | P125: 0 | Q125: 0 | R125: 0 | S125: 0 | T125: 0 | U125: 0 | V125: 0 | W125: 0 | X125: 0 | Y125: 267065.8333 | Z125: 267065.8333 | AA125: 267065.8333 | AB125: 267065.8333 | AC125: 267065.8333 | AD125: 267065.8333 | AE125: 267065.8333 | AF125: 267065.8333 | AG125: 267065.8333 | AH125: 267065.8333 | AI125: 267065.8333 | AJ125: 267065.8333 | AK125: 267065.8333 | AL125: 267065.8333 | AM125: 267065.8333 | AN125: 267065.8333 | AO125: 267065.8333 | AP125: 267065.8333 | AQ125: 267065.8333 | AR125: 267065.8333 | AS125: 267065.8333 | AT125: 267065.8333 | AU125: 267065.8333 | AV125: 267065.8333 | AW125: 267065.8333 | AX125: 267065.8333 | AY125: 267065.8333 | AZ125: 267065.8333 | BA125: 267065.8333 | BB125: 267065.8333 | BC125: 267065.8333 | BD125: 267065.8333 | BE125: 267065.8333 | BF125: 267065.8333 | BG125: 267065.8333 | BH125: 267065.8333 | BI125: 267065.8333 | BJ125: 267065.8333 | BK125: 267065.8333 | BL125: 267065.8333 | BM125: 267065.8333 | BN125: 267065.8333 | BO125: 267065.8333 | BP125: 267065.8333 | BQ125: 267065.8333 | BR125: 267065.8333 | BS125: 267065.8333 | BT125: =MIN(BT123*BT122*BT7,BS127) -> 267065.8333 | BU125: 267065.8333 | BV125: 267065.8333 | BW125: 267065.8333 | BX125: 267065.8333 | BY125: 267065.8333 | BZ125: 267065.8333 | CA125: 267065.8333 | CB125: 267065.8333 | CC125: 267065.8333 | CD125: 267065.8333 | CE125: 267065.8333 | CF125: 267065.8333 | CG125: 0 | CH125: 0 | CI125: 0 | CJ125: 0 | CK125: 0 | CL125: 0 | CM125: 0 | CN125: 0 | CO125: 0 | CP125: 0 | CQ125: 0 | CR125: 0 | CS125: 0 | CT125: 0 | CU125: 0 | CV125: 0 | CW125: 0 | CX125: 0 | CY125: 0 | CZ125: 0 | DA125: 0 | DB125: 0 | DC125: 0 | DD125: 0 | DE125: 0 | DF125: 0 | DG125: =MIN(DG123*DG122*DG7,DF127) -> 0 | DH125: =MIN(DH123*DH122*DH7,DG127) -> 0 | DI125: =MIN(DI123*DI122*DI7,DH127) -> 0
B126: Accumulated Amortissement | E126: =Template!E125 -> EGP | H126: =G126+H125 -> 0 | I126: =H126+I125 -> 0 | J126: 0 | K126: 0 | L126: 0 | M126: 0 | N126: 0 | O126: 0 | P126: 0 | Q126: 0 | R126: 0 | S126: 0 | T126: 0 | U126: 0 | V126: 0 | W126: 0 | X126: 0 | Y126: 267065.8333 | Z126: 534131.6667 | AA126: 801197.5 | AB126: 1068263.333 | AC126: 1335329.167 | AD126: 1602395 | AE126: 1869460.833 | AF126: 2136526.667 | AG126: 2403592.5 | AH126: 2670658.333 | AI126: 2937724.167 | AJ126: 3204790 | AK126: 3471855.833 | AL126: 3738921.667 | AM126: 4005987.5 | AN126: 4273053.333 | AO126: 4540119.167 | AP126: 4807185 | AQ126: 5074250.833 | AR126: 5341316.667 | AS126: 5608382.5 | AT126: 5875448.333 | AU126: 6142514.167 | AV126: 6409580 | AW126: 6676645.833 | AX126: 6943711.667 | AY126: 7210777.5 | AZ126: 7477843.333 | BA126: 7744909.167 | BB126: 8011975 | BC126: 8279040.833 | BD126: 8546106.667 | BE126: 8813172.5 | BF126: 9080238.333 | BG126: 9347304.167 | BH126: 9614370 | BI126: 9881435.833 | BJ126: 10148501.67 | BK126: 10415567.5 | BL126: 10682633.33 | BM126: 10949699.17 | BN126: 11216765 | BO126: 11483830.83 | BP126: 11750896.67 | BQ126: 12017962.5 | BR126: 12285028.33 | BS126: 12552094.17 | BT126: 12819160 | BU126: =BT126+BU125 -> 13086225.83 | BV126: 13353291.67 | BW126: 13620357.5 | BX126: 13887423.33 | BY126: 14154489.17 | BZ126: 14421555 | CA126: 14688620.83 | CB126: 14955686.67 | CC126: 15222752.5 | CD126: 15489818.33 | CE126: 15756884.17 | CF126: 16023950 | CG126: 16023950 | CH126: 16023950 | CI126: 16023950 | CJ126: 16023950 | CK126: 16023950 | CL126: 16023950 | CM126: 16023950 | CN126: 16023950 | CO126: 16023950 | CP126: 16023950 | CQ126: 16023950 | CR126: 16023950 | CS126: 16023950 | CT126: 16023950 | CU126: 16023950 | CV126: 16023950 | CW126: 16023950 | CX126: 16023950 | CY126: 16023950 | CZ126: 16023950 | DA126: 16023950 | DB126: 16023950 | DC126: 16023950 | DD126: 16023950 | DE126: =DD126+DE125 -> 16023950 | DF126: =DE126+DF125 -> 16023950 | DG126: =DF126+DG125 -> 16023950 | DH126: 16023950 | DI126: 16023950
B127: Net Plant | E127: =Template!E126 -> EGP | H127: =H122-H126 -> 0 | I127: =I122-I126 -> 0 | J127: 0 | K127: 0 | L127: 0 | M127: 0 | N127: 0 | O127: 0 | P127: 0 | Q127: 0 | R127: 0 | S127: 0 | T127: 3204790 | U127: 6409580 | V127: 9614370 | W127: 12819160 | X127: 16023950 | Y127: 15756884.17 | Z127: 15489818.33 | AA127: 15222752.5 | AB127: 14955686.67 | AC127: 14688620.83 | AD127: 14421555 | AE127: 14154489.17 | AF127: 13887423.33 | AG127: 13620357.5 | AH127: 13353291.67 | AI127: 13086225.83 | AJ127: 12819160 | AK127: 12552094.17 | AL127: 12285028.33 | AM127: 12017962.5 | AN127: 11750896.67 | AO127: 11483830.83 | AP127: 11216765 | AQ127: 10949699.17 | AR127: 10682633.33 | AS127: 10415567.5 | AT127: 10148501.67 | AU127: 9881435.833 | AV127: 9614370 | AW127: 9347304.167 | AX127: 9080238.333 | AY127: 8813172.5 | AZ127: 8546106.667 | BA127: 8279040.833 | BB127: 8011975 | BC127: 7744909.167 | BD127: 7477843.333 | BE127: 7210777.5 | BF127: 6943711.667 | BG127: 6676645.833 | BH127: 6409580 | BI127: 6142514.167 | BJ127: 5875448.333 | BK127: 5608382.5 | BL127: 5341316.667 | BM127: 5074250.833 | BN127: 4807185 | BO127: 4540119.167 | BP127: 4273053.333 | BQ127: 4005987.5 | BR127: 3738921.667 | BS127: 3471855.833 | BT127: 3204790 | BU127: =BU122-BU126 -> 2937724.167 | BV127: 2670658.333 | BW127: 2403592.5 | BX127: 2136526.667 | BY127: 1869460.833 | BZ127: 1602395 | CA127: 1335329.167 | CB127: 1068263.333 | CC127: 801197.5 | CD127: 534131.6667 | CE127: 267065.8333 | CF127: 0 | CG127: 0 | CH127: 0 | CI127: 0 | CJ127: 0 | CK127: 0 | CL127: 0 | CM127: 0 | CN127: 0 | CO127: 0 | CP127: 0 | CQ127: 0 | CR127: 0 | CS127: 0 | CT127: 0 | CU127: 0 | CV127: 0 | CW127: 0 | CX127: 0 | CY127: 0 | CZ127: 0 | DA127: 0 | DB127: 0 | DC127: 0 | DD127: 0 | DE127: =DE122-DE126 -> 0 | DF127: =DF122-DF126 -> 0 | DG127: =DG122-DG126 -> 0 | DH127: 0 | DI127: 0
A129: After Tax Returns to Investor
B130: Project Cash Flow | E130: EGP | G130: =Template!G115 -> 0 | H130: =Template!H115 -> -1e-05 | I130: =Template!I115 -> 0 | J130: =Template!J115 -> 0 | K130: =Template!K115 -> 0 | L130: =Template!L115 -> 0 | M130: =Template!M115 -> 0 | N130: =Template!N115 -> 0 | O130: =Template!O115 -> 0 | P130: =Template!P115 -> 0 | Q130: =Template!Q115 -> 0 | R130: =Template!R115 -> 0 | S130: =Template!S115 -> 0 | T130: =Template!T115 -> -2884311 | U130: =Template!U115 -> -2884311 | V130: =Template!V115 -> -2884311 | W130: =Template!W115 -> -2884311 | X130: =Template!X115 -> -2884311 | Y130: =Template!Y115 -> 267455.9354 | Z130: =Template!Z115 -> 281541.089 | AA130: =Template!AA115 -> 290765.3379 | AB130: =Template!AB115 -> 250570.1812 | AC130: =Template!AC115 -> 213329.3811 | AD130: =Template!AD115 -> 161643.7598 | AE130: =Template!AE115 -> 143458.4905 | AF130: =Template!AF115 -> 154121.4008 | AG130: =Template!AG115 -> 167140.2906 | AH130: =Template!AH115 -> 235071.3829 | AI130: =Template!AI115 -> 253569.7728 | AJ130: =Template!AJ115 -> 291527.0527 | AK130: =Template!AK115 -> 295565.3159 | AL130: =Template!AL115 -> 310765.4101 | AM130: =Template!AM115 -> 320907.2629 | AN130: =Template!AN115 -> 276539.9119 | AO130: =Template!AO115 -> 235440.0931 | AP130: =Template!AP115 -> 178420.7044 | AQ130: =Template!AQ115 -> 158350.5483 | AR130: =Template!AR115 -> 170088.6471 | AS130: =Template!AS115 -> 184421.0885 | AT130: =Template!AT115 -> 259275.1368 | AU130: =Template!AU115 -> 279632.9157 | AV130: =Template!AV115 -> 321428.857 | AW130: =Template!AW115 -> 326885.5644 | AX130: =Template!AX115 -> 323414.6839 | AY130: =Template!AY115 -> 335013.5397 | AZ130: =Template!AZ115 -> 289555.9953 | BA130: =Template!BA115 -> 247257.1298 | BB130: =Template!BB115 -> 187914.8287 | BC130: =Template!BC115 -> 167288.7039 | BD130: =Template!BD115 -> 180280.9551 | BE130: =Template!BE115 -> 196114.0715 | BF130: =Template!BF115 -> 276646.8733 | BG130: =Template!BG115 -> 299327.8129 | BH130: =Template!BH115 -> 345175.0288 | BI130: =Template!BI115 -> 351031.9572 | BJ130: =Template!BJ115 -> 327659.9584 | BK130: =Template!BK115 -> 339424.5677 | BL130: =Template!BL115 -> 293283.6522 | BM130: =Template!BM115 -> 250349.2368 | BN130: =Template!BN115 -> 190118.9516 | BO130: =Template!BO115 -> 169180.8467 | BP130: =Template!BP115 -> 182360.3388 | BQ130: =Template!BQ115 -> 198422.5369 | BR130: =Template!BR115 -> 280142.8433 | BS130: =Template!BS115 -> 303152.9471 | BT130: =Template!BT115 -> 349671.681 | BU130: =Template!BU115 -> 355607.7699 | BV130: =Template!BV115 -> 331882.8074 | BW130: =Template!BW115 -> 343813.8194 | BX130: =Template!BX115 -> 296984.4082 | BY130: =Template!BY115 -> 253409.6799 | BZ130: =Template!BZ115 -> 192284.986 | CA130: =Template!CA115 -> 171032.3832 | CB130: =Template!CB115 -> 184399.9405 | CC130: =Template!CC115 -> 200692.308 | CD130: =Template!CD115 -> 283607.5165 | CE130: =Template!CE115 -> 306948.4661 | CF130: =Template!CF115 -> 354142.615 | CG130: =Template!CG115 -> 360157.8617 | CH130: =Template!CH115 -> 336077.126 | CI130: =Template!CI115 -> 348175.0974 | CJ130: =Template!CJ115 -> 300652.2505 | CK130: =Template!CK115 -> 256432.6169 | CL130: =Template!CL115 -> 194407.3456 | CM130: =Template!CM115 -> 172837.7943 | CN130: =Template!CN115 -> 186394.1432 | CO130: =Template!CO115 -> 202917.6548 | CP130: =Template!CP115 -> 287034.7264 | CQ130: =Template!CQ115 -> 310708.0534 | CR130: =Template!CR115 -> 358581.2464 | CS130: =Template!CS115 -> 364675.5798 | CT130: =Template!CT115 -> 340236.3407 | CU130: =Template!CU115 -> 352501.73 | CV130: =Template!CV115 -> 304280.7038 | CW130: =Template!CW115 -> 259411.7546 | CX130: =Template!CX115 -> 196480.0097 | CY130: =Template!CY115 -> 174591.131 | CZ130: =Template!CZ115 -> 3399323.839 | DA130: =Template!DA115 -> 3437138.434 | DB130: =Template!DB115 -> 3474164.191 | DC130: =Template!DC115 -> 0 | DD130: =Template!DD115 -> 0 | DE130: =Template!DE115 -> 0 | DF130: =Template!DF115 -> 0 | DG130: =Template!DG115 -> 0 | DH130: =Template!DH115 -> 0 | DI130: =Template!DI115 -> 0
B131: EBITDA to Investor | H131: =H88*H10 -> 0 | I131: =I88*I10 -> 0 | J131: 0 | K131: 0 | L131: 0 | M131: 0 | N131: 0 | O131: 0 | P131: 0 | Q131: 0 | R131: 0 | S131: 0 | T131: 0 | U131: 0 | V131: 0 | W131: 0 | X131: 0 | Y131: 267455.9354 | Z131: 281541.089 | AA131: 290765.3379 | AB131: 250570.1812 | AC131: 213329.3811 | AD131: 161643.7598 | AE131: 143458.4905 | AF131: 154121.4008 | AG131: 167140.2906 | AH131: 235071.3829 | AI131: 253569.7728 | AJ131: 291527.0527 | AK131: 295565.3159 | AL131: 310765.4101 | AM131: 320907.2629 | AN131: 276539.9119 | AO131: 235440.0931 | AP131: 178420.7044 | AQ131: 158350.5483 | AR131: 170088.6471 | AS131: 184421.0885 | AT131: 259275.1368 | AU131: 279632.9157 | AV131: 321428.857 | AW131: 326885.5644 | AX131: 323414.6839 | AY131: 335013.5397 | AZ131: 289555.9953 | BA131: 247257.1298 | BB131: 187914.8287 | BC131: 167288.7039 | BD131: 180280.9551 | BE131: 196114.0715 | BF131: 276646.8733 | BG131: 299327.8129 | BH131: 345175.0288 | BI131: 351031.9572 | BJ131: 327659.9584 | BK131: 339424.5677 | BL131: 293283.6522 | BM131: 250349.2368 | BN131: 190118.9516 | BO131: 169180.8467 | BP131: 182360.3388 | BQ131: 198422.5369 | BR131: 280142.8433 | BS131: 303152.9471 | BT131: 349671.681 | BU131: =BU88*BU10 -> 355607.7699 | BV131: 331882.8074 | BW131: 343813.8194 | BX131: 296984.4082 | BY131: 253409.6799 | BZ131: 192284.986 | CA131: 171032.3832 | CB131: 184399.9405 | CC131: 200692.308 | CD131: 283607.5165 | CE131: 306948.4661 | CF131: 354142.615 | CG131: 360157.8617 | CH131: 336077.126 | CI131: 348175.0974 | CJ131: 300652.2505 | CK131: 256432.6169 | CL131: 194407.3456 | CM131: 172837.7943 | CN131: 186394.1432 | CO131: 202917.6548 | CP131: 287034.7264 | CQ131: 310708.0534 | CR131: 358581.2464 | CS131: 364675.5798 | CT131: 340236.3407 | CU131: 352501.73 | CV131: 304280.7038 | CW131: 259411.7546 | CX131: 196480.0097 | CY131: 174591.131 | CZ131: 3399323.839 | DA131: 3437138.434 | DB131: 3474164.191 | DC131: 0 | DD131: 0 | DE131: 0 | DF131: 0 | DG131: =DG88*DG10 -> 0 | DH131: 0 | DI131: 0
B132: Less: Depreciation | H132: =H124*H10 -> 0 | I132: =I124*I10 -> 0 | J132: 0 | K132: 0 | L132: 0 | M132: 0 | N132: 0 | O132: 0 | P132: 0 | Q132: 0 | R132: 0 | S132: 0 | T132: 0 | U132: 0 | V132: 0 | W132: 0 | X132: 0 | Y132: 267065.8333 | Z132: 267065.8333 | AA132: 267065.8333 | AB132: 267065.8333 | AC132: 267065.8333 | AD132: 267065.8333 | AE132: 267065.8333 | AF132: 267065.8333 | AG132: 267065.8333 | AH132: 267065.8333 | AI132: 267065.8333 | AJ132: 267065.8333 | AK132: 267065.8333 | AL132: 267065.8333 | AM132: 267065.8333 | AN132: 267065.8333 | AO132: 267065.8333 | AP132: 267065.8333 | AQ132: 267065.8333 | AR132: 267065.8333 | AS132: 267065.8333 | AT132: 267065.8333 | AU132: 267065.8333 | AV132: 267065.8333 | AW132: 267065.8333 | AX132: 267065.8333 | AY132: 267065.8333 | AZ132: 267065.8333 | BA132: 267065.8333 | BB132: 267065.8333 | BC132: 267065.8333 | BD132: 267065.8333 | BE132: 267065.8333 | BF132: 267065.8333 | BG132: 267065.8333 | BH132: 267065.8333 | BI132: 267065.8333 | BJ132: 267065.8333 | BK132: 267065.8333 | BL132: 267065.8333 | BM132: 267065.8333 | BN132: 267065.8333 | BO132: 267065.8333 | BP132: 267065.8333 | BQ132: 267065.8333 | BR132: 267065.8333 | BS132: 267065.8333 | BT132: 267065.8333 | BU132: =BU124*BU10 -> 267065.8333 | BV132: 267065.8333 | BW132: 267065.8333 | BX132: 267065.8333 | BY132: 267065.8333 | BZ132: 267065.8333 | CA132: 267065.8333 | CB132: 267065.8333 | CC132: 267065.8333 | CD132: 267065.8333 | CE132: 267065.8333 | CF132: 267065.8333 | CG132: 0 | CH132: 0 | CI132: 0 | CJ132: 0 | CK132: 0 | CL132: 0 | CM132: 0 | CN132: 0 | CO132: 0 | CP132: 0 | CQ132: 0 | CR132: 0 | CS132: 0 | CT132: 0 | CU132: 0 | CV132: 0 | CW132: 0 | CX132: 0 | CY132: 0 | CZ132: 0 | DA132: 0 | DB132: 0 | DC132: 0 | DD132: 0 | DE132: 0 | DF132: 0 | DG132: =DG124*DG10 -> 0 | DH132: 0 | DI132: 0
B133: EBIT on Project | E133: EGP | H133: =H131-H132 -> 0 | I133: =I131-I132 -> 0 | J133: 0 | K133: 0 | L133: 0 | M133: 0 | N133: 0 | O133: 0 | P133: 0 | Q133: 0 | R133: 0 | S133: 0 | T133: 0 | U133: 0 | V133: 0 | W133: 0 | X133: 0 | Y133: 390.1020509 | Z133: 14475.25563 | AA133: 23699.50455 | AB133: -16495.65214 | AC133: -53736.45223 | AD133: -105422.0736 | AE133: -123607.3428 | AF133: -112944.4326 | AG133: -99925.54271 | AH133: -31994.45039 | AI133: -13496.06049 | AJ133: 24461.21932 | AK133: 28499.48259 | AL133: 43699.57677 | AM133: 53841.4296 | AN133: 9474.078535 | AO133: -31625.74023 | AP133: -88645.12895 | AQ133: -108715.285 | AR133: -96977.18623 | AS133: -82644.74488 | AT133: -7790.696564 | AU133: 12567.08241 | AV133: 54363.02365 | AW133: 59819.73105 | AX133: 56348.85053 | AY133: 67947.70636 | AZ133: 22490.16197 | BA133: -19808.70356 | BB133: -79151.00459 | BC133: -99777.1294 | BD133: -86784.87821 | BE133: -70951.76182 | BF133: 9581.039992 | BG133: 32261.97958 | BH133: 78109.19544 | BI133: 83966.12388 | BJ133: 60594.12502 | BK133: 72358.73438 | BL133: 26217.81887 | BM133: -16716.59653 | BN133: -76946.88172 | BO133: -97884.9866 | BP133: -84705.49458 | BQ133: -68643.29648 | BR133: 13077.01001 | BS133: 36087.11376 | BT133: 82605.84763 | BU133: =BU131-BU132 -> 88541.93658 | BV133: 64816.9741 | BW133: 76747.98608 | BX133: 29918.57491 | BY133: -13656.1534 | BZ133: -74780.84729 | CA133: -96033.45016 | CB133: -82665.89286 | CC133: -66373.52536 | CD133: 16541.68316 | CE133: 39882.6328 | CF133: 87076.78171 | CG133: 360157.8617 | CH133: 336077.126 | CI133: 348175.0974 | CJ133: 300652.2505 | CK133: 256432.6169 | CL133: 194407.3456 | CM133: 172837.7943 | CN133: 186394.1432 | CO133: 202917.6548 | CP133: 287034.7264 | CQ133: 310708.0534 | CR133: 358581.2464 | CS133: 364675.5798 | CT133: 340236.3407 | CU133: 352501.73 | CV133: 304280.7038 | CW133: 259411.7546 | CX133: 196480.0097 | CY133: 174591.131 | CZ133: 3399323.839 | DA133: 3437138.434 | DB133: 3474164.191 | DC133: 0 | DD133: 0 | DE133: 0 | DF133: 0 | DG133: =DG131-DG132 -> 0 | DH133: 0 | DI133: 0
B134: Taxes on EBIT | E134: EGP | F134: =INDEX('Master Assumptions'!AD:AD,Template!E1) -> 0.1575 | H134: =H133*$F$134 -> 0 | I134: =I133*$F$134 -> 0 | J134: 0 | K134: 0 | L134: 0 | M134: 0 | N134: 0 | O134: 0 | P134: 0 | Q134: 0 | R134: 0 | S134: 0 | T134: 0 | U134: 0 | V134: 0 | W134: 0 | X134: 0 | Y134: 61.44107302 | Z134: 2279.852762 | AA134: 3732.671966 | AB134: -2598.065212 | AC134: -8463.491227 | AD134: -16603.97659 | AE134: -19468.15649 | AF134: -17788.74813 | AG134: -15738.27298 | AH134: -5039.125937 | AI134: -2125.629528 | AJ134: 3852.642043 | AK134: 4488.668508 | AL134: 6882.683342 | AM134: 8480.025162 | AN134: 1492.167369 | AO134: -4981.054086 | AP134: -13961.60781 | AQ134: -17122.65739 | AR134: -15273.90683 | AS134: -13016.54732 | AT134: -1227.034709 | AU134: 1979.315479 | AV134: 8562.176225 | AW134: 9421.607641 | AX134: 8874.943958 | AY134: 10701.76375 | AZ134: 3542.20051 | BA134: -3119.870811 | BB134: -12466.28322 | BC134: -15714.89788 | BD134: -13668.61832 | BE134: -11174.90249 | BF134: 1509.013799 | BG134: 5081.261784 | BH134: 12302.19828 | BI134: 13224.66451 | BJ134: 9543.574691 | BK134: 11396.50066 | BL134: 4129.306471 | BM134: -2632.863953 | BN134: -12119.13387 | BO134: -15416.88539 | BP134: -13341.1154 | BQ134: -10811.3192 | BR134: 2059.629077 | BS134: 5683.720417 | BT134: 13010.421 | BU134: =BU133*$F$134 -> 13945.35501 | BV134: 10208.67342 | BW134: 12087.80781 | BX134: 4712.175549 | BY134: -2150.84416 | BZ134: -11777.98345 | CA134: -15125.2684 | CB134: -13019.87813 | CC134: -10453.83024 | CD134: 2605.315098 | CE134: 6281.514666 | CF134: 13714.59312 | CG134: 56724.86322 | CH134: 52932.14734 | CI134: 54837.57785 | CJ134: 47352.72946 | CK134: 40388.13717 | CL134: 30619.15693 | CM134: 27221.95259 | CN134: 29357.07755 | CO134: 31959.53064 | CP134: 45207.96941 | CQ134: 48936.5184 | CR134: 56476.54631 | CS134: 57436.40382 | CT134: 53587.22365 | CU134: 55519.02247 | CV134: 47924.21085 | CW134: 40857.35135 | CX134: 30945.60152 | CY134: 27498.10314 | CZ134: 535393.5046 | DA134: 541349.3033 | DB134: 547180.8601 | DC134: 0 | DD134: 0 | DE134: 0 | DF134: 0 | DG134: =DG133*$F$134 -> 0 | DH134: 0 | DI134: 0
B135: After Tax Project Cash Flow | E135: EGP | H135: =H130-H134 -> -1e-05 | I135: =I130-I134 -> 0 | J135: 0 | K135: 0 | L135: 0 | M135: 0 | N135: 0 | O135: 0 | P135: 0 | Q135: 0 | R135: 0 | S135: 0 | T135: -2884311 | U135: -2884311 | V135: -2884311 | W135: -2884311 | X135: -2884311 | Y135: 267394.4943 | Z135: 279261.2362 | AA135: 287032.6659 | AB135: 253168.2464 | AC135: 221792.8723 | AD135: 178247.7364 | AE135: 162926.647 | AF135: 171910.1489 | AG135: 182878.5636 | AH135: 240110.5089 | AI135: 255695.4024 | AJ135: 287674.4106 | AK135: 291076.6474 | AL135: 303882.7268 | AM135: 312427.2378 | AN135: 275047.7445 | AO135: 240421.1472 | AP135: 192382.3122 | AQ135: 175473.2057 | AR135: 185362.5539 | AS135: 197437.6358 | AT135: 260502.1715 | AU135: 277653.6003 | AV135: 312866.6808 | AW135: 317463.9567 | AX135: 314539.7399 | AY135: 324311.7759 | AZ135: 286013.7948 | BA135: 250377.0006 | BB135: 200381.112 | BC135: 183003.6018 | BD135: 193949.5734 | BE135: 207288.974 | BF135: 275137.8595 | BG135: 294246.5511 | BH135: 332872.8305 | BI135: 337807.2927 | BJ135: 318116.3837 | BK135: 328028.067 | BL135: 289154.3457 | BM135: 252982.1008 | BN135: 202238.0855 | BO135: 184597.7321 | BP135: 195701.4541 | BQ135: 209233.856 | BR135: 278083.2143 | BS135: 297469.2267 | BT135: 336661.26 | BU135: =BU130-BU134 -> 341662.4149 | BV135: 321674.134 | BW135: 331726.0116 | BX135: 292272.2327 | BY135: 255560.5241 | BZ135: 204062.9695 | CA135: 186157.6516 | CB135: 197419.8186 | CC135: 211146.1382 | CD135: 281002.2014 | CE135: 300666.9515 | CF135: 340428.0219 | CG135: 303432.9985 | CH135: 283144.9786 | CI135: 293337.5196 | CJ135: 253299.5211 | CK135: 216044.4798 | CL135: 163788.1887 | CM135: 145615.8417 | CN135: 157037.0656 | CO135: 170958.1242 | CP135: 241826.757 | CQ135: 261771.535 | CR135: 302104.7001 | CS135: 307239.176 | CT135: 286649.117 | CU135: 296982.7075 | CV135: 256356.493 | CW135: 218554.4032 | CX135: 165534.4082 | CY135: 147093.0279 | CZ135: 2863930.334 | DA135: 2895789.13 | DB135: 2926983.331 | DC135: 0 | DD135: 0 | DE135: 0 | DF135: 0 | DG135: =DG130-DG134 -> 0 | DH135: 0 | DI135: 0
B136: After Tax Project IRR | E136: EGP | F136: =XIRR(H135:DF135,H3:DF3) -> 0.1662007391
A139: Financing
B140: Soruces and Uses
C141: Capital Expenditures | E141: EGP | F141: =SUM(H141:DF141) -> 16023950 | H141: =Template!H48 -> 0 | I141: =Template!I48 -> 0 | J141: =Template!J48 -> 0 | K141: =Template!K48 -> 0 | L141: =Template!L48 -> 0 | M141: =Template!M48 -> 0 | N141: =Template!N48 -> 0 | O141: =Template!O48 -> 0 | P141: =Template!P48 -> 0 | Q141: =Template!Q48 -> 0 | R141: =Template!R48 -> 0 | S141: =Template!S48 -> 0 | T141: =Template!T48 -> 3204790 | U141: =Template!U48 -> 3204790 | V141: =Template!V48 -> 3204790 | W141: =Template!W48 -> 3204790 | X141: =Template!X48 -> 3204790 | Y141: =Template!Y48 -> 0 | Z141: =Template!Z48 -> 0 | AA141: =Template!AA48 -> 0 | AB141: =Template!AB48 -> 0 | AC141: =Template!AC48 -> 0 | AD141: =Template!AD48 -> 0 | AE141: =Template!AE48 -> 0 | AF141: =Template!AF48 -> 0 | AG141: =Template!AG48 -> 0 | AH141: =Template!AH48 -> 0 | AI141: =Template!AI48 -> 0 | AJ141: =Template!AJ48 -> 0 | AK141: =Template!AK48 -> 0 | AL141: =Template!AL48 -> 0 | AM141: =Template!AM48 -> 0 | AN141: =Template!AN48 -> 0 | AO141: =Template!AO48 -> 0 | AP141: =Template!AP48 -> 0 | AQ141: =Template!AQ48 -> 0 | AR141: =Template!AR48 -> 0 | AS141: =Template!AS48 -> 0 | AT141: =Template!AT48 -> 0 | AU141: =Template!AU48 -> 0 | AV141: =Template!AV48 -> 0 | AW141: =Template!AW48 -> 0 | AX141: =Template!AX48 -> 0 | AY141: =Template!AY48 -> 0 | AZ141: =Template!AZ48 -> 0 | BA141: =Template!BA48 -> 0 | BB141: =Template!BB48 -> 0 | BC141: =Template!BC48 -> 0 | BD141: =Template!BD48 -> 0 | BE141: =Template!BE48 -> 0 | BF141: =Template!BF48 -> 0 | BG141: =Template!BG48 -> 0 | BH141: =Template!BH48 -> 0 | BI141: =Template!BI48 -> 0 | BJ141: =Template!BJ48 -> 0 | BK141: =Template!BK48 -> 0 | BL141: =Template!BL48 -> 0 | BM141: =Template!BM48 -> 0 | BN141: =Template!BN48 -> 0 | BO141: =Template!BO48 -> 0 | BP141: =Template!BP48 -> 0 | BQ141: =Template!BQ48 -> 0 | BR141: =Template!BR48 -> 0 | BS141: =Template!BS48 -> 0 | BT141: =Template!BT48 -> 0 | BU141: =Template!BU48 -> 0 | BV141: =Template!BV48 -> 0 | BW141: =Template!BW48 -> 0 | BX141: =Template!BX48 -> 0 | BY141: =Template!BY48 -> 0 | BZ141: =Template!BZ48 -> 0 | CA141: =Template!CA48 -> 0 | CB141: =Template!CB48 -> 0 | CC141: =Template!CC48 -> 0 | CD141: =Template!CD48 -> 0 | CE141: =Template!CE48 -> 0 | CF141: =Template!CF48 -> 0 | CG141: =Template!CG48 -> 0 | CH141: =Template!CH48 -> 0 | CI141: =Template!CI48 -> 0 | CJ141: =Template!CJ48 -> 0 | CK141: =Template!CK48 -> 0 | CL141: =Template!CL48 -> 0 | CM141: =Template!CM48 -> 0 | CN141: =Template!CN48 -> 0 | CO141: =Template!CO48 -> 0 | CP141: =Template!CP48 -> 0 | CQ141: =Template!CQ48 -> 0 | CR141: =Template!CR48 -> 0 | CS141: =Template!CS48 -> 0 | CT141: =Template!CT48 -> 0 | CU141: =Template!CU48 -> 0 | CV141: =Template!CV48 -> 0 | CW141: =Template!CW48 -> 0 | CX141: =Template!CX48 -> 0 | CY141: =Template!CY48 -> 0 | CZ141: =Template!CZ48 -> 0 | DA141: =Template!DA48 -> 0 | DB141: =Template!DB48 -> 0 | DC141: =Template!DC48 -> 0 | DD141: =Template!DD48 -> 0 | DE141: =Template!DE48 -> 0 | DF141: =Template!DF48 -> 0 | DG141: =Template!DG48 -> 0 | DH141: =Template!DH48 -> 0 | DI141: =Template!DI48 -> 0
C142: IDC | E142: EGP | F142: =Template!H460 -> 86549.11477 | G142: =Template!G194 -> 86549.11477 | H142: =Template!J460 -> 0 | I142: =Template!K460 -> 0 | J142: =Template!L460 -> 0 | K142: =Template!M460 -> 0 | L142: =Template!N460 -> 0 | M142: =Template!O460 -> 0 | N142: =Template!P460 -> 0 | O142: =Template!Q460 -> 0 | P142: =Template!R460 -> 0 | Q142: =Template!S460 -> 0 | R142: =Template!T460 -> 0 | S142: =Template!U460 -> 0 | T142: =Template!V460 -> 0 | U142: =Template!W460 -> 8631.632116 | V142: =Template!X460 -> 17286.51227 | W142: =Template!Y460 -> 25964.70307 | X142: =Template!Z460 -> 34666.26731 | Y142: =Template!AA460 -> 0 | Z142: =Template!AB460 -> 0 | AA142: =Template!AC460 -> 0 | AB142: =Template!AD460 -> 0 | AC142: =Template!AE460 -> 0 | AD142: =Template!AF460 -> 0 | AE142: =Template!AG460 -> 0 | AF142: =Template!AH460 -> 0 | AG142: =Template!AI460 -> 0 | AH142: =Template!AJ460 -> 0 | AI142: =Template!AK460 -> 0 | AJ142: =Template!AL460 -> 0 | AK142: =Template!AM460 -> 0 | AL142: =Template!AN460 -> 0 | AM142: =Template!AO460 -> 0 | AN142: =Template!AP460 -> 0 | AO142: =Template!AQ460 -> 0 | AP142: =Template!AR460 -> 0 | AQ142: =Template!AS460 -> 0 | AR142: =Template!AT460 -> 0 | AS142: =Template!AU460 -> 0 | AT142: =Template!AV460 -> 0 | AU142: =Template!AW460 -> 0 | AV142: =Template!AX460 -> 0 | AW142: =Template!AY460 -> 0 | AX142: =Template!AZ460 -> 0 | AY142: =Template!BA460 -> 0 | AZ142: =Template!BB460 -> 0 | BA142: =Template!BC460 -> 0 | BB142: =Template!BD460 -> 0 | BC142: =Template!BE460 -> 0 | BD142: =Template!BF460 -> 0 | BE142: =Template!BG460 -> 0 | BF142: =Template!BH460 -> 0 | BG142: =Template!BI460 -> 0 | BH142: =Template!BJ460 -> 0 | BI142: =Template!BK460 -> 0 | BJ142: =Template!BL460 -> 0 | BK142: =Template!BM460 -> 0 | BL142: =Template!BN460 -> 0 | BM142: =Template!BO460 -> 0 | BN142: =Template!BP460 -> 0 | BO142: =Template!BQ460 -> 0 | BP142: =Template!BR460 -> 0 | BQ142: =Template!BS460 -> 0 | BR142: =Template!BT460 -> 0 | BS142: =Template!BU460 -> 0 | BT142: =Template!BV460 -> 0 | BU142: =Template!BW460 -> 0 | BV142: =Template!BX460 -> 0 | BW142: =Template!BY460 -> 0 | BX142: =Template!BZ460 -> 0 | BY142: =Template!CA460 -> 0 | BZ142: =Template!CB460 -> 0 | CA142: =Template!CC460 -> 0 | CB142: =Template!CD460 -> 0 | CC142: =Template!CE460 -> 0 | CD142: =Template!CF460 -> 0 | CE142: =Template!CG460 -> 0 | CF142: =Template!CH460 -> 0 | CG142: =Template!CI460 -> 0 | CH142: =Template!CJ460 -> 0 | CI142: =Template!CK460 -> 0 | CJ142: =Template!CL460 -> 0 | CK142: =Template!CM460 -> 0 | CL142: =Template!CN460 -> 0 | CM142: =Template!CO460 -> 0 | CN142: =Template!CP460 -> 0 | CO142: =Template!CQ460 -> 0 | CP142: =Template!CR460 -> 0 | CQ142: =Template!CS460 -> 0 | CR142: =Template!CT460 -> 0 | CS142: =Template!CU460 -> 0 | CT142: =Template!CV460 -> 0 | CU142: =Template!CW460 -> 0 | CV142: =Template!CX460 -> 0 | CW142: =Template!CY460 -> 0 | CX142: =Template!CZ460 -> 0 | CY142: =Template!DA460 -> 0 | CZ142: =Template!DB460 -> 0 | DA142: =Template!DC460 -> 0 | DB142: =Template!DD460 -> 0 | DC142: =Template!DE460 -> 0 | DD142: =Template!DF460 -> 0 | DE142: =Template!DG460 -> 0 | DF142: =Template!DH460 -> 0 | DG142: =Template!DI460 -> 0 | DH142: =Template!DJ460 -> 0 | DI142: =Template!DK460 -> 0
C143: DSRA | E143: EGP | F143: =SUM(H143:DF143) -> 0
D144: Total | E144: EGP | F144: =SUM(H144:DF144) -> 16110499.11 | H144: =SUM(H141:H143) -> 0 | I144: =SUM(I141:I143) -> 0 | J144: 0 | K144: 0 | L144: 0 | M144: 0 | N144: 0 | O144: 0 | P144: 0 | Q144: 0 | R144: 0 | S144: 0 | T144: 3204790 | U144: 3213421.632 | V144: 3222076.512 | W144: 3230754.703 | X144: 3239456.267 | Y144: 0 | Z144: 0 | AA144: 0 | AB144: 0 | AC144: 0 | AD144: 0 | AE144: 0 | AF144: 0 | AG144: 0 | AH144: 0 | AI144: 0 | AJ144: 0 | AK144: 0 | AL144: 0 | AM144: 0 | AN144: 0 | AO144: 0 | AP144: 0 | AQ144: 0 | AR144: 0 | AS144: 0 | AT144: 0 | AU144: 0 | AV144: 0 | AW144: 0 | AX144: 0 | AY144: 0 | AZ144: 0 | BA144: 0 | BB144: 0 | BC144: 0 | BD144: 0 | BE144: 0 | BF144: 0 | BG144: 0 | BH144: 0 | BI144: 0 | BJ144: 0 | BK144: 0 | BL144: 0 | BM144: 0 | BN144: 0 | BO144: 0 | BP144: 0 | BQ144: 0 | BR144: 0 | BS144: 0 | BT144: 0 | BU144: =SUM(BU141:BU143) -> 0 | BV144: 0 | BW144: 0 | BX144: 0 | BY144: 0 | BZ144: 0 | CA144: 0 | CB144: 0 | CC144: 0 | CD144: 0 | CE144: 0 | CF144: 0 | CG144: 0 | CH144: 0 | CI144: 0 | CJ144: 0 | CK144: 0 | CL144: 0 | CM144: 0 | CN144: 0 | CO144: 0 | CP144: 0 | CQ144: 0 | CR144: 0 | CS144: 0 | CT144: 0 | CU144: 0 | CV144: 0 | CW144: 0 | CX144: 0 | CY144: 0 | CZ144: 0 | DA144: 0 | DB144: 0 | DC144: 0 | DD144: 0 | DE144: 0 | DF144: 0 | DG144: =SUM(DG141:DG143) -> 0 | DH144: 0 | DI144: 0
C146: Grant Period | E146: =EDATE(F7,F146-1) -> 2020-07-01 | F146: =INDEX('Master Assumptions'!AK:AK,Template!E1) -> 2
C147: Grant Percent | F147: =INDEX('Master Assumptions'!AJ:AJ,Template!E1) -> 0.15
C148: Max Debt to Capital | F148: =INDEX('Master Assumptions'!AM:AM,Template!E1) -> 0.7
C149: Debt from Max Debt to Capital | F149: =F148*F144 -> 11277349.38
C150: Debt from DSCR Calculation | F150: =S453 -> 10413904.3
C151: Debt Used in Model | F151: =MIN(F149,F150) -> 10413904.3
C152: Method Used | F152: =IF(F151=F149,"Debt to Capital","DSCR") -> DSCR
C153: DSCR if Max Debt to Capital is Used | F153: =SUMPRODUCT(H167:DI167/H170:DI170)/F149 -> 1.45466916
C156: Debt without Grant | E156: EGP | F156: =F151 -> 10413904.3 | G156: =F156/F144 -> 0.6464048215 | H156: =H144*$G$156 -> 0 | I156: =I144*$G$156 -> 0 | J156: 0 | K156: 0 | L156: 0 | M156: 0 | N156: 0 | O156: 0 | P156: 0 | Q156: 0 | R156: 0 | S156: 0 | T156: 2071591.708 | U156: 2077171.237 | V156: 2082765.793 | W156: 2088375.417 | X156: 2094000.15 | Y156: 0 | Z156: 0 | AA156: 0 | AB156: 0 | AC156: 0 | AD156: 0 | AE156: 0 | AF156: 0 | AG156: 0 | AH156: 0 | AI156: 0 | AJ156: 0 | AK156: 0 | AL156: 0 | AM156: 0 | AN156: 0 | AO156: 0 | AP156: 0 | AQ156: 0 | AR156: 0 | AS156: 0 | AT156: 0 | AU156: 0 | AV156: 0 | AW156: 0 | AX156: 0 | AY156: 0 | AZ156: 0 | BA156: 0 | BB156: 0 | BC156: 0 | BD156: 0 | BE156: 0 | BF156: 0 | BG156: 0 | BH156: 0 | BI156: 0 | BJ156: 0 | BK156: 0 | BL156: 0 | BM156: 0 | BN156: 0 | BO156: 0 | BP156: 0 | BQ156: 0 | BR156: 0 | BS156: 0 | BT156: 0 | BU156: =BU144*$G$156 -> 0 | BV156: 0 | BW156: 0 | BX156: 0 | BY156: 0 | BZ156: 0 | CA156: 0 | CB156: 0 | CC156: 0 | CD156: 0 | CE156: 0 | CF156: 0 | CG156: 0 | CH156: 0 | CI156: 0 | CJ156: 0 | CK156: 0 | CL156: 0 | CM156: 0 | CN156: 0 | CO156: 0 | CP156: 0 | CQ156: 0 | CR156: 0 | CS156: 0 | CT156: 0 | CU156: 0 | CV156: 0 | CW156: 0 | CX156: 0 | CY156: 0 | CZ156: 0 | DA156: 0 | DB156: 0 | DC156: 0 | DD156: 0 | DE156: 0 | DF156: 0 | DG156: =DG144*$G$156 -> 0 | DH156: 0 | DI156: 0
C157: Grant Portion of Debt | E157: EGP | F157: =F147*F156 -> 1562085.646 | G157: =F157/F159 -> 0.08839033265 | H157: =(H3=$E$146)*$F$157 -> 0 | I157: =(I3=$E$146)*$F$157 -> 0 | J157: 0 | K157: 0 | L157: 0 | M157: 0 | N157: 0 | O157: 0 | P157: 0 | Q157: 0 | R157: 0 | S157: 0 | T157: 0 | U157: 0 | V157: 0 | W157: 0 | X157: 0 | Y157: 0 | Z157: 1562085.646 | AA157: 0 | AB157: 0 | AC157: 0 | AD157: 0 | AE157: 0 | AF157: 0 | AG157: 0 | AH157: 0 | AI157: 0 | AJ157: 0 | AK157: 0 | AL157: 0 | AM157: 0 | AN157: 0 | AO157: 0 | AP157: 0 | AQ157: 0 | AR157: 0 | AS157: 0 | AT157: 0 | AU157: 0 | AV157: 0 | AW157: 0 | AX157: 0 | AY157: 0 | AZ157: 0 | BA157: 0 | BB157: 0 | BC157: 0 | BD157: 0 | BE157: 0 | BF157: 0 | BG157: 0 | BH157: 0 | BI157: 0 | BJ157: 0 | BK157: 0 | BL157: 0 | BM157: 0 | BN157: 0 | BO157: 0 | BP157: 0 | BQ157: 0 | BR157: 0 | BS157: 0 | BT157: 0 | BU157: =(BU3=$E$146)*$F$157 -> 0 | BV157: 0 | BW157: 0 | BX157: 0 | BY157: 0 | BZ157: 0 | CA157: 0 | CB157: 0 | CC157: 0 | CD157: 0 | CE157: 0 | CF157: 0 | CG157: 0 | CH157: 0 | CI157: 0 | CJ157: 0 | CK157: 0 | CL157: 0 | CM157: 0 | CN157: 0 | CO157: 0 | CP157: 0 | CQ157: 0 | CR157: 0 | CS157: 0 | CT157: 0 | CU157: 0 | CV157: 0 | CW157: 0 | CX157: 0 | CY157: 0 | CZ157: 0 | DA157: 0 | DB157: 0 | DC157: 0 | DD157: 0 | DE157: 0 | DF157: 0 | DG157: =(DG3=$E$146)*$F$157 -> 0 | DH157: 0 | DI157: 0
C158: Equity | E158: EGP | F158: =SUM(H158:DF158) -> 5696594.81 | G158: =F158/$F$144 -> 0.3535951785 | H158: =H144-H156 -> 0 | I158: =I144-I156 -> 0 | J158: 0 | K158: 0 | L158: 0 | M158: 0 | N158: 0 | O158: 0 | P158: 0 | Q158: 0 | R158: 0 | S158: 0 | T158: 1133198.292 | U158: 1136250.396 | V158: 1139310.719 | W158: 1142379.286 | X158: 1145456.117 | Y158: 0 | Z158: 0 | AA158: 0 | AB158: 0 | AC158: 0 | AD158: 0 | AE158: 0 | AF158: 0 | AG158: 0 | AH158: 0 | AI158: 0 | AJ158: 0 | AK158: 0 | AL158: 0 | AM158: 0 | AN158: 0 | AO158: 0 | AP158: 0 | AQ158: 0 | AR158: 0 | AS158: 0 | AT158: 0 | AU158: 0 | AV158: 0 | AW158: 0 | AX158: 0 | AY158: 0 | AZ158: 0 | BA158: 0 | BB158: 0 | BC158: 0 | BD158: 0 | BE158: 0 | BF158: 0 | BG158: 0 | BH158: 0 | BI158: 0 | BJ158: 0 | BK158: 0 | BL158: 0 | BM158: 0 | BN158: 0 | BO158: 0 | BP158: 0 | BQ158: 0 | BR158: 0 | BS158: 0 | BT158: 0 | BU158: =BU144-BU156 -> 0 | BV158: 0 | BW158: 0 | BX158: 0 | BY158: 0 | BZ158: 0 | CA158: 0 | CB158: 0 | CC158: 0 | CD158: 0 | CE158: 0 | CF158: 0 | CG158: 0 | CH158: 0 | CI158: 0 | CJ158: 0 | CK158: 0 | CL158: 0 | CM158: 0 | CN158: 0 | CO158: 0 | CP158: 0 | CQ158: 0 | CR158: 0 | CS158: 0 | CT158: 0 | CU158: 0 | CV158: 0 | CW158: 0 | CX158: 0 | CY158: 0 | CZ158: 0 | DA158: 0 | DB158: 0 | DC158: 0 | DD158: 0 | DE158: 0 | DF158: 0 | DG158: 0 | DH158: 0 | DI158: 0
D159: Total | E159: EGP | F159: =SUM(F156:F158) -> 17672584.76 | G159: =SUM(G156:G158) -> 1.088390333
A161: Debt Repayment
B162: Tenure | E162: =EDATE(F7,F162*12) -> 2025-06-01 | F162: =INDEX('Master Assumptions'!AH:AH,Template!E1) -> 5 | H162: =AND(H7,H3<$E$162) -> FALSE | I162: FALSE | J162: FALSE | K162: FALSE | L162: FALSE | M162: FALSE | N162: FALSE | O162: FALSE | P162: FALSE | Q162: FALSE | R162: FALSE | S162: FALSE | T162: FALSE | U162: FALSE | V162: FALSE | W162: FALSE | X162: FALSE | Y162: TRUE | Z162: TRUE | AA162: TRUE | AB162: TRUE | AC162: TRUE | AD162: TRUE | AE162: TRUE | AF162: TRUE | AG162: TRUE | AH162: TRUE | AI162: TRUE | AJ162: TRUE | AK162: TRUE | AL162: TRUE | AM162: TRUE | AN162: =AND(AN7,AN3<$E$162) -> TRUE | AO162: TRUE | AP162: TRUE | AQ162: TRUE | AR162: TRUE | AS162: TRUE | AT162: TRUE | AU162: TRUE | AV162: TRUE | AW162: TRUE | AX162: TRUE | AY162: TRUE | AZ162: TRUE | BA162: TRUE | BB162: TRUE | BC162: TRUE | BD162: TRUE | BE162: TRUE | BF162: TRUE | BG162: TRUE | BH162: TRUE | BI162: TRUE | BJ162: TRUE | BK162: TRUE | BL162: TRUE | BM162: TRUE | BN162: TRUE | BO162: TRUE | BP162: TRUE | BQ162: TRUE | BR162: TRUE | BS162: TRUE | BT162: =AND(BT7,BT3<$E$162) -> TRUE | BU162: TRUE | BV162: TRUE | BW162: TRUE | BX162: TRUE | BY162: TRUE | BZ162: TRUE | CA162: TRUE | CB162: TRUE | CC162: TRUE | CD162: TRUE | CE162: TRUE | CF162: TRUE | CG162: FALSE | CH162: FALSE | CI162: FALSE | CJ162: FALSE | CK162: FALSE | CL162: FALSE | CM162: FALSE | CN162: FALSE | CO162: FALSE | CP162: FALSE | CQ162: FALSE | CR162: FALSE | CS162: FALSE | CT162: FALSE | CU162: FALSE | CV162: FALSE | CW162: FALSE | CX162: FALSE | CY162: FALSE | CZ162: =AND(CZ7,CZ3<$E$162) -> FALSE | DA162: FALSE | DB162: FALSE | DC162: FALSE | DD162: FALSE | DE162: FALSE | DF162: FALSE | DG162: =AND(DG7,DG3<$E$162) -> FALSE | DH162: FALSE | DI162: FALSE
F163: =COUNTIF(H162:DF162, TRUE) -> 60
B164: Input DSCR | F164: =INDEX('Master Assumptions'!AG:AG,Template!E1) -> 1.3
B166: Target DSCR | F166: =F164 -> 1.3 | H166: =$F$166 -> 1.3 | I166: =$F$166 -> 1.3 | J166: 1.3 | K166: 1.3 | L166: 1.3 | M166: 1.3 | N166: 1.3 | O166: 1.3 | P166: 1.3 | Q166: 1.3 | R166: 1.3 | S166: 1.3 | T166: 1.3 | U166: 1.3 | V166: 1.3 | W166: 1.3 | X166: 1.3 | Y166: 1.3 | Z166: 1.3 | AA166: 1.3 | AB166: 1.3 | AC166: 1.3 | AD166: 1.3 | AE166: 1.3 | AF166: 1.3 | AG166: 1.3 | AH166: 1.3 | AI166: 1.3 | AJ166: 1.3 | AK166: 1.3 | AL166: 1.3 | AM166: 1.3 | AN166: 1.3 | AO166: 1.3 | AP166: 1.3 | AQ166: 1.3 | AR166: 1.3 | AS166: 1.3 | AT166: 1.3 | AU166: 1.3 | AV166: 1.3 | AW166: 1.3 | AX166: 1.3 | AY166: 1.3 | AZ166: 1.3 | BA166: 1.3 | BB166: 1.3 | BC166: 1.3 | BD166: 1.3 | BE166: 1.3 | BF166: 1.3 | BG166: 1.3 | BH166: 1.3 | BI166: 1.3 | BJ166: 1.3 | BK166: 1.3 | BL166: 1.3 | BM166: 1.3 | BN166: 1.3 | BO166: 1.3 | BP166: 1.3 | BQ166: 1.3 | BR166: 1.3 | BS166: 1.3 | BT166: 1.3 | BU166: =$F$166 -> 1.3 | BV166: 1.3 | BW166: 1.3 | BX166: 1.3 | BY166: 1.3 | BZ166: 1.3 | CA166: 1.3 | CB166: 1.3 | CC166: 1.3 | CD166: 1.3 | CE166: 1.3 | CF166: 1.3 | CG166: 1.3 | CH166: 1.3 | CI166: 1.3 | CJ166: 1.3 | CK166: 1.3 | CL166: 1.3 | CM166: 1.3 | CN166: 1.3 | CO166: 1.3 | CP166: 1.3 | CQ166: 1.3 | CR166: 1.3 | CS166: 1.3 | CT166: 1.3 | CU166: 1.3 | CV166: 1.3 | CW166: 1.3 | CX166: 1.3 | CY166: 1.3 | CZ166: 1.3 | DA166: 1.3 | DB166: 1.3 | DC166: 1.3 | DD166: 1.3 | DE166: 1.3 | DF166: 1.3 | DG166: 1.3 | DH166: 1.3 | DI166: 1.3
B167: CFADS (EBITDA) + Grant | H167: =Template!J531 -> 0 | I167: =Template!K531 -> 0 | J167: =Template!L531 -> 0 | K167: =Template!M531 -> 0 | L167: =Template!N531 -> 0 | M167: =Template!O531 -> 0 | N167: =Template!P531 -> 0 | O167: =Template!Q531 -> 0 | P167: =Template!R531 -> 0 | Q167: =Template!S531 -> 0 | R167: =Template!T531 -> 0 | S167: =Template!U531 -> 0 | T167: =Template!V531 -> 0 | U167: =Template!W531 -> 0 | V167: =Template!X531 -> 0 | W167: =Template!Y531 -> 0 | X167: =Template!Z531 -> 0 | Y167: =Template!AA531 -> 267455.9354 | Z167: =Template!AB531 -> 281541.089 | AA167: =Template!AC531 -> 290765.3379 | AB167: =Template!AD531 -> 250570.1812 | AC167: =Template!AE531 -> 213329.3811 | AD167: =Template!AF531 -> 161643.7598 | AE167: =Template!AG531 -> 143458.4905 | AF167: =Template!AH531 -> 154121.4008 | AG167: =Template!AI531 -> 167140.2906 | AH167: =Template!AJ531 -> 235071.3829 | AI167: =Template!AK531 -> 253569.7728 | AJ167: =Template!AL531 -> 291527.0527 | AK167: =Template!AM531 -> 295565.3159 | AL167: =Template!AN531 -> 310765.4101 | AM167: =Template!AO531 -> 320907.2629 | AN167: =Template!AP531 -> 276539.9119 | AO167: =Template!AQ531 -> 235440.0931 | AP167: =Template!AR531 -> 178420.7044 | AQ167: =Template!AS531 -> 158350.5483 | AR167: =Template!AT531 -> 170088.6471 | AS167: =Template!AU531 -> 184421.0885 | AT167: =Template!AV531 -> 259275.1368 | AU167: =Template!AW531 -> 279632.9157 | AV167: =Template!AX531 -> 321428.857 | AW167: =Template!AY531 -> 326885.5644 | AX167: =Template!AZ531 -> 323414.6839 | AY167: =Template!BA531 -> 335013.5397 | AZ167: =Template!BB531 -> 289555.9953 | BA167: =Template!BC531 -> 247257.1298 | BB167: =Template!BD531 -> 187914.8287 | BC167: =Template!BE531 -> 167288.7039 | BD167: =Template!BF531 -> 180280.9551 | BE167: =Template!BG531 -> 196114.0715 | BF167: =Template!BH531 -> 276646.8733 | BG167: =Template!BI531 -> 299327.8129 | BH167: =Template!BJ531 -> 345175.0288 | BI167: =Template!BK531 -> 351031.9572 | BJ167: =Template!BL531 -> 327659.9584 | BK167: =Template!BM531 -> 339424.5677 | BL167: =Template!BN531 -> 293283.6522 | BM167: =Template!BO531 -> 250349.2368 | BN167: =Template!BP531 -> 190118.9516 | BO167: =Template!BQ531 -> 169180.8467 | BP167: =Template!BR531 -> 182360.3388 | BQ167: =Template!BS531 -> 198422.5369 | BR167: =Template!BT531 -> 280142.8433 | BS167: =Template!BU531 -> 303152.9471 | BT167: =Template!BV531 -> 349671.681 | BU167: =Template!BW531 -> 355607.7699 | BV167: =Template!BX531 -> 331882.8074 | BW167: =Template!BY531 -> 343813.8194 | BX167: =Template!BZ531 -> 296984.4082 | BY167: =Template!CA531 -> 253409.6799 | BZ167: =Template!CB531 -> 192284.986 | CA167: =Template!CC531 -> 171032.3832 | CB167: =Template!CD531 -> 184399.9405 | CC167: =Template!CE531 -> 200692.308 | CD167: =Template!CF531 -> 283607.5165 | CE167: =Template!CG531 -> 306948.4661 | CF167: =Template!CH531 -> 354142.615 | CG167: =Template!CI531 -> 360157.8617 | CH167: =Template!CJ531 -> 336077.126 | CI167: =Template!CK531 -> 348175.0974 | CJ167: =Template!CL531 -> 300652.2505 | CK167: =Template!CM531 -> 256432.6169 | CL167: =Template!CN531 -> 194407.3456 | CM167: =Template!CO531 -> 172837.7943 | CN167: =Template!CP531 -> 186394.1432 | CO167: =Template!CQ531 -> 202917.6548 | CP167: =Template!CR531 -> 287034.7264 | CQ167: =Template!CS531 -> 310708.0534 | CR167: =Template!CT531 -> 358581.2464 | CS167: =Template!CU531 -> 364675.5798 | CT167: =Template!CV531 -> 0 | CU167: =Template!CW531 -> 0 | CV167: =Template!CX531 -> 0 | CW167: =Template!CY531 -> 0 | CX167: =Template!CZ531 -> 0 | CY167: =Template!DA531 -> 0 | CZ167: =Template!DB531 -> 0 | DA167: =Template!DC531 -> 0 | DB167: =Template!DD531 -> 0 | DC167: =Template!DE531 -> 0 | DD167: =Template!DF531 -> 0 | DE167: =Template!DG531 -> 0 | DF167: =Template!DH531 -> 0 | DG167: =Template!DI531 -> 0 | DH167: =Template!DJ531 -> 0 | DI167: =Template!DK531 -> 0
B168: Target Debt Service | H168: =H167/H166*H162 -> 0 | I168: 0 | J168: 0 | K168: 0 | L168: 0 | M168: 0 | N168: 0 | O168: 0 | P168: 0 | Q168: 0 | R168: 0 | S168: 0 | T168: 0 | U168: 0 | V168: 0 | W168: 0 | X168: 0 | Y168: 205735.3349 | Z168: 216570.0684 | AA168: 223665.6445 | AB168: 192746.2932 | AC168: 164099.5239 | AD168: 124341.3537 | AE168: 110352.685 | AF168: 118554.9237 | AG168: 128569.4543 | AH168: 180824.1407 | AI168: 195053.6714 | AJ168: 224251.579 | AK168: 227357.9353 | AL168: 239050.3155 | AM168: 246851.7407 | AN168: =AN167/AN166*AN162 -> 212723.0091 | AO168: 181107.7639 | AP168: 137246.6957 | AQ168: 121808.1141 | AR168: 130837.4209 | AS168: 141862.3757 | AT168: 199442.4129 | AU168: 215102.2429 | AV168: 247252.9669 | AW168: 251450.4341 | AX168: 248780.526 | AY168: 257702.7228 | AZ168: 222735.381 | BA168: 190197.7921 | BB168: 144549.8683 | BC168: 128683.6184 | BD168: 138677.6578 | BE168: 150856.9781 | BF168: 212805.2872 | BG168: 230252.1638 | BH168: 265519.2529 | BI168: 270024.5825 | BJ168: 252046.1218 | BK168: 261095.8213 | BL168: 225602.8094 | BM168: 192576.336 | BN168: 146245.3474 | BO168: 130139.1129 | BP168: 140277.1837 | BQ168: 152632.7207 | BR168: 215494.4949 | BS168: 233194.5747 | BT168: =BT167/BT166*BT162 -> 268978.2161 | BU168: 273544.4384 | BV168: 255294.4673 | BW168: 264472.1688 | BX168: 228449.5448 | BY168: 194930.523 | BZ168: 147911.5277 | CA168: 131563.3717 | CB168: 141846.1081 | CC168: 154378.6984 | CD168: 218159.6281 | CE168: 236114.2047 | CF168: 272417.3962 | CG168: 0 | CH168: 0 | CI168: 0 | CJ168: 0 | CK168: 0 | CL168: 0 | CM168: 0 | CN168: 0 | CO168: 0 | CP168: 0 | CQ168: 0 | CR168: 0 | CS168: 0 | CT168: 0 | CU168: 0 | CV168: 0 | CW168: 0 | CX168: 0 | CY168: 0 | CZ168: =CZ167/CZ166*CZ162 -> 0 | DA168: 0 | DB168: 0 | DC168: 0 | DD168: 0 | DE168: 0 | DF168: 0 | DG168: =DG167/DG166*DG162 -> 0 | DH168: 0 | DI168: 0
B169: Interest Rate | F169: =INDEX('Master Assumptions'!AF:AF,Template!E1) -> 0.05 | H169: =$F$169/12*H6 -> 0.004166666667 | I169: 0.004166666667 | J169: 0.004166666667 | K169: 0.004166666667 | L169: 0.004166666667 | M169: 0.004166666667 | N169: 0.004166666667 | O169: 0.004166666667 | P169: 0.004166666667 | Q169: 0.004166666667 | R169: 0.004166666667 | S169: 0.004166666667 | T169: 0.004166666667 | U169: 0.004166666667 | V169: 0.004166666667 | W169: 0.004166666667 | X169: 0.004166666667 | Y169: 0.004166666667 | Z169: 0.004166666667 | AA169: 0.004166666667 | AB169: 0.004166666667 | AC169: 0.004166666667 | AD169: 0.004166666667 | AE169: 0.004166666667 | AF169: 0.004166666667 | AG169: 0.004166666667 | AH169: 0.004166666667 | AI169: 0.004166666667 | AJ169: 0.004166666667 | AK169: 0.004166666667 | AL169: 0.004166666667 | AM169: 0.004166666667 | AN169: =$F$169/12*AN6 -> 0.004166666667 | AO169: 0.004166666667 | AP169: 0.004166666667 | AQ169: 0.004166666667 | AR169: 0.004166666667 | AS169: 0.004166666667 | AT169: 0.004166666667 | AU169: 0.004166666667 | AV169: 0.004166666667 | AW169: 0.004166666667 | AX169: 0.004166666667 | AY169: 0.004166666667 | AZ169: 0.004166666667 | BA169: 0.004166666667 | BB169: 0.004166666667 | BC169: 0.004166666667 | BD169: 0.004166666667 | BE169: 0.004166666667 | BF169: 0.004166666667 | BG169: 0.004166666667 | BH169: 0.004166666667 | BI169: 0.004166666667 | BJ169: 0.004166666667 | BK169: 0.004166666667 | BL169: 0.004166666667 | BM169: 0.004166666667 | BN169: 0.004166666667 | BO169: 0.004166666667 | BP169: 0.004166666667 | BQ169: 0.004166666667 | BR169: 0.004166666667 | BS169: 0.004166666667 | BT169: =$F$169/12*BT6 -> 0.004166666667 | BU169: 0.004166666667 | BV169: 0.004166666667 | BW169: 0.004166666667 | BX169: 0.004166666667 | BY169: 0.004166666667 | BZ169: 0.004166666667 | CA169: 0.004166666667 | CB169: 0.004166666667 | CC169: 0.004166666667 | CD169: 0.004166666667 | CE169: 0.004166666667 | CF169: 0.004166666667 | CG169: 0.004166666667 | CH169: 0.004166666667 | CI169: 0.004166666667 | CJ169: 0.004166666667 | CK169: 0.004166666667 | CL169: 0.004166666667 | CM169: 0.004166666667 | CN169: 0.004166666667 | CO169: 0.004166666667 | CP169: 0.004166666667 | CQ169: 0.004166666667 | CR169: 0.004166666667 | CS169: 0.004166666667 | CT169: 0.004166666667 | CU169: 0.004166666667 | CV169: 0.004166666667 | CW169: 0.004166666667 | CX169: 0.004166666667 | CY169: 0.004166666667 | CZ169: =$F$169/12*CZ6 -> 0.05 | DA169: 0.05 | DB169: 0.05 | DC169: 0.05 | DD169: 0.05 | DE169: 0.05 | DF169: 0.05 | DG169: =$F$169/12*DG6 -> 0.05 | DH169: 0.05 | DI169: 0.05
B170: PV Compound Interest Rate | G170: 1 | H170: =G170*(1+H169*H162) -> 1 | I170: 1 | J170: 1 | K170: 1 | L170: 1 | M170: 1 | N170: 1 | O170: 1 | P170: 1 | Q170: 1 | R170: 1 | S170: 1 | T170: 1 | U170: 1 | V170: 1 | W170: 1 | X170: 1 | Y170: 1.004166667 | Z170: 1.008350694 | AA170: 1.012552156 | AB170: 1.016771123 | AC170: 1.021007669 | AD170: 1.025261868 | AE170: 1.029533792 | AF170: 1.033823517 | AG170: 1.038131115 | AH170: 1.042456661 | AI170: 1.04680023 | AJ170: 1.051161898 | AK170: 1.055541739 | AL170: 1.05993983 | AM170: 1.064356246 | AN170: =AM170*(1+AN169*AN162) -> 1.068791063 | AO170: 1.073244359 | AP170: 1.077716211 | AQ170: 1.082206695 | AR170: 1.08671589 | AS170: 1.091243873 | AT170: 1.095790722 | AU170: 1.100356517 | AV170: 1.104941336 | AW170: 1.109545258 | AX170: 1.114168363 | AY170: 1.118810731 | AZ170: 1.123472443 | BA170: 1.128153578 | BB170: 1.132854218 | BC170: 1.137574444 | BD170: 1.142314337 | BE170: 1.14707398 | BF170: 1.151853455 | BG170: 1.156652844 | BH170: 1.161472231 | BI170: 1.166311699 | BJ170: 1.171171331 | BK170: 1.176051212 | BL170: 1.180951425 | BM170: 1.185872056 | BN170: 1.190813189 | BO170: 1.195774911 | BP170: 1.200757307 | BQ170: 1.205760462 | BR170: 1.210784464 | BS170: 1.215829399 | BT170: =BS170*(1+BT169*BT162) -> 1.220895355 | BU170: 1.225982419 | BV170: 1.231090679 | BW170: 1.236220224 | BX170: 1.241371141 | BY170: 1.246543521 | BZ170: 1.251737452 | CA170: 1.256953025 | CB170: 1.262190329 | CC170: 1.267449456 | CD170: 1.272730495 | CE170: 1.278033539 | CF170: 1.283358679 | CG170: 1.283358679 | CH170: 1.283358679 | CI170: 1.283358679 | CJ170: 1.283358679 | CK170: 1.283358679 | CL170: 1.283358679 | CM170: 1.283358679 | CN170: 1.283358679 | CO170: 1.283358679 | CP170: 1.283358679 | CQ170: 1.283358679 | CR170: 1.283358679 | CS170: 1.283358679 | CT170: 1.283358679 | CU170: 1.283358679 | CV170: 1.283358679 | CW170: 1.283358679 | CX170: 1.283358679 | CY170: 1.283358679 | CZ170: =CY170*(1+CZ169*CZ162) -> 1.283358679 | DA170: 1.283358679 | DB170: 1.283358679 | DC170: 1.283358679 | DD170: 1.283358679 | DE170: 1.283358679 | DF170: 1.283358679 | DG170: =DF170*(1+DG169*DG162) -> 1.283358679 | DH170: =DG170*(1+DH169*DH162) -> 1.283358679 | DI170: =DH170*(1+DI169*DI162) -> 1.283358679
B172: PV of Debt Service =Total Debt | F172: =SUMPRODUCT(H168:DF168/H170:DF170) -> 10413904.3
B173: Grant
C174: Opening Balance | H174: =G177 -> 0 | I174: =H177 -> 0 | J174: 0 | K174: 0 | L174: 0 | M174: 0 | N174: 0 | O174: 0 | P174: 0 | Q174: 0 | R174: 0 | S174: 0 | T174: 0 | U174: 0 | V174: 0 | W174: 0 | X174: 0 | Y174: 0 | Z174: 0 | AA174: 1562085.646 | AB174: 1562085.646 | AC174: 1562085.646 | AD174: 1562085.646 | AE174: 1562085.646 | AF174: 1562085.646 | AG174: 1562085.646 | AH174: 1562085.646 | AI174: 1562085.646 | AJ174: 1562085.646 | AK174: 1562085.646 | AL174: 1562085.646 | AM174: 1562085.646 | AN174: 1562085.646 | AO174: 1562085.646 | AP174: 1562085.646 | AQ174: 1562085.646 | AR174: 1562085.646 | AS174: 1562085.646 | AT174: 1562085.646 | AU174: 1562085.646 | AV174: 1562085.646 | AW174: 1562085.646 | AX174: 1562085.646 | AY174: 1562085.646 | AZ174: 1562085.646 | BA174: 1562085.646 | BB174: 1562085.646 | BC174: 1562085.646 | BD174: 1562085.646 | BE174: 1562085.646 | BF174: 1562085.646 | BG174: 1562085.646 | BH174: 1562085.646 | BI174: 1562085.646 | BJ174: 1562085.646 | BK174: 1562085.646 | BL174: 1562085.646 | BM174: 1562085.646 | BN174: 1562085.646 | BO174: 1562085.646 | BP174: 1562085.646 | BQ174: 1562085.646 | BR174: 1562085.646 | BS174: 1562085.646 | BT174: 1562085.646 | BU174: =BT177 -> 1562085.646 | BV174: 1562085.646 | BW174: 1562085.646 | BX174: 1562085.646 | BY174: 1562085.646 | BZ174: 1562085.646 | CA174: 1562085.646 | CB174: 1562085.646 | CC174: 1562085.646 | CD174: 1562085.646 | CE174: 1562085.646 | CF174: 1562085.646 | CG174: 1562085.646 | CH174: 1562085.646 | CI174: 1562085.646 | CJ174: 1562085.646 | CK174: 1562085.646 | CL174: 1562085.646 | CM174: 1562085.646 | CN174: 1562085.646 | CO174: 1562085.646 | CP174: 1562085.646 | CQ174: 1562085.646 | CR174: 1562085.646 | CS174: 1562085.646 | CT174: 1562085.646 | CU174: 1562085.646 | CV174: 1562085.646 | CW174: 1562085.646 | CX174: 1562085.646 | CY174: 1562085.646 | CZ174: 1562085.646 | DA174: 1562085.646 | DB174: 1562085.646 | DC174: 1562085.646 | DD174: 1562085.646 | DE174: 1562085.646 | DF174: 1562085.646 | DG174: 1562085.646 | DH174: 1562085.646 | DI174: 1562085.646
C175: Add: Grant | H175: =H157 -> 0 | I175: =I157 -> 0 | J175: 0 | K175: 0 | L175: 0 | M175: 0 | N175: 0 | O175: 0 | P175: 0 | Q175: 0 | R175: 0 | S175: 0 | T175: 0 | U175: 0 | V175: 0 | W175: 0 | X175: 0 | Y175: 0 | Z175: 1562085.646 | AA175: 0 | AB175: 0 | AC175: 0 | AD175: 0 | AE175: 0 | AF175: 0 | AG175: 0 | AH175: 0 | AI175: 0 | AJ175: 0 | AK175: 0 | AL175: 0 | AM175: 0 | AN175: 0 | AO175: 0 | AP175: 0 | AQ175: 0 | AR175: 0 | AS175: 0 | AT175: 0 | AU175: 0 | AV175: 0 | AW175: 0 | AX175: 0 | AY175: 0 | AZ175: 0 | BA175: 0 | BB175: 0 | BC175: 0 | BD175: 0 | BE175: 0 | BF175: 0 | BG175: 0 | BH175: 0 | BI175: 0 | BJ175: 0 | BK175: 0 | BL175: 0 | BM175: 0 | BN175: 0 | BO175: 0 | BP175: 0 | BQ175: 0 | BR175: 0 | BS175: 0 | BT175: 0 | BU175: =BU157 -> 0 | BV175: 0 | BW175: 0 | BX175: 0 | BY175: 0 | BZ175: 0 | CA175: 0 | CB175: 0 | CC175: 0 | CD175: 0 | CE175: 0 | CF175: 0 | CG175: 0 | CH175: 0 | CI175: 0 | CJ175: 0 | CK175: 0 | CL175: 0 | CM175: 0 | CN175: 0 | CO175: 0 | CP175: 0 | CQ175: 0 | CR175: 0 | CS175: 0 | CT175: 0 | CU175: 0 | CV175: 0 | CW175: 0 | CX175: 0 | CY175: 0 | CZ175: 0 | DA175: 0 | DB175: 0 | DC175: 0 | DD175: 0 | DE175: 0 | DF175: 0 | DG175: 0 | DH175: 0 | DI175: 0
C176: Less Grant Repaid
C177: Closing Balabce | H177: =H174+H175-H176 -> 0 | I177: =I174+I175-I176 -> 0 | J177: 0 | K177: 0 | L177: 0 | M177: 0 | N177: 0 | O177: 0 | P177: 0 | Q177: 0 | R177: 0 | S177: 0 | T177: 0 | U177: 0 | V177: 0 | W177: 0 | X177: 0 | Y177: 0 | Z177: 1562085.646 | AA177: 1562085.646 | AB177: 1562085.646 | AC177: 1562085.646 | AD177: 1562085.646 | AE177: 1562085.646 | AF177: 1562085.646 | AG177: 1562085.646 | AH177: 1562085.646 | AI177: 1562085.646 | AJ177: 1562085.646 | AK177: 1562085.646 | AL177: 1562085.646 | AM177: 1562085.646 | AN177: 1562085.646 | AO177: 1562085.646 | AP177: 1562085.646 | AQ177: 1562085.646 | AR177: 1562085.646 | AS177: 1562085.646 | AT177: 1562085.646 | AU177: 1562085.646 | AV177: 1562085.646 | AW177: 1562085.646 | AX177: 1562085.646 | AY177: 1562085.646 | AZ177: 1562085.646 | BA177: 1562085.646 | BB177: 1562085.646 | BC177: 1562085.646 | BD177: 1562085.646 | BE177: 1562085.646 | BF177: 1562085.646 | BG177: 1562085.646 | BH177: 1562085.646 | BI177: 1562085.646 | BJ177: 1562085.646 | BK177: 1562085.646 | BL177: 1562085.646 | BM177: 1562085.646 | BN177: 1562085.646 | BO177: 1562085.646 | BP177: 1562085.646 | BQ177: 1562085.646 | BR177: 1562085.646 | BS177: 1562085.646 | BT177: 1562085.646 | BU177: =BU174+BU175-BU176 -> 1562085.646 | BV177: 1562085.646 | BW177: 1562085.646 | BX177: 1562085.646 | BY177: 1562085.646 | BZ177: 1562085.646 | CA177: 1562085.646 | CB177: 1562085.646 | CC177: 1562085.646 | CD177: 1562085.646 | CE177: 1562085.646 | CF177: 1562085.646 | CG177: 1562085.646 | CH177: 1562085.646 | CI177: 1562085.646 | CJ177: 1562085.646 | CK177: 1562085.646 | CL177: 1562085.646 | CM177: 1562085.646 | CN177: 1562085.646 | CO177: 1562085.646 | CP177: 1562085.646 | CQ177: 1562085.646 | CR177: 1562085.646 | CS177: 1562085.646 | CT177: 1562085.646 | CU177: 1562085.646 | CV177: 1562085.646 | CW177: 1562085.646 | CX177: 1562085.646 | CY177: 1562085.646 | CZ177: 1562085.646 | DA177: 1562085.646 | DB177: 1562085.646 | DC177: 1562085.646 | DD177: 1562085.646 | DE177: 1562085.646 | DF177: 1562085.646 | DG177: 1562085.646 | DH177: 1562085.646 | DI177: 1562085.646
B180: Applied DSCR | F180: =MAX(F153,F164) -> 1.45466916 | H180: =$F$180 -> 1.45466916 | I180: =$F$180 -> 1.45466916 | J180: 1.45466916 | K180: 1.45466916 | L180: 1.45466916 | M180: 1.45466916 | N180: 1.45466916 | O180: 1.45466916 | P180: 1.45466916 | Q180: 1.45466916 | R180: 1.45466916 | S180: 1.45466916 | T180: 1.45466916 | U180: 1.45466916 | V180: 1.45466916 | W180: 1.45466916 | X180: 1.45466916 | Y180: 1.45466916 | Z180: 1.45466916 | AA180: 1.45466916 | AB180: 1.45466916 | AC180: 1.45466916 | AD180: 1.45466916 | AE180: 1.45466916 | AF180: 1.45466916 | AG180: 1.45466916 | AH180: 1.45466916 | AI180: 1.45466916 | AJ180: 1.45466916 | AK180: 1.45466916 | AL180: 1.45466916 | AM180: 1.45466916 | AN180: 1.45466916 | AO180: 1.45466916 | AP180: 1.45466916 | AQ180: 1.45466916 | AR180: 1.45466916 | AS180: 1.45466916 | AT180: 1.45466916 | AU180: 1.45466916 | AV180: 1.45466916 | AW180: 1.45466916 | AX180: 1.45466916 | AY180: 1.45466916 | AZ180: 1.45466916 | BA180: 1.45466916 | BB180: 1.45466916 | BC180: 1.45466916 | BD180: 1.45466916 | BE180: 1.45466916 | BF180: 1.45466916 | BG180: 1.45466916 | BH180: 1.45466916 | BI180: 1.45466916 | BJ180: 1.45466916 | BK180: 1.45466916 | BL180: 1.45466916 | BM180: 1.45466916 | BN180: 1.45466916 | BO180: 1.45466916 | BP180: 1.45466916 | BQ180: 1.45466916 | BR180: 1.45466916 | BS180: 1.45466916 | BT180: 1.45466916 | BU180: =$F$180 -> 1.45466916 | BV180: 1.45466916 | BW180: 1.45466916 | BX180: 1.45466916 | BY180: 1.45466916 | BZ180: 1.45466916 | CA180: 1.45466916 | CB180: 1.45466916 | CC180: 1.45466916 | CD180: 1.45466916 | CE180: 1.45466916 | CF180: 1.45466916 | CG180: 1.45466916 | CH180: 1.45466916 | CI180: 1.45466916 | CJ180: 1.45466916 | CK180: 1.45466916 | CL180: 1.45466916 | CM180: 1.45466916 | CN180: 1.45466916 | CO180: 1.45466916 | CP180: 1.45466916 | CQ180: 1.45466916 | CR180: 1.45466916 | CS180: 1.45466916 | CT180: 1.45466916 | CU180: 1.45466916 | CV180: 1.45466916 | CW180: 1.45466916 | CX180: 1.45466916 | CY180: 1.45466916 | CZ180: 1.45466916 | DA180: 1.45466916 | DB180: 1.45466916 | DC180: 1.45466916 | DD180: 1.45466916 | DE180: 1.45466916 | DF180: 1.45466916 | DG180: 1.45466916 | DH180: 1.45466916 | DI180: 1.45466916
B181: Applied Debt Service | H181: =H167/H180 -> 0 | I181: 0 | J181: 0 | K181: 0 | L181: 0 | M181: 0 | N181: 0 | O181: 0 | P181: 0 | Q181: 0 | R181: 0 | S181: 0 | T181: 0 | U181: 0 | V181: 0 | W181: 0 | X181: 0 | Y181: 183860.3187 | Z181: 193543.0383 | AA181: 199884.1701 | AB181: 172252.3499 | AC181: 146651.4771 | AD181: 111120.6343 | AE181: 98619.32489 | AF181: 105949.4523 | AG181: 114899.1779 | AH181: 161597.8322 | AI181: 174314.3938 | AJ181: 200407.8045 | AK181: 203183.8744 | AL181: 213633.0504 | AM181: 220604.9813 | AN181: =AN167/AN180 -> 190105.0214 | AO181: 161851.2989 | AP181: 122653.8028 | AQ181: 108856.7439 | AR181: 116926.0006 | AS181: 126778.7161 | AT181: 178236.4979 | AU181: 192231.2807 | AV181: 220963.5467 | AW181: 224714.714 | AX181: 222328.6866 | AY181: 230302.2219 | AZ181: 199052.8178 | BA181: 169974.8208 | BB181: 129180.4583 | BC181: 115001.2034 | BD181: 123932.6165 | BE181: 134816.9583 | BF181: 190178.5512 | BG181: 205770.3711 | BH181: 237287.6515 | BI181: 241313.9474 | BJ181: 225247.0646 | BK181: 233334.5457 | BL181: 201615.364 | BM181: 172100.4636 | BN181: 130695.6639 | BO181: 116301.9409 | BP181: 125362.0711 | BQ181: 136403.8932 | BR181: 192581.8262 | BS181: 208399.9272 | BT181: =BT167/BT180 -> 240378.837 | BU181: 244459.5511 | BV181: 228150.0265 | BW181: 236351.8997 | BX181: 204159.4174 | BY181: 174204.3393 | BZ181: 132184.6859 | CA181: 117574.764 | CB181: 126764.1781 | CC181: 137964.2282 | CD181: 194963.5864 | CE181: 211009.1246 | CF181: 243452.3428 | CG181: 247587.4732 | CH181: 231033.3752 | CI181: 239350.0233 | CJ181: 206680.8445 | CK181: 176282.4317 | CL181: 133643.684 | CM181: 118815.8785 | CN181: 128135.0759 | CO181: 139494.0241 | CP181: 197319.5928 | CQ181: 213593.621 | CR181: 246503.6424 | CS181: 250693.1402 | CT181: 0 | CU181: 0 | CV181: 0 | CW181: 0 | CX181: 0 | CY181: 0 | CZ181: =CZ167/CZ180 -> 0 | DA181: 0 | DB181: 0 | DC181: 0 | DD181: 0 | DE181: 0 | DF181: 0 | DG181: 0 | DH181: 0 | DI181: 0
B182: Interest Expense | H182: =H195 -> 0 | I182: =I195 -> 0 | J182: 0 | K182: 0 | L182: 0 | M182: 0 | N182: 0 | O182: 0 | P182: 0 | Q182: 0 | R182: 0 | S182: 0 | T182: 0 | U182: 0 | V182: 0 | W182: 0 | X182: 0 | Y182: 43391.26794 | Z182: 42805.98023 | AA182: 35669.21896 | AB182: 34984.99 | AC182: 34413.04266 | AD182: 33945.38252 | AE182: 33623.81897 | AF182: 33353.00436 | AG182: 33050.51916 | AH182: 32709.48309 | AI182: 32172.4483 | AJ182: 31580.19019 | AK182: 30876.7418 | AL182: 30158.79541 | AM182: 29394.31935 | AN182: 28597.60826 | AO182: 27924.6607 | AP182: 27366.63304 | AQ182: 26969.60317 | AR182: 26628.40675 | AS182: 26252.16678 | AT182: 25833.30615 | AU182: 25198.29285 | AV182: 24502.32207 | AW182: 23683.73364 | AX182: 22846.10455 | AY182: 22014.92713 | AZ182: 21147.0634 | BA182: 20405.78942 | BB182: 19782.58512 | BC182: 19326.76065 | BD182: 18928.11714 | BE182: 18490.59839 | BF182: 18005.90523 | BG182: 17288.5192 | BH182: 16503.17815 | BI182: 15583.24285 | BJ182: 14642.69825 | BK182: 13765.18005 | BL182: 12850.30769 | BM182: 12063.78663 | BN182: 11396.96714 | BO182: 10899.88924 | BP182: 10460.71402 | BQ182: 9981.958367 | BR182: 9455.200305 | BS182: 8692.172697 | BT182: 7860.057053 | BU182: =BU195 -> 6891.228804 | BV182: 5901.360794 | BW182: 4975.324687 | BX182: 4011.255625 | BY182: 3177.304951 | BZ182: 2464.692308 | CA182: 1924.192334 | CB182: 1442.314953 | CC182: 920.1405229 | CD182: 349.123491 | CE182: 0 | CF182: 0 | CG182: 0 | CH182: 0 | CI182: 0 | CJ182: 0 | CK182: 0 | CL182: 0 | CM182: 0 | CN182: 0 | CO182: 0 | CP182: 0 | CQ182: 0 | CR182: 0 | CS182: 0 | CT182: 0 | CU182: 0 | CV182: 0 | CW182: 0 | CX182: 0 | CY182: 0 | CZ182: 0 | DA182: 0 | DB182: 0 | DC182: 0 | DD182: 0 | DE182: 0 | DF182: 0 | DG182: 0 | DH182: 0 | DI182: 0
B183: Repayment | H183: =H181-H182 -> 0 | I183: =I181-I182 -> 0 | J183: 0 | K183: 0 | L183: 0 | M183: 0 | N183: 0 | O183: 0 | P183: 0 | Q183: 0 | R183: 0 | S183: 0 | T183: 0 | U183: 0 | V183: 0 | W183: 0 | X183: 0 | Y183: 140469.0507 | Z183: 150737.058 | AA183: 164214.9511 | AB183: 137267.3599 | AC183: 112238.4345 | AD183: 77175.25176 | AE183: 64995.50592 | AF183: 72596.4479 | AG183: 81848.65873 | AH183: 128888.3492 | AI183: 142141.9455 | AJ183: 168827.6143 | AK183: 172307.1326 | AL183: 183474.255 | AM183: 191210.662 | AN183: 161507.4132 | AO183: 133926.6382 | AP183: 95287.16979 | AQ183: 81887.14077 | AR183: 90297.59385 | AS183: 100526.5493 | AT183: 152403.1918 | AU183: 167032.9879 | AV183: 196461.2247 | AW183: 201030.9804 | AX183: 199482.5821 | AY183: 208287.2947 | AZ183: 177905.7544 | BA183: 149569.0313 | BB183: 109397.8731 | BC183: 95674.44271 | BD183: 105004.4993 | BE183: 116326.3599 | BF183: 172172.6459 | BG183: 188481.8519 | BH183: 220784.4734 | BI183: 225730.7045 | BJ183: 210604.3664 | BK183: 219569.3657 | BL183: 188765.0563 | BM183: 160036.6769 | BN183: 119298.6967 | BO183: 105402.0517 | BP183: 114901.3571 | BQ183: 126421.9349 | BR183: 183126.6259 | BS183: 199707.7545 | BT183: 232518.7799 | BU183: =BU181-BU182 -> 237568.3223 | BV183: 222248.6657 | BW183: 231376.575 | BX183: 200148.1618 | BY183: 171027.0343 | BZ183: 129719.9936 | CA183: 115650.5716 | CB183: 125321.8631 | CC183: 137044.0877 | CD183: 194614.4629 | CE183: 211009.1246 | CF183: 243452.3428 | CG183: 247587.4732 | CH183: 231033.3752 | CI183: 239350.0233 | CJ183: 206680.8445 | CK183: 176282.4317 | CL183: 133643.684 | CM183: 118815.8785 | CN183: 128135.0759 | CO183: 139494.0241 | CP183: 197319.5928 | CQ183: 213593.621 | CR183: 246503.6424 | CS183: 250693.1402 | CT183: 0 | CU183: 0 | CV183: 0 | CW183: 0 | CX183: 0 | CY183: 0 | CZ183: 0 | DA183: 0 | DB183: 0 | DC183: 0 | DD183: 0 | DE183: 0 | DF183: 0 | DG183: 0 | DH183: 0 | DI183: 0
B185: Debt without Grant
